Workbook

Sheet GENERAL
A1: CLUB CONSERVADOR DE CARTES I JOCS | K1: ORDRE DARRER MES
B2: Temporada 2021-22 | K2: 1 | L2: Jeff | M2: 5 | N2: Mario | O2: 9 | P2: Sebas | Q2: 13 | R2: Grau | S2: 17 | T2: Mariajo | U2: 21 | V2: Núria
K3: 2 | L3: Carles | M3: 6 | N3: Sergi | O3: 10 | P3: Òscar | Q3: 14 | R3: Josep | S3: 18 | T3: Tim
B4: Classificació general | K4: 3 | L4: Ana | M4: 7 | N4: Tito | O4: 11 | P4: Marina | Q4: 15 | R4: Rosa Mª | S4: 19 | T4: Gemma
B5: OCTUBRE | K5: 4 | L5: Jordi | M5: 8 | N5: Sebas | O5: 12 | P5: Alfred | Q5: 16 | R5: Debi | S5: 20 | T5: Montse
B6: 12 | C6: Mesos
A7: =MAX(D7:AL7) -> 110 | B7: Timbes | D7: =+King!AO43 -> 108 | E7: =+Buti!BH42 -> 110 | F7: =+Pocha!AK40 -> 0 | G7: =+Julepe!AK39 -> 0 | H7: =+Pumba!BB40 -> 83 | I7: =+Cors!AK37 -> 99 | J7: =+Podrida!AK37 -> 99 | K7: =+Buti3!AS38 -> 0 | L7: =+Remigio!AY40 -> 0 | M7: =+Truc!AY39 -> 0 | N7: =+Texas!AM41 -> 76 | O7: =+Omaha!AG38 -> 0 | P7: =+'Black Jack'!AE35 -> 76 | Q7: =+Chinchón!AP38 -> 0 | R7: =+Mus!AE38 -> 76 | S7: =+Kul!AI39 -> 106 | T7: =+Manilla!BH42 -> 0 | U7: =+Tute!BH42 -> 0 | V7: =+'4 Duros'!AM41 -> 0 | W7: =+'Skull King'!AE38 -> 95 | X7: =+Whist!BH42 -> 0 | Y7: =+Wizard!BI51 -> 110 | Z7: =+'Tute cabrò'!AG38 -> 108 | AA7: =+Copo!AE38 -> 0 | AB7: =+Escombra!AO43 -> 0 | AC7: =+'1000km'!BB40 -> 0 | AD7: =+Cribbage!BK45 -> 109 | AE7: =+Canasta!BB40 -> 0 | AF7: =+Portugués!AO43 -> 0 | AG7: =+Tarot!BH42 -> 0 | AH7: =+Guinyot!BB40 -> 0 | AI7: =+'7 i mig'!AE35 -> 76
A8: =SUM(D8:AL8) -> 297 | B8: Partides | D8: =+King!AO44 -> 23 | E8: =+Buti!BH43 -> 45 | F8: =+Pocha!AK41 -> 0 | G8: =+Julepe!AK40 -> 0 | H8: =+Pumba!BB41 -> 4 | I8: =+Cors!AK41 -> 5 | J8: =+Podrida!AK41 -> 5 | K8: =+Buti3!AS39 -> 0 | L8: =+Remigio!AY41 -> 0 | M8: =+Truc!AY40 -> 0 | N8: =+Texas!AM42 -> 1 | O8: =+Omaha!AG39 -> 0 | P8: =+'Black Jack'!AE39 -> 1 | Q8: =+Chinchón!AP39 -> 0 | R8: =+Mus!AE39 -> 1 | S8: =+Kul!AI40 -> 12 | T8: =+Manilla!BH43 -> 0 | U8: =+Tute!BH43 -> 0 | V8: =+'4 Duros'!AM42 -> 0 | W8: =+'Skull King'!AE39 -> 13 | X8: =+Whist!BH43 -> 0 | Y8: =+Wizard!BI52 -> 90 | Z8: =+'Tute cabrò'!AG39 -> 59 | AA8: =+Copo!AE39 -> 0 | AB8: =+Escombra!AO44 -> 0 | AC8: =+'1000km'!BB41 -> 0 | AD8: =+Cribbage!BK46 -> 37 | AE8: =+Canasta!BB41 -> 0 | AF8: =+Portugués!AO44 -> 0 | AG8: =+Tarot!BH43 -> 0 | AH8: =+Guinyot!BB41 -> 0 | AI8: =+'7 i mig'!AE39 -> 1
D9: =IF(SUM(D11:D582)>0,1,0) ->  | E9: =IF(SUM(E11:E582)>0,1,0) ->  | F9: =IF(SUM(F11:F582)>0,1,0) ->  | G9: =IF(SUM(G11:G592)>0,1,0) ->  | H9: =IF(SUM(H11:H400)>0,1,0) ->  | I9: =IF(SUM(I11:I402)>0,1,0) -> 1 | L9: =IF(SUM(O11:O478)>0,1,0) ->  | AL9: =IF(SUM(AL11:AL490)>0,1,0) -> 0
C10: GENERAL | D10: KING | E10: BOTIFARRA | F10: POCHA | G10: JULEPE | H10: PUMBA | I10: CORS | J10: PODRIDA | K10: BUTI 3 | L10: REMIGIO | M10: TRUC | N10: TEXAS | O10: OMAHA | P10: BLACK JACK | Q10: CHINCHÓN | R10: MUS | S10: CUL | T10: MANILLA | U10: TUTE | V10: 4 DUROS | W10: SKULL KING | X10: WHIST | Y10: WIZARD | Z10: TUTE CABRÒ | AA10: COPO | AB10: ESCOMBRA | AC10: 1000 Km | AD10: CRIBBAGE | AE10: CANASTA | AF10: PORTUGUÈS | AG10: TAROT | AH10: GUINYOT | AI10: 7 i mig | AL10: Joc 8 | AM10: PARTIDES | AN10: KING | AO10: BOTIFARRA | AP10: POCHA | AQ10: JULEPE | AR10: PUMBA | AS10: CORS | AT10: PODRIDA | AU10: REMIGIO | AV10: BUTI 3 | AW10: TRUC | AX10: TEXAS | AY10: OMAHA | AZ10: BLACK JACK | BA10: CHINCHÓN | BB10: MUS | BC10: CUL | BD10: MANILLA | BE10: TUTE | BF10: 4 DUROS | BG10: SKULL KING | BH10: WHIST | BI10: WIZARD | BJ10: TUTE CABRÒ | BK10: COPO | BL10: ESCOMBRA | BM10: 1000 Km | BN10: CRIBBAGE | BO10: CANASTA | BP10: PORTUGUÈS | BQ10: TAROT | BR10: GUINYOT | BS10: 7 i mig
A11: =RANK(C11,C$11:C$43) -> 1 | B11: Jordi | C11: =SUM(D11:AL11)+AM11/10000 -> 360.0283333 | D11: =+King!G27 -> 80 | E11: =+Buti!I26 -> 40 | F11: =+Pocha!G24 -> 0 | G11: =+Julepe!G23 -> 0 | H11: =+Pumba!I24 -> 0 | I11: =+Cors!G24 -> 0 | J11: =+Podrida!G$24 -> 0 | K11: =+Buti3!I22 -> 0 | L11: =+Remigio!I24 -> 0 | M11: =+Truc!I23 -> 0 | N11: =+Texas!G25 -> 0 | O11: =+Omaha!G22 -> 0 | P11: =+'Black Jack'!G22 -> 0 | Q11: =+Chinchón!I22 -> 0 | R11: =+Mus!G22 -> 0 | S11: =+Kul!G23 -> 80 | T11: =+Manilla!I26 -> 0 | U11: =+Tute!I26 -> 0 | V11: =+'4 Duros'!G25 -> 0 | W11: =+'Skull King'!G22 -> 0 | X11: =+Whist!I26 -> 0 | Y11: =+Wizard!G35 -> 0 | Z11: =+'Tute cabrò'!G22 -> 80 | AA11: =+Copo!G22 -> 0 | AB11: =+Escombra!G27 -> 0 | AC11: =+'1000km'!I24 -> 0 | AD11: =+Cribbage!C29 -> 80 | AE11: =+Canasta!I24 -> 0 | AF11: =+Portugués!G27 -> 0 | AG11: =+Tarot!I26 -> 0 | AH11: =+Guinyot!I24 -> 0 | AI11: =+'7 i mig'!G22 -> 0 | AM11: =SUM(AN11:BS11) -> 283.3333333 | AN11: =+King!H27 -> 20.33333333 | AO11: =+Buti!J26 -> 43 | AP11: =+Pocha!H24 -> 0 | AQ11: =+Julepe!H23 -> 0 | AR11: =+Pumba!J24 -> 0 | AS11: =+Cors!H24 -> 0 | AT11: =+Podrida!H$24 -> 0 | AU11: =+Remigio!J24 -> 0 | AV11: =+Buti3!J22 -> 0 | AW11: =+Truc!J23 -> 0 | AX11: =+Texas!H25 -> 0 | AY11: =+Omaha!H22 -> 0 | AZ11: =+'Black Jack'!H22 -> 0 | BA11: =+Chinchón!J22 -> 0 | BB11: =+Mus!H22 -> 0 | BC11: =+Kul!H23 -> 12 | BD11: =+Manilla!J26 -> 0 | BE11: =+Tute!J26 -> 0 | BF11: =+'4 Duros'!H25 -> 0 | BG11: =+'Skull King'!H22 -> 1 | BH11: =+Whist!J26 -> 0 | BI11: =+Wizard!H35 -> 89 | BJ11: =+'Tute cabrò'!H22 -> 58 | BK11: =+Copo!H22 -> 0 | BL11: =+Escombra!H27 -> 0 | BM11: =+'1000km'!V24 -> 0 | BN11: =+Cribbage!E44 -> 60 | BO11: =+Canasta!V24 -> 0 | BP11: =+Portugués!D27 -> 0 | BQ11: =+Tarot!V26 -> 0 | BR11: =+Guinyot!V24 -> 0 | BS11: =+'7 i mig'!H22 -> 0
A12: 2 | B12: Carles | C12: 120.0697667 | D12: =+King!C27 -> 0 | E12: =+Buti!U26 -> 0 | F12: =+Pocha!O24 -> 0 | G12: =+Julepe!O23 -> 0 | H12: =+Pumba!U24 -> 0 | I12: =+Cors!O24 -> 0 | J12: =+Podrida!O$24 -> 0 | K12: =+Buti3!U22 -> 0 | L12: =+Remigio!U24 -> 0 | M12: =+Truc!U23 -> 0 | N12: =+Texas!O25 -> 0 | O12: =+Omaha!O22 -> 0 | P12: =+'Black Jack'!O22 -> 0 | Q12: =+Chinchón!U22 -> 0 | R12: =+Mus!O22 -> 0 | S12: =+Kul!O23 -> 0 | T12: =+Manilla!U26 -> 0 | U12: =+Tute!U26 -> 0 | V12: =+'4 Duros'!O25 -> 0 | W12: =+'Skull King'!O22 -> 40 | X12: =+Whist!U26 -> 0 | Y12: =+Wizard!Q35 -> 80 | Z12: =+'Tute cabrò'!O22 -> 0 | AA12: =+Copo!O22 -> 0 | AB12: =+Escombra!C27 -> 0 | AC12: =+'1000km'!U24 -> 0 | AD12: =+Cribbage!U29 -> 0 | AE12: =+Canasta!U24 -> 0 | AF12: =+Portugués!C27 -> 0 | AG12: =+Tarot!U26 -> 0 | AH12: =+Guinyot!U24 -> 0 | AI12: =+'7 i mig'!O22 -> 0 | AM12: 697.6666667 | AN12: =+King!D27 -> 2.666666667 | AO12: =+Buti!V26 -> 1 | AP12: =+Pocha!P24 -> 0 | AQ12: =+Julepe!P23 -> 0 | AR12: =+Pumba!V24 -> 0 | AS12: =+Cors!P24 -> 0 | AT12: =+Podrida!P$24 -> 0 | AU12: =+Remigio!V24 -> 0 | AV12: =+Buti3!V22 -> 0 | AW12: =+Truc!V23 -> 0 | AX12: =+Texas!P25 -> 0 | AY12: =+Omaha!P22 -> 0 | AZ12: =+'Black Jack'!P22 -> 0 | BA12: =+Chinchón!V22 -> 0 | BB12: =+Mus!P22 -> 0 | BC12: =+Kul!P23 -> 2 | BD12: =+Manilla!V26 -> 0 | BE12: =+Tute!V26 -> 0 | BF12: =+'4 Duros'!P25 -> 0 | BG12: =+'Skull King'!P22 -> 13 | BH12: =+Whist!V26 -> 0 | BI12: =+Wizard!R35 -> 677 | BJ12: =+'Tute cabrò'!P22 -> 2 | BK12: =+Copo!P22 -> 0 | BL12: =+Escombra!D27 -> 0 | BM12: =+'1000km'!Y24 -> 0 | BN12: =+Cribbage!W44 -> 0 | BO12: =+Canasta!Y24 -> 0 | BP12: =+Portugués!AN27 -> 0 | BQ12: =+Tarot!Y26 -> 0 | BR12: =+Guinyot!Y24 -> 0 | BS12: =+'7 i mig'!P22 -> 0
A13: 3 | B13: Grau | C13: 90.10373333 | D13: =+King!AG27 -> 0 | E13: =+Buti!AV26 -> 80 | F13: =+Pocha!AC24 -> 0 | G13: =+Julepe!AI23 -> 0 | H13: =+Pumba!AY24 -> 0 | I13: =+Cors!AG24 -> 0 | J13: =+Podrida!AG$24 -> 0 | K13: =+Buti3!AM22 -> 0 | M13: =+Truc!AV23 -> 0 | N13: =+Texas!K25 -> 0 | O13: =+Omaha!S22 -> 0 | R13: =+Mus!AC22 -> 0 | S13: =+Kul!K23 -> 0 | T13: =+Manilla!AV26 -> 0 | U13: =+Tute!C26 -> 0 | V13: =+'4 Duros'!C25 -> 0 | W13: =+'Skull King'!S22 -> 0 | Y13: =+Wizard!U35 -> 0 | Z13: =+'Tute cabrò'!E22 -> 10 | AB13: =+Escombra!AG27 -> 0 | AC13: =+'1000km'!AY24 -> 0 | AD13: =+Cribbage!AV29 -> 0 | AE13: =+Canasta!AY24 -> 0 | AF13: =+Portugués!AG27 -> 0 | AG13: =+Tarot!AV26 -> 0 | AH13: =+Guinyot!AY24 -> 0 | AM13: 1037.333333 | AN13: =+King!AH27 -> 2.333333333 | AO13: =+Buti!AW26 -> 13 | AP13: =+Pocha!AD24 -> 0 | AQ13: =+Julepe!AJ23 -> 0 | AR13: =+Pumba!AZ24 -> 0 | AS13: =+Cors!AH24 -> 0 | AT13: =+Podrida!AH$24 -> 0 | AV13: =+Buti3!AN22 -> 0 | AW13: =+Truc!AW23 -> 0 | AX13: =+Texas!L25 -> 0 | AY13: =+Omaha!T22 -> 0 | BB13: =+Mus!AD22 -> 0 | BC13: =+Kul!L23 -> 3 | BD13: =+Manilla!AW26 -> 0 | BE13: =+Tute!D26 -> 0 | BF13: =+'4 Duros'!D25 -> 0 | BG13: =+'Skull King'!T22 -> 0 | BI13: =+Wizard!V35 -> 1007 | BJ13: =+'Tute cabrò'!F22 -> 10 | BL13: =+Escombra!AH27 -> 0 | BM13: =+'1000km'!J24 -> 0 | BN13: =+Cribbage!AX44 -> 2 | BO13: =+Canasta!J24 -> 0 | BP13: =+Portugués!H27 -> 0 | BQ13: =+Tarot!J26 -> 0 | BR13: =+Guinyot!J24 -> 0
A14: 4 | B14: Núria | C14: 90.01273333 | D14: =+King!AK27 -> 10 | E14: =+Buti!AA26 -> 0 | F14: =+Pocha!S24 -> 0 | G14: =+Julepe!S23 -> 0 | H14: =+Pumba!AA24 -> 0 | I14: =+Cors!W24 -> 0 | J14: =+Podrida!W$24 -> 0 | K14: =+Buti3!AA22 -> 0 | L14: =+Remigio!AA24 -> 0 | M14: =+Truc!AA23 -> 0 | N14: =+Texas!S25 -> 0 | P14: =+'Black Jack'!S22 -> 0 | Q14: =+Chinchón!AA22 -> 0 | R14: =+Mus!S22 -> 0 | S14: =+Kul!E23 -> 40 | T14: =+Manilla!AA26 -> 0 | U14: =+Tute!AA26 -> 0 | V14: =+'4 Duros'!S25 -> 0 | X14: =+Whist!AA26 -> 0 | Y14: =+Wizard!AK35 -> 0 | Z14: =+'Tute cabrò'!S22 -> 0 | AA14: =+Copo!S22 -> 0 | AC14: =+'1000km'!AA24 -> 0 | AD14: =+Cribbage!I29 -> 40 | AI14: =+'7 i mig'!S22 -> 0 | AM14: 127.3333333 | AN14: =+King!AL27 -> 15.33333333 | AO14: =+Buti!AB26 -> 28 | AP14: =+Pocha!T24 -> 0 | AQ14: =+Julepe!T23 -> 0 | AR14: =+Pumba!AB24 -> 0 | AS14: =+Cors!X24 -> 0 | AT14: =+Podrida!X$24 -> 0 | AU14: =+Remigio!AB24 -> 0 | AV14: =+Buti3!AB22 -> 0 | AW14: =+Truc!AB23 -> 0 | AX14: =+Texas!T25 -> 0 | BA14: =+Chinchón!AB22 -> 0 | BB14: =+Mus!T22 -> 0 | BC14: =+Kul!F23 -> 9 | BD14: =+Manilla!AB26 -> 0 | BE14: =+Tute!AB26 -> 0 | BF14: =+'4 Duros'!T25 -> 0 | BH14: =+Whist!AB26 -> 0 | BI14: =+Wizard!AL35 -> 28 | BJ14: =+'Tute cabrò'!T22 -> 29 | BK14: =+Copo!T22 -> 0 | BM14: =+'1000km'!AB24 -> 0 | BN14: =+Cribbage!K44 -> 18 | BS14: =+'7 i mig'!T22 -> 0
A15: 5 | B15: Sergi | C15: 80.01566667 | D15: =+King!M27 -> 0 | E15: =+Buti!R26 -> 0 | F15: =+Pocha!M24 -> 0 | G15: =+Julepe!M23 -> 0 | H15: =+Pumba!R24 -> 0 | I15: =+Cors!M24 -> 0 | J15: =+Podrida!M$24 -> 0 | K15: =+Buti3!R22 -> 0 | L15: =+Remigio!R24 -> 0 | M15: =+Truc!R23 -> 0 | N15: =+Texas!M25 -> 0 | O15: =+Omaha!M22 -> 0 | P15: =+'Black Jack'!M22 -> 0 | Q15: =+Chinchón!R22 -> 0 | R15: =+Mus!M22 -> 0 | S15: =+Kul!M23 -> 0 | T15: =+Manilla!R26 -> 0 | U15: =+Tute!R26 -> 0 | V15: =+'4 Duros'!M25 -> 0 | W15: =+'Skull King'!M22 -> 80 | X15: =+Whist!R26 -> 0 | Y15: =+Wizard!O35 -> 0 | Z15: =+'Tute cabrò'!M22 -> 0 | AA15: =+Copo!M22 -> 0 | AB15: =+Escombra!M27 -> 0 | AC15: =+'1000km'!R24 -> 0 | AD15: =+Cribbage!F29 -> 0 | AE15: =+Canasta!R24 -> 0 | AF15: =+Portugués!M27 -> 0 | AG15: =+Tarot!R26 -> 0 | AH15: =+Guinyot!R24 -> 0 | AI15: =+'7 i mig'!M22 -> 0 | AM15: 156.6666667 | AN15: =+King!N27 -> 2.666666667 | AO15: =+Buti!S26 -> 1 | AP15: =+Pocha!N24 -> 0 | AQ15: =+Julepe!N23 -> 0 | AR15: =+Pumba!S24 -> 0 | AS15: =+Cors!N24 -> 0 | AT15: =+Podrida!N$24 -> 0 | AU15: =+Remigio!S24 -> 0 | AV15: =+Buti3!S22 -> 0 | AW15: =+Truc!S23 -> 0 | AX15: =+Texas!N25 -> 0 | AY15: =+Omaha!N22 -> 0 | AZ15: =+'Black Jack'!N22 -> 0 | BA15: =+Chinchón!S22 -> 0 | BB15: =+Mus!N22 -> 0 | BC15: =+Kul!N23 -> 3 | BD15: =+Manilla!S26 -> 0 | BE15: =+Tute!S26 -> 0 | BF15: =+'4 Duros'!N25 -> 0 | BG15: =+'Skull King'!N22 -> 9 | BH15: =+Whist!S26 -> 0 | BI15: =+Wizard!P35 -> 140 | BJ15: =+'Tute cabrò'!N22 -> 1 | BK15: =+Copo!N22 -> 0 | BL15: =+Escombra!N27 -> 0 | BN15: =+Cribbage!H44 -> 0 | BO15: =+Canasta!S24 -> 0 | BP15: =+Portugués!N27 -> 0 | BQ15: =+Tarot!S26 -> 0 | BR15: =+Guinyot!AK24 -> 0 | BS15: =+'7 i mig'!N22 -> 0
A16: 6 | B16: Òscar | C16: 65.00393333 | D16: =+King!W27 -> 20 | E16: =+Buti!AG26 -> 5 | F16: =+Pocha!W24 -> 0 | G16: =+Julepe!W23 -> 0 | H16: =+Pumba!AG24 -> 0 | K16: =+Buti3!AG22 -> 0 | L16: =+Remigio!AG24 -> 0 | M16: =+Truc!AG23 -> 0 | N16: =+Texas!W25 -> 0 | O16: =+Omaha!W22 -> 0 | P16: =+'Black Jack'!W22 -> 0 | Q16: =+Chinchón!AG22 -> 0 | R16: =+Mus!W22 -> 0 | S16: =+Kul!AG23 -> 20 | T16: =+Manilla!AG26 -> 0 | U16: =+Tute!AG26 -> 0 | V16: =+'4 Duros'!W25 -> 0 | W16: =+'Skull King'!W22 -> 0 | X16: =+Whist!AG26 -> 0 | Y16: =+Wizard!BC35 -> 0 | Z16: =+'Tute cabrò'!W22 -> 20 | AA16: =+Copo!W22 -> 0 | AB16: =+Escombra!W27 -> 0 | AC16: =+'1000km'!AG24 -> 0 | AD16: =+Cribbage!O29 -> 0 | AI16: =+'7 i mig'!W22 -> 0 | AM16: 39.33333333 | AN16: =+King!X27 -> 8.333333333 | AO16: =+Buti!AH26 -> 13 | AP16: =+Pocha!X24 -> 0 | AQ16: =+Julepe!X23 -> 0 | AR16: =+Pumba!AH24 -> 0 | AU16: =+Remigio!AH24 -> 0 | AV16: =+Buti3!AH22 -> 0 | AW16: =+Truc!AH23 -> 0 | AX16: =+Texas!X25 -> 0 | AY16: =+Omaha!X22 -> 0 | AZ16: =+'Black Jack'!X22 -> 0 | BA16: =+Chinchón!AH22 -> 0 | BB16: =+Mus!X22 -> 0 | BC16: =+Kul!AH23 -> 8 | BD16: =+Manilla!AH26 -> 0 | BE16: =+Tute!AH26 -> 0 | BF16: =+'4 Duros'!X25 -> 0 | BG16: =+'Skull King'!X22 -> 0 | BH16: =+Whist!AH26 -> 0 | BI16: =+Wizard!BD35 -> 1 | BJ16: =+'Tute cabrò'!X22 -> 6 | BK16: =+Copo!X22 -> 0 | BL16: =+Escombra!X27 -> 0 | BN16: =+Cribbage!Q44 -> 3 | BS16: =+'7 i mig'!X22 -> 0
A17: 7 | B17: Nogué | C17: 50.01366667 | D17: =+King!Y27 -> 40 | E17: =+Buti!AP26 -> 10 | H17: =+Pumba!AM24 -> 0 | I17: =+Cors!AE24 -> 0 | J17: =+Podrida!AE24 -> 0 | L17: =+Remigio!AP24 -> 0 | N17: =+Texas!AC25 -> 0 | O17: =+Omaha!K22 -> 0 | Q17: =+Chinchón!F22 -> 0 | R17: =+Mus!U22 -> 0 | S17: =+Kul!AE23 -> 0 | T17: =+Manilla!AP26 -> 0 | U17: =+Tute!AP26 -> 0 | V17: =+'4 Duros'!AC25 -> 0 | X17: =+Whist!AP26 -> 0 | Y17: =+Wizard!BG35 -> 0 | Z17: =+'Tute cabrò'!AE22 -> 0 | AB17: =+Escombra!AC27 -> 0 | AD17: =+Cribbage!R29 -> 0 | AM17: 136.6666667 | AN17: =+King!Z27 -> 14.66666667 | AO17: =+Buti!AQ26 -> 25 | AR17: =+Pumba!AN24 -> 0 | AS17: =+Cors!AF24 -> 0 | AT17: =+Podrida!AF24 -> 0 | AU17: =+Remigio!AQ24 -> 0 | AX17: =+Texas!AD25 -> 0 | AY17: =+Omaha!L22 -> 0 | BA17: =+Chinchón!G22 -> 0 | BB17: =+Mus!V22 -> 0 | BC17: =+Kul!AF23 -> 6 | BD17: =+Manilla!AQ26 -> 0 | BE17: =+Tute!AQ26 -> 0 | BF17: =+'4 Duros'!AD25 -> 0 | BH17: =+Whist!AQ26 -> 0 | BI17: =+Wizard!BH35 -> 12 | BJ17: =+'Tute cabrò'!AF22 -> 33 | BL17: =+Escombra!AD27 -> 0 | BM17: =+'1000km'!AE24 -> 0 | BN17: =+Cribbage!T44 -> 46
A18: 8 | B18: Sebas | C18: 50.01083333 | D18: =+King!U27 -> 0 | E18: =+Buti!F26 -> 0 | H18: =+Pumba!AJ24 -> 0 | I18: =+Cors!AC24 -> 0 | J18: =+Podrida!AC24 -> 0 | O18: =+Omaha!AE22 -> 0 | P18: =+'Black Jack'!AA22 -> 0 | S18: =+Kul!AC23 -> 5 | U18: =+Tute!F26 -> 0 | X18: =+Whist!F26 -> 0 | Y18: =+Wizard!AO35 -> 0 | Z18: =+'Tute cabrò'!C22 -> 40 | AD18: =+Cribbage!AP29 -> 5 | AI18: =+'7 i mig'!AA22 -> 0 | AM18: 108.3333333 | AN18: =+King!V27 -> 13.33333333 | AO18: =+Buti!G26 -> 13 | AR18: =+Pumba!AK24 -> 0 | AS18: =+Cors!AD24 -> 0 | AT18: =+Podrida!AD24 -> 0 | AY18: =+Omaha!AF22 -> 0 | AZ18: =+'Black Jack'!AB22 -> 0 | BC18: =+Kul!AD23 -> 8 | BE18: =+Tute!G26 -> 0 | BH18: =+Whist!G26 -> 0 | BI18: =+Wizard!AP35 -> 31 | BJ18: =+'Tute cabrò'!D22 -> 33 | BN18: =+Cribbage!AR44 -> 10 | BS18: =+'7 i mig'!AB22 -> 0
A19: 9 | B19: Alfred | C19: 40.1837 | W19: =+'Skull King'!AC22 -> 0 | Y19: =+Wizard!AE35 -> 40 | AM19: 1837 | BG19: =+'Skull King'!AD22 -> 1 | BI19: =+Wizard!AF35 -> 1836
A20: 10 | B20: Manolo | C20: 20.10236667 | D20: =+King!AA27 -> 0 | E20: =+Buti!AM26 -> 0 | F20: =+Pocha!C24 -> 0 | G20: =+Julepe!C23 -> 0 | H20: =+Pumba!O24 -> 0 | I20: =+Cors!Y24 -> 0 | J20: =+Podrida!Y$24 -> 0 | M20: =+Truc!F23 -> 0 | N20: =+Texas!U25 -> 0 | O20: =+Omaha!AA22 -> 0 | P20: =+'Black Jack'!E22 -> 0 | R20: =+Mus!E22 -> 0 | S20: =+Kul!I23 -> 0 | T20: =+Manilla!AM26 -> 0 | U20: =+Tute!AM26 -> 0 | W20: =+'Skull King'!E22 -> 20 | X20: =+Whist!AM26 -> 0 | Y20: =+Wizard!C35 -> 0 | Z20: =+'Tute cabrò'!U22 -> 0 | AB20: =+Escombra!S27 -> 0 | AD20: =+Cribbage!AM29 -> 0 | AF20: =+Portugués!E27 -> 0 | AG20: =+Tarot!AM26 -> 0 | AH20: =+Guinyot!O24 -> 0 | AI20: =+'7 i mig'!E22 -> 0 | AM20: 1023.666667 | AN20: =+King!AB27 -> 3.666666667 | AO20: =+Buti!AN26 -> 9 | AP20: =+Pocha!D24 -> 0 | AQ20: =+Julepe!D23 -> 0 | AR20: =+Pumba!P24 -> 0 | AS20: =+Cors!Z24 -> 0 | AT20: =+Podrida!Z$24 -> 0 | AW20: =+Truc!G23 -> 0 | AX20: =+Texas!V25 -> 0 | AY20: =+Omaha!AB22 -> 0 | AZ20: =+'Black Jack'!F22 -> 0 | BB20: =+Mus!F22 -> 0 | BC20: =+Kul!J23 -> 3 | BD20: =+Manilla!AN26 -> 0 | BE20: =+Tute!AN26 -> 0 | BF20: =+'4 Duros'!AF25 -> 0 | BG20: =+'Skull King'!F22 -> 11 | BH20: =+Whist!AN26 -> 0 | BI20: =+Wizard!D35 -> 995 | BJ20: =+'Tute cabrò'!V22 -> 2 | BL20: =+Escombra!T27 -> 0 | BN20: =+Cribbage!AO44 -> 0 | BP20: =+Portugués!F27 -> 0 | BQ20: =+Tarot!AN26 -> 0 | BR20: =+Guinyot!G24 -> 0 | BS20: =+'7 i mig'!F22 -> 0
A21: 11 | B21: Tim | C21: 20.0558 | F21: =+Pocha!Y24 -> 0 | G21: =+Julepe!AA23 -> 0 | L21: =+Remigio!AS24 -> 0 | M21: =+Truc!O23 -> 0 | T21: =+Manilla!BE26 -> 0 | V21: =+'4 Duros'!AE25 -> 0 | W21: =+'Skull King'!K22 -> 0 | Y21: =+Wizard!AW35 -> 20 | AM21: 558 | AP21: =+Pocha!Z24 -> 0 | AQ21: =+Julepe!AB23 -> 0 | AU21: =+Remigio!AT24 -> 0 | AW21: =+Truc!P23 -> 0 | BD21: =+Manilla!BF26 -> 0 | BG21: =+'Skull King'!L22 -> 0 | BI21: =+Wizard!AX35 -> 558
A22: 12 | B22: Ana B. | C22: 20.02916667 | D22: =+King!S27 -> 0 | E22: =+Buti!C26 -> 20 | H22: =+Pumba!F24 -> 0 | I22: =+Cors!Q24 -> 0 | J22: =+Podrida!Q24 -> 0 | K22: =+Buti3!F22 -> 0 | M22: =+Truc!AJ23 -> 0 | P22: =+'Black Jack'!C22 -> 0 | S22: =+Kul!C23 -> 0 | T22: =+Manilla!C26 -> 0 | X22: =+Whist!C26 -> 0 | Y22: =+Wizard!E35 -> 0 | Z22: =+'Tute cabrò'!AA22 -> 0 | AD22: =+Cribbage!AG29 -> 0 | AH22: =+Guinyot!F24 -> 0 | AI22: =+'7 i mig'!C22 -> 0 | AM22: 291.6666667 | AN22: =+King!T27 -> 2.666666667 | AO22: =+Buti!D26 -> 12 | AR22: =+Pumba!G24 -> 0 | AS22: =+Cors!R24 -> 0 | AT22: =+Podrida!R24 -> 0 | AV22: =+Buti3!G22 -> 0 | AW22: =+Truc!AK23 -> 0 | AZ22: =+'Black Jack'!D22 -> 0 | BC22: =+Kul!D23 -> 3 | BD22: =+Manilla!D26 -> 0 | BH22: =+Whist!D26 -> 0 | BI22: =+Wizard!F35 -> 269 | BJ22: =+'Tute cabrò'!AB22 -> 4 | BN22: =+Cribbage!AI44 -> 1 | BS22: =+'7 i mig'!D22 -> 0
A23: 13 | B23: Lluïsa | C23: 20.0069 | F23: =+Pocha!I24 -> 0 | G23: =+Julepe!I23 -> 0 | K23: =+Buti3!L22 -> 0 | M23: =+Truc!L23 -> 0 | N23: =+Texas!I25 -> 0 | O23: =+Omaha!I22 -> 0 | P23: =+'Black Jack'!I22 -> 0 | Q23: =+Chinchón!L22 -> 0 | R23: =+Mus!I22 -> 0 | T23: =+Manilla!L26 -> 0 | U23: =+Tute!L26 -> 0 | V23: =+'4 Duros'!I25 -> 0 | X23: =+Whist!L26 -> 0 | Y23: =+Wizard!AQ35 -> 0 | AD23: =+Cribbage!BH29 -> 20 | AI23: =+'7 i mig'!I22 -> 0 | AM23: 69 | AP23: =+Pocha!J24 -> 0 | AQ23: =+Julepe!J23 -> 0 | AV23: =+Buti3!M22 -> 0 | AW23: =+Truc!M23 -> 0 | AX23: =+Texas!J25 -> 0 | AY23: =+Omaha!J22 -> 0 | AZ23: =+'Black Jack'!J22 -> 0 | BA23: =+Chinchón!M22 -> 0 | BB23: =+Mus!J22 -> 0 | BD23: =+Manilla!M26 -> 0 | BE23: =+Tute!M26 -> 0 | BF23: =+'4 Duros'!J25 -> 0 | BH23: =+Whist!M26 -> 0 | BI23: =+Wizard!AR35 -> 61 | BM23: =+'1000km'!S24 -> 0 | BN23: =+Cribbage!BJ44 -> 8 | BO23: =+Canasta!AQ24 -> 0 | BP23: =+Portugués!Z27 -> 0 | BQ23: =+Tarot!AZ26 -> 0 | BR23: =+Guinyot!S24 -> 0 | BS23: =+'7 i mig'!J22 -> 0
A24: 14 | B24: Gemma | C24: 15.08006667 | D24: =+King!AC27 -> 5 | E24: =+Buti!AJ26 -> 0 | F24: =+Pocha!AG24 -> 0 | H24: =+Pumba!C24 -> 0 | I24: =+Cors!AA24 -> 0 | J24: =+Podrida!AA$24 -> 0 | K24: =+Buti3!AP22 -> 0 | L24: =+Remigio!AM24 -> 0 | N24: =+Texas!AA25 -> 0 | Q24: =+Chinchón!O22 -> 0 | R24: =+Mus!AA22 -> 0 | S24: =+Kul!Y23 -> 10 | T24: =+Manilla!AJ26 -> 0 | U24: =+Tute!AJ26 -> 0 | V24: =+'4 Duros'!AA25 -> 0 | X24: =+Whist!AJ26 -> 0 | Y24: =+Wizard!AM35 -> 0 | Z24: =+'Tute cabrò'!Y22 -> 0 | AC24: =+'1000km'!C24 -> 0 | AD24: =+Cribbage!L29 -> 0 | AE24: =+Canasta!C24 -> 0 | AM24: 800.6666667 | AN24: =+King!AD27 -> 9.666666667 | AO24: =+Buti!AK26 -> 5 | AP24: =+Pocha!AH24 -> 0 | AR24: =+Pumba!D24 -> 0 | AS24: =+Cors!AB24 -> 0 | AT24: =+Podrida!AB$24 -> 0 | AU24: =+Remigio!AN24 -> 0 | AV24: =+Buti3!AQ22 -> 0 | AX24: =+Texas!AB25 -> 0 | BA24: =+Chinchón!P22 -> 0 | BB24: =+Mus!AB22 -> 0 | BC24: =+Kul!Z23 -> 7 | BD24: =+Manilla!AK26 -> 0 | BE24: =+Tute!AK26 -> 0 | BF24: =+'4 Duros'!AB25 -> 0 | BH24: =+Whist!AK26 -> 0 | BI24: =+Wizard!AN35 -> 768 | BJ24: =+'Tute cabrò'!Z22 -> 9 | BM24: =+'1000km'!D24 -> 0 | BN24: =+Cribbage!O44 -> 2 | BO24: =+Canasta!D24 -> 0
A25: 15 | B25: Goretti | C25: 15.04133333 | D25: =+King!AI27 -> 0 | E25: =+Buti!AS26 -> 0 | F25: =+Pocha!K24 -> 0 | G25: =+Julepe!AC23 -> 0 | H25: =+Pumba!AS24 -> 0 | K25: =+Buti3!C22 -> 0 | L25: =+Remigio!O24 -> 0 | M25: =+Truc!AP23 -> 0 | N25: =+Texas!AG25 -> 0 | O25: =+Omaha!AC22 -> 0 | P25: =+'Black Jack'!K22 -> 0 | Q25: =+Chinchón!X22 -> 0 | R25: =+Mus!C22 -> 0 | S25: =+Kul!U23 -> 0 | T25: =+Manilla!AS26 -> 0 | U25: =+Tute!AV26 -> 0 | V25: =+'4 Duros'!AG25 -> 0 | W25: =+'Skull King'!C22 -> 0 | X25: =+Whist!AV26 -> 0 | Y25: =+Wizard!M35 -> 0 | Z25: =+'Tute cabrò'!K22 -> 5 | AA25: =+Copo!C22 -> 0 | AB25: =+Escombra!AI27 -> 0 | AC25: =+'1000km'!AS24 -> 0 | AD25: =+Cribbage!AS29 -> 10 | AE25: =+Canasta!AS24 -> 0 | AF25: =+Portugués!AI27 -> 0 | AG25: =+Tarot!AS26 -> 0 | AH25: =+Guinyot!AS24 -> 0 | AI25: =+'7 i mig'!K22 -> 0 | AM25: 413.3333333 | AN25: =+King!AJ27 -> 2.333333333 | AO25: =+Buti!AT26 -> 11 | AP25: =+Pocha!L24 -> 0 | AQ25: =+Julepe!AD23 -> 0 | AR25: =+Pumba!AT24 -> 0 | AU25: =+Remigio!P24 -> 0 | AV25: =+Buti3!D22 -> 0 | AW25: =+Truc!AQ23 -> 0 | AX25: =+Texas!AH25 -> 0 | AY25: =+Omaha!AD22 -> 0 | AZ25: =+'Black Jack'!L22 -> 0 | BA25: =+Chinchón!Y22 -> 0 | BB25: =+Mus!D22 -> 0 | BC25: =+Kul!V23 -> 5 | BD25: =+Manilla!AT26 -> 0 | BE25: =+Tute!AW26 -> 0 | BF25: =+'4 Duros'!AH25 -> 0 | BG25: =+'Skull King'!D22 -> 0 | BH25: =+Whist!AW26 -> 0 | BI25: =+Wizard!N35 -> 369 | BJ25: =+'Tute cabrò'!L22 -> 12 | BK25: =+Copo!D22 -> 0 | BL25: =+Escombra!AJ27 -> 0 | BM25: =+'1000km'!AT24 -> 0 | BN25: =+Cribbage!AU44 -> 14 | BO25: =+Canasta!M24 -> 0 | BP25: =+Portugués!L27 -> 0 | BQ25: =+Portugués!AR27 -> 0 | BR25: =+Guinyot!AT24 -> 0 | BS25: =+'7 i mig'!L22 -> 0
A26: 16 | B26: Mario | C26: 10.0387 | Y26: =+Wizard!BA35 -> 10 | AM26: 387 | BI26: =+Wizard!BB35 -> 387
A27: 17 | B27: Nin | C27: 10.00656667 | D27: =+King!AE27 -> 0 | E27: =+Buti!AD26 -> 0 | H27: =+Pumba!L24 -> 0 | I27: =+Cors!U24 -> 0 | J27: =+Podrida!U$24 -> 0 | N27: =+Texas!AE25 -> 0 | P27: =+'Black Jack'!U22 -> 0 | R27: =+Mus!Y22 -> 0 | S27: =+Kul!AA23 -> 0 | W27: =+'Skull King'!Y22 -> 10 | Y27: =+Wizard!AC35 -> 0 | Z27: =+'Tute cabrò'!I22 -> 0 | AD27: =+Cribbage!BE29 -> 0 | AG27: =+Tarot!AY26 -> 0 | AI27: =+'7 i mig'!Y22 -> 0 | AM27: 65.66666667 | AN27: =+King!AF27 -> 2.666666667 | AO27: =+Buti!AE26 -> 1 | AR27: =+Pumba!M24 -> 0 | AS27: =+Cors!V24 -> 0 | AT27: =+Podrida!V$24 -> 0 | AX27: =+Texas!AF25 -> 0 | AZ27: =+'Black Jack'!V22 -> 0 | BB27: =+Mus!Z22 -> 0 | BC27: =+Kul!AB23 -> 2 | BG27: =+'Skull King'!Z22 -> 9 | BI27: =+Wizard!AD35 -> 49 | BJ27: =+'Tute cabrò'!J22 -> 2 | BN27: =+Cribbage!BG44 -> 0 | BS27: =+'7 i mig'!Z22 -> 0
A28: 18 | B28: Jeff | C28: 5.0448 | F28: =+Pocha!AE24 -> 0 | G28: =+Julepe!Y23 -> 0 | H28: =+Pumba!AP24 -> 0 | I28: =+Cors!I24 -> 0 | J28: =+Podrida!S$24 -> 0 | K28: =+Buti3!AJ22 -> 0 | L28: =+Remigio!AJ24 -> 0 | M28: =+Truc!C23 -> 0 | N28: =+Texas!Y25 -> 0 | O28: =+Omaha!Y22 -> 0 | P28: =+'Black Jack'!Y22 -> 0 | Q28: =+Chinchón!AJ22 -> 0 | T28: =+Manilla!AY26 -> 0 | U28: =+Tute!AY26 -> 0 | V28: =+'4 Duros'!Y25 -> 0 | W28: =+'Skull King'!I22 -> 0 | X28: =+Whist!AY26 -> 0 | Y28: =+Wizard!AI35 -> 5 | AA28: =+Copo!Y22 -> 0 | AB28: =+Escombra!Y27 -> 0 | AC28: =+'1000km'!AP24 -> 0 | AE28: =+Canasta!AP24 -> 0 | AF28: =+Portugués!Y27 -> 0 | AM28: 448 | AP28: =+Pocha!AF24 -> 0 | AQ28: =+Julepe!Z23 -> 0 | AR28: =+Pumba!AQ24 -> 0 | AS28: =+Cors!J24 -> 0 | AT28: =+Podrida!T$24 -> 0 | AU28: =+Remigio!AK24 -> 0 | AV28: =+Buti3!AK22 -> 0 | AW28: =+Truc!D23 -> 0 | AX28: =+Texas!Z25 -> 0 | AY28: =+Omaha!Z22 -> 0 | AZ28: =+'Black Jack'!Z22 -> 0 | BA28: =+Chinchón!AK22 -> 0 | BD28: =+Manilla!AZ26 -> 0 | BE28: =+Tute!AZ26 -> 0 | BF28: =+'4 Duros'!Z25 -> 0 | BG28: =+'Skull King'!J22 -> 2 | BH28: =+Whist!AZ26 -> 0 | BI28: =+Wizard!AJ35 -> 446 | BK28: =+Copo!Z22 -> 0 | BL28: =+Escombra!Z27 -> 0 | BM28: =+'1000km'!G24 -> 0
A29: 19 | B29: Tito | C29: 0.0515 | D29: =+King!K27 -> 0 | E29: =+Buti!BB26 -> 0 | G29: =+Julepe!AG23 -> 0 | H29: =+Pumba!AV24 -> 0 | I29: =+Cors!K24 -> 0 | J29: =+Podrida!K$24 -> 0 | M29: =+Truc!AM23 -> 0 | N29: =+Texas!AI25 -> 0 | O29: =+Omaha!C22 -> 0 | T29: =+Manilla!BB26 -> 0 | V29: =+'4 Duros'!AI25 -> 0 | W29: =+'Skull King'!U22 -> 0 | Y29: =+Wizard!AA35 -> 0 | AA29: =+Copo!E22 -> 0 | AC29: =+'1000km'!AV24 -> 0 | AD29: =+Cribbage!BB29 -> 0 | AE29: =+Canasta!AV24 -> 0 | AM29: 515 | AN29: =+King!L27 -> 0 | AO29: =+Buti!BC26 -> 0 | AQ29: =+Julepe!AH23 -> 0 | AR29: =+Pumba!AW24 -> 0 | AS29: =+Cors!L24 -> 0 | AT29: =+Podrida!L$24 -> 0 | AW29: =+Truc!AN23 -> 0 | AX29: =+Texas!AJ25 -> 0 | AY29: =+Omaha!D22 -> 0 | BD29: =+Manilla!BC26 -> 0 | BG29: =+'Skull King'!V22 -> 5 | BI29: =+Wizard!AB35 -> 510 | BK29: =+Copo!F22 -> 0 | BN29: =+Cribbage!BD44 -> 0
A30: 20 | B30: Marina | C30: 0.0392 | G30: =+Julepe!E23 -> 0 | I30: =+Cors!S24 -> 0 | J30: =+Podrida!I$24 -> 0 | O30: =+Omaha!E22 -> 0 | P30: =+'Black Jack'!S22 -> 0 | V30: =+'4 Duros'!AK25 -> 0 | W30: =+'Skull King'!AA22 -> 0 | Y30: =+Wizard!Y35 -> 0 | AA30: =+Copo!K22 -> 0 | AB30: =+Escombra!AE27 -> 0 | AH30: =+Guinyot!AJ24 -> 0 | AM30: 392 | AQ30: =+Julepe!F23 -> 0 | AS30: =+Cors!T24 -> 0 | AT30: =+Podrida!J$24 -> 0 | AY30: =+Omaha!F22 -> 0 | AZ30: =+'Black Jack'!T22 -> 0 | BF30: =+'4 Duros'!AL25 -> 0 | BG30: =+'Skull King'!AB22 -> 2 | BI30: =+Wizard!Z35 -> 390 | BK30: =+Copo!L22 -> 0 | BL30: =+Escombra!AF27 -> 0 | BM30: =+'1000km'!M24 -> 0 | BR30: =+Guinyot!M24 -> 0
A31: 21 | B31: Nancy | C31: 0.0224 | G31: =+Julepe!K23 -> 0 | L31: =+Remigio!X24 -> 0 | Y31: =+Wizard!AG35 -> 0 | AC31: =+'1000km'!AM24 -> 0 | AM31: 224 | AQ31: =+Julepe!L23 -> 0 | AU31: =+Remigio!Y24 -> 0 | BI31: =+Wizard!AH35 -> 224
A32: 22 | B32: Debi | C32: 0.0192 | Y32: =+Wizard!AY35 -> 0 | AM32: 192 | BI32: =+Wizard!AZ35 -> 192
A33: 23 | B33: Xavier | C33: 0.0071 | Y33: =+Wizard!AS35 -> 0 | AD33: =+Cribbage!AJ29 -> 0 | AM33: 71 | BI33: =+Wizard!AT35 -> 61 | BN33: =+Cribbage!AL44 -> 10
A34: 24 | B34: Lleixà | C34: 0.0042 | F34: =+Pocha!U24 -> 0 | G34: =+Julepe!U23 -> 0 | H34: =+Pumba!AD24 -> 0 | K34: =+Buti3!AD22 -> 0 | L34: =+Remigio!AD24 -> 0 | M34: =+Truc!AD23 -> 0 | Q34: =+Chinchón!AD22 -> 0 | T34: =+Manilla!AD26 -> 0 | U34: =+Tute!AD26 -> 0 | V34: =+'4 Duros'!U25 -> 0 | X34: =+Whist!AD26 -> 0 | Y34: =+Wizard!I35 -> 0 | AA34: =+Copo!U22 -> 0 | AB34: =+Escombra!U27 -> 0 | AC34: =+'1000km'!AD24 -> 0 | AD34: =+Cribbage!AD29 -> 0 | AI34: =+'7 i mig'!U22 -> 0 | AM34: 42 | AP34: =+Pocha!V24 -> 0 | AQ34: =+Julepe!V23 -> 0 | AR34: =+Pumba!AE24 -> 0 | AU34: =+Remigio!AE24 -> 0 | AV34: =+Buti3!AE22 -> 0 | AW34: =+Truc!AE23 -> 0 | BA34: =+Chinchón!AE22 -> 0 | BD34: =+Manilla!AE26 -> 0 | BE34: =+Tute!AE26 -> 0 | BH34: =+Whist!AE26 -> 0 | BI34: =+Wizard!J35 -> 41 | BK34: =+Copo!V22 -> 0 | BL34: =+Escombra!V27 -> 0 | BM34: =+'1000km'!AH24 -> 0 | BN34: =+Cribbage!AF44 -> 1 | BO34: =+Canasta!G24 -> 0 | BS34: =+'7 i mig'!V22 -> 0
A35: 25 | B35: Eito | C35: 0.0026 | D35: =+King!E27 -> 0 | J35: =+Podrida!C$24 -> 0 | L35: =+Remigio!F24 -> 0 | M35: =+Truc!AS23 -> 0 | P35: =+'Black Jack'!AC22 -> 0 | Q35: =+Chinchón!AM22 -> 0 | V35: =+'4 Duros'!E25 -> 0 | Y35: =+Wizard!AU35 -> 0 | AA35: =+Copo!AC22 -> 0 | AD35: =+Cribbage!AA29 -> 0 | AI35: =+'7 i mig'!AC22 -> 0 | AM35: 26 | AN35: =+King!F27 -> 0 | AT35: =+Podrida!D$24 -> 0 | AU35: =+Remigio!G24 -> 0 | AW35: =+Truc!AT23 -> 0 | AZ35: =+'Black Jack'!AD22 -> 0 | BA35: =+Chinchón!AN22 -> 0 | BF35: =+'4 Duros'!F25 -> 0 | BI35: =+Wizard!AV35 -> 23 | BK35: =+Copo!AD22 -> 0 | BM35: =+'1000km'!AZ24 -> 0 | BN35: =+Cribbage!AC44 -> 3 | BO35: =+Canasta!AT24 -> 0 | BP35: =+Portugués!AJ27 -> 0 | BQ35: =+Tarot!AT26 -> 0 | BR35: =+Guinyot!AZ24 -> 0 | BS35: =+'7 i mig'!AD22 -> 0
A36: 26 | B36: Mariajo | C36: 0.001866666667 | D36: =+King!AM27 -> 0 | E36: =+Buti!X26 -> 0 | F36: =+Pocha!Q24 -> 0 | G36: =+Julepe!Q23 -> 0 | H36: =+Pumba!X24 -> 0 | I36: =+Cors!AI24 -> 0 | J36: =+Podrida!AI$24 -> 0 | K36: =+Buti3!X22 -> 0 | L36: =+Remigio!C24 -> 0 | M36: =+Truc!X23 -> 0 | N36: =+Texas!Q25 -> 0 | O36: =+Omaha!Q22 -> 0 | P36: =+'Black Jack'!Q22 -> 0 | Q36: =+Chinchón!C22 -> 0 | R36: =+Mus!Q22 -> 0 | S36: =+Kul!Q23 -> 0 | T36: =+Manilla!X26 -> 0 | U36: =+Tute!X26 -> 0 | V36: =+'4 Duros'!Q25 -> 0 | W36: =+'Skull King'!Q22 -> 0 | X36: =+Whist!X26 -> 0 | Y36: =+Wizard!S35 -> 0 | Z36: =+'Tute cabrò'!Q22 -> 0 | AA36: =+Copo!Q22 -> 0 | AB36: =+Escombra!AM27 -> 0 | AC36: =+'1000km'!X24 -> 0 | AD36: =+Cribbage!X29 -> 0 | AE36: =+Canasta!X24 -> 0 | AF36: =+Portugués!AM27 -> 0 | AG36: =+Tarot!X26 -> 0 | AH36: =+Guinyot!X24 -> 0 | AI36: =+'7 i mig'!Q22 -> 0 | AM36: 18.66666667 | AN36: =+King!AN27 -> 2.666666667 | AO36: =+Buti!Y26 -> 1 | AP36: =+Pocha!R24 -> 0 | AQ36: =+Julepe!R23 -> 0 | AR36: =+Pumba!Y24 -> 0 | AS36: =+Cors!AJ24 -> 0 | AT36: =+Podrida!AJ$24 -> 0 | AU36: =+Remigio!D24 -> 0 | AV36: =+Buti3!Y22 -> 0 | AW36: =+Truc!Y23 -> 0 | AX36: =+Texas!R25 -> 0 | AY36: =+Omaha!R22 -> 0 | AZ36: =+'Black Jack'!R22 -> 0 | BA36: =+Chinchón!D22 -> 0 | BB36: =+Mus!R22 -> 0 | BC36: =+Kul!R23 -> 5 | BD36: =+Manilla!Y26 -> 0 | BE36: =+Tute!Y26 -> 0 | BF36: =+'4 Duros'!R25 -> 0 | BG36: =+'Skull King'!R22 -> 2 | BH36: =+Whist!Y26 -> 0 | BI36: =+Wizard!T35 -> 3 | BJ36: =+'Tute cabrò'!R22 -> 5 | BK36: =+Copo!R22 -> 0 | BL36: =+Escombra!AN27 -> 0 | BN36: =+Cribbage!Z44 -> 0 | BO36: =+Canasta!AZ24 -> 0 | BP36: =+Portugués!AH27 -> 0 | BQ36: =+Tarot!AW26 -> 0 | BR36: =+Guinyot!P24 -> 0 | BS36: =+'7 i mig'!R22 -> 0
A37: 27 | B37: Caty | C37: 0.0005333333333 | D37: =+King!I27 -> 0 | S37: =+Kul!W23 -> 0 | Y37: =+Wizard!W35 -> 0 | Z37: =+'Tute cabrò'!AC22 -> 0 | AM37: 5.333333333 | AN37: =+King!J27 -> 1.333333333 | BC37: =+Kul!X23 -> 2 | BI37: =+Wizard!X35 -> 1 | BJ37: =+'Tute cabrò'!AD22 -> 1
A38: 28 | B38: Isabel | C38: 0.0004 | E38: =+Buti!AY26 -> 0 | AD38: =+Cribbage!AY29 -> 0 | AM38: 4 | AO38: =+Buti!AZ26 -> 3 | BN38: =+Cribbage!BA44 -> 1
A39: 29 | B39: Rosa M. | C39: 0.0003 | D39: =+King!Q27 -> 0 | E39: =+Buti!L26 -> 0 | F39: =+Pocha!E24 -> 0 | I39: =+Cors!C24 -> 0 | J39: =+Podrida!E$24 -> 0 | L39: =+Remigio!L24 -> 0 | N39: =+Texas!E25 -> 0 | T39: =+Manilla!F26 -> 0 | AB39: =+Escombra!E27 -> 0 | AC39: =+'1000km'!F24 -> 0 | AE39: =+Canasta!F24 -> 0 | AM39: 3 | AN39: =+King!R27 -> 0 | AO39: =+Buti!M26 -> 3 | AP39: =+Pocha!F24 -> 0 | AS39: =+Cors!D24 -> 0 | AT39: =+Podrida!F$24 -> 0 | AU39: =+Remigio!M24 -> 0 | AX39: =+Texas!F25 -> 0 | BD39: =+Manilla!G26 -> 0 | BL39: =+Escombra!F27 -> 0 | BM39: =+'1000km'!AW24 -> 0 | BO39: =+Canasta!AW24 -> 0
A40: 30 | B40: Carme | C40: 0.0002333333333 | D40: =+King!O27 -> 0 | F40: =+Pocha!AI24 -> 0 | G40: =+Julepe!AE23 -> 0 | L40: =+Remigio!AV24 -> 0 | N40: =+Texas!AK25 -> 0 | S40: =+Kul!S23 -> 0 | V40: =+'4 Duros'!K25 -> 0 | AM40: 2.333333333 | AN40: =+King!P27 -> 1.333333333 | AP40: =+Pocha!AJ24 -> 0 | AQ40: =+Julepe!AF23 -> 0 | AU40: =+Remigio!AW24 -> 0 | AX40: =+Texas!AL25 -> 0 | BC40: =+Kul!T23 -> 1 | BF40: =+'4 Duros'!L25 -> 0 | BM40: =+'1000km'!AQ24 -> 0
A41: 31 | B41: Christophe | C41: 0.0002 | Y41: =+Wizard!BE35 -> 0 | AD41: =+Cribbage!AD29 -> 0 | AM41: 2 | BI41: =+Wizard!BF35 -> 1 | BN41: =+Cribbage!AF44 -> 1
A42: 32 | B42: Jaume A | C42: 0.0001 | E42: =+Buti!O26 -> 0 | F42: =+Pocha!AA24 -> 0 | K42: =+Buti3!O22 -> 0 | N42: =+Texas!C25 -> 0 | O42: =+Omaha!U22 -> 0 | R42: =+Mus!K22 -> 0 | T42: =+Manilla!O26 -> 0 | U42: =+Tute!O26 -> 0 | X42: =+Whist!O26 -> 0 | AB42: =+Escombra!AA27 -> 0 | AC42: =+'1000km'!L24 -> 0 | AF42: =+Portugués!K27 -> 0 | AH42: =+Guinyot!L24 -> 0 | AM42: 1 | AO42: =+Buti!P26 -> 1 | AP42: =+Pocha!AB24 -> 0 | AV42: =+Buti3!P22 -> 0 | AX42: =+Texas!D25 -> 0 | AY42: =+Omaha!V22 -> 0 | BB42: =+Mus!L22 -> 0 | BD42: =+Manilla!P26 -> 0 | BE42: =+Tute!P26 -> 0 | BF42: =+'4 Duros'!AJ25 -> 0 | BH42: =+Whist!P26 -> 0 | BL42: =+Escombra!AB27 -> 0 | BM42: =+'1000km'!AN24 -> 0
A43: =RANK(C43,C$11:C$43) -> 33 | B43: Cyber X | C43: -1 | I43: =+Cors!E24 -> 0 | Y43: =+Wizard!K35 -> 0 | AM43: =SUM(AN43:BS43) -> 69 | AS43: =+Cors!F24 -> 0 | BI43: =+Wizard!L35 -> 69
A44: =RANK(C44,C$11:C$43) ->  | B44: 10 | C44: -10
B45: 10 | C45: 0 | D45: -10
B46: 10 | C46: 4 | D46: -4 | E46: -10
B47: 10 | C47: 5 | D47: 0 | E47: -5 | F47: -10
B48: 10 | C48: 6 | D48: 2 | E48: -2 | F48: -6 | G48: -10
B49: 10 | C49: 6 | D49: 2 | E49: 0 | F49: -2 | G49: -6 | H49: -10
B50: 10 | C50: 6 | D50: 4 | E50: 2 | F50: -2 | G50: -4 | H50: -6 | I50: -10
B51: 10 | C51: 6 | D51: 4 | E51: 2 | F51: 0 | G51: -2 | H51: -4 | I51: -6 | J51: -10
B52: 10 | C52: 8 | D52: 6 | E52: 4 | F52: 2 | G52: -2 | H52: -4 | I52: -6 | J52: -8 | K52: -10
A54: Classificació per "mosques"
C55: =+C10 -> GENERAL | D55: KING | E55: BOTIFARRA | F55: POCHA | G55: JULEPE | H55: PUMBA | I55: CORS | J55: PODRIDA | K55: BUTI 3 | L55: REMIGIO | M55: TRUC | N55: TEXAS | O55: OMAHA | P55: BLACK JACK | Q55: CHINCHÓN | R55: MUS | S55: CUL | T55: MANILLA | U55: TUTE | V55: 4 DUROS | W55: SKULL KING | X55: WHIST | Y55: WIZARD | Z55: TUTE CABRÒ | AA55: COPO | AB55: ESCOMBRA | AC55: 1000 Km | AD55: CRIBBAGE | AE55: CANASTA | AF55: PORTUGUÈS | AG55: TAROT | AH55: GUINYOT | AL55: =+AL10 -> Joc 8
A56: =RANK(C56,C$56:C$73) -> 1 | B56: Jordi | C56: =SUM(D56:AL56) -> 0
A57: 1 | B57: Carles | C57: 0
A58: 1 | B58: Mariajo | C58: 0
A59: 1 | B59: Grau | C59: 0
A60: 1 | B60: Joan | C60: 0
A61: 1 | B61: Manolo | C61: 0
A62: 1 | B62: Angie | C62: 0
A63: 1 | B63: Rosa M. | C63: 0
A64: 1 | B64: Sergi | C64: 0
A65: 1 | B65: Núria | C65: 0
A66: 1 | B66: Katy | C66: 0
A67: 1 | B67: Anna P. | C67: 0
A68: 1 | B68: Lucía | C68: 0
A69: 1 | B69: Lucía | C69: 0
A70: 1 | B70: Palafox | C70: 0
A71: 1 | B71: Goretti | C71: 0
A72: =RANK(C72,C$56:C$73) -> 1 | B72: Celes | C72: 0
A73: 1 | B73: Pol C. | C73: 0
B74: Total | C74: =SUM(C56:C73) -> 0
B75: Anomalies | C75: =SUM(D75:AL75) -> 0
D77: =+Wizard!A1 -> WIZARD | K77: =+King!A1 -> KING | S77: =+Cribbage!A1 -> CRIBBAGE | AA77: =+Buti!A1 -> BOTIFARRA
F79: =+Wizard!C4 -> Premi | G79: =+Wizard!D4 -> Punts | H79: =+Wizard!E4 -> Partides | I79: =+Wizard!F4 -> General | M79: =+King!C4 -> Premi | N79: =+King!D4 -> Reptes | O79: =+King!E4 -> Punts | P79: =+King!F4 -> Partides | Q79: =+King!G4 -> General | U79: =+Cribbage!C4 -> Premi | V79: =+Cribbage!D4 -> Reptes | W79: =+Cribbage!E4 -> Punts | X79: =+Cribbage!F4 -> Partides | Y79: =+Cribbage!G4 -> General | AC79: =+Buti!C4 -> Premi | AD79: =+Buti!D4 -> Punts | AE79: =+Buti!E4 -> Partides | AF79: =+Buti!F4 -> General
D80: =+Wizard!A5 -> 1 | E80: =+Wizard!B5 -> Carles | F80: =+Wizard!C5 -> 1514 | G80: =+Wizard!D5 -> 282.1428571 | H80: =+Wizard!E5 -> 677 | I80: =+Wizard!F5 -> 80 | K80: =+King!A5 -> 1 | L80: =+King!B5 -> Jordi | M80: =+King!C5 -> 8.5 | N80: =+King!D5 -> 11 | O80: =+King!E5 -> 27 | P80: =+King!F5 -> 20.33333333 | Q80: =+King!G5 -> 80 | S80: =+Cribbage!A5 -> 1 | T80: =+Cribbage!B5 -> Jordi | U80: =+Cribbage!C5 -> 9.5 | V80: =+Cribbage!D5 -> 11 | W80: =+Cribbage!E5 -> 33 | X80: =+Cribbage!F5 -> 60 | Y80: =+Cribbage!G5 -> 80 | AA80: =+Buti!A5 -> 1 | AB80: =+Buti!B5 -> Grau | AC80: =+Buti!C5 -> 70 | AD80: =+Buti!D5 -> 406 | AE80: =+Buti!E5 -> 13 | AF80: =+Buti!F5 -> 80
D81: =+Wizard!A6 -> 2 | E81: =+Wizard!B6 -> Alfred | F81: =+Wizard!C6 -> 273 | G81: =+Wizard!D6 -> 223.2352941 | H81: =+Wizard!E6 -> 1836 | I81: =+Wizard!F6 -> 40 | K81: =+King!A6 -> 2 | L81: =+King!B6 -> Montse | M81: =+King!C6 -> 4.5 | N81: =+King!D6 -> 8 | O81: =+King!E6 -> 0 | P81: =+King!F6 -> 14.66666667 | Q81: =+King!G6 -> 40 | S81: =+Cribbage!A6 -> 2 | T81: =+Cribbage!B6 -> Núria | U81: =+Cribbage!C6 -> 4 | V81: =+Cribbage!D6 -> 6 | W81: =+Cribbage!E6 -> 5 | X81: =+Cribbage!F6 -> 18 | Y81: =+Cribbage!G6 -> 40 | AA81: =+Buti!A6 -> 2 | AB81: =+Buti!B6 -> Jordi | AC81: =+Buti!C6 -> 60 | AD81: =+Buti!D6 -> 391 | AE81: =+Buti!E6 -> 43 | AF81: =+Buti!F6 -> 40
D82: =+Wizard!A7 -> 3 | E82: =+Wizard!B7 -> Tim | F82: =+Wizard!C7 -> 267 | G82: =+Wizard!D7 -> 229 | H82: =+Wizard!E7 -> 558 | I82: =+Wizard!F7 -> 20 | K82: =+King!A7 -> 3 | L82: =+King!B7 -> Òscar | M82: =+King!C7 -> 4 | N82: =+King!D7 -> 8 | O82: =+King!E7 -> -2 | P82: =+King!F7 -> 8.333333333 | Q82: =+King!G7 -> 20 | S82: =+Cribbage!A7 -> 3 | T82: =+Cribbage!B7 -> Lluisa | U82: =+Cribbage!C7 -> 1.5 | V82: =+Cribbage!D7 -> 3 | W82: =+Cribbage!E7 -> -2 | X82: =+Cribbage!F7 -> 8 | Y82: =+Cribbage!G7 -> 20 | AA82: =+Buti!A7 -> 3 | AB82: =+Buti!B7 -> Ana B. | AC82: =+Buti!C7 -> 20 | AD82: =+Buti!D7 -> -72 | AE82: =+Buti!E7 -> 12 | AF82: =+Buti!F7 -> 20
D83: =+Wizard!A8 -> 4 | E83: =+Wizard!B8 -> Mario | F83: =+Wizard!C8 -> 207 | G83: =+Wizard!D8 -> 1 | H83: =+Wizard!E8 -> 387 | I83: =+Wizard!F8 -> 10 | K83: =+King!A8 -> 4 | L83: =+King!B8 -> Núria | M83: =+King!C8 -> 4 | N83: =+King!D8 -> 10 | O83: =+King!E8 -> -6 | P83: =+King!F8 -> 15.33333333 | Q83: =+King!G8 -> 10 | S83: =+Cribbage!A8 -> 4 | T83: =+Cribbage!B8 -> Goretti | U83: =+Cribbage!C8 -> 1.5 | V83: =+Cribbage!D8 -> 3 | W83: =+Cribbage!E8 -> -5 | X83: =+Cribbage!F8 -> 14 | Y83: =+Cribbage!G8 -> 10 | AA83: =+Buti!A8 -> 4 | AB83: =+Buti!B8 -> Nogué | AC83: =+Buti!C8 -> 0 | AD83: =+Buti!D8 -> 375 | AE83: =+Buti!E8 -> 25 | AF83: =+Buti!F8 -> 10
D84: =+Wizard!A9 -> 5 | E84: =+Wizard!B9 -> Jeff | F84: =+Wizard!C9 -> 156 | G84: =+Wizard!D9 -> 198.5625 | H84: =+Wizard!E9 -> 446 | I84: =+Wizard!F9 -> 5 | K84: =+King!A9 -> 5 | L84: =+King!B9 -> Gemma | M84: =+King!C9 -> 3.5 | N84: =+King!D9 -> 8 | O84: =+King!E9 -> -11 | P84: =+King!F9 -> 9.666666667 | Q84: =+King!G9 -> 5 | S84: =+Cribbage!A9 -> 5 | T84: =+Cribbage!B9 -> Sebas | U84: =+Cribbage!C9 -> 1 | V84: =+Cribbage!D9 -> 3 | W84: =+Cribbage!E9 -> -3 | X84: =+Cribbage!F9 -> 10 | Y84: =+Cribbage!G9 -> 5 | AA84: =+Buti!A9 -> 5 | AB84: =+Buti!B9 -> Òscar | AC84: =+Buti!C9 -> 0 | AD84: =+Buti!D9 -> -118 | AE84: =+Buti!E9 -> 13 | AF84: =+Buti!F9 -> 5
D85: =+Wizard!A10 -> 6 | E85: =+Wizard!B10 -> Debi | F85: =+Wizard!C10 -> 154 | G85: =+Wizard!D10 -> 1 | H85: =+Wizard!E10 -> 192 | I85: =+Wizard!F10 -> 0 | K85: =+King!A10 -> 6 | L85: =+King!B10 -> Sebas | M85: =+King!C10 -> 1.5 | N85: =+King!D10 -> 8 | O85: =+King!E10 -> -10 | P85: =+King!F10 -> 13.33333333 | Q85: =+King!G10 -> 0 | S85: =+Cribbage!A10 -> 6 | T85: =+Cribbage!B10 -> Nogué | U85: =+Cribbage!C10 -> 1 | V85: =+Cribbage!D10 -> 6 | W85: =+Cribbage!E10 -> -20 | X85: =+Cribbage!F10 -> 46 | Y85: =+Cribbage!G10 -> 0 | AA85: =+Buti!A10 -> 6 | AB85: =+Buti!B10 -> Núria | AC85: =+Buti!C10 -> -10 | AD85: =+Buti!D10 -> 115 | AE85: =+Buti!E10 -> 28 | AF85: =+Buti!F10 -> 0
D86: =+Wizard!A11 -> 7 | E86: =+Wizard!B11 -> Marina | F86: =+Wizard!C11 -> 145 | G86: =+Wizard!D11 -> 181.5384615 | H86: =+Wizard!E11 -> 390 | I86: =+Wizard!F11 -> 0 | K86: =+King!A11 -> 7 | L86: =+King!B11 -> Mariajo | M86: =+King!C11 -> 6 | N86: =+King!D11 -> 7 | O86: =+King!E11 -> 6 | P86: =+King!F11 -> 2.666666667 | Q86: =+King!G11 -> 0 | S86: =+Cribbage!A11 -> 7 | T86: =+Cribbage!B11 -> Xavier | U86: =+Cribbage!C11 -> 0.5 | V86: =+Cribbage!D11 -> 3 | W86: =+Cribbage!E11 -> -4 | X86: =+Cribbage!F11 -> 10 | Y86: =+Cribbage!G11 -> 0 | AA86: =+Buti!A11 -> 7 | AB86: =+Buti!B11 -> Manolo | AC86: =+Buti!C11 -> -10 | AD86: =+Buti!D11 -> -135 | AE86: =+Buti!E11 -> 9 | AF86: =+Buti!F11 -> 0
D87: =+Wizard!A12 -> 8 | E87: =+Wizard!B12 -> Jordi | F87: =+Wizard!C12 -> 114 | G87: =+Wizard!D12 -> 232.8571429 | H87: =+Wizard!E12 -> 89 | I87: =+Wizard!F12 -> 0 | K87: =+King!A12 -> 8 | L87: =+King!B12 -> Manolo | M87: =+King!C12 -> 5.5 | N87: =+King!D12 -> 8 | O87: =+King!E12 -> 3 | P87: =+King!F12 -> 3.666666667 | Q87: =+King!G12 -> 0 | S87: =+Cribbage!A12 -> 8 | T87: =+Cribbage!B12 -> Christophe | U87: =+Cribbage!C12 -> 2.5 | V87: =+Cribbage!D12 -> 3 | W87: =+Cribbage!E12 -> 2 | X87: =+Cribbage!F12 -> 1 | Y87: =+Cribbage!G12 -> 0 | AA87: =+Buti!A12 -> 8 | AB87: =+Buti!B12 -> Goretti | AC87: =+Buti!C12 -> -30 | AD87: =+Buti!D12 -> -208 | AE87: =+Buti!E12 -> 11 | AF87: =+Buti!F12 -> 0
D88: =+Wizard!A13 -> 9 | E88: =+Wizard!B13 -> Sergi | F88: =+Wizard!C13 -> 96 | G88: =+Wizard!D13 -> 230.952381 | H88: =+Wizard!E13 -> 140 | I88: =+Wizard!F13 -> 0 | K88: =+King!A13 -> 9 | L88: =+King!B13 -> Carles | M88: =+King!C13 -> 5 | N88: =+King!D13 -> 6 | O88: =+King!E13 -> 6 | P88: =+King!F13 -> 2.666666667 | Q88: =+King!G13 -> 0 | S88: =+Cribbage!A13 -> 9 | T88: =+Cribbage!B13 -> Òscar | U88: =+Cribbage!C13 -> 1.5 | V88: =+Cribbage!D13 -> 2 | W88: =+Cribbage!E13 -> 1 | X88: =+Cribbage!F13 -> 3 | Y88: =+Cribbage!G13 -> 0 | AA88: =+Buti!A13 -> 9 | AB88: =+Buti!B13 -> Sebas | AC88: =+Buti!C13 -> -50 | AD88: =+Buti!D13 -> -478 | AE88: =+Buti!E13 -> 13 | AF88: =+Buti!F13 -> 0
D89: =+Wizard!A14 -> 10 | E89: =+Wizard!B14 -> Xavier | F89: =+Wizard!C14 -> 42 | G89: =+Wizard!D14 -> 1 | H89: =+Wizard!E14 -> 61 | I89: =+Wizard!F14 -> 0 | K89: =+King!A14 -> 10 | L89: =+King!B14 -> Caty | M89: =+King!C14 -> 4 | N89: =+King!D14 -> 4 | O89: =+King!E14 -> 4 | P89: =+King!F14 -> 1.333333333 | Q89: =+King!G14 -> 0 | S89: =+Cribbage!A14 -> 10 | T89: =+Cribbage!B14 -> Grau | U89: =+Cribbage!C14 -> 1.5 | V89: =+Cribbage!D14 -> 2 | W89: =+Cribbage!E14 -> 1 | X89: =+Cribbage!F14 -> 2 | Y89: =+Cribbage!G14 -> 0 | AA89: =+Buti!A14 -> 10 | AB89: =+Buti!B14 -> Mariajo | AC89: =+Buti!C14 -> 10 | AD89: =+Buti!D14 -> 24 | AE89: =+Buti!E14 -> 1 | AF89: =+Buti!F14 -> 0
D90: =+Wizard!A15 -> 11 | E90: =+Wizard!B15 -> Núria | F90: =+Wizard!C15 -> 11 | G90: =+Wizard!D15 -> 245.4166667 | H90: =+Wizard!E15 -> 28 | I90: =+Wizard!F15 -> 0 | K90: =+King!A15 -> 10 | L90: =+King!B15 -> Sergi | M90: =+King!C15 -> 4 | N90: =+King!D15 -> 7 | O90: =+King!E15 -> 1 | P90: =+King!F15 -> 2.666666667 | Q90: =+King!G15 -> 0 | S90: =+Cribbage!A15 -> 11 | T90: =+Cribbage!B15 -> Eito | U90: =+Cribbage!C15 -> 1 | V90: =+Cribbage!D15 -> 3 | W90: =+Cribbage!E15 -> -2 | X90: =+Cribbage!F15 -> 3 | Y90: =+Cribbage!G15 -> 0 | AA90: =+Buti!A15 -> 11 | AB90: =+Buti!B15 -> Jaume A | AC90: =+Buti!C15 -> 10 | AD90: =+Buti!D15 -> 5 | AE90: =+Buti!E15 -> 1 | AF90: =+Buti!F15 -> 0
D91: =+Wizard!A16 -> 12 | E91: =+Wizard!B16 -> Sebas | F91: =+Wizard!C16 -> 10 | G91: =+Wizard!D16 -> 153.4 | H91: =+Wizard!E16 -> 31 | I91: =+Wizard!F16 -> 0 | K91: =+King!A16 -> 12 | L91: =+King!B16 -> Grau | M91: =+King!C16 -> 2.5 | N91: =+King!D16 -> 6 | O91: =+King!E16 -> -1 | P91: =+King!F16 -> 2.333333333 | Q91: =+King!G16 -> 0 | S91: =+Cribbage!A16 -> 12 | T91: =+Cribbage!B16 -> Gemma | U91: =+Cribbage!C16 -> 1 | V91: =+Cribbage!D16 -> 4 | W91: =+Cribbage!E16 -> -2 | X91: =+Cribbage!F16 -> 3 | Y91: =+Cribbage!G16 -> 0 | AA91: =+Buti!A16 -> 12 | AB91: =+Buti!B16 -> Carles | AC91: =+Buti!C16 -> -10 | AD91: =+Buti!D16 -> -20 | AE91: =+Buti!E16 -> 1 | AF91: =+Buti!F16 -> 0
D92: =+Wizard!A17 -> 13 | E92: =+Wizard!B17 -> Lluïsa | F92: =+Wizard!C17 -> -1 | G92: =+Wizard!D17 -> 1 | H92: =+Wizard!E17 -> 61 | I92: =+Wizard!F17 -> 0 | K92: =+King!A17 -> 13 | L92: =+King!B17 -> Goretti | M92: =+King!C17 -> 2.5 | N92: =+King!D17 -> 7 | O92: =+King!E17 -> -2 | P92: =+King!F17 -> 2.333333333 | Q92: =+King!G17 -> 0 | S92: =+Cribbage!A17 -> 13 | T92: =+Cribbage!B17 -> Isabel | U92: =+Cribbage!C17 -> 0.5 | V92: =+Cribbage!D17 -> 3 | W92: =+Cribbage!E17 -> -2 | X92: =+Cribbage!F17 -> 1 | Y92: =+Cribbage!G17 -> 0 | AA92: =+Buti!A17 -> 13 | AB92: =+Buti!B17 -> Nin | AC92: =+Buti!C17 -> -10 | AD92: =+Buti!D17 -> -24 | AE92: =+Buti!E17 -> 1 | AF92: =+Buti!F17 -> 0
D93: =+Wizard!A18 -> 14 | E93: =+Wizard!B18 -> Nogué | F93: =+Wizard!C18 -> -13 | G93: =+Wizard!D18 -> 169.1 | H93: =+Wizard!E18 -> 12 | I93: =+Wizard!F18 -> 0 | K93: =+King!A18 -> 14 | L93: =+King!B18 -> Ana B | M93: =+King!C18 -> 2.5 | N93: =+King!D18 -> 8 | O93: =+King!E18 -> -3 | P93: =+King!F18 -> 2.666666667 | Q93: =+King!G18 -> 0 | S93: =+Cribbage!A18 -> 14 | T93: =+Cribbage!B18 -> Ana B. | U93: =+Cribbage!C18 -> 0 | V93: =+Cribbage!D18 -> 2 | W93: =+Cribbage!E18 -> -2 | X93: =+Cribbage!F18 -> 1 | Y93: =+Cribbage!G18 -> 0 | AA93: =+Buti!A18 -> 14 | AB93: =+Buti!B18 -> Gemma | AC93: =+Buti!C18 -> 10 | AD93: =+Buti!D18 -> 2 | AE93: =+Buti!E18 -> 5 | AF93: =+Buti!F18 -> 0
D94: =+Wizard!A19 -> 15 | E94: =+Wizard!B19 -> Eito | F94: =+Wizard!C19 -> -36 | G94: =+Wizard!D19 -> 1 | H94: =+Wizard!E19 -> 23 | I94: =+Wizard!F19 -> 0 | K94: =+King!A19 -> 15 | L94: =+King!B19 -> Carme | M94: =+King!C19 -> 0 | N94: =+King!D19 -> 4 | O94: =+King!E19 -> -4 | P94: =+King!F19 -> 1.333333333 | Q94: =+King!G19 -> 0 | AA94: =+Buti!A19 -> 15 | AB94: =+Buti!B19 -> Isabel | AC94: =+Buti!C19 -> -10 | AD94: =+Buti!D19 -> -45 | AE94: =+Buti!E19 -> 3 | AF94: =+Buti!F19 -> 0
D95: =+Wizard!A20 -> 16 | E95: =+Wizard!B20 -> Lleixà | F95: =+Wizard!C20 -> -50 | G95: =+Wizard!D20 -> 1 | H95: =+Wizard!E20 -> 41 | I95: =+Wizard!F20 -> 0 | K95: =+King!A20 -> 16 | L95: =+King!B20 -> Nin | M95: =+King!C20 -> 0 | N95: =+King!D20 -> 6 | O95: =+King!E20 -> -8 | P95: =+King!F20 -> 2.666666667 | Q95: =+King!G20 -> 0 | AA95: =+Buti!A20 -> 16 | AB95: =+Buti!B20 -> Sergi | AC95: =+Buti!C20 -> -10 | AD95: =+Buti!D20 -> -57 | AE95: =+Buti!E20 -> 1 | AF95: =+Buti!F20 -> 0
D96: =+Wizard!A21 -> 17 | E96: =+Wizard!B21 -> Nin | F96: =+Wizard!C21 -> -92 | G96: =+Wizard!D21 -> 124.5454545 | H96: =+Wizard!E21 -> 49 | I96: =+Wizard!F21 -> 0 | AA96: =+Buti!A21 -> 17 | AB96: =+Buti!B21 -> Caty | AC96: =+Buti!C21 -> -10 | AD96: =+Buti!D21 -> -95 | AE96: =+Buti!E21 -> 1 | AF96: =+Buti!F21 -> 0
D97: =+Wizard!A22 -> 18 | E97: =+Wizard!B22 -> Manolo | F97: =+Wizard!C22 -> -173 | G97: =+Wizard!D22 -> 187.5 | H97: =+Wizard!E22 -> 995 | I97: =+Wizard!F22 -> 0 | AA97: =+Buti!A22 -> 18 | AB97: =+Buti!B22 -> Rosa M. | AC97: =+Buti!C22 -> -30 | AD97: =+Buti!D22 -> -58 | AE97: =+Buti!E22 -> 3 | AF97: =+Buti!F22 -> 0
D98: =+Wizard!A23 -> 19 | E98: =+Wizard!B23 -> Tito | F98: =+Wizard!C23 -> -176 | G98: =+Wizard!D23 -> 189.2307692 | H98: =+Wizard!E23 -> 510 | I98: =+Wizard!F23 -> 0
D99: =+Wizard!A24 -> 20 | E99: =+Wizard!B24 -> Ana B | F99: =+Wizard!C24 -> -235 | G99: =+Wizard!D24 -> 195.9411765 | H99: =+Wizard!E24 -> 269 | I99: =+Wizard!F24 -> 0
D100: =+Wizard!A25 -> 21 | E100: =+Wizard!B25 -> Goretti | F100: =+Wizard!C25 -> -260 | G100: =+Wizard!D25 -> 215.2631579 | H100: =+Wizard!E25 -> 369 | I100: =+Wizard!F25 -> 0
D101: =+Wizard!A26 -> 22 | E101: =+Wizard!B26 -> Grau | F101: =+Wizard!C26 -> -348 | G101: =+Wizard!D26 -> 226.4285714 | H101: =+Wizard!E26 -> 1007 | I101: =+Wizard!F26 -> 0
D102: =+Wizard!A27 -> 23 | E102: =+Wizard!B27 -> Nancy | F102: =+Wizard!C27 -> -399 | G102: =+Wizard!D27 -> 170 | H102: =+Wizard!E27 -> 224 | I102: =+Wizard!F27 -> 0
D103: =+Wizard!A28 -> 24 | E103: =+Wizard!B28 -> Gemma | F103: =+Wizard!C28 -> -420 | G103: =+Wizard!D28 -> 158 | H103: =+Wizard!E28 -> 768 | I103: =+Wizard!F28 -> 0
D104: =+Wizard!A29 -> 25 | E104: =+Wizard!B29 -> Òscar | F104: =+Wizard!C29 -> 1 | G104: =+Wizard!D29 -> 125.5 | H104: =+Wizard!E29 -> 1 | I104: =+Wizard!F29 -> 0
D105: =+Wizard!A30 -> 26 | E105: =+Wizard!B30 -> Caty | F105: =+Wizard!C30 -> -1 | G105: =+Wizard!D30 -> 340 | H105: =+Wizard!E30 -> 1 | I105: =+Wizard!F30 -> 0
D106: =+Wizard!A31 -> 27 | E106: =+Wizard!B31 -> Christophe | F106: =+Wizard!C31 -> -3 | G106: =+Wizard!D31 -> 30.5 | H106: =+Wizard!E31 -> 1 | I106: =+Wizard!F31 -> 0
D107: =+Wizard!A32 -> 28 | E107: =+Wizard!B32 -> Mariajo | F107: =+Wizard!C32 -> -6 | G107: =+Wizard!D32 -> 170 | H107: =+Wizard!E32 -> 3 | I107: =+Wizard!F32 -> 0
D109: =+Kul!A1 -> KUL | K109: =+Podrida!A1 -> PODRIDA | S109: TUTE CABRÒ | AA109: =+'Skull King'!A1 -> SKULL KING
F111: =+Kul!C4 -> Premi | G111: =+Kul!D4 -> Punts | H111: =+Kul!E4 -> Partides | I111: =+Kul!F4 -> General | M111: =+Podrida!C4 -> Premi | N111: =+Podrida!D4 -> Reptes | O111: =+Podrida!E4 -> Punts | P111: =+Podrida!F4 -> Partides | Q111: =+Podrida!G4 -> General | U111: Premi | V111: Punts | W111: Partides | X111: General | AC111: =+'Skull King'!C4 -> Premi | AD111: =+'Skull King'!D4 -> Punts | AE111: =+'Skull King'!E4 -> Partides | AF111: =+'Skull King'!F4 -> General
D112: =+Kul!A5 -> 1 | E112: =+Kul!B5 -> Jordi | F112: =+Kul!C5 -> 34 | G112: =+Kul!D5 -> 24 | H112: =+Kul!E5 -> 12 | I112: =+Kul!F5 -> 80 | K112: =+Podrida!A5 -> 1 | L112: =+Podrida!B5 -> Sebas | M112: =+Podrida!C5 -> 2.5 | N112: =+Podrida!D5 -> 3 | O112: =+Podrida!E5 -> 4 | P112: =+Podrida!F5 -> 4 | Q112: =+Podrida!G5 -> 0 | S112: 1 | T112: =+'Tute cabrò'!B5 -> Jordi | U112: =+'Tute cabrò'!C5 -> 179.3333333 | V112: =+'Tute cabrò'!D5 -> 1.620689655 | W112: =+'Tute cabrò'!E5 -> 58 | X112: =+'Tute cabrò'!F5 -> 80 | AA112: =+'Skull King'!A5 -> 1 | AB112: =+'Skull King'!B5 -> Sergi | AC112: =+'Skull King'!C5 -> 41 | AD112: =+'Skull King'!D5 -> 247.7777778 | AE112: =+'Skull King'!E5 -> 9 | AF112: =+'Skull King'!F5 -> 80
D113: =+Kul!A6 -> 2 | E113: =+Kul!B6 -> Núria | F113: =+Kul!C6 -> 22 | G113: =+Kul!D6 -> -5 | H113: =+Kul!E6 -> 9 | I113: =+Kul!F6 -> 40 | K113: =+Podrida!A6 -> 2 | L113: =+Podrida!B6 -> Carles | M113: =+Podrida!C6 -> 2 | N113: =+Podrida!D6 -> 2 | O113: =+Podrida!E6 -> 2 | P113: =+Podrida!F6 -> 0.6666666667 | Q113: =+Podrida!G6 -> 0 | S113: 2 | T113: =+'Tute cabrò'!B6 -> Sebas | U113: =+'Tute cabrò'!C6 -> 30 | V113: =+'Tute cabrò'!D6 -> 2.03030303 | W113: =+'Tute cabrò'!E6 -> 33 | X113: =+'Tute cabrò'!F6 -> 40 | AA113: =+'Skull King'!A6 -> 2 | AB113: =+'Skull King'!B6 -> Carles | AC113: =+'Skull King'!C6 -> 35.5 | AD113: =+'Skull King'!D6 -> 205.3846154 | AE113: =+'Skull King'!E6 -> 13 | AF113: =+'Skull King'!F6 -> 40
D114: =+Kul!A7 -> 3 | E114: =+Kul!B7 -> Òscar | F114: =+Kul!C7 -> -1 | G114: =+Kul!D7 -> 19 | H114: =+Kul!E7 -> 8 | I114: =+Kul!F7 -> 20 | K114: =+Podrida!A7 -> 3 | L114: =+Podrida!B7 -> Jordi | M114: =+Podrida!C7 -> 2 | N114: =+Podrida!D7 -> 3 | O114: =+Podrida!E7 -> 2 | P114: =+Podrida!F7 -> 4 | Q114: =+Podrida!G7 -> 0 | S114: 3 | T114: =+'Tute cabrò'!B7 -> Òscar | U114: =+'Tute cabrò'!C7 -> 20 | V114: =+'Tute cabrò'!D7 -> 1.833333333 | W114: =+'Tute cabrò'!E7 -> 6 | X114: =+'Tute cabrò'!F7 -> 20 | AA114: =+'Skull King'!A7 -> 3 | AB114: =+'Skull King'!B7 -> Manel | AC114: =+'Skull King'!C7 -> -27.5 | AD114: =+'Skull King'!D7 -> 157.2727273 | AE114: =+'Skull King'!E7 -> 11 | AF114: =+'Skull King'!F7 -> 20
D115: =+Kul!A8 -> 4 | E115: =+Kul!B8 -> Gemma | F115: =+Kul!C8 -> -4 | G115: =+Kul!D8 -> -14 | H115: =+Kul!E8 -> 7 | I115: =+Kul!F8 -> 10 | K115: =+Podrida!A8 -> 4 | L115: =+Podrida!B8 -> Nogué | M115: =+Podrida!C8 -> 1.5 | N115: =+Podrida!D8 -> 3 | O115: =+Podrida!E8 -> 0 | P115: =+Podrida!F8 -> 4 | Q115: =+Podrida!G8 -> 0 | S115: 4 | T115: =+'Tute cabrò'!B8 -> Grau | U115: =+'Tute cabrò'!C8 -> -10 | V115: =+'Tute cabrò'!D8 -> 2.2 | W115: =+'Tute cabrò'!E8 -> 10 | X115: =+'Tute cabrò'!F8 -> 10 | AA115: =+'Skull King'!A8 -> 4 | AB115: =+'Skull King'!B8 -> Nin | AC115: =+'Skull King'!C8 -> -30 | AD115: =+'Skull King'!D8 -> 160 | AE115: =+'Skull King'!E8 -> 9 | AF115: =+'Skull King'!F8 -> 10
D116: =+Kul!A9 -> 5 | E116: =+Kul!B9 -> Sebas | F116: =+Kul!C9 -> -9 | G116: =+Kul!D9 -> 1 | H116: =+Kul!E9 -> 8 | I116: =+Kul!F9 -> 5 | K116: =+Podrida!A9 -> 5 | L116: =+Podrida!B9 -> Marina | M116: =+Podrida!C9 -> 1 | N116: =+Podrida!D9 -> 2 | O116: =+Podrida!E9 -> 0 | P116: =+Podrida!F9 -> 0.6666666667 | Q116: =+Podrida!G9 -> 0 | S116: 5 | T116: =+'Tute cabrò'!B9 -> Goretti | U116: =+'Tute cabrò'!C9 -> -20 | V116: =+'Tute cabrò'!D9 -> 2 | W116: =+'Tute cabrò'!E9 -> 12 | X116: =+'Tute cabrò'!F9 -> 5 | AA116: =+'Skull King'!A9 -> 5 | AB116: =+'Skull King'!B9 -> Tito | AC116: =+'Skull King'!C9 -> 9 | AD116: =+'Skull King'!D9 -> 236 | AE116: =+'Skull King'!E9 -> 5 | AF116: =+'Skull King'!F9 -> 0
D117: =+Kul!A10 -> 6 | E117: =+Kul!B10 -> Nogué | F117: =+Kul!C10 -> -29 | G117: =+Kul!D10 -> -20 | H117: =+Kul!E10 -> 6 | I117: =+Kul!F10 -> 0 | K117: =+Podrida!A10 -> 6 | L117: =+Podrida!B10 -> Jeff | M117: =+Podrida!C10 -> 0 | N117: =+Podrida!D10 -> 2 | O117: =+Podrida!E10 -> -2 | P117: =+Podrida!F10 -> 0.6666666667 | Q117: =+Podrida!G10 -> 0 | S117: 6 | T117: =+'Tute cabrò'!B10 -> Núria | U117: =+'Tute cabrò'!C10 -> -40.66666667 | V117: =+'Tute cabrò'!D10 -> 2.551724138 | W117: =+'Tute cabrò'!E10 -> 29 | X117: =+'Tute cabrò'!F10 -> 0 | AA117: =+'Skull King'!A10 -> 6 | AB117: =+'Skull King'!B10 -> Jeff | AC117: =+'Skull King'!C10 -> 0 | AD117: =+'Skull King'!D10 -> 170 | AE117: =+'Skull King'!E10 -> 2 | AF117: =+'Skull King'!F10 -> 0
D118: =+Kul!A11 -> 7 | E118: =+Kul!B11 -> Goretti | F118: =+Kul!C11 -> 16 | G118: =+Kul!D11 -> 8 | H118: =+Kul!E11 -> 5 | I118: =+Kul!F11 -> 0 | K118: =+Podrida!A11 -> 7 | L118: =+Podrida!B11 -> Núria | M118: =+Podrida!C11 -> 0 | N118: =+Podrida!D11 -> 3 | O118: =+Podrida!E11 -> -6 | P118: =+Podrida!F11 -> 4 | Q118: =+Podrida!G11 -> 0 | S118: 7 | T118: =+'Tute cabrò'!B11 -> Gemma | U118: =+'Tute cabrò'!C11 -> -48 | V118: =+'Tute cabrò'!D11 -> 2.666666667 | W118: =+'Tute cabrò'!E11 -> 9 | X118: =+'Tute cabrò'!F11 -> 0 | AA118: =+'Skull King'!A11 -> 7 | AB118: =+'Skull King'!B11 -> Jordi | AC118: =+'Skull King'!C11 -> 0 | AD118: =+'Skull King'!D11 -> 130 | AE118: =+'Skull King'!E11 -> 1 | AF118: =+'Skull King'!F11 -> 0
D119: =+Kul!A12 -> 8 | E119: =+Kul!B12 -> Sergi | F119: =+Kul!C12 -> 8 | G119: =+Kul!D12 -> 0 | H119: =+Kul!E12 -> 3 | I119: =+Kul!F12 -> 0 | S119: 8 | T119: =+'Tute cabrò'!B12 -> Montse | U119: =+'Tute cabrò'!C12 -> -109.6666667 | V119: =+'Tute cabrò'!D12 -> 2.727272727 | W119: =+'Tute cabrò'!E12 -> 33 | X119: =+'Tute cabrò'!F12 -> 0 | AA119: =+'Skull King'!A12 -> 8 | AB119: =+'Skull King'!B12 -> Marina | AC119: =+'Skull King'!C12 -> -4 | AD119: =+'Skull King'!D12 -> 90 | AE119: =+'Skull King'!E12 -> 2 | AF119: =+'Skull King'!F12 -> 0
D120: =+Kul!A13 -> 9 | E120: =+Kul!B13 -> Carles | F120: =+Kul!C13 -> 4 | G120: =+Kul!D13 -> 15 | H120: =+Kul!E13 -> 2 | I120: =+Kul!F13 -> 0 | S120: 9 | T120: =+'Tute cabrò'!B13 -> Ana | U120: =+'Tute cabrò'!C13 -> 10 | V120: =+'Tute cabrò'!D13 -> 1.5 | W120: =+'Tute cabrò'!E13 -> 4 | X120: =+'Tute cabrò'!F13 -> 0 | AA120: =+'Skull King'!A13 -> 9 | AB120: =+'Skull King'!B13 -> Alfred | AC120: =+'Skull King'!C13 -> -10 | AD120: =+'Skull King'!D13 -> 100 | AE120: =+'Skull King'!E13 -> 1 | AF120: =+'Skull King'!F13 -> 0
D121: =+Kul!A14 -> 10 | E121: =+Kul!B14 -> Grau | F121: =+Kul!C14 -> 3 | G121: =+Kul!D14 -> -3 | H121: =+Kul!E14 -> 3 | I121: =+Kul!F14 -> 0 | S121: 10 | T121: =+'Tute cabrò'!B14 -> Sergi | U121: =+'Tute cabrò'!C14 -> 7 | V121: =+'Tute cabrò'!D14 -> 0 | W121: =+'Tute cabrò'!E14 -> 1 | X121: =+'Tute cabrò'!F14 -> 0
D122: =+Kul!A15 -> 11 | E122: =+Kul!B15 -> Caty | F122: =+Kul!C15 -> 2 | G122: =+Kul!D15 -> 3 | H122: =+Kul!E15 -> 2 | I122: =+Kul!F15 -> 0 | S122: 11 | T122: =+'Tute cabrò'!B15 -> Caty | U122: =+'Tute cabrò'!C15 -> 0 | V122: =+'Tute cabrò'!D15 -> 2 | W122: =+'Tute cabrò'!E15 -> 1 | X122: =+'Tute cabrò'!F15 -> 0
D123: =+Kul!A16 -> 12 | E123: =+Kul!B16 -> Manolo | F123: =+Kul!C16 -> -2 | G123: =+Kul!D16 -> 3 | H123: =+Kul!E16 -> 3 | I123: =+Kul!F16 -> 0 | S123: 12 | T123: =+'Tute cabrò'!B16 -> Nin | U123: =+'Tute cabrò'!C16 -> 0 | V123: =+'Tute cabrò'!D16 -> 2 | W123: =+'Tute cabrò'!E16 -> 2 | X123: =+'Tute cabrò'!F16 -> 0
D124: =+Kul!A17 -> 13 | E124: =+Kul!B17 -> Mariajo | F124: =+Kul!C17 -> -5 | G124: =+Kul!D17 -> -5 | H124: =+Kul!E17 -> 5 | I124: =+Kul!F17 -> 0 | S124: 13 | T124: =+'Tute cabrò'!B17 -> Manolo | U124: =+'Tute cabrò'!C17 -> 0 | V124: =+'Tute cabrò'!D17 -> 3 | W124: =+'Tute cabrò'!E17 -> 2 | X124: =+'Tute cabrò'!F17 -> 0
D125: =+Kul!A18 -> 14 | E125: =+Kul!B18 -> Carme | F125: =+Kul!C18 -> -10 | G125: =+Kul!D18 -> -2 | H125: =+Kul!E18 -> 1 | I125: =+Kul!F18 -> 0 | S125: 14 | T125: =+'Tute cabrò'!B18 -> Carles | U125: =+'Tute cabrò'!C18 -> -3 | V125: =+'Tute cabrò'!D18 -> 1.5 | W125: =+'Tute cabrò'!E18 -> 2 | X125: =+'Tute cabrò'!F18 -> 0
D126: =+Kul!A19 -> 15 | E126: =+Kul!B19 -> Ana B | F126: =+Kul!C19 -> -13 | G126: =+Kul!D19 -> -12 | H126: =+Kul!E19 -> 3 | I126: =+Kul!F19 -> 0 | S126: 15 | T126: =+'Tute cabrò'!B19 -> Mariajo | U126: =+'Tute cabrò'!C19 -> -15 | V126: =+'Tute cabrò'!D19 -> 3 | W126: =+'Tute cabrò'!E19 -> 5 | X126: =+'Tute cabrò'!F19 -> 0
D127: =+Kul!A20 -> 16 | E127: =+Kul!B20 -> Nin | F127: =+Kul!C20 -> -22 | G127: =+Kul!D20 -> -12 | H127: =+Kul!E20 -> 2 | I127: =+Kul!F20 -> 0
D129: =+Pumba!A1 -> PUMBA | K129: =+Texas!A1 -> POKER TEXAS | S129: =+Mus!A1 -> MUS | AA129: =+'Black Jack'!A1 -> BLACK JACK
F131: =+Pumba!C4 -> Premi | G131: =+Pumba!D4 -> Punts | H131: =+Pumba!E4 -> Partides | I131: =+Pumba!F4 -> General | M131: =+Texas!C4 -> Premi | N131: =+Texas!D4 -> Punts | O131: =+Texas!E4 -> Partides | P131: =+Texas!F4 -> General | U131: =+Mus!C4 -> Premi | V131: =+Mus!D4 -> Punts | W131: =+Mus!E4 -> Partides | X131: =+Mus!F4 -> General | AC131: =+'Black Jack'!C4 -> Premi | AD131: =+'Black Jack'!D4 -> Punts | AE131: =+'Black Jack'!E4 -> Partides | AF131: =+'Black Jack'!F4 -> General
D132: =+Pumba!A5 -> 1 | E132: =+Pumba!B5 -> Carles | F132: =+Pumba!C5 -> 20 | G132: =+Pumba!D5 -> 8.95 | H132: =+Pumba!E5 -> 4 | I132: =+Pumba!F5 -> 0 | K132: =+Texas!A5 -> 1 | L132: =+Texas!B5 -> Carles | M132: =+Texas!C5 -> 10 | N132: =+Texas!D5 -> 30.5 | O132: =+Texas!E5 -> 1 | P132: =+Texas!F5 -> 0 | S132: =+Mus!A5 -> 1 | T132: =+Mus!B5 -> Carles | U132: =+Mus!C5 -> 7 | V132: =+Mus!D5 -> 2 | W132: =+Mus!E5 -> 1 | X132: =+Mus!F5 -> 0 | AA132: =+'Black Jack'!A5 -> 1 | AB132: =+'Black Jack'!B5 -> Manel | AC132: =+'Black Jack'!C5 -> 10 | AD132: =+'Black Jack'!D5 -> 10.5 | AE132: =+'Black Jack'!E5 -> 1 | AF132: =+'Black Jack'!F5 -> 0
D133: =+Pumba!A6 -> 2 | E133: =+Pumba!B6 -> Manolo | F133: =+Pumba!C6 -> 0 | G133: =+Pumba!D6 -> 10.4 | H133: =+Pumba!E6 -> 4 | I133: =+Pumba!F6 -> 0 | K133: =+Texas!A6 -> 2 | L133: =+Texas!B6 -> Nin | M133: =+Texas!C6 -> 4 | N133: =+Texas!D6 -> 25.5 | O133: =+Texas!E6 -> 1 | P133: =+Texas!F6 -> 0 | S133: =+Mus!A6 -> 2 | T133: =+Mus!B6 -> Sergi | U133: =+Mus!C6 -> 7 | V133: =+Mus!D6 -> 2 | W133: =+Mus!E6 -> 1 | X133: =+Mus!F6 -> 0 | AA133: =+'Black Jack'!A6 -> 2 | AB133: =+'Black Jack'!B6 -> Nin | AC133: =+'Black Jack'!C6 -> 4 | AD133: =+'Black Jack'!D6 -> -3 | AE133: =+'Black Jack'!E6 -> 1 | AF133: =+'Black Jack'!F6 -> 0
D134: =+Pumba!A7 -> 3 | E134: =+Pumba!B7 -> Mariajo | F134: =+Pumba!C7 -> 0 | G134: =+Pumba!D7 -> 12.25 | H134: =+Pumba!E7 -> 2 | I134: =+Pumba!F7 -> 0 | K134: =+Texas!A7 -> 3 | L134: =+Texas!B7 -> Manolo | M134: =+Texas!C7 -> -4 | N134: =+Texas!D7 -> -28 | O134: =+Texas!E7 -> 1 | P134: =+Texas!F7 -> 0 | S134: =+Mus!A7 -> 3 | T134: =+Mus!B7 -> Lucía | U134: =+Mus!C7 -> -7 | V134: =+Mus!D7 -> -2 | W134: =+Mus!E7 -> 1 | X134: =+Mus!F7 -> 0 | AA134: =+'Black Jack'!A7 -> 3 | AB134: =+'Black Jack'!B7 -> Carles | AC134: =+'Black Jack'!C7 -> -4 | AD134: =+'Black Jack'!D7 -> -8.5 | AE134: =+'Black Jack'!E7 -> 1 | AF134: =+'Black Jack'!F7 -> 0
D135: =+Pumba!A8 -> 4 | E135: =+Pumba!B8 -> Sergi | F135: =+Pumba!C8 -> -6 | G135: =+Pumba!D8 -> 14.5 | H135: =+Pumba!E8 -> 2 | I135: =+Pumba!F8 -> 0 | K135: =+Texas!A8 -> 4 | L135: =+Texas!B8 -> Sergi | M135: =+Texas!C8 -> -10 | N135: =+Texas!D8 -> -28 | O135: =+Texas!E8 -> 1 | P135: =+Texas!F8 -> 0 | S135: =+Mus!A8 -> 4 | T135: =+Mus!B8 -> Manolo | U135: =+Mus!C8 -> -7 | V135: =+Mus!D8 -> -2 | W135: =+Mus!E8 -> 1 | X135: =+Mus!F8 -> 0 | AA135: =+'Black Jack'!A8 -> 4 | AB135: =+'Black Jack'!B8 -> Sergi | AC135: =+'Black Jack'!C8 -> -10 | AD135: =+'Black Jack'!D8 -> -32 | AE135: =+'Black Jack'!E8 -> 1 | AF135: =+'Black Jack'!F8 -> 0
D137: =+'7 i mig'!A1 -> 7 i mig | K137: =+Cors!A1 -> CORS
F139: =+'7 i mig'!C4 -> Premi | G139: =+'7 i mig'!D4 -> Punts | H139: =+'7 i mig'!E4 -> Partides | I139: =+'7 i mig'!F4 -> General | M139: =+Cors!C4 -> Premi | N139: =+Cors!D4 -> Reptes | O139: =+Cors!E4 -> Punts | P139: =+Cors!F4 -> Partides | Q139: =+Cors!G4 -> General
D140: =+'7 i mig'!A5 -> 1 | E140: =+'7 i mig'!B5 -> Carles | F140: =+'7 i mig'!C5 -> 10 | G140: =+'7 i mig'!D5 -> 7 | H140: =+'7 i mig'!E5 -> 1 | I140: =+'7 i mig'!F5 -> 0 | K140: =+Cors!A5 -> 1 | L140: =+Cors!B5 -> Manolo | M140: =+Cors!C5 -> 3.5 | N140: =+Cors!D5 -> 4 | O140: =+Cors!E5 -> 4 | P140: =+Cors!F5 -> 2 | Q140: =+Cors!G5 -> 0
D141: =+'7 i mig'!A6 -> 2 | E141: =+'7 i mig'!B6 -> Manel | F141: =+'7 i mig'!C6 -> 0 | G141: =+'7 i mig'!D6 -> -1 | H141: =+'7 i mig'!E6 -> 1 | I141: =+'7 i mig'!F6 -> 0 | K141: =+Cors!A6 -> 2 | L141: =+Cors!B6 -> Carles | M141: =+Cors!C6 -> 2 | N141: =+Cors!D6 -> 4 | O141: =+Cors!E6 -> 0 | P141: =+Cors!F6 -> 2 | Q141: =+Cors!G6 -> 0
D142: =+'7 i mig'!A7 -> 3 | E142: =+'7 i mig'!B7 -> Nin | F142: =+'7 i mig'!C7 -> -10 | G142: =+'7 i mig'!D7 -> -6 | H142: =+'7 i mig'!E7 -> 1 | I142: =+'7 i mig'!F7 -> 0 | K142: =+Cors!A7 -> 3 | L142: =+Cors!B7 -> Nin | M142: =+Cors!C7 -> 1.5 | N142: =+Cors!D7 -> 4 | O142: =+Cors!E7 -> -2 | P142: =+Cors!F7 -> 2 | Q142: =+Cors!G7 -> 0
K143: =+Cors!A8 -> 4 | L143: =+Cors!B8 -> Tito | M143: =+Cors!C8 -> 1 | N143: =+Cors!D8 -> 3 | O143: =+Cors!E8 -> 0 | P143: =+Cors!F8 -> 1 | Q143: =+Cors!G8 -> 0
K144: =+Cors!A9 -> 5 | L144: =+Cors!B9 -> Cyber X | M144: =+Cors!C9 -> 1 | N144: =+Cors!D9 -> 3 | O144: =+Cors!E9 -> -1 | P144: =+Cors!F9 -> 1 | Q144: =+Cors!G9 -> 0
K168: =+Pumba!A9 -> 5 | L168: =+Pumba!B9 -> Nin | M168: =+Pumba!C9 -> -14 | N168: =+Pumba!D9 -> 20.875 | O168: =+Pumba!E9 -> 2 | P168: =+Pumba!F9 -> 0 | R168: =+Tarot!A1 -> TAROT
K169: =+Pumba!A10 -> 6 | L169: =+Pumba!B10 -> Sebas | M169: =+Pumba!C10 -> -100000000 | N169: =+Pumba!D10 -> 0 | O169: =+Pumba!E10 -> 0 | P169: =+Pumba!F10 -> 0
K170: =+Pumba!A11 -> 7 | L170: =+Pumba!B11 -> Jordi | M170: =+Pumba!C11 -> -100000000 | N170: =+Pumba!D11 -> 0 | O170: =+Pumba!E11 -> 0 | P170: =+Pumba!F11 -> 0 | T170: =+Tarot!C4 -> Premi | U170: =+Tarot!D4 -> Punts | V170: =+Tarot!E4 -> Partides | W170: =+Tarot!F4 -> General
K171: =+Pumba!A12 -> 8 | L171: =+Pumba!B12 -> Gemma | M171: =+Pumba!C12 -> -100000000 | N171: =+Pumba!D12 -> 0 | O171: =+Pumba!E12 -> 0 | P171: =+Pumba!F12 -> 0 | R171: =+Tarot!A5 -> 1 | S171: =+Tarot!B5 -> Nin | T171: =+Tarot!C5 -> -100000000 | U171: =+Tarot!D5 -> 1 | V171: =+Tarot!E5 -> 0 | W171: =+Tarot!F5 -> 0
R172: =+Tarot!A6 -> 2 | S172: =+Tarot!B6 -> Jordi | T172: =+Tarot!C6 -> -100000000 | U172: =+Tarot!D6 -> 1 | V172: =+Tarot!E6 -> 0 | W172: =+Tarot!F6 -> 0
R173: =+Tarot!A7 -> 3 | S173: =+Tarot!B7 -> Sergi | T173: =+Tarot!C7 -> -100000000 | U173: =+Tarot!D7 -> 1 | V173: =+Tarot!E7 -> 0 | W173: =+Tarot!F7 -> 0
K174: =+Wizard!A10 -> 6 | L174: =+Wizard!B10 -> Debi | M174: =+Wizard!C10 -> 154 | N174: =+Wizard!D10 -> 1 | O174: =+Wizard!E10 -> 192 | P174: =+Wizard!F10 -> 0 | R174: =+Tarot!A8 -> 4 | S174: =+Tarot!B8 -> Carles | T174: =+Tarot!C8 -> -100000000 | U174: =+Tarot!D8 -> 1 | V174: =+Tarot!E8 -> 0 | W174: =+Tarot!F8 -> 0
K175: =+Wizard!A11 -> 7 | L175: =+Wizard!B11 -> Marina | M175: =+Wizard!C11 -> 145 | N175: =+Wizard!D11 -> 181.5384615 | O175: =+Wizard!E11 -> 390 | P175: =+Wizard!F11 -> 0 | R175: =+Tarot!A9 -> 5 | S175: =+Tarot!B9 -> Mariajo | T175: =+Tarot!C9 -> -100000000 | U175: =+Tarot!D9 -> 1 | V175: =+Tarot!E9 -> 0 | W175: =+Tarot!F9 -> 0
K176: =+Wizard!A12 -> 8 | L176: =+Wizard!B12 -> Jordi | M176: =+Wizard!C12 -> 114 | N176: =+Wizard!D12 -> 232.8571429 | O176: =+Wizard!E12 -> 89 | P176: =+Wizard!F12 -> 0
K177: =+Wizard!A13 -> 9 | L177: =+Wizard!B13 -> Sergi | M177: =+Wizard!C13 -> 96 | N177: =+Wizard!D13 -> 230.952381 | O177: =+Wizard!E13 -> 140 | P177: =+Wizard!F13 -> 0
K178: =+Wizard!A14 -> 10 | L178: =+Wizard!B14 -> Xavier | M178: =+Wizard!C14 -> 42 | N178: =+Wizard!D14 -> 1 | O178: =+Wizard!E14 -> 61 | P178: =+Wizard!F14 -> 0
K179: =+Wizard!A15 -> 11 | L179: =+Wizard!B15 -> Núria | M179: =+Wizard!C15 -> 11 | N179: =+Wizard!D15 -> 245.4166667 | O179: =+Wizard!E15 -> 28 | P179: =+Wizard!F15 -> 0
K180: =+Wizard!A16 -> 12 | L180: =+Wizard!B16 -> Sebas | M180: =+Wizard!C16 -> 10 | N180: =+Wizard!D16 -> 153.4 | O180: =+Wizard!E16 -> 31 | P180: =+Wizard!F16 -> 0
K181: =+Wizard!A17 -> 13 | L181: =+Wizard!B17 -> Lluïsa | M181: =+Wizard!C17 -> -1 | N181: =+Wizard!D17 -> 1 | O181: =+Wizard!E17 -> 61 | P181: =+Wizard!F17 -> 0 | R181: =+Buti!A9 -> 5 | S181: =+Buti!B9 -> Òscar | T181: =+Buti!C9 -> 0 | U181: =+Buti!D9 -> -118 | V181: =+Buti!E9 -> 13 | W181: =+Buti!F9 -> 5
K182: =+Wizard!A18 -> 14 | L182: =+Wizard!B18 -> Nogué | M182: =+Wizard!C18 -> -13 | N182: =+Wizard!D18 -> 169.1 | O182: =+Wizard!E18 -> 12 | P182: =+Wizard!F18 -> 0 | R182: =+Buti!A10 -> 6 | S182: =+Buti!B10 -> Núria | T182: =+Buti!C10 -> -10 | U182: =+Buti!D10 -> 115 | V182: =+Buti!E10 -> 28 | W182: =+Buti!F10 -> 0
K183: =+Wizard!A19 -> 15 | L183: =+Wizard!B19 -> Eito | M183: =+Wizard!C19 -> -36 | N183: =+Wizard!D19 -> 1 | O183: =+Wizard!E19 -> 23 | P183: =+Wizard!F19 -> 0 | R183: =+Buti!A11 -> 7 | S183: =+Buti!B11 -> Manolo | T183: =+Buti!C11 -> -10 | U183: =+Buti!D11 -> -135 | V183: =+Buti!E11 -> 9 | W183: =+Buti!F11 -> 0
K184: =+Wizard!A22 -> 18 | L184: =+Wizard!B22 -> Manolo | M184: =+Wizard!C22 -> -173 | N184: =+Wizard!D22 -> 187.5 | O184: =+Wizard!E22 -> 995 | P184: =+Wizard!F22 -> 0 | R184: =+Buti!A12 -> 8 | S184: =+Buti!B12 -> Goretti | T184: =+Buti!C12 -> -30 | U184: =+Buti!D12 -> -208 | V184: =+Buti!E12 -> 11 | W184: =+Buti!F12 -> 0
K185: =+Wizard!A23 -> 19 | L185: =+Wizard!B23 -> Tito | M185: =+Wizard!C23 -> -176 | N185: =+Wizard!D23 -> 189.2307692 | O185: =+Wizard!E23 -> 510 | P185: =+Wizard!F23 -> 0 | R185: =+Buti!A13 -> 9 | S185: =+Buti!B13 -> Sebas | T185: =+Buti!C13 -> -50 | U185: =+Buti!D13 -> -478 | V185: =+Buti!E13 -> 13 | W185: =+Buti!F13 -> 0 | Y185: =+Pumba!A13 -> 9 | Z185: =+Pumba!B13 -> Montse | AA185: =+Pumba!C13 -> -100000000 | AB185: =+Pumba!D13 -> 0 | AC185: =+Pumba!E13 -> 0 | AD185: =+Pumba!F13 -> 0
K186: =+Wizard!A24 -> 20 | L186: =+Wizard!B24 -> Ana B | M186: =+Wizard!C24 -> -235 | N186: =+Wizard!D24 -> 195.9411765 | O186: =+Wizard!E24 -> 269 | P186: =+Wizard!F24 -> 0 | R186: =+Buti!A14 -> 10 | S186: =+Buti!B14 -> Mariajo | T186: =+Buti!C14 -> 10 | U186: =+Buti!D14 -> 24 | V186: =+Buti!E14 -> 1 | W186: =+Buti!F14 -> 0 | Y186: =+Pumba!A14 -> 10 | Z186: =+Pumba!B14 -> Tito | AA186: =+Pumba!C14 -> -100000000 | AB186: =+Pumba!D14 -> 0 | AC186: =+Pumba!E14 -> 0 | AD186: =+Pumba!F14 -> 0
K187: =+Wizard!A25 -> 21 | L187: =+Wizard!B25 -> Goretti | M187: =+Wizard!C25 -> -260 | N187: =+Wizard!D25 -> 215.2631579 | O187: =+Wizard!E25 -> 369 | P187: =+Wizard!F25 -> 0 | R187: =+Buti!A15 -> 11 | S187: =+Buti!B15 -> Jaume A | T187: =+Buti!C15 -> 10 | U187: =+Buti!D15 -> 5 | V187: =+Buti!E15 -> 1 | W187: =+Buti!F15 -> 0
D190: =+Guinyot!A1 -> GUINYOT
F192: =+Guinyot!C4 -> Premi | G192: =+Guinyot!D4 -> Punts | H192: =+Guinyot!E4 -> Partides | I192: =+Guinyot!F4 -> General
D193: =+Guinyot!A5 -> 1 | E193: =+Guinyot!B5 -> Carles | F193: =+Guinyot!C5 -> -100000000 | G193: =+Guinyot!D5 -> 0 | H193: =+Guinyot!E5 -> 0 | I193: =+Guinyot!F5 -> 0
D194: =+Guinyot!A6 -> 2 | E194: =+Guinyot!B6 -> Mariajo | F194: =+Guinyot!C6 -> -100000000 | G194: =+Guinyot!D6 -> 0 | H194: =+Guinyot!E6 -> 0 | I194: =+Guinyot!F6 -> 0
D195: =+Guinyot!A7 -> 3 | E195: =+Guinyot!B7 -> Sergi | F195: =+Guinyot!C7 -> -100000000 | G195: =+Guinyot!D7 -> 0 | H195: =+Guinyot!E7 -> 0 | I195: =+Guinyot!F7 -> 0
D196: =+Guinyot!A8 -> 4 | E196: =+Guinyot!B8 -> Manolo | F196: =+Guinyot!C8 -> -100000000 | G196: =+Guinyot!D8 -> 0 | H196: =+Guinyot!E8 -> 0 | I196: =+Guinyot!F8 -> 0
D197: =+Guinyot!A9 -> 5 | E197: =+Guinyot!B9 -> Jordi | F197: =+Guinyot!C9 -> -100000000 | G197: =+Guinyot!D9 -> 0 | H197: =+Guinyot!E9 -> 0 | I197: =+Guinyot!F9 -> 0
K198: =+Cribbage!A10 -> 6 | L198: =+Cribbage!B10 -> Nogué | M198: =+Cribbage!C10 -> 1 | N198: =+Cribbage!D10 -> 6 | O198: =+Cribbage!E10 -> -20 | P198: =+Cribbage!G10 -> 0 | Y198: =+King!A10 -> 6 | Z198: =+King!B10 -> Sebas | AA198: =+King!C10 -> 1.5 | AB198: =+King!D10 -> 8 | AC198: =+King!E10 -> -10 | AD198: =+King!G10 -> 0
K199: =+Cribbage!A11 -> 7 | L199: =+Cribbage!B11 -> Xavier | M199: =+Cribbage!C11 -> 0.5 | N199: =+Cribbage!D11 -> 3 | O199: =+Cribbage!E11 -> -4 | P199: =+Cribbage!G11 -> 0 | R199: =+Podrida!A11 -> 7 | S199: =+Podrida!B11 -> Núria | T199: =+Podrida!C11 -> 0 | U199: =+Podrida!D11 -> 3 | V199: =+Podrida!E11 -> -6 | W199: =+Podrida!G11 -> 0 | Y199: =+King!A11 -> 7 | Z199: =+King!B11 -> Mariajo | AA199: =+King!C11 -> 6 | AB199: =+King!D11 -> 7 | AC199: =+King!E11 -> 6 | AD199: =+King!G11 -> 0
K200: =+Cribbage!A12 -> 8 | L200: =+Cribbage!B12 -> Christophe | M200: =+Cribbage!C12 -> 2.5 | N200: =+Cribbage!D12 -> 3 | O200: =+Cribbage!E12 -> 2 | P200: =+Cribbage!G12 -> 0 | R200: =+Podrida!A12 -> 8 | S200: =+Podrida!B12 -> Tito | T200: =+Podrida!C12 -> -100000000 | U200: =+Podrida!D12 -> 1 | V200: =+Podrida!E12 -> 1 | W200: =+Podrida!G12 -> 0 | Y200: =+King!A12 -> 8 | Z200: =+King!B12 -> Manolo | AA200: =+King!C12 -> 5.5 | AB200: =+King!D12 -> 8 | AC200: =+King!E12 -> 3 | AD200: =+King!G12 -> 0
K201: =+Cribbage!A13 -> 9 | L201: =+Cribbage!B13 -> Òscar | M201: =+Cribbage!C13 -> 1.5 | N201: =+Cribbage!D13 -> 2 | O201: =+Cribbage!E13 -> 1 | P201: =+Cribbage!G13 -> 0 | R201: =+Podrida!A13 -> 9 | S201: =+Podrida!B13 -> Grau | T201: =+Podrida!C13 -> -100000000 | U201: =+Podrida!D13 -> 1 | V201: =+Podrida!E13 -> 0 | W201: =+Podrida!G13 -> 0 | Y201: =+King!A13 -> 9 | Z201: =+King!B13 -> Carles | AA201: =+King!C13 -> 5 | AB201: =+King!D13 -> 6 | AC201: =+King!E13 -> 6 | AD201: =+King!G13 -> 0
K202: =+Cribbage!A14 -> 10 | L202: =+Cribbage!B14 -> Grau | M202: =+Cribbage!C14 -> 1.5 | N202: =+Cribbage!D14 -> 2 | O202: =+Cribbage!E14 -> 1 | P202: =+Cribbage!G14 -> 0 | R202: =+Podrida!A14 -> 10 | S202: =+Podrida!B14 -> Ana B | T202: =+Podrida!C14 -> -100000000 | U202: =+Podrida!D14 -> 1 | V202: =+Podrida!E14 -> 0 | W202: =+Podrida!G14 -> 0 | Y202: =+King!A14 -> 10 | Z202: =+King!B14 -> Caty | AA202: =+King!C14 -> 4 | AB202: =+King!D14 -> 4 | AC202: =+King!E14 -> 4 | AD202: =+King!G14 -> 0
K203: =+Cribbage!A15 -> 11 | L203: =+Cribbage!B15 -> Eito | M203: =+Cribbage!C15 -> 1 | N203: =+Cribbage!D15 -> 3 | O203: =+Cribbage!E15 -> -2 | P203: =+Cribbage!G15 -> 0 | R203: =+Podrida!A15 -> 11 | S203: =+Podrida!B15 -> Gemma | T203: =+Podrida!C15 -> -100000000 | U203: =+Podrida!D15 -> 1 | V203: =+Podrida!E15 -> 0 | W203: =+Podrida!G15 -> 0 | Y203: =+King!A15 -> 10 | Z203: =+King!B15 -> Sergi | AA203: =+King!C15 -> 4 | AB203: =+King!D15 -> 7 | AC203: =+King!E15 -> 1 | AD203: =+King!G15 -> 0
K204: =+Cribbage!A16 -> 12 | L204: =+Cribbage!B16 -> Gemma | M204: =+Cribbage!C16 -> 1 | N204: =+Cribbage!D16 -> 4 | O204: =+Cribbage!E16 -> -2 | P204: =+Cribbage!G16 -> 0 | R204: =+Podrida!A16 -> 12 | S204: =+Podrida!B16 -> Rosa M | T204: =+Podrida!C16 -> -100000000 | U204: =+Podrida!D16 -> 1 | V204: =+Podrida!E16 -> 0 | W204: =+Podrida!G16 -> 0 | Y204: =+King!A16 -> 12 | Z204: =+King!B16 -> Grau | AA204: =+King!C16 -> 2.5 | AB204: =+King!D16 -> 6 | AC204: =+King!E16 -> -1 | AD204: =+King!G16 -> 0
K205: =+Cribbage!A17 -> 13 | L205: =+Cribbage!B17 -> Isabel | M205: =+Cribbage!C17 -> 0.5 | N205: =+Cribbage!D17 -> 3 | O205: =+Cribbage!E17 -> -2 | P205: =+Cribbage!G17 -> 0 | R205: =+Podrida!A17 -> 13 | S205: =+Podrida!B17 -> Mariajo | T205: =+Podrida!C17 -> -100000000 | U205: =+Podrida!D17 -> 1 | V205: =+Podrida!E17 -> 0 | W205: =+Podrida!G17 -> 0 | Y205: =+King!A17 -> 13 | Z205: =+King!B17 -> Goretti | AA205: =+King!C17 -> 2.5 | AB205: =+King!D17 -> 7 | AC205: =+King!E17 -> -2 | AD205: =+King!G17 -> 0
K206: =+Cribbage!A18 -> 14 | L206: =+Cribbage!B18 -> Ana B. | M206: =+Cribbage!C18 -> 0 | N206: =+Cribbage!D18 -> 2 | O206: =+Cribbage!E18 -> -2 | P206: =+Cribbage!G18 -> 0 | R206: =+Podrida!A18 -> 14 | S206: =+Podrida!B18 -> Sergi | T206: =+Podrida!C18 -> -100000000 | U206: =+Podrida!D18 -> 1 | V206: =+Podrida!E18 -> 0 | W206: =+Podrida!G18 -> 0 | Y206: =+King!A18 -> 14 | Z206: =+King!B18 -> Ana B | AA206: =+King!C18 -> 2.5 | AB206: =+King!D18 -> 8 | AC206: =+King!E18 -> -3 | AD206: =+King!G18 -> 0
K207: =+Cribbage!A19 -> 15 | L207: =+Cribbage!B19 -> Carles | M207: =+Cribbage!C19 -> -100000000 | N207: =+Cribbage!D19 -> 1 | O207: =+Cribbage!E19 -> 0 | P207: =+Cribbage!G19 -> 0 | Y207: =+King!A19 -> 15 | Z207: =+King!B19 -> Carme | AA207: =+King!C19 -> 0 | AB207: =+King!D19 -> 4 | AC207: =+King!E19 -> -4 | AD207: =+King!G19 -> 0
K208: =+Cribbage!A20 -> 16 | L208: =+Cribbage!B20 -> Sergi | M208: =+Cribbage!C20 -> -100000000 | N208: =+Cribbage!D20 -> 1 | O208: =+Cribbage!E20 -> 0 | P208: =+Cribbage!G20 -> 0 | Y208: =+King!A20 -> 16 | Z208: =+King!B20 -> Nin | AA208: =+King!C20 -> 0 | AB208: =+King!D20 -> 6 | AC208: =+King!E20 -> -8 | AD208: =+King!G20 -> 0
K209: =+Cribbage!A21 -> 17 | L209: =+Cribbage!B21 -> Manolo | M209: =+Cribbage!C21 -> -100000000 | N209: =+Cribbage!D21 -> 1 | O209: =+Cribbage!E21 -> 0 | P209: =+Cribbage!G21 -> 0 | Y209: =+King!A21 -> 17 | Z209: =+King!B21 -> Cyber X | AA209: =+King!C21 -> -100000000 | AB209: =+King!D21 -> 1 | AC209: =+King!E21 -> 0 | AD209: =+King!G21 -> 0
K210: =+Cribbage!A22 -> 18 | L210: =+Cribbage!B22 -> Mariajo | M210: =+Cribbage!C22 -> -100000000 | N210: =+Cribbage!D22 -> 1 | O210: =+Cribbage!E22 -> 0 | P210: =+Cribbage!G22 -> 0
K211: =+Cribbage!A23 -> 19 | L211: =+Cribbage!B23 -> Nin | M211: =+Cribbage!C23 -> -100000000 | N211: =+Cribbage!D23 -> 1 | O211: =+Cribbage!E23 -> 0 | P211: =+Cribbage!G23 -> 0
K212: =+Cribbage!A24 -> 20 | L212: =+Cribbage!B24 -> Tito | M212: =+Cribbage!C24 -> -100000000 | N212: =+Cribbage!D24 -> 1 | O212: =+Cribbage!E24 -> 0 | P212: =+Cribbage!G24 -> 0
R221: =+Mus!A9 -> 5 | S221: =+Mus!B9 -> Mariajo | T221: =+Mus!C9 -> -100000000 | U221: =+Mus!D9 -> 0 | V221: =+Mus!E9 -> 0 | W221: =+Mus!F9 -> 0
K222: =+Tarot!A10 -> 6 | L222: =+Tarot!B10 -> Grau | M222: =+Tarot!C10 -> -100000000 | N222: =+Tarot!D10 -> 1 | O222: =+Tarot!E10 -> 0 | P222: =+Tarot!F10 -> 0 | R222: =+Mus!A10 -> 6 | S222: =+Mus!B10 -> Grau | T222: =+Mus!C10 -> -100000000 | U222: =+Mus!D10 -> 0 | V222: =+Mus!E10 -> 0 | W222: =+Mus!F10 -> 0 | Y222: =+#REF! ->  | Z222: =+#REF! ->  | AA222: =+#REF! ->  | AB222: =+#REF! ->  | AC222: =+#REF! ->  | AD222: =+#REF! -> 
Y223: =+#REF! ->  | Z223: =+#REF! ->  | AA223: =+#REF! ->  | AB223: =+#REF! ->  | AC223: =+#REF! ->  | AD223: =+#REF! -> 
Y224: =+#REF! ->  | Z224: =+#REF! ->  | AA224: =+#REF! ->  | AB224: =+#REF! ->  | AC224: =+#REF! ->  | AD224: =+#REF! -> 
Y225: =+#REF! ->  | Z225: =+#REF! ->  | AA225: =+#REF! ->  | AB225: =+#REF! ->  | AC225: =+#REF! ->  | AD225: =+#REF! -> 
Y226: =+#REF! ->  | Z226: =+#REF! ->  | AA226: =+#REF! ->  | AB226: =+#REF! ->  | AC226: =+#REF! ->  | AD226: =+#REF! -> 
D228: =+'4 Duros'!A1 -> 4 DUROS
F230: =+'4 Duros'!C4 -> Premi | G230: =+'4 Duros'!D4 -> Punts | H230: =+'4 Duros'!E4 -> Partides | I230: =+'4 Duros'!F4 -> General
D231: =+'4 Duros'!A5 -> 1 | E231: =+'4 Duros'!B5 -> Joan | F231: =+'4 Duros'!C5 -> -100000000 | G231: =+'4 Duros'!D5 -> 0 | H231: =+'4 Duros'!E5 -> 0 | I231: =+'4 Duros'!F5 -> 0
D232: =+'4 Duros'!A6 -> 2 | E232: =+'4 Duros'!B6 -> Rosa | F232: =+'4 Duros'!C6 -> -100000000 | G232: =+'4 Duros'!D6 -> 0 | H232: =+'4 Duros'!E6 -> 0 | I232: =+'4 Duros'!F6 -> 0
D233: =+'4 Duros'!A7 -> 3 | E233: =+'4 Duros'!B7 -> Jordi | F233: =+'4 Duros'!C7 -> -100000000 | G233: =+'4 Duros'!D7 -> 0 | H233: =+'4 Duros'!E7 -> 0 | I233: =+'4 Duros'!F7 -> 0
D234: =+'4 Duros'!A8 -> 4 | E234: =+'4 Duros'!B8 -> Anna P. | F234: =+'4 Duros'!C8 -> -100000000 | G234: =+'4 Duros'!D8 -> 0 | H234: =+'4 Duros'!E8 -> 0 | I234: =+'4 Duros'!F8 -> 0
D235: =+'4 Duros'!A9 -> 5 | E235: =+'4 Duros'!B9 -> Manel | F235: =+'4 Duros'!C9 -> -100000000 | G235: =+'4 Duros'!D9 -> 0 | H235: =+'4 Duros'!E9 -> 0 | I235: =+'4 Duros'!F9 -> 0
D236: =+'4 Duros'!A10 -> 6 | E236: =+'4 Duros'!B10 -> Carles | F236: =+'4 Duros'!C10 -> -100000000 | G236: =+'4 Duros'!D10 -> 0 | H236: =+'4 Duros'!E10 -> 0 | I236: =+'4 Duros'!F10 -> 0
Q250: =+Buti!A9 -> 5 | R250: =+Buti!B9 -> Òscar | S250: =+Buti!C9 -> 0 | T250: =+Buti!D9 -> -118 | U250: =+Buti!E9 -> 13 | V250: =+Buti!F9 -> 5 | X250: =+Wizard!A9 -> 5 | Y250: =+Wizard!B9 -> Jeff | Z250: =+Wizard!C9 -> 156 | AA250: =+Wizard!D9 -> 198.5625 | AB250: =+Wizard!E9 -> 446 | AC250: =+Wizard!F9 -> 5
Q251: =+Buti!A10 -> 6 | R251: =+Buti!B10 -> Núria | S251: =+Buti!C10 -> -10 | T251: =+Buti!D10 -> 115 | U251: =+Buti!E10 -> 28 | V251: =+Buti!F10 -> 0 | X251: =+Wizard!A10 -> 6 | Y251: =+Wizard!B10 -> Debi | Z251: =+Wizard!C10 -> 154 | AA251: =+Wizard!D10 -> 1 | AB251: =+Wizard!E10 -> 192 | AC251: =+Wizard!F10 -> 0
J252: =+Mus!A11 -> 7 | K252: =+Mus!B11 -> Jordi | L252: =+Mus!C11 -> -100000000 | M252: =+Mus!D11 -> 0 | N252: =+Mus!E11 -> 0 | O252: =+Mus!F11 -> 0 | Q252: =+Buti!A11 -> 7 | R252: =+Buti!B11 -> Manolo | S252: =+Buti!C11 -> -10 | T252: =+Buti!D11 -> -135 | U252: =+Buti!E11 -> 9 | V252: =+Buti!F11 -> 0 | X252: =+Wizard!A11 -> 7 | Y252: =+Wizard!B11 -> Marina | Z252: =+Wizard!C11 -> 145 | AA252: =+Wizard!D11 -> 181.5384615 | AB252: =+Wizard!E11 -> 390 | AC252: =+Wizard!F11 -> 0
Q253: =+Buti!A12 -> 8 | R253: =+Buti!B12 -> Goretti | S253: =+Buti!C12 -> -30 | T253: =+Buti!D12 -> -208 | U253: =+Buti!E12 -> 11 | V253: =+Buti!F12 -> 0 | X253: =+Wizard!A12 -> 8 | Y253: =+Wizard!B12 -> Jordi | Z253: =+Wizard!C12 -> 114 | AA253: =+Wizard!D12 -> 232.8571429 | AB253: =+Wizard!E12 -> 89 | AC253: =+Wizard!F12 -> 0
C254: =+Kul!A13 -> 9 | D254: =+Kul!B13 -> Carles | E254: =+Kul!C13 -> 4 | F254: =+Kul!D13 -> 15 | G254: =+Kul!E13 -> 2 | H254: =+Kul!F13 -> 0 | Q254: =+Buti!A13 -> 9 | R254: =+Buti!B13 -> Sebas | S254: =+Buti!C13 -> -50 | T254: =+Buti!D13 -> -478 | U254: =+Buti!E13 -> 13 | V254: =+Buti!F13 -> 0 | X254: =+Wizard!A13 -> 9 | Y254: =+Wizard!B13 -> Sergi | Z254: =+Wizard!C13 -> 96 | AA254: =+Wizard!D13 -> 230.952381 | AB254: =+Wizard!E13 -> 140 | AC254: =+Wizard!F13 -> 0
C255: =+Kul!A14 -> 10 | D255: =+Kul!B14 -> Grau | E255: =+Kul!C14 -> 3 | F255: =+Kul!D14 -> -3 | G255: =+Kul!E14 -> 3 | H255: =+Kul!F14 -> 0 | Q255: =+Buti!A14 -> 10 | R255: =+Buti!B14 -> Mariajo | S255: =+Buti!C14 -> 10 | T255: =+Buti!D14 -> 24 | U255: =+Buti!E14 -> 1 | V255: =+Buti!F14 -> 0 | X255: =+Wizard!A14 -> 10 | Y255: =+Wizard!B14 -> Xavier | Z255: =+Wizard!C14 -> 42 | AA255: =+Wizard!D14 -> 1 | AB255: =+Wizard!E14 -> 61 | AC255: =+Wizard!F14 -> 0
C256: =+Kul!A15 -> 11 | D256: =+Kul!B15 -> Caty | E256: =+Kul!C15 -> 2 | F256: =+Kul!D15 -> 3 | G256: =+Kul!E15 -> 2 | H256: =+Kul!F15 -> 0 | Q256: =+Buti!A15 -> 11 | R256: =+Buti!B15 -> Jaume A | S256: =+Buti!C15 -> 10 | T256: =+Buti!D15 -> 5 | U256: =+Buti!E15 -> 1 | V256: =+Buti!F15 -> 0 | X256: =+Wizard!A15 -> 11 | Y256: =+Wizard!B15 -> Núria | Z256: =+Wizard!C15 -> 11 | AA256: =+Wizard!D15 -> 245.4166667 | AB256: =+Wizard!E15 -> 28 | AC256: =+Wizard!F15 -> 0
X260: =+Omaha!A1 -> POKER OMAHA
Z262: =+Omaha!C4 -> Premi | AA262: =+Omaha!D4 -> Punts | AB262: =+Omaha!E4 -> Partides | AC262: =+Omaha!F4 -> General
... 224 more rows

Sheet Wizard
A1: WIZARD
A2: Mes
A3: =+GENERAL!B6 -> 12 | C3: =SUM(C5:C29)+BN52-4.33333 -> 790.0000033
C4: Premi | D4: Punts | E4: Partides | F4: General
A5: 1 | B5: Carles | C5: =+Q$49 -> 1514 | D5: =+R$50 -> 282.1428571 | E5: =+R$49 -> 677 | F5: =+Q$35 -> 80 | G5: =IF(E5<A$3/2,-1,1)*800000+C5*1000+D5*0+E5/1000 -> 2314000.677 | I5: =+C5/E5 -> 2.23633678
A6: 2 | B6: Alfred | C6: =+AE$49 -> 273 | D6: =+AF$50 -> 223.2352941 | E6: =+AF$49 -> 1836 | F6: =+AE$35 -> 40 | G6: 1073001.836 | I6: =+C6/E6 -> 0.1486928105
A7: 3 | B7: Tim | C7: =+AW$49 -> 267 | D7: =+AX$50 -> 229 | E7: =+AX$49 -> 558 | F7: =+AW$35 -> 20 | G7: 1067000.558 | I7: 0.4784946237
A8: 4 | B8: Mario | C8: =+BA$49 -> 207 | D8: =+BB$50 -> 1 | E8: =+BB$49 -> 387 | F8: =+BA$35 -> 10 | G8: 1007000.387 | I8: 0.5348837209
A9: 5 | B9: Jeff | C9: =+AI$49 -> 156 | D9: =+AJ$50 -> 198.5625 | E9: =+AJ$49 -> 446 | F9: =+AI$35 -> 5 | G9: 956000.446 | I9: 0.3497757848
A10: 6 | B10: Debi | C10: =+AY$49 -> 154 | D10: =+AZ$50 -> 1 | E10: =+AZ$49 -> 192 | F10: =+AY$35 -> 0 | G10: 954000.192 | I10: 0.8020833333
A11: 7 | B11: Marina | C11: =+Y$49 -> 145 | D11: =+Z$50 -> 181.5384615 | E11: =+Z$49 -> 390 | F11: =+Y$35 -> 0 | G11: 945000.39 | I11: 0.3717948718
A12: 8 | B12: Jordi | C12: =+G$49 -> 114 | D12: =+H$50 -> 232.8571429 | E12: =+H$49 -> 89 | F12: =+G$35 -> 0 | G12: 914000.089 | I12: 1.280898876
A13: 9 | B13: Sergi | C13: =+O$49 -> 96 | D13: =+P$50 -> 230.952381 | E13: =+P$49 -> 140 | F13: =+O$35 -> 0 | G13: 896000.14 | I13: 0.6857142857
A14: 10 | B14: Xavier | C14: =+AS$49 -> 42 | D14: =+AT$50 -> 1 | E14: =+AT$49 -> 61 | F14: =+AS$35 -> 0 | G14: 842000.061 | I14: 0.6885245902
A15: 11 | B15: Núria | C15: =+AK$49 -> 11 | D15: =+AL$50 -> 245.4166667 | E15: =+AL$49 -> 28 | F15: =+AK$35 -> 0 | G15: 811000.028 | I15: 0.3928571429
A16: 12 | B16: Sebas | C16: =+AO$49 -> 10 | D16: =+AP$50 -> 153.4 | E16: =+AP$49 -> 31 | F16: =+AO$35 -> 0 | G16: 810000.031 | I16: 0.3225806452
A17: 13 | B17: Lluïsa | C17: =+AQ$49 -> -1 | D17: =+AR$50 -> 1 | E17: =+AR$49 -> 61 | F17: =+AQ$35 -> 0 | G17: 799000.061 | I17: -0.01639344262
A18: 14 | B18: Nogué | C18: =+BG$49 -> -13 | D18: =+BH$50 -> 169.1 | E18: =+BH$49 -> 12 | F18: =+BG$35 -> 0 | G18: 787000.012 | I18: -1.083333333
A19: 15 | B19: Eito | C19: =+AU$49 -> -36 | D19: =+AV$50 -> 1 | E19: =+AV$49 -> 23 | F19: =+AU$35 -> 0 | G19: 764000.023 | I19: -1.565217391
A20: 16 | B20: Lleixà | C20: =+I$49 -> -50 | D20: =+J$50 -> 1 | E20: =+J$49 -> 41 | F20: =+I$35 -> 0 | G20: 750000.041 | I20: -1.219512195
A21: 17 | B21: Nin | C21: =+AC$49 -> -92 | D21: =+AD$50 -> 124.5454545 | E21: =+AD$49 -> 49 | F21: =+AC$35 -> 0 | G21: 708000.049 | I21: -1.87755102
A22: 18 | B22: Manolo | C22: =+C$49 -> -173 | D22: =+D$50 -> 187.5 | E22: =+D$49 -> 995 | F22: =+C$35 -> 0 | G22: 627000.995 | I22: -0.1738693467
A23: 19 | B23: Tito | C23: =+AA$49 -> -176 | D23: =+AB$50 -> 189.2307692 | E23: =+AB$49 -> 510 | F23: =+AA$35 -> 0 | G23: 624000.51 | I23: -0.3450980392
A24: 20 | B24: Ana B | C24: =+E$49 -> -235 | D24: =+F$50 -> 195.9411765 | E24: =+F$49 -> 269 | F24: =+E$35 -> 0 | G24: 565000.269 | I24: -0.873605948
A25: 21 | B25: Goretti | C25: =+M$49 -> -260 | D25: =+N$50 -> 215.2631579 | E25: =+N$49 -> 369 | F25: =+M$35 -> 0 | G25: 540000.369 | I25: -0.7046070461
A26: 22 | B26: Grau | C26: =+U$49 -> -348 | D26: =+V$50 -> 226.4285714 | E26: =+V$49 -> 1007 | F26: =+U$35 -> 0 | G26: 452001.007 | I26: -0.3455809335
A27: 23 | B27: Nancy | C27: =+AG$49 -> -399 | D27: =+AH$50 -> 170 | E27: =+AH$49 -> 224 | F27: =+AG$35 -> 0 | G27: 401000.224
A28: 24 | B28: Gemma | C28: =+AM$49 -> -420 | D28: =+AN$50 -> 158 | E28: =+AN$49 -> 768 | F28: =+AM$35 -> 0 | G28: 380000.768
A29: 25 | B29: Òscar | C29: =+BC$49 -> 1 | D29: =+BD$50 -> 125.5 | E29: =+BD$49 -> 1 | F29: =+BC$35 -> 0 | G29: -798999.999
A30: 26 | B30: Caty | C30: =+W$49 -> -1 | D30: =+X$50 -> 340 | E30: =+X$49 -> 1 | F30: =+W$35 -> 0 | G30: -800999.999
A31: 27 | B31: Christophe | C31: =+BE$49 -> -3 | D31: =+BF$50 -> 30.5 | E31: =+BF$49 -> 1 | F31: =+BE$35 -> 0 | G31: -802999.999
A32: 28 | B32: Mariajo | C32: =+S$49 -> -6 | D32: =+T$50 -> 170 | E32: =+T$49 -> 3 | F32: =+S$35 -> 0 | G32: -805999.997
A33: 29 | B33: CyberX | C33: =+K$49 -> -100000000 | D33: =+L$50 -> 194.8091787 | E33: =+L$49 -> 69 | F33: =+K$35 -> 0 | G33: -9.99992e+10
B35: General | C35: =+C36*C37 -> 0 | D35: =+D36*D37 -> 995 | E35: 0 | F35: 269 | G35: =+G36*G37 -> 0 | H35: 89 | I35: 0 | J35: 41 | K35: =+K36*K37 -> 0 | L35: =+L36*L37 -> 69 | M35: 0 | N35: 369 | O35: 0 | P35: 140 | Q35: 80 | R35: 677 | S35: 0 | T35: 3 | U35: =+U36*U37 -> 0 | V35: 1007 | W35: 0 | X35: 1 | Y35: 0 | Z35: 390 | AA35: =+AA36*AA37 -> 0 | AB35: =+AB36*AB37 -> 510 | AC35: =+AC36*AC37 -> 0 | AD35: =+AD36*AD37 -> 49 | AE35: =+AE36*AE37 -> 40 | AF35: 1836 | AG35: =+AG36*AG37 -> 0 | AH35: =+AH36*AH37 -> 224 | AI35: 5 | AJ35: 446 | AK35: =+AK36*AK37 -> 0 | AL35: 28 | AM35: 0 | AN35: 768 | AO35: 0 | AP35: 31 | AQ35: =+AQ36*AQ37 -> 0 | AR35: 61 | AS35: 0 | AT35: 61 | AU35: =+AU36*AU37 -> 0 | AV35: 23 | AW35: =+AW36*AW37 -> 20 | AX35: 558 | AY35: 0 | AZ35: 192 | BA35: 10 | BB35: 387 | BC35: =+BC36*BC37 -> 0 | BD35: 1 | BE35: =+BE36*BE37 -> 0 | BF35: 1 | BG35: 0 | BH35: 12
C36: =IF($B48>3,1,0) -> 1 | D36: =IF($B48>3,1,0) -> 1 | E36: 1 | F36: 1 | G36: =IF($B48>3,1,0) -> 1 | H36: 1 | I36: 1 | J36: 1 | K36: =IF($B48>3,1,0) -> 1 | L36: =IF($B48>3,1,0) -> 1 | M36: 1 | N36: 1 | O36: 1 | P36: 1 | Q36: 1 | R36: 1 | S36: 1 | T36: 1 | U36: 1 | V36: 1 | W36: 1 | X36: 1 | Y36: 1 | Z36: 1 | AA36: =IF($B48>3,1,0) -> 1 | AB36: =IF($B48>3,1,0) -> 1 | AC36: =IF($B48>3,1,0) -> 1 | AD36: =IF($B48>3,1,0) -> 1 | AE36: 1 | AF36: 1 | AG36: =IF($B48>3,1,0) -> 1 | AH36: =IF($B48>3,1,0) -> 1 | AI36: 1 | AJ36: 1 | AK36: =IF($B48>3,1,0) -> 1 | AL36: 1 | AM36: 1 | AN36: 1 | AO36: 1 | AP36: 1 | AQ36: =IF($B48>3,1,0) -> 1 | AR36: 1 | AS36: 1 | AT36: 1 | AU36: =IF($B48>3,1,0) -> 1 | AV36: 1 | AW36: =IF($B48>3,1,0) -> 1 | AX36: 1 | AY36: 1 | AZ36: 1 | BA36: 1 | BB36: 1 | BC36: =IF($B48>3,1,0) -> 1 | BD36: 1 | BE36: =IF($B48>3,1,0) -> 1 | BF36: 1 | BG36: 1 | BH36: 1
C37: =MAX(C38:C42) -> 0 | D37: =+D49 -> 995 | E37: =MAX(E38:E42) -> 0 | F37: =+F49 -> 269 | G37: =MAX(G38:G42) -> 0 | H37: =+H49 -> 89 | I37: =MAX(I38:I42) -> 0 | J37: =+J49 -> 41 | K37: =MAX(K38:K42) -> 0 | L37: =+L49 -> 69 | M37: =MAX(M38:M42) -> 0 | N37: =+N49 -> 369 | O37: =MAX(O38:O42) -> 0 | P37: =+P49 -> 140 | Q37: =MAX(Q38:Q42) -> 80 | R37: =+R49 -> 677 | S37: =MAX(S38:S42) -> 0 | T37: =+T49 -> 3 | U37: =MAX(U38:U42) -> 0 | V37: =+V49 -> 1007 | W37: =MAX(W38:W42) -> 0 | X37: =+X49 -> 1 | Y37: =MAX(Y38:Y42) -> 0 | Z37: =+Z49 -> 390 | AA37: =MAX(AA38:AA42) -> 0 | AB37: =+AB49 -> 510 | AC37: =MAX(AC38:AC42) -> 0 | AD37: =+AD49 -> 49 | AE37: =MAX(AE38:AE42) -> 40 | AF37: =+AF49 -> 1836 | AG37: =MAX(AG38:AG42) -> 0 | AH37: =+AH49 -> 224 | AI37: =MAX(AI38:AI42) -> 5 | AJ37: =+AJ49 -> 446 | AK37: =MAX(AK38:AK42) -> 0 | AL37: =+AL49 -> 28 | AM37: =MAX(AM38:AM42) -> 0 | AN37: =+AN49 -> 768 | AO37: =MAX(AO38:AO42) -> 0 | AP37: =+AP49 -> 31 | AQ37: =MAX(AQ38:AQ42) -> 0 | AR37: =+AR49 -> 61 | AS37: =MAX(AS38:AS42) -> 0 | AT37: =+AT49 -> 61 | AU37: =MAX(AU38:AU42) -> 0 | AV37: =+AV49 -> 23 | AW37: =MAX(AW38:AW42) -> 20 | AX37: =+AX49 -> 558 | AY37: =MAX(AY38:AY42) -> 0 | AZ37: =+AZ49 -> 192 | BA37: =MAX(BA38:BA42) -> 10 | BB37: =+BB49 -> 387 | BC37: =MAX(BC38:BC42) -> 0 | BD37: =+BD49 -> 1 | BE37: =MAX(BE38:BE42) -> 0 | BF37: =+BF49 -> 1 | BG37: =MAX(BG38:BG42) -> 0 | BH37: =+BH49 -> 12
C38: =IF(C$43=5,5,0) -> 0 | E38: =IF(E$43=5,5,0) -> 0 | G38: =IF(G$43=5,5,0) -> 0 | I38: =IF(I$43=5,5,0) -> 0 | K38: =IF(K$43=5,5,0) -> 0 | M38: =IF(M$43=5,5,0) -> 0 | O38: =IF(O$43=5,5,0) -> 0 | Q38: =IF(Q$43=5,5,0) -> 0 | S38: =IF(S$43=5,5,0) -> 0 | U38: =IF(U$43=5,5,0) -> 0 | W38: =IF(W$43=5,5,0) -> 0 | Y38: =IF(Y$43=5,5,0) -> 0 | AA38: =IF(AA$43=5,5,0) -> 0 | AC38: =IF(AC$43=5,5,0) -> 0 | AE38: =IF(AE$43=5,5,0) -> 0 | AG38: =IF(AG$43=5,5,0) -> 0 | AI38: =IF(AI$43=5,5,0) -> 5 | AK38: =IF(AK$43=5,5,0) -> 0 | AM38: =IF(AM$43=5,5,0) -> 0 | AO38: =IF(AO$43=5,5,0) -> 0 | AQ38: =IF(AQ$43=5,5,0) -> 0 | AS38: =IF(AS$43=5,5,0) -> 0 | AU38: =IF(AU$43=5,5,0) -> 0 | AW38: =IF(AW$43=5,5,0) -> 0 | AY38: =IF(AY$43=5,5,0) -> 0 | BA38: =IF(BA$43=5,5,0) -> 0 | BC38: =IF(BC$43=5,5,0) -> 0 | BE38: =IF(BE$43=5,5,0) -> 0 | BG38: =IF(BG$43=5,5,0) -> 0
C39: =IF(C$43=4,10,0) -> 0 | E39: =IF(E$43=4,10,0) -> 0 | G39: =IF(G$43=4,10,0) -> 0 | I39: =IF(I$43=4,10,0) -> 0 | K39: =IF(K$43=4,10,0) -> 0 | M39: =IF(M$43=4,10,0) -> 0 | O39: =IF(O$43=4,10,0) -> 0 | Q39: =IF(Q$43=4,10,0) -> 0 | S39: =IF(S$43=4,10,0) -> 0 | U39: =IF(U$43=4,10,0) -> 0 | W39: =IF(W$43=4,10,0) -> 0 | Y39: =IF(Y$43=4,10,0) -> 0 | AA39: =IF(AA$43=4,10,0) -> 0 | AC39: =IF(AC$43=4,10,0) -> 0 | AE39: =IF(AE$43=4,10,0) -> 0 | AG39: =IF(AG$43=4,10,0) -> 0 | AI39: =IF(AI$43=4,10,0) -> 0 | AK39: =IF(AK$43=4,10,0) -> 0 | AM39: =IF(AM$43=4,10,0) -> 0 | AO39: =IF(AO$43=4,10,0) -> 0 | AQ39: =IF(AQ$43=4,10,0) -> 0 | AS39: =IF(AS$43=4,10,0) -> 0 | AU39: =IF(AU$43=4,10,0) -> 0 | AW39: =IF(AW$43=4,10,0) -> 0 | AY39: =IF(AY$43=4,10,0) -> 0 | BA39: =IF(BA$43=4,10,0) -> 10 | BC39: =IF(BC$43=4,10,0) -> 0 | BE39: =IF(BE$43=4,10,0) -> 0 | BG39: =IF(BG$43=4,10,0) -> 0
C40: =IF(C$43=3,20,0) -> 0 | E40: =IF(E$43=3,20,0) -> 0 | G40: =IF(G$43=3,20,0) -> 0 | I40: =IF(I$43=3,20,0) -> 0 | K40: =IF(K$43=3,20,0) -> 0 | M40: =IF(M$43=3,20,0) -> 0 | O40: =IF(O$43=3,20,0) -> 0 | Q40: =IF(Q$43=3,20,0) -> 0 | S40: =IF(S$43=3,20,0) -> 0 | U40: =IF(U$43=3,20,0) -> 0 | W40: =IF(W$43=3,20,0) -> 0 | Y40: =IF(Y$43=3,20,0) -> 0 | AA40: =IF(AA$43=3,20,0) -> 0 | AC40: =IF(AC$43=3,20,0) -> 0 | AE40: =IF(AE$43=3,20,0) -> 0 | AG40: =IF(AG$43=3,20,0) -> 0 | AI40: =IF(AI$43=3,20,0) -> 0 | AK40: =IF(AK$43=3,20,0) -> 0 | AM40: =IF(AM$43=3,20,0) -> 0 | AO40: =IF(AO$43=3,20,0) -> 0 | AQ40: =IF(AQ$43=3,20,0) -> 0 | AS40: =IF(AS$43=3,20,0) -> 0 | AU40: =IF(AU$43=3,20,0) -> 0 | AW40: =IF(AW$43=3,20,0) -> 20 | AY40: =IF(AY$43=3,20,0) -> 0 | BA40: =IF(BA$43=3,20,0) -> 0 | BC40: =IF(BC$43=3,20,0) -> 0 | BE40: =IF(BE$43=3,20,0) -> 0 | BG40: =IF(BG$43=3,20,0) -> 0
C41: =IF(C$43=2,40,0) -> 0 | E41: =IF(E$43=2,40,0) -> 0 | G41: =IF(G$43=2,40,0) -> 0 | I41: =IF(I$43=2,40,0) -> 0 | K41: =IF(K$43=2,40,0) -> 0 | M41: =IF(M$43=2,40,0) -> 0 | O41: =IF(O$43=2,40,0) -> 0 | Q41: =IF(Q$43=2,40,0) -> 0 | S41: =IF(S$43=2,40,0) -> 0 | U41: =IF(U$43=2,40,0) -> 0 | W41: =IF(W$43=2,40,0) -> 0 | Y41: =IF(Y$43=2,40,0) -> 0 | AA41: =IF(AA$43=2,40,0) -> 0 | AC41: =IF(AC$43=2,40,0) -> 0 | AE41: =IF(AE$43=2,40,0) -> 40 | AG41: =IF(AG$43=2,40,0) -> 0 | AI41: =IF(AI$43=2,40,0) -> 0 | AK41: =IF(AK$43=2,40,0) -> 0 | AM41: =IF(AM$43=2,40,0) -> 0 | AO41: =IF(AO$43=2,40,0) -> 0 | AQ41: =IF(AQ$43=2,40,0) -> 0 | AS41: =IF(AS$43=2,40,0) -> 0 | AU41: =IF(AU$43=2,40,0) -> 0 | AW41: =IF(AW$43=2,40,0) -> 0 | AY41: =IF(AY$43=2,40,0) -> 0 | BA41: =IF(BA$43=2,40,0) -> 0 | BC41: =IF(BC$43=2,40,0) -> 0 | BE41: =IF(BE$43=2,40,0) -> 0 | BG41: =IF(BG$43=2,40,0) -> 0
C42: =IF(C$43=1,80,0) -> 0 | E42: =IF(E$43=1,80,0) -> 0 | G42: =IF(G$43=1,80,0) -> 0 | I42: =IF(I$43=1,80,0) -> 0 | K42: =IF(K$43=1,80,0) -> 0 | M42: =IF(M$43=1,80,0) -> 0 | O42: =IF(O$43=1,80,0) -> 0 | Q42: =IF(Q$43=1,80,0) -> 80 | S42: =IF(S$43=1,80,0) -> 0 | U42: =IF(U$43=1,80,0) -> 0 | W42: =IF(W$43=1,80,0) -> 0 | Y42: =IF(Y$43=1,80,0) -> 0 | AA42: =IF(AA$43=1,80,0) -> 0 | AC42: =IF(AC$43=1,80,0) -> 0 | AE42: =IF(AE$43=1,80,0) -> 0 | AG42: =IF(AG$43=1,80,0) -> 0 | AI42: =IF(AI$43=1,80,0) -> 0 | AK42: =IF(AK$43=1,80,0) -> 0 | AM42: =IF(AM$43=1,80,0) -> 0 | AO42: =IF(AO$43=1,80,0) -> 0 | AQ42: =IF(AQ$43=1,80,0) -> 0 | AS42: =IF(AS$43=1,80,0) -> 0 | AU42: =IF(AU$43=1,80,0) -> 0 | AW42: =IF(AW$43=1,80,0) -> 0 | AY42: =IF(AY$43=1,80,0) -> 0 | BA42: =IF(BA$43=1,80,0) -> 0 | BC42: =IF(BC$43=1,80,0) -> 0 | BE42: =IF(BE$43=1,80,0) -> 0 | BG42: =IF(BG$43=1,80,0) -> 0
C43: =RANK(C44,$C44:$CJ44)*C48 -> 18 | E43: =RANK(E44,$C44:$CJ44)*E48 -> 20 | G43: =RANK(G44,$C44:$CJ44)*G48 -> 8 | I43: =RANK(I44,$C44:$CJ44)*I48 -> 16 | K43: =RANK(K44,$C44:$CJ44)*K48 -> 29 | M43: =RANK(M44,$C44:$CJ44)*M48 -> 21 | O43: =RANK(O44,$C44:$CJ44)*O48 -> 9 | Q43: =RANK(Q44,$C44:$CJ44)*Q48 -> 1 | S43: =RANK(S44,$C44:$CJ44)*S48 -> 0 | U43: =RANK(U44,$C44:$CJ44)*U48 -> 22 | W43: =RANK(W44,$C44:$CJ44)*W48 -> 0 | Y43: =RANK(Y44,$C44:$CJ44)*Y48 -> 7 | AA43: =RANK(AA44,$C44:$CJ44)*AA48 -> 19 | AC43: =RANK(AC44,$C44:$CJ44)*AC48 -> 17 | AE43: =RANK(AE44,$C44:$CJ44)*AE48 -> 2 | AG43: =RANK(AG44,$C44:$CJ44)*AG48 -> 23 | AI43: =RANK(AI44,$C44:$CJ44)*AI48 -> 5 | AK43: =RANK(AK44,$C44:$CJ44)*AK48 -> 11 | AM43: =RANK(AM44,$C44:$CJ44)*AM48 -> 24 | AO43: =RANK(AO44,$C44:$CJ44)*AO48 -> 12 | AQ43: =RANK(AQ44,$C44:$CJ44)*AQ48 -> 13 | AS43: =RANK(AS44,$C44:$CJ44)*AS48 -> 10 | AU43: =RANK(AU44,$C44:$CJ44)*AU48 -> 15 | AW43: =RANK(AW44,$C44:$CJ44)*AW48 -> 3 | AY43: =RANK(AY44,$C44:$CJ44)*AY48 -> 6 | BA43: =RANK(BA44,$C44:$CJ44)*BA48 -> 4 | BC43: =RANK(BC44,$C44:$CJ44)*BC48 -> 0 | BE43: =RANK(BE44,$C44:$CJ44)*BE48 -> 0 | BG43: =RANK(BG44,$C44:$CJ44)*BG48 -> 14
C44: =SUM(C45:C47) -> -173163.05 | E44: =SUM(E45:E47) -> -235232.31 | G44: =SUM(G45:G47) -> 114114.89 | I44: =SUM(I45:I47) -> -50049.59 | K44: =SUM(K45:K47) -> -1.001e+11 | M44: =SUM(M45:M47) -> -260256.31 | O44: =SUM(O45:O47) -> 96097.4 | Q44: =SUM(Q45:Q47) -> 1515520.77 | S44: =SUM(S45:S47) -> -1000005.97 | U44: =SUM(U45:U47) -> -348337.93 | W44: =SUM(W45:W47) -> -1000000.99 | Y44: =SUM(Y45:Y47) -> 145148.9 | AA44: =SUM(AA45:AA47) -> -176170.9 | AC44: =SUM(AC45:AC47) -> -92091.51 | AE44: =SUM(AE45:AE47) -> 273291.36 | AG44: =SUM(AG45:AG47) -> -399396.76 | AI44: =SUM(AI45:AI47) -> 156160.46 | AK44: =SUM(AK45:AK47) -> 11011.28 | AM44: =SUM(AM45:AM47) -> -420412.32 | AO44: =SUM(AO45:AO47) -> 10010.31 | AQ44: =SUM(AQ45:AQ47) -> -1000.39 | AS44: =SUM(AS45:AS47) -> 42042.61 | AU44: =SUM(AU45:AU47) -> -36035.77 | AW44: =SUM(AW45:AW47) -> 267272.58 | AY44: =SUM(AY45:AY47) -> 154155.92 | BA44: =SUM(BA45:BA47) -> 207210.87 | BC44: =SUM(BC45:BC47) -> -999998.99 | BE44: =SUM(BE45:BE47) -> -1000002.99 | BG44: =SUM(BG45:BG47) -> -13012.88
C45: =+D49/100 -> 9.95 | E45: =+F49/100 -> 2.69 | G45: =+H49/100 -> 0.89 | I45: =+J49/100 -> 0.41 | K45: =+L49/100 -> 0.69 | M45: =+N49/100 -> 3.69 | O45: =+P49/100 -> 1.4 | Q45: =+R49/100 -> 6.77 | S45: =+T49/100 -> 0.03 | U45: =+V49/100 -> 10.07 | W45: =+X49/100 -> 0.01 | Y45: =+Z49/100 -> 3.9 | AA45: =+AB49/100 -> 5.1 | AC45: =+AD49/100 -> 0.49 | AE45: =+AF49/100 -> 18.36 | AG45: =+AH49/100 -> 2.24 | AI45: =+AJ49/100 -> 4.46 | AK45: =+AL49/100 -> 0.28 | AM45: =+AN49/100 -> 7.68 | AO45: =+AP49/100 -> 0.31 | AQ45: =+AR49/100 -> 0.61 | AS45: =+AT49/100 -> 0.61 | AU45: =+AV49/100 -> 0.23 | AW45: =+AX49/100 -> 5.58 | AY45: =+AZ49/100 -> 1.92 | BA45: =+BB49/100 -> 3.87 | BC45: =+BD49/100 -> 0.01 | BE45: =+BF49/100 -> 0.01 | BG45: =+BH49/100 -> 0.12
C46: =D50*0 -> 0 | E46: =F50*0 -> 0 | G46: =H50*0 -> 0 | I46: =J50*0 -> 0 | K46: =L50*0 -> 0 | M46: =N50*0 -> 0 | O46: =P50*0 -> 0 | Q46: =R50*0 -> 0 | S46: =T50*0 -> 0 | U46: =V50*0 -> 0 | W46: =X50*0 -> 0 | Y46: =Z50*0 -> 0 | AA46: =AB50*0 -> 0 | AC46: =AD50*0 -> 0 | AE46: =AF50*0 -> 0 | AG46: =AH50*0 -> 0 | AI46: =AJ50*0 -> 0 | AK46: =AL50*0 -> 0 | AM46: =AN50*0 -> 0 | AO46: =AP50*0 -> 0 | AQ46: =AR50*0 -> 0 | AS46: =AT50*0 -> 0 | AU46: =AV50*0 -> 0 | AW46: =AX50*0 -> 0 | AY46: =AZ50*0 -> 0 | BA46: =BB50*0 -> 0 | BC46: =BD50*0 -> 0 | BE46: =BF50*0 -> 0 | BG46: =BH50*0 -> 0
C47: =IF(C48=1,C49*C48*1000+C49,-1000000+C49) -> -173173 | E47: =IF(E48=1,E49*E48*1000+E49,-1000000+E49) -> -235235 | G47: =IF(G48=1,G49*G48*1000+G49,-1000000+G49) -> 114114 | I47: =IF(I48=1,I49*I48*1000+I49,-1000000+I49) -> -50050 | K47: =IF(K48=1,K49*K48*1000+K49,-1000000+K49) -> -100100000000 | M47: =IF(M48=1,M49*M48*1000+M49,-1000000+M49) -> -260260 | O47: =IF(O48=1,O49*O48*1000+O49,-1000000+O49) -> 96096 | Q47: =IF(Q48=1,Q49*Q48*1000+Q49,-1000000+Q49) -> 1515514 | S47: =IF(S48=1,S49*S48*1000+S49,-1000000+S49) -> -1000006 | U47: =IF(U48=1,U49*U48*1000+U49,-1000000+U49) -> -348348 | W47: =IF(W48=1,W49*W48*1000+W49,-1000000+W49) -> -1000001 | Y47: =IF(Y48=1,Y49*Y48*1000+Y49,-1000000+Y49) -> 145145 | AA47: =IF(AA48=1,AA49*AA48*1000+AA49,-1000000+AA49) -> -176176 | AC47: =IF(AC48=1,AC49*AC48*1000+AC49,-1000000+AC49) -> -92092 | AE47: =IF(AE48=1,AE49*AE48*1000+AE49,-1000000+AE49) -> 273273 | AG47: =IF(AG48=1,AG49*AG48*1000+AG49,-1000000+AG49) -> -399399 | AI47: =IF(AI48=1,AI49*AI48*1000+AI49,-1000000+AI49) -> 156156 | AK47: =IF(AK48=1,AK49*AK48*1000+AK49,-1000000+AK49) -> 11011 | AM47: =IF(AM48=1,AM49*AM48*1000+AM49,-1000000+AM49) -> -420420 | AO47: =IF(AO48=1,AO49*AO48*1000+AO49,-1000000+AO49) -> 10010 | AQ47: =IF(AQ48=1,AQ49*AQ48*1000+AQ49,-1000000+AQ49) -> -1001 | AS47: =IF(AS48=1,AS49*AS48*1000+AS49,-1000000+AS49) -> 42042 | AU47: =IF(AU48=1,AU49*AU48*1000+AU49,-1000000+AU49) -> -36036 | AW47: =IF(AW48=1,AW49*AW48*1000+AW49,-1000000+AW49) -> 267267 | AY47: =IF(AY48=1,AY49*AY48*1000+AY49,-1000000+AY49) -> 154154 | BA47: =IF(BA48=1,BA49*BA48*1000+BA49,-1000000+BA49) -> 207207 | BC47: =IF(BC48=1,BC49*BC48*1000+BC49,-1000000+BC49) -> -999999 | BE47: =IF(BE48=1,BE49*BE48*1000+BE49,-1000000+BE49) -> -1000003 | BG47: =IF(BG48=1,BG49*BG48*1000+BG49,-1000000+BG49) -> -13013
A48: Classificats | B48: =SUM(C48:AI48) -> 15 | C48: =IF(D49>=$A3/2,1,0) -> 1 | E48: =IF(F49>=$A3/2,1,0) -> 1 | G48: =IF(H49>=$A3/2,1,0) -> 1 | I48: =IF(J49>=$A3/2,1,0) -> 1 | K48: =IF(L49>=$A3/2,1,0) -> 1 | M48: =IF(N49>=$A3/2,1,0) -> 1 | O48: =IF(P49>=$A3/2,1,0) -> 1 | Q48: =IF(R49>=$A3/2,1,0) -> 1 | S48: =IF(T49>=$A3/2,1,0) -> 0 | U48: =IF(V49>=$A3/2,1,0) -> 1 | W48: =IF(X49>=$A3/2,1,0) -> 0 | Y48: =IF(Z49>=$A3/2,1,0) -> 1 | AA48: =IF(AB49>=$A3/2,1,0) -> 1 | AC48: =IF(AD49>=$A3/2,1,0) -> 1 | AE48: =IF(AF49>=$A3/2,1,0) -> 1 | AG48: =IF(AH49>=$A3/2,1,0) -> 1 | AI48: =IF(AJ49>=$A3/2,1,0) -> 1 | AK48: =IF(AL49>=$A3/2,1,0) -> 1 | AM48: =IF(AN49>=$A3/2,1,0) -> 1 | AO48: =IF(AP49>=$A3/2,1,0) -> 1 | AQ48: =IF(AR49>=$A3/2,1,0) -> 1 | AS48: =IF(AT49>=$A3/2,1,0) -> 1 | AU48: =IF(AV49>=$A3/2,1,0) -> 1 | AW48: =IF(AX49>=$A3/2,1,0) -> 1 | AY48: =IF(AZ49>=$A3/2,1,0) -> 1 | BA48: =IF(BB49>=$A3/2,1,0) -> 1 | BC48: =IF(BD49>=$A3/2,1,0) -> 0 | BE48: =IF(BF49>=$A3/2,1,0) -> 0 | BG48: =IF(BH49>=$A3/2,1,0) -> 1
C49: =IF(SUM(C54:C994)<-1000,-100000000,SUM(C54:C994)) -> -173 | D49: =COUNT(C65:C994)+SUM(D54:D64) -> 995 | E49: =IF(SUM(E54:E994)<-1000,-100000000,SUM(E54:E994)) -> -235 | F49: =COUNT(E65:E994)+SUM(F54:F64) -> 269 | G49: =IF(SUM(G54:G994)<-1000,-100000000,SUM(G54:G994)) -> 114 | H49: =COUNT(G65:G994)+SUM(H54:H64) -> 89 | I49: =IF(SUM(I54:I994)<-1000,-100000000,SUM(I54:I994)) -> -50 | J49: =COUNT(I65:I994)+SUM(J54:J64) -> 41 | K49: =IF(SUM(K54:K994)<-1000,-100000000,SUM(K54:K994)) -> -100000000 | L49: =COUNT(K65:K994)+SUM(L54:L64) -> 69 | M49: =IF(SUM(M54:M994)<-1000,-100000000,SUM(M54:M994)) -> -260 | N49: =COUNT(M65:M994)+SUM(N54:N64) -> 369 | O49: =IF(SUM(O54:O994)<-1000,-100000000,SUM(O54:O994)) -> 96 | P49: =COUNT(O65:O994)+SUM(P54:P64) -> 140 | Q49: =IF(SUM(Q54:Q994)<-1000,-100000000,SUM(Q54:Q994)) -> 1514 | R49: =COUNT(Q65:Q994)+SUM(R54:R64) -> 677 | S49: =IF(SUM(S54:S994)<-1000,-100000000,SUM(S54:S994)) -> -6 | T49: =COUNT(S65:S994)+SUM(T54:T64) -> 3 | U49: =IF(SUM(U54:U994)<-1000,-100000000,SUM(U54:U994)) -> -348 | V49: =COUNT(U65:U994)+SUM(V54:V64) -> 1007 | W49: =IF(SUM(W54:W994)<-1000,-100000000,SUM(W54:W994)) -> -1 | X49: =COUNT(W65:W994)+SUM(X54:X64) -> 1 | Y49: =IF(SUM(Y54:Y994)<-1000,-100000000,SUM(Y54:Y994)) -> 145 | Z49: =COUNT(Y65:Y994)+SUM(Z54:Z64) -> 390 | AA49: =IF(SUM(AA54:AA994)<-1000,-100000000,SUM(AA54:AA994)) -> -176 | AB49: =COUNT(AA65:AA994)+SUM(AB54:AB64) -> 510 | AC49: =IF(SUM(AC54:AC994)<-1000,-100000000,SUM(AC54:AC994)) -> -92 | AD49: =COUNT(AC65:AC994)+SUM(AD54:AD64) -> 49 | AE49: =IF(SUM(AE54:AE994)<-1000,-100000000,SUM(AE54:AE994)) -> 273 | AF49: =COUNT(AE65:AE994)+SUM(AF54:AF64) -> 1836 | AG49: =IF(SUM(AG54:AG994)<-1000,-100000000,SUM(AG54:AG994)) -> -399 | AH49: =COUNT(AG65:AG994)+SUM(AH54:AH64) -> 224 | AI49: =IF(SUM(AI54:AI994)<-1000,-100000000,SUM(AI54:AI994)) -> 156 | AJ49: =COUNT(AI65:AI994)+SUM(AJ54:AJ64) -> 446 | AK49: =IF(SUM(AK54:AK994)<-1000,-100000000,SUM(AK54:AK994)) -> 11 | AL49: =COUNT(AK65:AK994)+SUM(AL54:AL64) -> 28 | AM49: =IF(SUM(AM54:AM994)<-1000,-100000000,SUM(AM54:AM994)) -> -420 | AN49: =COUNT(AM65:AM994)+SUM(AN54:AN64) -> 768 | AO49: =IF(SUM(AO54:AO994)<-1000,-100000000,SUM(AO54:AO994)) -> 10 | AP49: =COUNT(AO65:AO994)+SUM(AP54:AP64) -> 31 | AQ49: =IF(SUM(AQ54:AQ994)<-1000,-100000000,SUM(AQ54:AQ994)) -> -1 | AR49: =COUNT(AQ65:AQ994)+SUM(AR54:AR64) -> 61 | AS49: =IF(SUM(AS54:AS994)<-1000,-100000000,SUM(AS54:AS994)) -> 42 | AT49: =COUNT(AS65:AS994)+SUM(AT54:AT64) -> 61 | AU49: =IF(SUM(AU54:AU994)<-1000,-100000000,SUM(AU54:AU994)) -> -36 | AV49: =COUNT(AU65:AU994)+SUM(AV54:AV64) -> 23 | AW49: =IF(SUM(AW54:AW994)<-1000,-100000000,SUM(AW54:AW994)) -> 267 | AX49: =COUNT(AW65:AW994)+SUM(AX54:AX64) -> 558 | AY49: =IF(SUM(AY54:AY994)<-1000,-100000000,SUM(AY54:AY994)) -> 154 | AZ49: =COUNT(AY65:AY994)+SUM(AZ54:AZ64) -> 192 | BA49: =IF(SUM(BA54:BA994)<-1000,-100000000,SUM(BA54:BA994)) -> 207 | BB49: =COUNT(BA65:BA994)+SUM(BB54:BB64) -> 387 | BC49: =IF(SUM(BC54:BC994)<-1000,-100000000,SUM(BC54:BC994)) -> 1 | BD49: =COUNT(BC65:BC994)+SUM(BD54:BD64) -> 1 | BE49: =IF(SUM(BE54:BE994)<-1000,-100000000,SUM(BE54:BE994)) -> -3 | BF49: =COUNT(BE65:BE994)+SUM(BF54:BF64) -> 1 | BG49: =IF(SUM(BG54:BG994)<-1000,-100000000,SUM(BG54:BG994)) -> -13 | BH49: =COUNT(BG65:BG994)+SUM(BH54:BH64) -> 12
D50: =IF(D49=0,0.0001,AVERAGE(D65:D909)) -> 187.5 | F50: =IF(F49=0,0.0001,AVERAGE(F65:F909)) -> 195.9411765 | H50: =IF(H49=0,0.0001,AVERAGE(H65:H909)) -> 232.8571429 | J50: =IF(J49=0,0.0001,AVERAGE(J65:J909)) -> 1 | L50: =IF(L49=0,0.0001,AVERAGE(L65:L909)) -> 194.8091787 | N50: =IF(N49=0,0.0001,AVERAGE(N65:N909)) -> 215.2631579 | P50: =IF(P49=0,0.0001,AVERAGE(P65:P909)) -> 230.952381 | R50: =IF(R49=0,0.0001,AVERAGE(R65:R909)) -> 282.1428571 | T50: =IF(T49=0,0.0001,AVERAGE(T65:T909)) -> 170 | V50: =IF(V49=0,0.0001,AVERAGE(V65:V909)) -> 226.4285714 | X50: =IF(X49=0,0.0001,AVERAGE(X65:X909)) -> 340 | Z50: =IF(Z49=0,0.0001,AVERAGE(Z65:Z909)) -> 181.5384615 | AB50: =IF(AB49=0,0.0001,AVERAGE(AB65:AB909)) -> 189.2307692 | AD50: =IF(AD49=0,0.0001,AVERAGE(AD65:AD909)) -> 124.5454545 | AF50: =IF(AF49=0,0.0001,AVERAGE(AF65:AF909)) -> 223.2352941 | AH50: =IF(AH49=0,0.0001,AVERAGE(AH65:AH909)) -> 170 | AJ50: =IF(AJ49=0,0.0001,AVERAGE(AJ65:AJ909)) -> 198.5625 | AL50: =IF(AL49=0,0.0001,AVERAGE(AL65:AL909)) -> 245.4166667 | AN50: =IF(AN49=0,0.0001,AVERAGE(AN65:AN909)) -> 158 | AP50: =IF(AP49=0,0.0001,AVERAGE(AP65:AP909)) -> 153.4 | AR50: =IF(AR49=0,0.0001,AVERAGE(AR65:AR909)) -> 1 | AT50: =IF(AT49=0,0.0001,AVERAGE(AT65:AT909)) -> 1 | AV50: =IF(AV49=0,0.0001,AVERAGE(AV65:AV909)) -> 1 | AX50: =IF(AX49=0,0.0001,AVERAGE(AX65:AX909)) -> 229 | AZ50: =IF(AZ49=0,0.0001,AVERAGE(AZ65:AZ909)) -> 1 | BB50: =IF(BB49=0,0.0001,AVERAGE(BB65:BB909)) -> 1 | BD50: =IF(BD49=0,0.0001,AVERAGE(BD65:BD909)) -> 125.5 | BF50: =IF(BF49=0,0.0001,AVERAGE(BF65:BF909)) -> 30.5 | BH50: =IF(BH49=0,0.0001,AVERAGE(BH65:BH909)) -> 169.1
BI51: =MAX(BJ54:BJ1075) -> 110
B52: Comentaris | C52: Manolo | E52: Ana B | G52: Jordi | I52: Lleixà | K52: Cyber X | M52: Goretti | O52: Sergi | Q52: Carles | S52: Mariajo | U52: Grau | W52: Caty | Y52: Marina | AA52: Tito | AC52: Nin | AE52: Alfred | AG52: Nancy | AI52: Jeff | AK52: Núria | AM52: Gemma | AO52: Sebas | AQ52: Lluïsa | AS52: Xavier | AU52: Eito | AW52: Tim | AY52: Debi | BA52: Mario | BC52: Òscar | BE52: Christophe | BG52: Nogué | BI52: =COUNT(BI54:BI909) -> 90 | BJ52: A | BK52: B | BL52: C | BM52: cyberX2 | BN52: =SUM(BN54:BN909) -> 7.333333333
C53: Premi | D53: Punts | E53: Premi | F53: Punts | G53: Premi | H53: Punts | I53: Premi | J53: Punts | K53: Premi | L53: Punts | M53: Premi | N53: Punts | O53: Premi | P53: Punts | Q53: Premi | R53: Punts | S53: Premi | T53: Punts | U53: Premi | V53: Punts | W53: Premi | X53: Punts | Y53: Premi | Z53: Punts | AA53: Premi | AB53: Punts | AC53: Premi | AD53: Punts | AE53: Premi | AF53: Punts | AG53: Premi | AH53: Punts | AI53: Premi | AJ53: Punts | AK53: Premi | AL53: Punts | AM53: Premi | AN53: Punts | AO53: Premi | AP53: Punts | AQ53: Premi | AR53: Punts | AS53: Premi | AT53: Punts | AU53: Premi | AV53: Punts | AW53: Premi | AX53: Punts | AY53: Premi | AZ53: Punts | BA53: Premi | BB53: Punts | BC53: Premi | BD53: Punts | BE53: Premi | BF53: Punts | BG53: Premi | BH53: Punts | BI53: Data | BJ53: Timba | BN53: Excés cyber
A54: 1 | B54: 2021-12-01 | C54: -41 | D54: 76 | E54: -13 | F54: 14 | G54: 14 | H54: 7 | M54: -45 | N54: 66 | O54: 89 | P54: 102 | Q54: 245 | R54: 103 | U54: -101 | V54: 111 | Y54: 95 | Z54: 74 | AA54: -44 | AB54: 76 | AC54: -8 | AD54: 8 | AE54: 26 | AF54: 166 | AG54: 9 | AH54: 3 | AI54: -1 | AJ54: 61 | AM54: -30 | AN54: 17 | AO54: 0 | AP54: 3 | AW54: 66 | AX54: 124
A55: =+A54+1 -> 2 | B55: 2022-01-01 | C55: 50 | D55: 242 | E55: -12 | F55: 14 | G55: 17 | H55: 12 | I55: 1 | J55: 6 | M55: -12 | N55: 19 | O55: 5 | P55: 8 | Q55: 219 | R55: 87 | U55: -77 | V55: 71 | Y55: -14 | Z55: 62 | AA55: -56 | AB55: 41 | AC55: -7 | AD55: 3 | AE55: 38 | AF55: 235 | AG55: 1 | AH55: 5 | AI55: 23 | AJ55: 55 | AK55: -7 | AL55: 8 | AM55: -91 | AN55: 136 | AO55: -8 | AP55: 9 | AQ55: -4 | AR55: 9 | AS55: 14 | AT55: 9 | AW55: 11 | AX55: 43 | BG55: -8 | BH55: 3
A56: =+A55+1 -> 3 | B56: 2022-02-01 | C56: -67 | D56: 112 | E56: -15 | F56: 23 | G56: 17 | H56: 10 | I56: -5 | J56: 7 | M56: -24 | N56: 24 | O56: -8 | P56: 8 | Q56: 133 | R56: 65 | U56: -23 | V56: 142 | Y56: 2 | Z56: 22 | AA56: 1 | AB56: 46 | AC56: -10 | AD56: 4 | AE56: 111 | AF56: 212 | AI56: 18 | AJ56: 29 | AK56: 6 | AL56: 4 | AM56: -123 | AN56: 173 | AQ56: -1 | AR56: 10 | AS56: -7 | AT56: 10 | AW56: 11 | AX56: 41
A57: 4 | B57: 2022-03-01 | C57: -28 | D57: 94 | E57: -77 | F57: 48 | G57: 13 | H57: 11 | I57: -22 | J57: 6 | M57: 6 | N57: 22 | Q57: 144 | R57: 63 | U57: 14 | V57: 173 | Y57: -2 | Z57: 33 | AA57: -28 | AB57: 55 | AE57: 71 | AF57: 154 | AI57: -14 | AJ57: 28 | AM57: -6 | AN57: 94 | AQ57: 1 | AR57: 11 | AS57: 21 | AT57: 10 | AU57: -4 | AV57: 5 | AW57: 36 | AX57: 40
A58: 5 | B58: 2022-04-01 | C58: -3 | D58: 65 | E58: -35 | F58: 47 | G58: 7 | H58: 4 | I58: -7 | J58: 4 | M58: -43 | N58: 42 | Q58: 186 | R58: 74 | U58: -55 | V58: 111 | Y58: 18 | Z58: 45 | AA58: -22 | AB58: 63 | AC58: -25 | AD58: 14 | AE58: 15 | AF58: 181 | AG58: -11 | AH58: 10 | AI58: 51 | AJ58: 52 | AM58: -39 | AN58: 51 | AO58: 9 | AP58: 4 | AQ58: -5 | AR58: 1 | AS58: 8 | AT58: 2 | AU58: -8 | AV58: 4 | AW58: 16 | AX58: 40
A59: 6 | B59: 2022-05-01 | C59: -12 | D59: 102 | E59: -42 | F59: 39 | G59: -3 | H59: 5 | I59: 5 | J59: 4 | M59: -29 | N59: 30 | Q59: 147 | R59: 50 | U59: -42 | V59: 94 | Y59: 8 | Z59: 27 | AA59: 29 | AB59: 70 | AC59: -6 | AD59: 2 | AE59: 36 | AF59: 195 | AG59: -65 | AH59: 33 | AI59: 17 | AJ59: 50 | AM59: -14 | AN59: 76 | AQ59: 10 | AR59: 4 | AS59: 0 | AT59: 4 | AU59: -6 | AV59: 3 | AW59: 35 | AX59: 40
A60: 7 | B60: 2022-06-01 | C60: -21 | D60: 104 | E60: -9 | F60: 27 | G60: 14 | H60: 9 | I60: -2 | J60: 2 | M60: -32 | N60: 22 | Q60: 100 | R60: 47 | U60: 13 | V60: 113 | Y60: 13 | Z60: 10 | AA60: 10 | AB60: 31 | AE60: -19 | AF60: 162 | AG60: -39 | AH60: 16 | AI60: 19 | AJ60: 25 | AM60: 9 | AN60: 41 | AQ60: -18 | AR60: 9 | AS60: 11 | AT60: 9 | AU60: 2 | AV60: 2 | AW60: 33 | AX60: 42
A61: 8 | B61: 2022-07-01 | C61: -5 | D61: 101 | E61: -7 | F61: 11 | G61: 5 | H61: 4 | I61: -8 | J61: 4 | M61: -17 | N61: 41 | Q61: 115 | R61: 75 | U61: -60 | V61: 83 | Y61: 4 | Z61: 39 | AA61: -28 | AB61: 37 | AE61: -24 | AF61: 179 | AG61: -110 | AH61: 37 | AI61: 37 | AJ61: 64 | AM61: -79 | AN61: 80 | AQ61: 3 | AR61: 4 | AS61: 6 | AT61: 4 | AU61: -5 | AV61: 1 | AW61: 39 | AX61: 84
A62: 9 | B62: 2022-08-01 | C62: 1 | D62: 56 | E62: 0 | F62: 2 | G62: 16 | H62: 7 | I62: -5 | J62: 2 | M62: -24 | N62: 44 | O62: 5 | P62: 1 | Q62: 38 | R62: 35 | U62: -18 | V62: 29 | Y62: 24 | Z62: 45 | AA62: 12 | AB62: 35 | AE62: 7 | AF62: 169 | AG62: -66 | AH62: 47 | AI62: -2 | AJ62: 30 | AM62: -2 | AN62: 24 | AO62: 15 | AP62: 5 | AQ62: -8 | AR62: 7 | AS62: -13 | AT62: 7 | AU62: -7 | AV62: 3 | AW62: 10 | AX62: 40 | AY62: 73 | AZ62: 115 | BA62: 48 | BB62: 176
A63: =+A62+1 -> 10 | B63: 2022-09-01 | C63: -19 | D63: 19 | E63: -1 | F63: 10 | G63: 2 | H63: 6 | I63: -7 | J63: 6 | M63: -30 | N63: 40 | Q63: 105 | R63: 43 | U63: -1 | V63: 38 | Y63: -12 | Z63: 20 | AA63: -37 | AB63: 43 | AC63: -1 | AD63: 7 | AE63: 4 | AF63: 166 | AG63: -119 | AH63: 72 | AI63: -2 | AJ63: 36 | AK63: 4 | AL63: 4 | AM63: -34 | AN63: 66 | AQ63: 21 | AR63: 6 | AS63: 2 | AT63: 6 | AU63: -8 | AV63: 5 | AW63: 11 | AX63: 54 | AY63: 81 | AZ63: 77 | BA63: 159 | BB63: 211
A64: 11 | B64: 2022-10-01 | K64: -10000
A65: 12 | E65: 0 | F65: 230 | J65: 1 | K65: -2 | L65: 155 | AA65: -4 | AB65: 80 | AE65: 2 | AF65: 245 | AR65: 1 | AT65: 1 | AV65: 1 | AW65: 4 | AX65: 315 | AZ65: 1 | BB65: 1 | BD65: 1 | BF65: 1 | BH65: 1 | BI65: 2021-10-01 | BJ65: 1 | BK65: =+AI65+AE65+Y65+W65+U65+S65+Q65+O65+M65+I65+G65+E65+C65+AG65+K65+BG65+BN65+AA65+AC65+AK65+AM65+AO65+AW65+BE65+BC65 -> 0 | BL65: =COUNT(C65:BH65)/2 -> 9.5
A66: 13 | E66: -1 | F66: 150 | K66: 1 | L66: 195 | M66: 1 | N66: 170 | U66: -5 | V66: 90 | AE66: 3 | AF66: 210 | BI66: 2021-10-01 | BJ66: 1 | BK66: 0 | BL66: 5 | BM66: =+BK66/BL66 -> 0 | BN66: =+K66 -> 1
A67: 14 | E67: -2 | F67: 180 | K67: -0.5 | L67: 195 | M67: 3 | N67: 230 | U67: 5 | V67: 290 | AM67: -5 | AN67: 120 | BI67: 2021-10-01 | BJ67: 1 | BK67: 0 | BL67: 5 | BM67: 0 | BN67: =+K67 -> -0.5
A68: 15 | E68: -2 | F68: 280 | K68: -2 | L68: 265 | M68: 4 | N68: 320 | U68: 2 | V68: 300 | BI68: 2021-10-01 | BJ68: 1 | BK68: 0 | BL68: 4 | BM68: 0 | BN68: =+K68 -> -2
A69: 16 | K69: -1 | L69: 240 | M69: -3 | N69: 140 | U69: 1 | V69: 330 | AE69: 3 | AF69: 400 | BI69: 2021-10-03 | BJ69: 2 | BK69: 0 | BL69: 4
A70: 17 | K70: =4/3 -> 1.333333333 | L70: 210 | M70: -1 | N70: 190 | U70: -4 | V70: 140 | AE70: 1 | AF70: 200 | BI70: 2021-10-03 | BJ70: 2 | BK70: -4.440892099e-16 | BL70: 4 | BM70: =+BK70/BL70 -> -1.110223025e-16 | BN70: =+K70*2 -> 2.666666667
A71: 18 | E71: -5 | F71: 120 | K71: -1 | L71: 172.5 | O71: 3 | P71: 195 | Q71: 5 | R71: 285 | U71: -1 | V71: 165 | BI71: 2021-10-03 | BJ71: 2 | BK71: 0 | BL71: 5 | BM71: 0 | BN71: =+K71 -> -1
A72: 19 | C72: -3 | D72: 125 | E72: -1 | F72: 160 | K72: -1 | L72: 175 | Q72: 5 | R72: 330 | U72: 1 | V72: 250 | BI72: 2021-10-03 | BJ72: 2 | BK72: 0 | BL72: 5 | BM72: 0 | BN72: =+K72 -> -1
A73: 20 | E73: -1 | F73: 190 | K73: -2.5 | L73: 175 | Q73: 4 | R73: 280 | U73: 2 | V73: 270 | BI73: 2021-10-03 | BJ73: 2 | BK73: 0 | BL73: 4 | BM73: 0 | BN73: =+K73 -> -2.5
A74: 21 | B74: Valor deduit | E74: -1 | F74: 155 | K74: 1 | L74: 195 | U74: -3 | V74: 150 | AG74: 1 | AH74: 170 | BI74: 2021-10-05 | BJ74: 3 | BK74: 0 | BL74: 4 | BM74: 0 | BN74: =+K74*2 -> 2 | BO74: Criteri cyber fa 2, associo al anterior=195; Anna per mitjana; Nancy interpolant Ana i Cy i Cata interpolant els seu -2 i el -8
A75: 22 | E75: -2 | F75: 170 | M75: 0 | N75: 460 | U75: 2 | V75: 510 | BI75: 2021-10-16 | BJ75: 6 | BK75: 0 | BL75: 3
A76: 23 | E76: 5 | F76: 230 | K76: 0 | L76: 175 | M76: 1 | N76: 190 | O76: -1 | P76: 150 | U76: -5 | V76: 70 | BI76: 2021-10-17 | BJ76: 7 | BK76: 0 | BL76: 5 | BM76: =+BK76/BL76 -> 0 | BN76: =+K76 -> 0
A77: 24 | E77: 3 | F77: 250 | K77: 1900-01-01 | L77: 200 | M77: -3 | N77: 140 | Q77: -3 | R77: 140 | U77: 1 | V77: 210 | BI77: 2021-10-17 | BJ77: 7 | BK77: 0 | BL77: 5 | BM77: 0 | BN77: =+K77 -> 1
A78: 25 | E78: -2 | F78: 150 | K78: =-5/3 -> -1.666666667 | L78: 165 | Q78: 5 | R78: 285 | U78: 2 | V78: 215 | BI78: 2021-10-17 | BJ78: 7 | BK78: -4.440892099e-16 | BL78: 4 | BM78: -1.110223025e-16 | BN78: =+K78*2 -> -3.333333333
A79: 26 | E79: -5 | F79: 160 | K79: 3 | L79: 283.3333333 | O79: -3 | P79: 205 | U79: -1 | V79: 235 | BI79: 2021-10-17 | BJ79: 7 | BK79: 0 | BL79: 4 | BM79: 0 | BN79: =+K79*2 -> 6
A80: 27 | K80: =7/3 -> 2.333333333 | L80: 210 | M80: 1 | N80: 190 | O80: -5 | P80: 130 | AO80: -3 | AP80: 14 | BI80: 2021-10-17 | BJ80: 7 | BK80: 4.440892099e-16 | BL80: 4 | BM80: 1.110223025e-16 | BN80: 4.666666667
A81: 28 | K81: =2/3 -> 0.6666666667 | L81: 193.3333333 | O81: -3 | P81: 75 | Y81: -1 | Z81: 160 | AE81: 2 | AF81: 230 | BI81: 2021-10-19 | BJ81: 8 | BK81: -2.220446049e-16 | BL81: 4 | BM81: -5.551115123e-17 | BN81: 1.333333333
A82: 29 | E82: -5 | F82: 225 | K82: 1 | L82: 233.3333333 | O82: 3 | P82: 245 | U82: -1 | V82: 225 | BI82: 2021-10-21 | BJ82: 9 | BK82: 0 | BL82: 4 | BM82: 0 | BN82: 2
A83: 30 | E83: -5 | F83: 80 | K83: =5/3 -> 1.666666667 | L83: 195 | O83: 1 | P83: 170 | U83: -1 | V83: 150 | BI83: 2021-10-22 | BJ83: 10 | BK83: 4.440892099e-16 | BL83: 4 | BM83: 1.110223025e-16 | BN83: 3.333333333
A84: 31 | E84: 1 | F84: 200 | K84: -3 | L84: 140 | U84: 5 | V84: 300 | AI84: 3 | AJ84: 225 | BI84: 2021-10-22 | BJ84: 10 | BK84: 0 | BL84: 4 | BM84: 0 | BN84: -6
A85: 32 | K85: -3 | L85: 170 | Y85: 0 | Z85: 220 | AE85: 4 | AF85: 320 | AI85: 2 | AJ85: 250 | BI85: 2021-10-24 | BJ85: 11 | BK85: 0 | BL85: 4 | BM85: 0 | BN85: =+K85 -> -3
A86: 33 | K86: 0 | L86: 180 | O86: 4 | P86: 220 | U86: -3 | V86: 170 | AI86: -1 | AJ86: 175 | BI86: 2021-10-24 | BJ86: 11 | BK86: 0 | BL86: 4 | BM86: =+BK86/BL86 -> 0 | BN86: =+K86*2 -> 0
A87: 34 | K87: =5/3 -> 1.666666667 | L87: 211.6666667 | U87: -5 | V87: 100 | Y87: 1 | Z87: 195 | AI87: -1 | AJ87: 190 | BI87: 2021-10-30 | BJ87: 13 | BK87: 4.440892099e-16 | BL87: 4 | BM87: =+BK87/BL87 -> 1.110223025e-16 | BN87: =+K87*2 -> 3.333333333
A88: 35 | E88: -1 | F88: 230 | K88: 1 | L88: 1 | M88: 3 | N88: 520 | U88: -3 | V88: 210 | BI88: 2021-10-31 | BJ88: 14 | BK88: 0 | BL88: 4
A89: 36 | K89: -1 | L89: 211.6666667 | Q89: 5 | R89: 245 | Y89: 3 | Z89: 235 | AI89: -5 | AJ89: 145 | BI89: 2021-10-31 | BJ89: 14 | BK89: 0 | BL89: 4 | BM89: =+BK89/BL89 -> 0 | BN89: =+K89*2 -> -2
A90: 37 | E90: -5 | F90: 75 | K90: 0 | L90: 170 | Q90: -2 | R90: 90 | Y90: 5 | Z90: 190 | AI90: 2 | AJ90: 180 | BI90: 2021-10-31 | BJ90: 14 | BK90: 0 | BL90: 5 | BM90: =+BK90/BL90 -> 0 | BN90: =+K90 -> 0
A91: 38 | K91: -1 | L91: 170 | O91: -2 | P91: 220 | Q91: 4 | R91: 410 | U91: 0 | V91: 230 | BI91: 2021-10-31 | BJ91: 14 | BK91: 0 | BL91: 4 | BM91: 0 | BN91: -1
A92: 39 | E92: -1 | F92: 222 | K92: =-3/2 -> -1.5 | L92: 170 | O92: 5 | P92: 255 | Q92: -3 | R92: 155 | AI92: 2 | AJ92: 225 | BI92: 2021-10-31 | BJ92: 14 | BK92: 0 | BL92: 5 | BM92: 0 | BN92: -1.5
A93: 40 | E93: 3 | F93: 250 | K93: -3 | L93: =+(120+100+150)/3 -> 123.3333333 | U93: 1 | V93: 200 | AA93: 5 | AB93: 260 | BI93: 2021-11-01 | BJ93: 15 | BK93: 0 | BL93: 4 | BM93: =+BK93/BL93 -> 0 | BN93: =+K93*2 -> -6
A94: 41 | K94: -1 | L94: =+(170+170)/2 -> 170 | O94: 2 | P94: 360 | Q94: 4 | R94: 425 | U94: -4 | V94: 180 | BI94: 2021-11-01 | BJ94: 15 | BK94: 0 | BL94: 4 | BM94: =+BK94/BL94 -> 0 | BN94: =+K94 -> -1
A95: 42 | E95: 1 | F95: 145 | K95: =+(6-6)/2 -> 0 | L95: 170 | O95: 5 | P95: 260 | U95: -5 | V95: 105 | AW95: -1 | AX95: 135 | BI95: 2021-11-01 | BJ95: 15 | BK95: 0 | BL95: =COUNT(C95:BH95)/2 -> 5 | BM95: 0 | BN95: 0
A96: 43 | K96: =4/3 -> 1.333333333 | L96: =+(250+280+105)/3 -> 211.6666667 | Q96: -1 | R96: 200 | AA96: 1 | AB96: 240 | AE96: -4 | AF96: 160 | BI96: 2021-11-01 | BJ96: 15 | BK96: -4.440892099e-16 | BL96: =COUNT(C96:BH96)/2 -> 4 | BM96: =+BK96/BL96 -> -1.110223025e-16 | BN96: =+K96*2 -> 2.666666667
A97: 44 | C97: -4 | D97: 110 | K97: 1 | L97: =+(210+220+250)/3 -> 226.6666667 | Q97: 5 | R97: 310 | AC97: -4 | AD97: 110 | BI97: 2021-11-04 | BJ97: 16 | BK97: 0 | BL97: =COUNT(C97:BH97)/2 -> 4 | BM97: =+BK97/BL97 -> 0 | BN97: =+K97*2 -> 2
A98: 45 | C98: 3 | D98: 200 | K98: -1 | L98: =+(160+140)/2 -> 150 | Q98: 5 | R98: 230 | AA98: -1 | AB98: 150 | AC98: -5 | AD98: 100 | BI98: 2021-11-04 | BJ98: 16 | BK98: 0 | BL98: 5 | BM98: 0 | BN98: =+K98 -> -1
A99: =+A98+1 -> 46 | K99: =-1/3 -> -0.3333333333 | L99: =+(160+160+220)/3 -> 180 | Q99: 5 | R99: 310 | AA99: -5 | AB99: 120 | AC99: 1 | AD99: 170 | BI99: 2021-11-04 | BJ99: 16 | BK99: 0 | BL99: 4 | BM99: 0 | BN99: =+K99*2 -> -0.6666666667
A100: 47 | C100: 2 | D100: 290 | K100: -2 | L100: =+(260+60)/2 -> 160 | Q100: 4 | R100: 300 | AC100: -2 | AD100: 170 | BI100: 2021-11-06 | BJ100: 17 | BK100: 0 | BL100: 4 | BM100: 0 | BN100: =+K100 -> -2
A101: 48 | C101: -1 | D101: 140 | K101: =1/3 -> 0.3333333333 | L101: =+(110+220+170)/3 -> 166.6666667 | Q101: 5 | R101: 270 | AC101: -5 | AD101: 30 | BI101: 2021-11-06 | BJ101: 17 | BK101: 0 | BL101: 4 | BM101: 0 | BN101: =+K101*2 -> 0.6666666667
A102: 49 | C102: -1 | D102: 200 | K102: =-7/3 -> -2.333333333 | L102: =+(130+210+100)/3 -> 146.6666667 | M102: 3 | N102: 240 | U102: 5 | V102: 280 | BI102: 2021-11-07 | BJ102: 18 | BK102: -8.881784197e-16 | BL102: 4 | BM102: -2.220446049e-16 | BN102: -4.666666667
A103: 50 | E103: 3 | F103: 230 | K103: =1/3 -> 0.3333333333 | L103: =+(230+130+230)/3 -> 196.6666667 | O103: -1 | P103: 210 | AA103: -3 | AB103: 190 | BI103: 2021-11-08 | BJ103: 19 | BK103: 0 | BL103: 4 | BM103: 0 | BN103: 0.6666666667
A104: 51 | K104: =1/3 -> 0.3333333333 | L104: =+(245+185+165)/3 -> 198.3333333 | O104: -3 | P104: 170 | Q104: 3 | R104: 210 | AE104: -1 | AF104: 180 | BI104: 2021-11-10 | BJ104: 20 | BK104: -1.110223025e-16 | BL104: 4 | BM104: -2.775557562e-17 | BN104: 0.6666666667
A105: 52 | C105: 1 | D105: 180 | K105: -1 | L105: =+(280+100+140)/3 -> 173.3333333 | Q105: 3 | R105: 200 | AW105: -1 | AX105: 160 | BI105: 2021-11-12 | BJ105: 21 | BK105: 0 | BL105: 4 | BM105: 0 | BN105: -2
A106: 53 | K106: =4/3 -> 1.333333333 | L106: =+(260+310+180)/3 -> 250 | Q106: 1 | R106: 240 | AA106: -1 | AB106: 200 | AC106: -4 | AD106: 180 | BI106: 2021-11-12 | BJ106: 21 | BK106: 0 | BL106: 4 | BM106: 0 | BN106: 2.666666667
A107: 54 | C107: -1 | D107: 265 | Q107: 3 | R107: 470 | AA107: -3 | AB107: 170 | AC107: 1 | AD107: 270 | BI107: 2021-11-13 | BJ107: 22 | BK107: 0 | BL107: 4
A108: 55 | C108: 2 | D108: 265 | K108: =5/2 -> 2.5 | L108: =+(315+245)/2 -> 280 | Q108: 1 | R108: 250 | AC108: -5 | AD108: 100 | AE108: -3 | AF108: 185 | BI108: 2021-11-13 | BJ108: 22 | BK108: 0 | BL108: 5 | BM108: =+BK108/BL108 -> 0 | BN108: =+K108 -> 2.5
A109: 56 | C109: 1 | D109: 210 | E109: -3 | F109: 130 | K109: -1 | L109: 170 | U109: 3 | V109: 310 | BI109: 2021-11-14 | BJ109: 23 | BK109: 0 | BL109: 4
A110: 57 | C110: -3 | D110: 110 | K110: 0 | L110: =+(260+80)/2 -> 170 | M110: 1 | N110: 220 | U110: -1 | V110: 140 | AA110: 3 | AB110: 230 | BI110: 2021-11-15 | BJ110: 24 | BK110: 0 | BL110: 5 | BM110: =+BK110/BL110 -> 0 | BN110: =+K110 -> 0
A111: 58 | C111: -1 | D111: 125 | K111: 1 | L111: 250 | Q111: 3 | R111: 370 | AC111: -3 | AD111: 90 | BI111: 2021-11-15 | BJ111: 24 | BK111: 0 | BL111: 4
A112: 59 | K112: =-1/2 -> -0.5 | L112: =+(305+320)/2 -> 312.5 | U112: 4 | V112: 330 | AE112: 1 | AF112: 320 | AW112: -4 | AX112: 255 | BI112: 2021-11-16 | BJ112: 25 | BK112: 0 | BL112: 4 | BM112: =+BK112/BL112 -> 0 | BN112: =+K112 -> -0.5
A113: 60 | C113: -3 | D113: 200 | K113: =1/3 -> 0.3333333333 | L113: =+(220+200+210)/3 -> 210 | M113: -3 | N113: 200 | U113: 5 | V113: 250 | BI113: 2021-11-16 | BJ113: 25 | BK113: -1.110223025e-16 | BL113: 4 | BM113: -2.775557562e-17 | BN113: =+K113*2 -> 0.6666666667
A114: 61 | C114: 0 | D114: 200 | E114: 4 | F114: 285 | K114: =-6/2 -> -3 | L114: =+(260+80)/2 -> 170 | U114: 2 | V114: 260 | BI114: 2021-11-16 | BJ114: 25 | BK114: 0 | BL114: 4 | BM114: 0 | BN114: =+K114 -> -3
A115: 62 | C115: -5 | D115: 160 | K115: =5/3 -> 1.666666667 | L115: 236.6666667 | U115: 0 | V115: 220 | AW115: 0 | AX115: 220 | BI115: 2021-11-18 | BJ115: 26 | BK115: 4.440892099e-16 | BL115: 4 | BM115: 2.22045e-16 | BN115: =+K115*2 -> 3.333333333
A116: 63 | K116: =-5/3 -> -1.666666667 | L116: 143.3333333 | Q116: -1 | R116: 230 | Y116: 3 | Z116: 250 | AI116: 3 | AJ116: 250 | BI116: 2021-11-19 | BJ116: 27 | BK116: -4.440892099e-16 | BL116: 4 | BM116: -2.22045e-16 | BN116: =+K116*2 -> -3.333333333
A117: 64 | C117: -1 | D117: 230 | E117: -2 | F117: 150 | G117: 1 | H117: 350 | M117: 0 | N117: 170 | O117: 3 | P117: 570 | S117: -4 | T117: 0 | U117: 2 | V117: 310 | AK117: 4 | AL117: 320 | AO117: -3 | AP117: 160 | BI117: 2021-11-20 | BJ117: 28 | BK117: 0 | BL117: =COUNT(C117:BH117)/2 -> 9
A118: 65 | C118: -1 | D118: 150 | K118: =1/3 -> 0.3333333333 | L118: =+(190+130+200)/3 -> 173.3333333 | Q118: 5 | R118: 230 | AE118: -5 | AF118: 120 | BI118: 2021-11-20 | BJ118: 29 | BK118: -1.110223025e-16 | BL118: 4 | BM118: =+BK118/BL118 -> -2.775557562e-17 | BN118: =+K118*2 -> 0.6666666667
A119: 66 | K119: =1/3 -> 0.3333333333 | L119: =+(160+130+270)/3 -> 186.6666667 | Q119: 3 | R119: 260 | AC119: -5 | AD119: 40 | AE119: 1 | AF119: 250 | BI119: 2021-11-21 | BJ119: 30 | BK119: 0 | BL119: 4 | BM119: 0 | BN119: =+K119*2 -> 0.6666666667
A120: 67 | K120: =9/3 -> 3 | L120: =+(260+240+280)/3 -> 260 | M120: -5 | N120: 150 | O120: -2 | P120: 200 | AA120: -2 | AB120: 200 | BI120: 2021-11-22 | BJ120: 31 | BK120: 0 | BL120: 4 | BM120: 0 | BN120: =+K120*2 -> 6
A121: 68 | C121: -2 | D121: 240 | K121: =2/3 -> 0.6666666667 | L121: =+(240+250+250)/3 -> 246.6666667 | M121: -5 | N121: 110 | O121: 5 | P121: 290 | BI121: 2021-11-22 | BJ121: 31 | BK121: -2.220446049e-16 | BL121: 4 | BM121: -5.551115123e-17 | BN121: =+K121*2 -> 1.333333333
A122: 69 | C122: 4 | D122: 230 | K122: =-1/3 -> -0.3333333333 | L122: =+(110+140+230)/3 -> 160 | M122: -4 | N122: 60 | AW122: 1 | AX122: 210 | BI122: 2021-11-22 | BJ122: 31 | BK122: 0 | BL122: 4 | BM122: 0 | BN122: =+K122*2 -> -0.6666666667
A123: 70 | K123: =4/2 -> 2 | L123: =+(260+315)/2 -> 287.5 | Y123: -2 | Z123: 230 | AI123: 2 | AJ123: 312 | AW123: -4 | AX123: 220 | BI123: 2021-11-22 | BJ123: 32 | BK123: 0 | BL123: 4 | BM123: 0 | BN123: =+K123 -> 2
A124: 71 | K124: =-4/2 -> -2 | L124: =+(170+165)/2 -> 167.5 | Q124: 5 | R124: 290 | Y124: 3 | Z124: 200 | AE124: -5 | AF124: 120 | AI124: 1 | AJ124: 190 | BI124: 2021-11-22 | BJ124: 32 | BK124: 0 | BL124: 5 | BM124: 0 | BN124: =+K124 -> -2
A125: 72 | K125: =-5/3 -> -1.666666667 | L125: =+(115+235+90)/3 -> 146.6666667 | Q125: 1 | R125: 220 | AE125: -1 | AF125: 195 | AI125: 5 | AJ125: 255 | BI125: 2021-11-22 | BJ125: 32 | BK125: -4.440892099e-16 | BL125: 4 | BM125: -1.110223025e-16 | BN125: =+K125*2 -> -3.333333333
A126: =+A125+1 -> 73 | E126: -1 | F126: 365 | K126: 3 | L126: 415 | U126: 1 | V126: 410 | AW126: -3 | AX126: 350 | BI126: 2021-11-24 | BJ126: 33 | BK126: 0 | BL126: 4
A127: 74 | C127: -3 | D127: 150 | E127: 1 | F127: 190 | K127: =-1/3 -> -0.3333333333 | L127: =+(170+140+260)/3 -> 190 | U127: 3 | V127: 240 | BI127: 2021-11-24 | BJ127: 33 | BK127: 1.110223025e-16 | BL127: 4 | BM127: =+BK127/BL127 -> 2.775557562e-17 | BN127: =+K127*2 -> -0.6666666667
A128: 75 | E128: 2 | F128: 240 | K128: =-9/3 -> -3 | L128: =+(165+210+85)/3 -> 153.3333333 | U128: 2 | V128: 240 | AE128: 5 | AF128: 250 | BI128: 2021-11-24 | BJ128: 33 | BK128: 0 | BL128: =COUNT(C128:BH128)/2 -> 4 | BM128: 0 | BN128: -6
A129: 76 | C129: -5 | D129: 80 | K129: =7/3 -> 2.333333333 | L129: =+(160+200+220)/3 -> 193.3333333 | M129: -3 | N129: 130 | U129: 1 | V129: 170 | BI129: 2021-11-25 | BJ129: 34 | BK129: =+AI129+AE129+Y129+W129+U129+S129+Q129+O129+M129+I129+G129+E129+C129+AG129+K129+BG129+BN129+AA129+AC129+AK129+AM129+AO129+AW129+BE129+BC129 -> 8.881784197e-16 | BL129: =COUNT(C129:BH129)/2 -> 4 | BM129: 2.220446049e-16 | BN129: 4.666666667
A130: 77 | C130: -3 | D130: 170 | E130: 1 | F130: 220 | K130: =3/3 -> 1 | L130: =+(320+270+40)/3 -> 210 | U130: -1 | V130: 190 | BI130: 2021-11-25 | BJ130: 34 | BK130: 0 | BL130: =COUNT(C130:BH130)/2 -> 4 | BM130: 0 | BN130: 2
A131: 78 | E131: -1 | F131: 185 | K131: =-3/2 -> -1.5 | L131: =+(205+115)/2 -> 160 | O131: -3 | P131: 160 | U131: 2 | V131: 205 | AW131: 5 | AX131: 265 | BI131: 2021-11-29 | BJ131: 36 | BK131: 0 | BL131: 5 | BM131: 0 | BN131: =+K131 -> -1.5
A132: 79 | E132: 0 | F132: 140 | K132: 4 | L132: 165 | U132: -4 | V132: 125 | AK132: -2 | AL132: 135 | AW132: 2 | AX132: 160 | BI132: 2021-11-29 | BJ132: 36 | BK132: 0 | BL132: 5
A133: 80 | K133: =4/3 -> 1.333333333 | L133: =+(190+220+200)/3 -> 203.3333333 | Q133: -3 | R133: 170 | AA133: -5 | AB133: 120 | AE133: 4 | AF133: 220 | BI133: 2021-11-29 | BJ133: 37 | BK133: 0 | BL133: 4 | BM133: =+BK133/BL133 -> 0 | BN133: =+K133*2 -> 2.666666667
A134: 81 | K134: -5 | L134: 80 | Q134: 3 | R134: 220 | Y134: -1 | Z134: 160 | AA134: 5 | AB134: 230 | AE134: 1 | AF134: 190 | AI134: -3 | AJ134: 120 | BI134: 2021-11-29 | BJ134: 37 | BK134: 0 | BL134: 6
A135: 82 | E135: 4 | F135: 340 | K135: =2/2 -> 1 | L135: =+(225+260)/2 -> 242.5 | O135: -2 | P135: 195 | U135: -4 | V135: 170 | BI135: 2021-11-30 | BJ135: 38 | BK135: 0 | BL135: 4 | BM135: =+BK135/BL135 -> 0 | BN135: =+K135 -> 1
A136: 83 | E136: -5 | F136: 145 | K136: =8/3 -> 2.666666667 | L136: =+(285+280+270)/3 -> 278.3333333 | O136: -2 | P136: 220 | U136: -1 | V136: 245 | BI136: 2021-11-30 | BJ136: 38 | BK136: -8.881784197e-16 | BL136: 4 | BM136: -2.220446049e-16 | BN136: =+K136*2 -> 5.333333333
A137: 84 | B137: Camelot | G137: -2 | H137: 100 | AM137: 2 | AN137: 250 | AO137: 0 | AP137: 140 | BI137: 2022-07-07 | BJ137: 79 | BK137: 0 | BL137: 3
A138: 85 | B138: Camelot | G138: 2 | H138: 250 | AM138: -1 | AN138: 170 | AO138: -1 | AP138: 170 | BI138: 2022-07-07 | BJ138: 79 | BK138: 0 | BL138: 3
A139: 86 | B139: Camelot | G139: -2 | H139: 40 | AM139: 2 | AN139: 90 | AO139: 0 | AP139: 60 | BI139: 2022-07-07 | BJ139: 79 | BK139: 0 | BL139: 3
A140: 87 | B140: Camelot | G140: -3 | H140: 110 | AK140: 3 | AL140: 220 | AO140: 1 | AP140: 190 | BG140: -1 | BH140: 170 | BI140: 2022-07-08 | BJ140: 80 | BK140: 0 | BL140: 4
A141: 88 | B141: Camelot | G141: 3 | H141: 270 | AK141: -3 | AL141: 110 | AO141: 1 | AP141: 240 | BG141: -1 | BH141: 120 | BI141: 2022-07-08 | BJ141: 80 | BK141: 0 | BL141: =COUNT(C141:BH141)/2 -> 4
A142: 89 | B142: Magic | G142: -3 | H142: 120 | AK142: 1 | AL142: 350 | AM142: 1 | AN142: 230 | BG142: -1 | BH142: 120 | BI142: 2022-07-14 | BJ142: 81 | BK142: -2 | BL142: 4
A143: 90 | B143: Magic | G143: 3 | H143: 280 | AK143: 1 | AL143: 190 | AM143: -1 | AN143: 110 | BG143: -3 | BH143: 40 | BI143: 2022-07-14 | BJ143: 81 | BK143: 0 | BL143: 4
A144: 91 | B144: Magic | G144: 3 | H144: 310 | AK144: 1 | AL144: 200 | AM144: -1 | AN144: 170 | BG144: -3 | BH144: 160 | BI144: 2022-07-14 | BJ144: 81 | BK144: 0 | BL144: 4
A145: 92 | C145: -1 | D145: 300 | Q145: 3 | R145: 590 | S145: 1 | T145: 390 | AA145: -3 | AB145: 270 | BI145: 2022-07-16 | BJ145: 83 | BK145: 0 | BL145: 4
A146: 93 | Q146: 0 | R146: 230 | Y146: -1 | Z146: 80 | AI146: 1 | AJ146: 240 | BI146: 2022-08-21 | BJ146: 92 | BK146: 0 | BL146: 3
A147: 94 | Q147: 0 | R147: 150 | Y147: -1 | Z147: 130 | AI147: 1 | AJ147: 270 | BI147: 2022-08-22 | BJ147: 93 | BK147: 0 | BL147: 3
A148: 95 | Q148: 1 | R148: 430 | Y148: 0 | Z148: 150 | AI148: -1 | AJ148: 90 | BI148: 2022-08-22 | BJ148: 93 | BK148: 0 | BL148: 3
A149: 96 | Q149: 1 | R149: 420 | Y149: 0 | Z149: 160 | AI149: -1 | AJ149: 60 | BI149: 2022-08-27 | BJ149: 99 | BK149: 0 | BL149: 3
A150: 97 | C150: -3 | D150: 170 | E150: -1 | F150: 190 | G150: 4 | H150: 340 | M150: 0 | N150: 260 | O150: 1 | P150: 350 | Q150: 3 | R150: 430 | S150: -3 | T150: 120 | U150: 2 | V150: 320 | W150: -1 | X150: 340 | AC150: -4 | AD150: 110 | AK150: 3 | AL150: 540 | AM150: -2 | AN150: 210 | BG150: 1 | BH150: 300 | BI150: 2022-09-17 | BJ150: 106 | BK150: 0 | BL150: 13
A151: 98 | G151: -4 | H151: 120 | AK151: 2 | AL151: 220 | AM151: -2 | AN151: 180 | AO151: 4 | AP151: 250 | BG151: 0 | BH151: 210 | BI151: 2022-09-22 | BJ151: 107 | BK151: 0 | BL151: 5
A152: 99 | G152: 4 | H152: 360 | AK152: 0 | AL152: 280 | AM152: -4 | AN152: 50 | AO152: -2 | AP152: 210 | BG152: 2 | BH152: 320 | BI152: 2022-09-22 | BJ152: 107 | BK152: 0 | BL152: 5
A153: 100 | G153: 3 | H153: 290 | AK153: -1 | AL153: 240 | BE153: -3 | BF153: 60 | BG153: 1 | BH153: 250 | BI153: 2022-09-29 | BJ153: 109 | BK153: 0 | BL153: 4
A154: 101 | G154: 3 | H154: 320 | AK154: -1 | AL154: 140 | AO154: -3 | AP154: 100 | BC154: 1 | BD154: 250 | BI154: 2022-09-30 | BJ154: 110 | BK154: =+AI154+AE154+Y154+W154+U154+S154+Q154+O154+M154+I154+G154+E154+C154+AG154+K154+BG154+BN154+AA154+AC154+AK154+AM154+AO154+AW154+BE154+BC154 -> 0 | BL154: 4
A155: 102 | BK155: =+AI155+AE155+Y155+W155+U155+S155+Q155+O155+M155+I155+G155+E155+C155+AG155+K155+BG155+BN155+AA155+AC155+AK155+AM155+AO155+AW155 -> 0 | BL155: 0
A156: 103 | BK156: 0 | BL156: 0
A157: 104 | BK157: 0 | BL157: 0
A158: =+A157+1 -> 105 | BK158: 0 | BL158: 0
A159: 106 | BK159: 0 | BL159: 0
A160: 107 | BK160: 0 | BL160: =COUNT(C160:BH160)/2 -> 0
A161: 108 | BK161: 0 | BL161: 0
A162: 109 | BK162: 0 | BL162: 0
A163: 110 | BK163: 0 | BL163: 0
A164: 111 | BK164: 0 | BL164: 0
A165: 112 | BK165: 0 | BL165: 0
A166: 113 | BK166: 0 | BL166: 0
A167: 114 | BK167: 0 | BL167: 0
A168: 115 | BK168: 0 | BL168: 0
A169: 116 | BK169: 0 | BL169: 0
A170: 117 | BK170: 0 | BL170: 0
A171: 118 | BK171: 0 | BL171: 0
A172: 119 | BK172: 0 | BL172: =COUNT(C172:BH172)/2 -> 0
A173: 120 | BK173: 0 | BL173: 0
A174: 121 | BK174: 0 | BL174: 0
A175: 122 | BK175: 0 | BL175: 0
A176: 123 | BK176: 0 | BL176: 0
A177: 124 | BK177: 0 | BL177: 0
A178: 125 | BK178: 0 | BL178: 0
A179: 126 | BK179: 0 | BL179: 0
A180: 127 | BK180: 0 | BL180: 0
A181: 128 | BK181: 0 | BL181: 0
A182: 129 | BK182: =+AI182+AE182+Y182+W182+U182+S182+Q182+O182+M182+I182+G182+E182+C182+AG182+K182+BG182+BN182+AA182+AC182+AK182+AM182+AO182+AW182 -> 0 | BL182: =COUNT(C182:BH182)/2 -> 0
A183: 130 | BK183: 0 | BL183: 0
A184: 131 | BK184: 0 | BL184: 0
A185: 132 | BK185: 0 | BL185: 0
A186: 133 | BK186: 0 | BL186: 0
A187: 134 | BK187: 0 | BL187: 0
A188: 135 | BK188: 0 | BL188: 0
A189: 136 | BK189: 0 | BL189: 0
A190: 137 | BK190: 0 | BL190: 0
A191: 138 | BK191: 0 | BL191: 0
A192: 139 | BK192: 0 | BL192: 0
A193: 140 | BK193: 0 | BL193: 0
A194: 141 | BK194: 0 | BL194: 0
A195: 142 | BK195: 0 | BL195: 0
A196: 143 | BK196: 0 | BL196: 0
A197: 144 | BK197: 0 | BL197: 0
A198: 145 | BK198: 0 | BL198: 0
A199: 146 | BK199: 0 | BL199: 0
A200: 147 | BK200: 0 | BL200: 0
A201: 148 | BK201: 0 | BL201: 0
... 658 more rows

Sheet Tute cabrò
A1: TUTE CABRÒ
A2: Mes
A3: =+GENERAL!B6 -> 12 | C3: =SUM(C5:C19) -> 2.842170943e-14
C4: Premi | D4: Punts | E4: Partides | F4: General
A5: 1 | B5: Jordi | C5: =+G$36 -> 179.3333333 | D5: =+H$37 -> 1.620689655 | E5: =+H$36 -> 58 | F5: =+G$22 -> 80 | G5: =IF(E5<A$3/2,-1,1)*800000+C5*1000-D5*10+E5 -> 979375.1264
A6: 2 | B6: Sebas | C6: =+C$36 -> 30 | D6: =+D$37 -> 2.03030303 | E6: =+D$36 -> 33 | F6: =+C$22 -> 40 | G6: =IF(E6<A$3/2,-1,1)*800000+C6*1000-D6*10+E6 -> 830012.697
A7: 3 | B7: Òscar | C7: =+W$36 -> 20 | D7: =+X$37 -> 1.833333333 | E7: =+X$36 -> 6 | F7: =+W$22 -> 20 | G7: 819987.6667
A8: 4 | B8: Grau | C8: =+E$36 -> -10 | D8: =+F$37 -> 2.2 | E8: =+F$36 -> 10 | F8: =+E$22 -> 10 | G8: 789988
A9: 5 | B9: Goretti | C9: =+K$36 -> -20 | D9: =+L$37 -> 2 | E9: =+L$36 -> 12 | F9: =+K$22 -> 5 | G9: 779992
A10: 6 | B10: Núria | C10: =+S$36 -> -40.66666667 | D10: =+T$37 -> 2.551724138 | E10: =+T$36 -> 29 | F10: =+S$22 -> 0 | G10: 759336.8161
A11: 7 | B11: Gemma | C11: =+Y$36 -> -48 | D11: =+Z$37 -> 2.666666667 | E11: =+Z$36 -> 9 | F11: =+Y$22 -> 0 | G11: 751982.3333
A12: 8 | B12: Montse | C12: =+AE$36 -> -109.6666667 | D12: =+AF$37 -> 2.727272727 | E12: =+AF$36 -> 33 | F12: =+AE$22 -> 0 | G12: 690339.0606
A13: 9 | B13: Ana | C13: =+AA$36 -> 10 | D13: =+AB$37 -> 1.5 | E13: =+AB$36 -> 4 | F13: =+AA$22 -> 0 | G13: -790011
A14: 10 | B14: Sergi | C14: =+M$36 -> 7 | D14: =+N$37 -> 0 | E14: =+N$36 -> 1 | F14: =+M$22 -> 0 | G14: -792999
A15: 11 | B15: Caty | C15: =+AC$36 -> 0 | D15: =+AD$37 -> 2 | E15: =+AD$36 -> 1 | F15: =+M$22 -> 0 | G15: -800019
A16: 12 | B16: Nin | C16: =+I$36 -> 0 | D16: =+J$37 -> 2 | E16: =+J$36 -> 2 | F16: =+I$22 -> 0 | G16: -800018
A17: 13 | B17: Manolo | C17: =+U$36 -> 0 | D17: =+V$37 -> 3 | E17: =+V$36 -> 2 | F17: =+U$22 -> 0 | G17: -800028
A18: 14 | B18: Carles | C18: =+O$36 -> -3 | D18: =+P$37 -> 1.5 | E18: =+P$36 -> 2 | F18: =+O$22 -> 0 | G18: -803013
A19: 15 | B19: Mariajo | C19: =+Q$36 -> -15 | D19: =+R$37 -> 3 | E19: =+R$36 -> 5 | F19: =+Q$22 -> 0 | G19: -815025
B22: General | C22: =+C23*C24 -> 40 | D22: =+D23*D24 -> 33 | E22: 10 | F22: 10 | G22: =+G23*G24 -> 80 | H22: 58 | I22: 0 | J22: 2 | K22: 5 | L22: 12 | M22: 0 | N22: 1 | O22: 0 | P22: 2 | Q22: 0 | R22: 5 | S22: =+S23*S24 -> 0 | T22: 29 | U22: 0 | V22: 2 | W22: 20 | X22: 6 | Y22: =+Y23*Y24 -> 0 | Z22: 9 | AA22: =+AA23*AA24 -> 0 | AB22: =+AB23*AB24 -> 4 | AC22: =+AC23*AC24 -> 0 | AD22: 1 | AE22: 0 | AF22: 33
C23: =IF($B35>3,1,0) -> 1 | D23: =IF($B35>3,1,0) -> 1 | E23: 1 | F23: 1 | G23: =IF($B35>3,1,0) -> 1 | H23: 1 | I23: 1 | J23: 1 | K23: 1 | L23: 1 | M23: 1 | N23: 1 | O23: 1 | P23: 1 | Q23: 1 | R23: 1 | S23: 1 | T23: 1 | U23: 1 | V23: 1 | W23: 1 | X23: 1 | Y23: 1 | Z23: 1 | AA23: =IF($B35>3,1,0) -> 1 | AB23: =IF($B35>3,1,0) -> 1 | AC23: =IF($B35>3,1,0) -> 1 | AD23: 1 | AE23: 1 | AF23: 1
C24: =MAX(C25:C29) -> 40 | D24: =+D36 -> 33 | E24: =MAX(E25:E29) -> 10 | F24: =+F36 -> 10 | G24: =MAX(G25:G29) -> 80 | H24: =+H36 -> 58 | I24: =MAX(I25:I29) -> 0 | J24: =+J36 -> 2 | K24: =MAX(K25:K29) -> 5 | L24: =+L36 -> 12 | M24: =MAX(M25:M29) -> 0 | N24: =+N36 -> 1 | O24: =MAX(O25:O29) -> 0 | P24: =+P36 -> 2 | Q24: =MAX(Q25:Q29) -> 0 | R24: =+R36 -> 5 | S24: =MAX(S25:S29) -> 0 | T24: =+T36 -> 29 | U24: =MAX(U25:U29) -> 0 | V24: =+V36 -> 2 | W24: =MAX(W25:W29) -> 20 | X24: =+X36 -> 6 | Y24: =MAX(Y25:Y29) -> 0 | Z24: =+Z36 -> 9 | AA24: =MAX(AA25:AA29) -> 0 | AB24: =+AB36 -> 4 | AC24: =MAX(AC25:AC29) -> 0 | AD24: =+AD36 -> 1 | AE24: =MAX(AE25:AE29) -> 0 | AF24: =+AF36 -> 33
C25: =IF(C$30=5,5,0) -> 0 | E25: =IF(E$30=5,5,0) -> 0 | G25: =IF(G$30=5,5,0) -> 0 | I25: =IF(I$30=5,5,0) -> 0 | K25: =IF(K$30=5,5,0) -> 5 | M25: =IF(M$30=5,5,0) -> 0 | O25: =IF(O$30=5,5,0) -> 0 | Q25: =IF(Q$30=5,5,0) -> 0 | S25: =IF(S$30=5,5,0) -> 0 | U25: =IF(U$30=5,5,0) -> 0 | W25: =IF(W$30=5,5,0) -> 0 | Y25: =IF(Y$30=5,5,0) -> 0 | AA25: =IF(AA$30=5,5,0) -> 0 | AC25: =IF(AC$30=5,5,0) -> 0 | AE25: =IF(AE$30=5,5,0) -> 0
C26: =IF(C$30=4,10,0) -> 0 | E26: =IF(E$30=4,10,0) -> 10 | G26: =IF(G$30=4,10,0) -> 0 | I26: =IF(I$30=4,10,0) -> 0 | K26: =IF(K$30=4,10,0) -> 0 | M26: =IF(M$30=4,10,0) -> 0 | O26: =IF(O$30=4,10,0) -> 0 | Q26: =IF(Q$30=4,10,0) -> 0 | S26: =IF(S$30=4,10,0) -> 0 | U26: =IF(U$30=4,10,0) -> 0 | W26: =IF(W$30=4,10,0) -> 0 | Y26: =IF(Y$30=4,10,0) -> 0 | AA26: =IF(AA$30=4,10,0) -> 0 | AC26: =IF(AC$30=4,10,0) -> 0 | AE26: =IF(AE$30=4,10,0) -> 0
C27: =IF(C$30=3,20,0) -> 0 | E27: =IF(E$30=3,20,0) -> 0 | G27: =IF(G$30=3,20,0) -> 0 | I27: =IF(I$30=3,20,0) -> 0 | K27: =IF(K$30=3,20,0) -> 0 | M27: =IF(M$30=3,20,0) -> 0 | O27: =IF(O$30=3,20,0) -> 0 | Q27: =IF(Q$30=3,20,0) -> 0 | S27: =IF(S$30=3,20,0) -> 0 | U27: =IF(U$30=3,20,0) -> 0 | W27: =IF(W$30=3,20,0) -> 20 | Y27: =IF(Y$30=3,20,0) -> 0 | AA27: =IF(AA$30=3,20,0) -> 0 | AC27: =IF(AC$30=3,20,0) -> 0 | AE27: =IF(AE$30=3,20,0) -> 0
C28: =IF(C$30=2,40,0) -> 40 | E28: =IF(E$30=2,40,0) -> 0 | G28: =IF(G$30=2,40,0) -> 0 | I28: =IF(I$30=2,40,0) -> 0 | K28: =IF(K$30=2,40,0) -> 0 | M28: =IF(M$30=2,40,0) -> 0 | O28: =IF(O$30=2,40,0) -> 0 | Q28: =IF(Q$30=2,40,0) -> 0 | S28: =IF(S$30=2,40,0) -> 0 | U28: =IF(U$30=2,40,0) -> 0 | W28: =IF(W$30=2,40,0) -> 0 | Y28: =IF(Y$30=2,40,0) -> 0 | AA28: =IF(AA$30=2,40,0) -> 0 | AC28: =IF(AC$30=2,40,0) -> 0 | AE28: =IF(AE$30=2,40,0) -> 0
C29: =IF(C$30=1,80,0) -> 0 | E29: =IF(E$30=1,80,0) -> 0 | G29: =IF(G$30=1,80,0) -> 80 | I29: =IF(I$30=1,80,0) -> 0 | K29: =IF(K$30=1,80,0) -> 0 | M29: =IF(M$30=1,80,0) -> 0 | O29: =IF(O$30=1,80,0) -> 0 | Q29: =IF(Q$30=1,80,0) -> 0 | S29: =IF(S$30=1,80,0) -> 0 | U29: =IF(U$30=1,80,0) -> 0 | W29: =IF(W$30=1,80,0) -> 0 | Y29: =IF(Y$30=1,80,0) -> 0 | AA29: =IF(AA$30=1,80,0) -> 0 | AC29: =IF(AC$30=1,80,0) -> 0 | AE29: =IF(AE$30=1,80,0) -> 0
C30: =RANK(C31,$C31:$BH31)*C35 -> 2 | E30: =RANK(E31,$C31:$BH31)*E35 -> 4 | G30: =RANK(G31,$C31:$BH31)*G35 -> 1 | I30: =RANK(I31,$C31:$BH31)*I35 -> 0 | K30: =RANK(K31,$C31:$BH31)*K35 -> 5 | M30: =RANK(M31,$C31:$BH31)*M35 -> 0 | O30: =RANK(O31,$C31:$BH31)*O35 -> 0 | Q30: =RANK(Q31,$C31:$BH31)*Q35 -> 0 | S30: =RANK(S31,$C31:$BH31)*S35 -> 6 | U30: =RANK(U31,$C31:$BH31)*U35 -> 0 | W30: =RANK(W31,$C31:$BH31)*W35 -> 3 | Y30: =RANK(Y31,$C31:$BH31)*Y35 -> 7 | AA30: =RANK(AA31,$C31:$BH31)*AA35 -> 0 | AC30: =RANK(AC31,$C31:$BH31)*AC35 -> 0 | AE30: =RANK(AE31,$C31:$BH31)*AE35 -> 8
C31: =SUM(C32:C34) -> 29859.9697 | E31: =SUM(E32:E34) -> -10220 | G31: =SUM(G32:G34) -> 179408.5977 | I31: =SUM(I32:I34) -> -1000198 | K31: =SUM(K32:K34) -> -20208 | M31: =SUM(M32:M34) -> -999992 | O31: =SUM(O32:O34) -> -1000151 | Q31: =SUM(Q32:Q34) -> -1000310 | S31: =SUM(S32:S34) -> -40933.50575 | U31: =SUM(U32:U34) -> -1000298 | W31: =SUM(W32:W34) -> 19842.66667 | Y31: =SUM(Y32:Y34) -> -48305.66667 | AA31: =SUM(AA32:AA34) -> -1000136 | AC31: =SUM(AC32:AC34) -> -1000199 | AE31: =SUM(AE32:AE34) -> -110016.0606
C32: =+D36 -> 33 | E32: =+F36 -> 10 | G32: =+H36 -> 58 | I32: =+J36 -> 2 | K32: =+L36 -> 12 | M32: =+N36 -> 1 | O32: =+P36 -> 2 | Q32: =+R36 -> 5 | S32: =+T36 -> 29 | U32: =+V36 -> 2 | W32: =+X36 -> 6 | Y32: =+Z36 -> 9 | AA32: =+AB36 -> 4 | AC32: =+AD36 -> 1 | AE32: =+AF36 -> 33
C33: =-D37*100 -> -203.030303 | E33: =-F37*100 -> -220 | G33: =-H37*100 -> -162.0689655 | I33: =-J37*100 -> -200 | K33: =-L37*100 -> -200 | M33: =-N37*100 -> 0 | O33: =-P37*100 -> -150 | Q33: =-R37*100 -> -300 | S33: =-T37*100 -> -255.1724138 | U33: =-V37*100 -> -300 | W33: =-X37*100 -> -183.3333333 | Y33: =-Z37*100 -> -266.6666667 | AA33: =-AB37*100 -> -150 | AC33: =-AD37*100 -> -200 | AE33: =-AF37*100 -> -272.7272727
C34: =IF(C35=1,C36*C35*1000+C36,-1000000+C36) -> 30030 | E34: =IF(E35=1,E36*E35*1000+E36,-1000000+E36) -> -10010 | G34: =IF(G35=1,G36*G35*1000+G36,-1000000+G36) -> 179512.6667 | I34: =IF(I35=1,I36*I35*1000+I36,-1000000+I36) -> -1000000 | K34: =IF(K35=1,K36*K35*1000+K36,-1000000+K36) -> -20020 | M34: =IF(M35=1,M36*M35*1000+M36,-1000000+M36) -> -999993 | O34: =IF(O35=1,O36*O35*1000+O36,-1000000+O36) -> -1000003 | Q34: =IF(Q35=1,Q36*Q35*1000+Q36,-1000000+Q36) -> -1000015 | S34: =IF(S35=1,S36*S35*1000+S36,-1000000+S36) -> -40707.33333 | U34: =IF(U35=1,U36*U35*1000+U36,-1000000+U36) -> -1000000 | W34: =IF(W35=1,W36*W35*1000+W36,-1000000+W36) -> 20020 | Y34: =IF(Y35=1,Y36*Y35*1000+Y36,-1000000+Y36) -> -48048 | AA34: =IF(AA35=1,AA36*AA35*1000+AA36,-1000000+AA36) -> -999990 | AC34: =IF(AC35=1,AC36*AC35*1000+AC36,-1000000+AC36) -> -1000000 | AE34: =IF(AE35=1,AE36*AE35*1000+AE36,-1000000+AE36) -> -109776.3333
A35: Classificats | B35: =SUM(C35:AE35) -> 8 | C35: =IF(D36>=$A3/2,1,0) -> 1 | E35: =IF(F36>=$A3/2,1,0) -> 1 | G35: =IF(H36>=$A3/2,1,0) -> 1 | I35: =IF(J36>=$A3/2,1,0) -> 0 | K35: =IF(L36>=$A3/2,1,0) -> 1 | M35: =IF(N36>=$A3/2,1,0) -> 0 | O35: =IF(P36>=$A3/2,1,0) -> 0 | Q35: =IF(R36>=$A3/2,1,0) -> 0 | S35: =IF(T36>=$A3/2,1,0) -> 1 | U35: =IF(V36>=$A3/2,1,0) -> 0 | W35: =IF(X36>=$A3/2,1,0) -> 1 | Y35: =IF(Z36>=$A3/2,1,0) -> 1 | AA35: =IF(AB36>=$A3/2,1,0) -> 0 | AC35: =IF(AD36>=$A3/2,1,0) -> 0 | AE35: =IF(AF36>=$A3/2,1,0) -> 1
C36: =IF(SUM(C41:C213)<-1000,-100000000,SUM(C41:C213)) -> 30 | D36: =COUNT(D41:D213) -> 33 | E36: =IF(SUM(E41:E213)<-1000,-100000000,SUM(E41:E213)) -> -10 | F36: =COUNT(F41:F213) -> 10 | G36: =IF(SUM(G41:G213)<-1000,-100000000,SUM(G41:G213)) -> 179.3333333 | H36: =COUNT(H41:H213) -> 58 | I36: =IF(SUM(I41:I213)<-1000,-100000000,SUM(I41:I213)) -> 0 | J36: =COUNT(J41:J213) -> 2 | K36: =IF(SUM(K41:K213)<-1000,-100000000,SUM(K41:K213)) -> -20 | L36: =COUNT(L41:L213) -> 12 | M36: =IF(SUM(M41:M213)<-1000,-100000000,SUM(M41:M213)) -> 7 | N36: =COUNT(N41:N213) -> 1 | O36: =IF(SUM(O41:O213)<-1000,-100000000,SUM(O41:O213)) -> -3 | P36: =COUNT(P41:P213) -> 2 | Q36: =IF(SUM(Q41:Q213)<-1000,-100000000,SUM(Q41:Q213)) -> -15 | R36: =COUNT(R41:R213) -> 5 | S36: =IF(SUM(S41:S213)<-1000,-100000000,SUM(S41:S213)) -> -40.66666667 | T36: =COUNT(T41:T213) -> 29 | U36: =IF(SUM(U41:U213)<-1000,-100000000,SUM(U41:U213)) -> 0 | V36: =COUNT(V41:V213) -> 2 | W36: =IF(SUM(W41:W213)<-1000,-100000000,SUM(W41:W213)) -> 20 | X36: =COUNT(X41:X213) -> 6 | Y36: =IF(SUM(Y41:Y213)<-1000,-100000000,SUM(Y41:Y213)) -> -48 | Z36: =COUNT(Z41:Z213) -> 9 | AA36: =IF(SUM(AA41:AA213)<-1000,-100000000,SUM(AA41:AA213)) -> 10 | AB36: =COUNT(AB41:AB213) -> 4 | AC36: =IF(SUM(AC41:AC213)<-1000,-100000000,SUM(AC41:AC213)) -> 0 | AD36: =COUNT(AD41:AD213) -> 1 | AE36: =IF(SUM(AE41:AE213)<-1000,-100000000,SUM(AE41:AE213)) -> -109.6666667 | AF36: =COUNT(AF41:AF213) -> 33 | AI36: =+AE36+Y36+W36+U36+S36+Q36+O36+M36+K36+I36+G36+E36+C36+AA36+AC36 -> 2.842170943e-14
D37: =IF(D36=0,0.0001,AVERAGE(D41:D128)) -> 2.03030303 | F37: =IF(F36=0,0.0001,AVERAGE(F41:F128)) -> 2.2 | H37: =IF(H36=0,0.0001,AVERAGE(H41:H128)) -> 1.620689655 | J37: =IF(J36=0,0.0001,AVERAGE(J41:J128)) -> 2 | L37: =IF(L36=0,0.0001,AVERAGE(L41:L128)) -> 2 | N37: =IF(N36=0,0.0001,AVERAGE(N41:N128)) -> 0 | P37: =IF(P36=0,0.0001,AVERAGE(P41:P128)) -> 1.5 | R37: =IF(R36=0,0.0001,AVERAGE(R41:R128)) -> 3 | T37: =IF(T36=0,0.0001,AVERAGE(T41:T128)) -> 2.551724138 | V37: =IF(V36=0,0.0001,AVERAGE(V41:V128)) -> 3 | X37: =IF(X36=0,0.0001,AVERAGE(X41:X128)) -> 1.833333333 | Z37: =IF(Z36=0,0.0001,AVERAGE(Z41:Z128)) -> 2.666666667 | AB37: =IF(AB36=0,0.0001,AVERAGE(AB41:AB128)) -> 1.5 | AD37: =IF(AD36=0,0.0001,AVERAGE(AD41:AD128)) -> 2 | AF37: =IF(AF36=0,0.0001,AVERAGE(AF41:AF128)) -> 2.727272727
AG38: =MAX(AH41:AH100) -> 108
B39: Comentaris | C39: Sebas | E39: Grau | G39: Jordi | I39: Nin | K39: Goretti | M39: Sergi | O39: Carles | Q39: Mariajo | S39: Núria | U39: Manolo | W39: Òscar | Y39: Gemma | AA39: Ana | AC39: Caty | AE39: Nogué | AG39: =COUNT(AG41:AG128) -> 59 | AH39: A | AI39: B | AJ39: C
C40: Premi | D40: Punts | E40: Premi | F40: Punts | G40: Premi | H40: Punts | I40: Premi | J40: Punts | K40: Premi | L40: Punts | M40: Premi | N40: Punts | O40: Premi | P40: Punts | Q40: Premi | R40: Punts | S40: Premi | T40: Punts | U40: Premi | V40: Punts | W40: Premi | X40: Punts | Y40: Premi | Z40: Punts | AA40: Premi | AB40: Punts | AC40: Premi | AD40: Punts | AE40: Premi | AF40: Punts | AG40: Data | AH40: Timba
A41: 1 | C41: 5 | D41: 3 | G41: 5 | H41: 3 | S41: -10 | T41: 4 | AG41: 2022-04-01 | AH41: 55 | AI41: =+AE41+Y41+W41+U41+S41+Q41+O41+M41+K41+I41+G41+E41+C41+AA41+AC41 -> 0 | AJ41: =COUNT(C41:AF41)/2 -> 3 | AK41: =+AJ41*2-AL41 -> -4 | AL41: =+AF41+Z41+X41+V41+T41+R41+P41+N41+L41+J41+H41+F41+D41+AB41+AD41 -> 10
A42: =+A41+1 -> 2 | C42: -10 | D42: 5 | G42: =10/3 -> 3.333333333 | H42: 3 | S42: =10/3 -> 3.333333333 | T42: 3 | AE42: =10/3 -> 3.333333333 | AF42: 3 | AG42: 2022-04-07 | AH42: 56 | AI42: 0 | AJ42: 4 | AK42: =+AJ42*2-AL42 -> -6 | AL42: 14
A43: =+A42+1 -> 3 | G43: 5 | H43: 2 | S43: 5 | T43: 2 | AE43: -10 | AF43: 5 | AG43: 2022-04-08 | AH43: 57 | AI43: 0 | AJ43: 3 | AK43: =+AJ43*2-AL43 -> -3 | AL43: 9
A44: 4 | G44: 10 | H44: 0 | S44: -10 | T44: 5 | AE44: 0 | AF44: 4 | AG44: 2022-04-08 | AH44: 57 | AI44: 0 | AJ44: 3 | AK44: -3 | AL44: 9
A45: 5 | G45: 10 | H45: 2 | S45: 0 | T45: 3 | AE45: -10 | AF45: 5 | AG45: 2022-04-22 | AH45: 59 | AI45: 0 | AJ45: 3 | AK45: -4 | AL45: 10
A46: 6 | G46: 10 | H46: 1 | S46: 0 | T46: 3 | AE46: -10 | AF46: 5 | AG46: 2022-04-22 | AH46: 59 | AI46: 0 | AJ46: 3 | AK46: -3 | AL46: 9
A47: 7 | G47: 5 | H47: 2 | S47: 5 | T47: 2 | AE47: -10 | AF47: 3 | AG47: 2022-04-29 | AH47: 60 | AI47: 0 | AJ47: 3 | AK47: -1 | AL47: 7
A48: 8 | G48: 0 | H48: 3 | S48: 0 | T48: 3 | W48: 10 | X48: 1 | AE48: -10 | AF48: 5 | AG48: 2022-05-13 | AH48: 61 | AI48: 0 | AJ48: 4 | AK48: -4 | AL48: 12
A49: 9 | C49: 0 | D49: 2 | G49: 10 | H49: 1 | S49: 0 | T49: 2 | AE49: -10 | AF49: 3 | AG49: 2022-05-20 | AH49: 62 | AI49: 0 | AJ49: 4 | AK49: 0 | AL49: 8
A50: =+A49+1 -> 10 | C50: -10 | D50: 4 | G50: 10 | H50: 1 | Y50: 0 | Z50: 2 | AE50: 0 | AF50: 2 | AG50: 2022-05-26 | AH50: 63 | AI50: 0 | AJ50: 4 | AK50: -1 | AL50: 9
A51: 11 | C51: 4 | D51: 2 | G51: -7 | H51: 3 | Y51: -7 | Z51: 3 | AE51: 10 | AF51: 1 | AG51: 2022-05-26 | AH51: 63 | AI51: 0 | AJ51: 4 | AK51: -1 | AL51: 9
A52: 12 | C52: 0 | D52: 2 | G52: -10 | H52: 4 | W52: 10 | X52: 0 | AG52: 2022-05-27 | AH52: 64 | AI52: 0 | AJ52: 3 | AK52: 0 | AL52: 6
A53: 13 | C53: -10 | D53: 3 | G53: 0 | H53: 2 | AE53: 10 | AF53: 1 | AG53: 2022-06-02 | AH53: 66 | AI53: 0 | AJ53: =COUNT(C53:AF53)/2 -> 3 | AK53: 0 | AL53: 6
A54: 14 | C54: 10 | D54: 1 | G54: 0 | H54: 2 | AE54: -10 | AF54: 3 | AG54: 2022-06-02 | AH54: 66 | AI54: 0 | AJ54: 3 | AK54: 0 | AL54: 6
A55: 15 | C55: -10 | D55: 3 | G55: 10 | H55: 1 | AE55: 0 | AF55: 2 | AG55: 2022-06-02 | AH55: 66 | AI55: 0 | AJ55: 3 | AK55: 0 | AL55: 6
A56: 16 | C56: 0 | D56: 2 | G56: 10 | H56: 1 | AE56: -10 | AF56: 3 | AG56: 2022-06-03 | AH56: 67 | AI56: 0 | AJ56: 3 | AK56: 0 | AL56: 6
A57: 17 | C57: 0 | D57: 2 | G57: -10 | H57: 3 | S57: 10 | T57: 1 | AG57: 2022-06-09 | AH57: 68 | AI57: 0 | AJ57: 3 | AK57: 0 | AL57: 6
A58: 18 | C58: -7 | D58: 3 | G58: 4 | H58: 2 | S58: -7 | T58: 3 | AE58: 10 | AF58: 1 | AG58: 2022-06-09 | AH58: 68 | AI58: 0 | AJ58: 4 | AK58: -1 | AL58: 9
A59: 19 | C59: 10 | D59: 1 | G59: =-10 -> -10 | H59: 3 | AE59: 0 | AF59: 2 | AG59: 2022-06-10 | AH59: 69 | AI59: 0 | AJ59: 3 | AK59: 0 | AL59: 6
A60: 20 | C60: -10 | D60: 3 | G60: 0 | H60: 2 | AE60: 10 | AF60: 1 | AG60: 2022-06-10 | AH60: 69 | AI60: 0 | AJ60: 3 | AK60: 0 | AL60: 6
A61: 21 | C61: 10 | D61: 1 | G61: 0 | H61: 2 | AE61: -10 | AF61: 3 | AG61: 2022-06-10 | AH61: 69 | AI61: 0 | AJ61: 3 | AK61: 0 | AL61: 6
A62: 22 | C62: 7 | D62: 1 | G62: 7 | H62: 1 | S62: -10 | T62: 5 | AE62: -4 | AF62: 2 | AG62: 2022-06-16 | AH62: 70 | AI62: 0 | AJ62: 4 | AK62: -1 | AL62: 9
A63: 23 | C63: -10 | D63: 4 | G63: 0 | H63: 2 | S63: 10 | T63: 1 | AE63: 0 | AF63: 2 | AG63: 2022-06-17 | AH63: 71 | AI63: 0 | AJ63: 4 | AK63: -1 | AL63: 9
A64: 24 | C64: 0 | D64: 2 | G64: 0 | H64: 2 | S64: 0 | T64: 2 | AE64: 0 | AF64: 2 | AG64: 2022-06-17 | AH64: 71 | AI64: 0 | AJ64: 4 | AK64: 0 | AL64: 8
A65: 25 | E65: 10 | F65: 1 | G65: -10 | H65: 3 | AA65: 0 | AB65: 2 | AG65: 2022-06-18 | AH65: 72 | AI65: 0 | AJ65: =COUNT(C65:AF65)/2 -> 3 | AK65: 0 | AL65: 6
A66: 26 | G66: 10 | H66: 0 | S66: -7 | T66: 3 | Y66: -7 | Z66: 3 | AE66: 4 | AF66: 1 | AG66: 2022-06-24 | AH66: 74 | AI66: 0 | AJ66: =COUNT(C66:AF66)/2 -> 4 | AK66: =+AJ66*2-AL66 -> 1 | AL66: 7
A67: 27 | G67: -4 | H67: 3 | S67: 10 | T67: 0 | Y67: -10 | Z67: 4 | AE67: 4 | AF67: 1 | AG67: 2022-06-24 | AH67: 74 | AI67: 0 | AJ67: 4 | AK67: 0 | AL67: 8
A68: 28 | G68: 10 | H68: 0 | S68: -10 | T68: 2 | Y68: 0 | Z68: 1 | AE68: 0 | AF68: 1 | AG68: 2022-06-24 | AH68: 74 | AI68: 0 | AJ68: 4 | AK68: 4 | AL68: 4
A69: 29 | I69: 0 | J69: 2 | O69: -10 | P69: 3 | U69: 10 | V69: 1 | AG69: 2022-06-24 | AH69: 75 | AI69: 0 | AJ69: 3 | AK69: 0 | AL69: 6
A70: 30 | G70: 10 | H70: 0 | S70: -10 | T70: 5 | AE70: 0 | AF70: 1 | AG70: 2022-07-23 | AH70: 85 | AI70: 0 | AJ70: 3 | AK70: 0 | AL70: 6
A71: 31 | G71: 10 | H71: 1 | S71: -10 | T71: 3 | AE71: 0 | AF71: 2 | AG71: 2022-07-23 | AH71: 85 | AI71: 0 | AJ71: 3 | AK71: 0 | AL71: 6
A72: 32 | E72: -10 | F72: 3 | G72: 0 | H72: 2 | K72: 10 | L72: 1 | AG72: 2022-08-06 | AH72: 87 | AI72: 0 | AJ72: 3 | AK72: 0 | AL72: 6
A73: 33 | E73: 0 | F73: 2 | G73: -10 | H73: 4 | K73: 10 | L73: 0 | AG73: 2022-08-06 | AH73: 87 | AI73: 0 | AJ73: 3 | AK73: 0 | AL73: 6
A74: 34 | E74: 0 | F74: 2 | G74: 10 | H74: 0 | K74: -10 | L74: 4 | AG74: 2022-08-06 | AH74: 87 | AI74: 0 | AJ74: 3 | AK74: 0 | AL74: 6
A75: 35 | E75: -10 | F75: 4 | G75: 10 | H75: 0 | AA75: 0 | AB75: 2 | AG75: 2022-08-16 | AH75: 88 | AI75: 0 | AJ75: 3 | AK75: 0 | AL75: 6
A76: 36 | G76: 10 | H76: 1 | K76: -10 | L76: 3 | Q76: 0 | R76: 2 | AG76: 2022-08-21 | AH76: 91 | AI76: 0 | AJ76: 3 | AK76: 0 | AL76: 6
A77: 37 | G77: 10 | H77: 1 | K77: -10 | L77: 3 | Q77: 0 | R77: 2 | AG77: 2022-08-21 | AH77: 91 | AI77: 0 | AJ77: 3 | AK77: 0 | AL77: 6
A78: 38 | G78: 5 | H78: 1 | K78: -10 | L78: 3 | Q78: 5 | R78: 1 | AG78: 2022-08-21 | AH78: 91 | AI78: 0 | AJ78: 3 | AK78: 1 | AL78: 5
A79: 39 | G79: 0 | H79: 1 | K79: 10 | L79: 0 | Q79: -10 | R79: 5 | AG79: 2022-08-21 | AH79: 91 | AI79: 0 | AJ79: 3 | AK79: 0 | AL79: 6
A80: 40 | E80: 0 | F80: 2 | G80: 0 | H80: 2 | K80: 0 | L80: 2 | AG80: 2022-08-23 | AH80: 94 | AI80: 0 | AJ80: 3 | AK80: 0 | AL80: 6
A81: 41 | E81: 0 | F81: 2 | G81: -10 | H81: 4 | K81: 10 | L81: 0 | AG81: 2022-08-23 | AH81: 94 | AI81: 0 | AJ81: 3 | AK81: 0 | AL81: 6
A82: 42 | E82: 0 | F82: 2 | G82: 10 | H82: 0 | K82: -10 | L82: 3 | AG82: 2022-08-26 | AH82: 98 | AI82: 0 | AJ82: =COUNT(C82:AF82)/2 -> 3 | AK82: =+AJ82*2-AL82 -> 1 | AL82: 5
A83: 43 | E83: 10 | F83: 1 | G83: 0 | H83: 2 | K83: -10 | L83: 3 | AA83: 0 | AB83: 2 | AG83: 2022-08-26 | AH83: 98 | AI83: 0 | AJ83: 4 | AK83: 0 | AL83: 8
A84: 44 | C84: 7 | D84: 1 | G84: 7 | H84: 1 | S84: -4 | T84: 2 | AE84: -10 | AF84: 4 | AG84: 2022-09-01 | AH84: 100 | AI84: 0 | AJ84: 4 | AK84: 0 | AL84: 8
A85: 45 | C85: 10 | D85: 0 | G85: 0 | H85: 2 | S85: 0 | T85: 2 | AE85: -10 | AF85: 4 | AG85: 2022-09-01 | AH85: 100 | AI85: 0 | AJ85: 4 | AK85: 0 | AL85: 8
A86: =+A85+1 -> 46 | C86: 0 | D86: 2 | G86: 10 | H86: 1 | S86: 0 | T86: 2 | AE86: -10 | AF86: 4 | AG86: 2022-09-02 | AH86: 101 | AI86: 0 | AJ86: 4 | AK86: -1 | AL86: 9
A87: 47 | C87: 7 | D87: 1 | G87: -4 | H87: 2 | S87: 7 | T87: 1 | AE87: -10 | AF87: 4 | AG87: 2022-09-02 | AH87: 101 | AI87: 0 | AJ87: 4 | AK87: 0 | AL87: 8
A88: 48 | C88: -4 | D88: 3 | G88: 10 | H88: 0 | S88: 4 | T88: 2 | AE88: -10 | AF88: 4 | AG88: 2022-09-08 | AH88: 102 | AI88: 0 | AJ88: 4 | AK88: -1 | AL88: 9
A89: 49 | C89: 7 | D89: 1 | G89: 7 | H89: 1 | Y89: -7 | Z89: 3 | AE89: -7 | AF89: 3 | AG89: 2022-09-09 | AH89: 103 | AI89: 0 | AJ89: 4 | AK89: 0 | AL89: 8
A90: 50 | C90: 0 | D90: 2 | G90: 10 | H90: 1 | AE90: -10 | AF90: 3 | AG90: 2022-09-09 | AH90: 103 | AI90: 0 | AJ90: 3 | AK90: 0 | AL90: 6
A91: 51 | C91: -10 | D91: 3 | G91: 10 | H91: 1 | S91: 0 | T91: 2 | Y91: 0 | Z91: 2 | AG91: 2022-09-15 | AH91: 104 | AI91: 0 | AJ91: 4 | AK91: 0 | AL91: 8
A92: 52 | C92: 4 | D92: 2 | G92: 10 | H92: 0 | S92: -7 | T92: 3 | Y92: -7 | Z92: 3 | AG92: 2022-09-15 | AH92: 104 | AI92: 0 | AJ92: 4 | AK92: 0 | AL92: 8
A93: 53 | C93: 10 | D93: 1 | G93: 0 | H93: 2 | S93: 0 | T93: 2 | Y93: -10 | Z93: 3 | AG93: 2022-09-15 | AH93: 104 | AI93: 0 | AJ93: 4 | AK93: 0 | AL93: 8
A94: 54 | C94: 0 | D94: 2 | G94: -10 | H94: 3 | W94: 10 | X94: 1 | AG94: 2022-09-16 | AH94: 105 | AI94: 0 | AJ94: 3 | AK94: 0 | AL94: 6
A95: 55 | C95: 10 | D95: 1 | G95: 0 | H95: 2 | W95: -10 | X95: 3 | AG95: 2022-09-16 | AH95: 105 | AI95: 0 | AJ95: 3 | AK95: 0 | AL95: 6
A96: 56 | C96: 0 | D96: 1 | G96: 10 | H96: 0 | W96: -10 | X96: 5 | AG96: 2022-09-16 | AH96: 105 | AI96: 0 | AJ96: 3 | AK96: 0 | AL96: 6
A97: 57 | E97: -10 | F97: 3 | G97: -4 | H97: 2 | I97: 0 | J97: 2 | K97: 0 | L97: 2 | M97: 7 | N97: 0 | O97: 7 | P97: 0 | Q97: -10 | R97: 5 | U97: -10 | V97: 5 | W97: 10 | X97: 1 | AA97: 10 | AB97: 0 | AC97: 0 | AD97: 2 | AG97: 2022-09-17 | AH97: 106 | AI97: =+AE97+Y97+W97+U97+S97+Q97+O97+M97+K97+I97+G97+E97+C97+AA97+AC97 -> 0 | AJ97: 11 | AK97: 0 | AL97: =+AF97+Z97+X97+V97+T97+R97+P97+N97+L97+J97+H97+F97+D97+AB97+AD97 -> 22
A98: 58 | C98: 0 | D98: 2 | G98: 10 | H98: 0 | S98: -10 | T98: 4 | AG98: 2022-09-23 | AH98: 108 | AI98: =+AE98+Y98+W98+U98+S98+Q98+O98+M98+K98+I98+G98+E98+C98+AA98+AC98 -> 0 | AJ98: 3 | AK98: 0 | AL98: =+AF98+Z98+X98+V98+T98+R98+P98+N98+L98+J98+H98+F98+D98+AB98+AD98 -> 6
A99: 59 | C99: 10 | D99: 1 | G99: -10 | H99: 3 | S99: 0 | T99: 2 | AG99: 2022-09-23 | AH99: 108 | AI99: 0 | AJ99: 3 | AK99: 0 | AL99: 6
A100: 60
A101: 61
A102: 62
A103: 63
A104: 64
A105: 65
A106: 66
A107: 67
A108: 68
A109: 69
A110: 70
A111: 71
A112: 72
A113: =+A112+1 -> 73
A114: 74
A115: 75
A116: 76
A117: 77
A118: 78
A119: 79
A120: 80
A121: 81
A122: 82
A123: 83
A124: 84
A125: 85
A126: 86
A127: 87
A128: 88

Sheet Buti
A1: BOTIFARRA
A2: Mes
A3: =+GENERAL!B6 -> 12 | C3: =SUM(C5:C22) -> 0
C4: Premi | D4: Punts | E4: Partides | F4: General
A5: 1 | B5: Grau | C5: =+AV$40 -> 70 | D5: =+AV$41 -> 406 | E5: =+AW$40 -> 13 | F5: =+AV$26 -> 80 | G5: =IF(E5<A$3/2,-1,1)*800+C5+D5/1000 -> 870.406
A6: 2 | B6: Jordi | C6: =+I$40 -> 60 | D6: =+I$41 -> 391 | E6: =+J$40 -> 43 | F6: =+I$26 -> 40 | G6: 860.391
A7: 3 | B7: Ana B. | C7: =+C$40 -> 20 | D7: =+C$41 -> -72 | E7: =+D$40 -> 12 | F7: =+C$26 -> 20 | G7: 819.928
A8: 4 | B8: Nogué | C8: =+AP$40 -> 0 | D8: =+AP$41 -> 375 | E8: =+AQ$40 -> 25 | F8: =+AP$26 -> 10 | G8: 800.375
A9: 5 | B9: Òscar | C9: =+AG$40 -> 0 | D9: =+AG$41 -> -118 | E9: =+AH$40 -> 13 | F9: =+AG$26 -> 5 | G9: 799.882
A10: 6 | B10: Núria | C10: =+AA$40 -> -10 | D10: =+AA$41 -> 115 | E10: =+AB$40 -> 28 | F10: =+AA$26 -> 0 | G10: 790.115
A11: 7 | B11: Manolo | C11: =+AM$40 -> -10 | D11: =+AM$41 -> -135 | E11: =+AN$40 -> 9 | F11: =+AM$26 -> 0 | G11: 789.865
A12: 8 | B12: Goretti | C12: =+AS$40 -> -30 | D12: =+AS$41 -> -208 | E12: =+AT$40 -> 11 | F12: =+AS$26 -> 0 | G12: 769.792
A13: 9 | B13: Sebas | C13: =+F$40 -> -50 | D13: =+F$41 -> -478 | E13: =+G$40 -> 13 | F13: =+F$26 -> 0 | G13: 749.522
A14: 10 | B14: Mariajo | C14: =+X$40 -> 10 | D14: =+X$41 -> 24 | E14: =+Y$40 -> 1 | F14: =+X$26 -> 0 | G14: -789.976
A15: 11 | B15: Jaume A | C15: =+O$40 -> 10 | D15: =+O$41 -> 5 | E15: =+P$40 -> 1 | F15: =+O$26 -> 0 | G15: -789.995
A16: 12 | B16: Carles | C16: =+U$40 -> -10 | D16: =+U$41 -> -20 | E16: =+V$40 -> 1 | F16: =+U$26 -> 0 | G16: -810.02
A17: 13 | B17: Nin | C17: =+AD$40 -> -10 | D17: =+AD$41 -> -24 | E17: =+AE$40 -> 1 | F17: =+AD$26 -> 0 | G17: -810.024
A18: 14 | B18: Gemma | C18: =+AJ$40 -> 10 | D18: =+AJ$41 -> 2 | E18: =+AK$40 -> 5 | F18: =+AJ$26 -> 0 | G18: -789.998
A19: 15 | B19: Isabel | C19: =+AY$40 -> -10 | D19: =+AY$41 -> -45 | E19: =+AZ$40 -> 3 | F19: =+AY$26 -> 0 | G19: -810.045
A20: 16 | B20: Sergi | C20: =+R$40 -> -10 | D20: =+R$41 -> -57 | E20: =+S$40 -> 1 | F20: =+R$26 -> 0 | G20: -810.057
A21: 17 | B21: Caty | C21: =+BE$40 -> -10 | D21: =+BE$41 -> -95 | E21: =+BF$40 -> 1 | F21: =+BE$26 -> 0 | G21: -810.095
A22: 18 | B22: Rosa M. | C22: =+L$40 -> -30 | D22: =+L$41 -> -58 | E22: =+M$40 -> 3 | F22: =+L$26 -> 0 | G22: -830.058
A23: 19 | B23: Tito | C23: =+BB$40 -> -100000000 | D23: =+BB$41 -> 1 | E23: =+BC$40 -> 0 | F23: =+BB$26 -> 0 | G23: -100000800
B26: General | C26: =+C27*C28 -> 20 | D26: =+D27*D28 -> 12 | F26: =+F27*F28 -> 0 | G26: =+G27*G28 -> 13 | I26: =+I27*I28 -> 40 | J26: =+J27*J28 -> 43 | L26: =+L27*L28 -> 0 | M26: =+M27*M28 -> 3 | O26: =+O27*O28 -> 0 | P26: =+P27*P28 -> 1 | R26: =+R27*R28 -> 0 | S26: =+S27*S28 -> 1 | U26: =+U27*U28 -> 0 | V26: =+V27*V28 -> 1 | X26: =+X27*X28 -> 0 | Y26: =+Y27*Y28 -> 1 | AA26: =+AA27*AA28 -> 0 | AB26: =+AB27*AB28 -> 28 | AD26: =+AD27*AD28 -> 0 | AE26: =+AE27*AE28 -> 1 | AG26: =+AG27*AG28 -> 5 | AH26: =+AH27*AH28 -> 13 | AJ26: =+AJ27*AJ28 -> 0 | AK26: =+AK27*AK28 -> 5 | AM26: =+AM27*AM28 -> 0 | AN26: =+AN27*AN28 -> 9 | AP26: =+AP27*AP28 -> 10 | AQ26: =+AQ27*AQ28 -> 25 | AS26: =+AS27*AS28 -> 0 | AT26: =+AT27*AT28 -> 11 | AV26: =+AV27*AV28 -> 80 | AW26: =+AW27*AW28 -> 13 | AY26: =+AY27*AY28 -> 0 | AZ26: =+AZ27*AZ28 -> 3 | BB26: =+BB27*BB28 -> 0 | BC26: =+BC27*BC28 -> 0 | BE26: =+BE27*BE28 -> 0 | BF26: =+BF27*BF28 -> 1
C27: =IF($B39>3,1,0) -> 1 | D27: =IF($B39>3,1,0) -> 1 | F27: =IF($B39>3,1,0) -> 1 | G27: =IF($B39>3,1,0) -> 1 | I27: =IF($B39>3,1,0) -> 1 | J27: =IF($B39>3,1,0) -> 1 | L27: =IF($B39>3,1,0) -> 1 | M27: =IF($B39>3,1,0) -> 1 | O27: =IF($B39>3,1,0) -> 1 | P27: =IF($B39>3,1,0) -> 1 | R27: =IF($B39>3,1,0) -> 1 | S27: =IF($B39>3,1,0) -> 1 | U27: =IF($B39>3,1,0) -> 1 | V27: =IF($B39>3,1,0) -> 1 | X27: =IF($B39>3,1,0) -> 1 | Y27: =IF($B39>3,1,0) -> 1 | AA27: =IF($B39>3,1,0) -> 1 | AB27: =IF($B39>3,1,0) -> 1 | AD27: =IF($B39>3,1,0) -> 1 | AE27: =IF($B39>3,1,0) -> 1 | AG27: =IF($B39>3,1,0) -> 1 | AH27: =IF($B39>3,1,0) -> 1 | AJ27: =IF($B39>3,1,0) -> 1 | AK27: =IF($B39>3,1,0) -> 1 | AM27: =IF($B39>3,1,0) -> 1 | AN27: =IF($B39>3,1,0) -> 1 | AP27: =IF($B39>3,1,0) -> 1 | AQ27: =IF($B39>3,1,0) -> 1 | AS27: =IF($B39>3,1,0) -> 1 | AT27: =IF($B39>3,1,0) -> 1 | AV27: =IF($B39>3,1,0) -> 1 | AW27: =IF($B39>3,1,0) -> 1 | AY27: =IF($B39>3,1,0) -> 1 | AZ27: =IF($B39>3,1,0) -> 1 | BB27: =IF($B39>3,1,0) -> 1 | BC27: =IF($B39>3,1,0) -> 1 | BE27: =IF($B39>3,1,0) -> 1 | BF27: =IF($B39>3,1,0) -> 1
C28: =MAX(C29:C33) -> 20 | D28: =+D40 -> 12 | F28: =MAX(F29:F33) -> 0 | G28: =+G40 -> 13 | I28: =MAX(I29:I33) -> 40 | J28: =+J40 -> 43 | L28: =MAX(L29:L33) -> 0 | M28: =+M40 -> 3 | O28: =MAX(O29:O33) -> 0 | P28: =+P40 -> 1 | R28: =MAX(R29:R33) -> 0 | S28: =+S40 -> 1 | U28: =MAX(U29:U33) -> 0 | V28: =+V40 -> 1 | X28: =MAX(X29:X33) -> 0 | Y28: =+Y40 -> 1 | AA28: =MAX(AA29:AA33) -> 0 | AB28: =+AB40 -> 28 | AD28: =MAX(AD29:AD33) -> 0 | AE28: =+AE40 -> 1 | AG28: =MAX(AG29:AG33) -> 5 | AH28: =+AH40 -> 13 | AJ28: =MAX(AJ29:AJ33) -> 0 | AK28: =+AK40 -> 5 | AM28: =MAX(AM29:AM33) -> 0 | AN28: =+AN40 -> 9 | AP28: =MAX(AP29:AP33) -> 10 | AQ28: =+AQ40 -> 25 | AS28: =MAX(AS29:AS33) -> 0 | AT28: =+AT40 -> 11 | AV28: =MAX(AV29:AV33) -> 80 | AW28: =+AW40 -> 13 | AY28: =MAX(AY29:AY33) -> 0 | AZ28: =+AZ40 -> 3 | BB28: =MAX(BB29:BB33) -> 0 | BC28: =+BC40 -> 0 | BE28: =MAX(BE29:BE33) -> 0 | BF28: =+BF40 -> 1
C29: =IF(C$34=5,5,0) -> 0 | F29: =IF(F$34=5,5,0) -> 0 | I29: =IF(I$34=5,5,0) -> 0 | L29: =IF(L$34=5,5,0) -> 0 | O29: =IF(O$34=5,5,0) -> 0 | R29: =IF(R$34=5,5,0) -> 0 | U29: =IF(U$34=5,5,0) -> 0 | X29: =IF(X$34=5,5,0) -> 0 | AA29: =IF(AA$34=5,5,0) -> 0 | AD29: =IF(AD$34=5,5,0) -> 0 | AG29: =IF(AG$34=5,5,0) -> 5 | AJ29: =IF(AJ$34=5,5,0) -> 0 | AM29: =IF(AM$34=5,5,0) -> 0 | AP29: =IF(AP$34=5,5,0) -> 0 | AS29: =IF(AS$34=5,5,0) -> 0 | AV29: =IF(AV$34=5,5,0) -> 0 | AY29: =IF(AY$34=5,5,0) -> 0 | BB29: =IF(BB$34=5,5,0) -> 0 | BE29: =IF(BE$34=5,5,0) -> 0
C30: =IF(C$34=4,10,0) -> 0 | F30: =IF(F$34=4,10,0) -> 0 | I30: =IF(I$34=4,10,0) -> 0 | L30: =IF(L$34=4,10,0) -> 0 | O30: =IF(O$34=4,10,0) -> 0 | R30: =IF(R$34=4,10,0) -> 0 | U30: =IF(U$34=4,10,0) -> 0 | X30: =IF(X$34=4,10,0) -> 0 | AA30: =IF(AA$34=4,10,0) -> 0 | AD30: =IF(AD$34=4,10,0) -> 0 | AG30: =IF(AG$34=4,10,0) -> 0 | AJ30: =IF(AJ$34=4,10,0) -> 0 | AM30: =IF(AM$34=4,10,0) -> 0 | AP30: =IF(AP$34=4,10,0) -> 10 | AS30: =IF(AS$34=4,10,0) -> 0 | AV30: =IF(AV$34=4,10,0) -> 0 | AY30: =IF(AY$34=4,10,0) -> 0 | BB30: =IF(BB$34=4,10,0) -> 0 | BE30: =IF(BE$34=4,10,0) -> 0
C31: =IF(C$34=3,20,0) -> 20 | F31: =IF(F$34=3,20,0) -> 0 | I31: =IF(I$34=3,20,0) -> 0 | L31: =IF(L$34=3,20,0) -> 0 | O31: =IF(O$34=3,20,0) -> 0 | R31: =IF(R$34=3,20,0) -> 0 | U31: =IF(U$34=3,20,0) -> 0 | X31: =IF(X$34=3,20,0) -> 0 | AA31: =IF(AA$34=3,20,0) -> 0 | AD31: =IF(AD$34=3,20,0) -> 0 | AG31: =IF(AG$34=3,20,0) -> 0 | AJ31: =IF(AJ$34=3,20,0) -> 0 | AM31: =IF(AM$34=3,20,0) -> 0 | AP31: =IF(AP$34=3,20,0) -> 0 | AS31: =IF(AS$34=3,20,0) -> 0 | AV31: =IF(AV$34=3,20,0) -> 0 | AY31: =IF(AY$34=3,20,0) -> 0 | BB31: =IF(BB$34=3,20,0) -> 0 | BE31: =IF(BE$34=3,20,0) -> 0
C32: =IF(C$34=2,40,0) -> 0 | F32: =IF(F$34=2,40,0) -> 0 | I32: =IF(I$34=2,40,0) -> 40 | L32: =IF(L$34=2,40,0) -> 0 | O32: =IF(O$34=2,40,0) -> 0 | R32: =IF(R$34=2,40,0) -> 0 | U32: =IF(U$34=2,40,0) -> 0 | X32: =IF(X$34=2,40,0) -> 0 | AA32: =IF(AA$34=2,40,0) -> 0 | AD32: =IF(AD$34=2,40,0) -> 0 | AG32: =IF(AG$34=2,40,0) -> 0 | AJ32: =IF(AJ$34=2,40,0) -> 0 | AM32: =IF(AM$34=2,40,0) -> 0 | AP32: =IF(AP$34=2,40,0) -> 0 | AS32: =IF(AS$34=2,40,0) -> 0 | AV32: =IF(AV$34=2,40,0) -> 0 | AY32: =IF(AY$34=2,40,0) -> 0 | BB32: =IF(BB$34=2,40,0) -> 0 | BE32: =IF(BE$34=2,40,0) -> 0
C33: =IF(C$34=1,80,0) -> 0 | F33: =IF(F$34=1,80,0) -> 0 | I33: =IF(I$34=1,80,0) -> 0 | L33: =IF(L$34=1,80,0) -> 0 | O33: =IF(O$34=1,80,0) -> 0 | R33: =IF(R$34=1,80,0) -> 0 | U33: =IF(U$34=1,80,0) -> 0 | X33: =IF(X$34=1,80,0) -> 0 | AA33: =IF(AA$34=1,80,0) -> 0 | AD33: =IF(AD$34=1,80,0) -> 0 | AG33: =IF(AG$34=1,80,0) -> 0 | AJ33: =IF(AJ$34=1,80,0) -> 0 | AM33: =IF(AM$34=1,80,0) -> 0 | AP33: =IF(AP$34=1,80,0) -> 0 | AS33: =IF(AS$34=1,80,0) -> 0 | AV33: =IF(AV$34=1,80,0) -> 80 | AY33: =IF(AY$34=1,80,0) -> 0 | BB33: =IF(BB$34=1,80,0) -> 0 | BE33: =IF(BE$34=1,80,0) -> 0
C34: =RANK(C35,$C35:$BF35)*C39 -> 3 | F34: =RANK(F35,$C35:$BF35)*F39 -> 9 | I34: =RANK(I35,$C35:$BF35)*I39 -> 2 | L34: =RANK(L35,$C35:$BF35)*L39 -> 0 | O34: =RANK(O35,$C35:$BF35)*O39 -> 0 | R34: =RANK(R35,$C35:$BF35)*R39 -> 0 | U34: =RANK(U35,$C35:$BF35)*U39 -> 0 | X34: =RANK(X35,$C35:$BF35)*X39 -> 0 | AA34: =RANK(AA35,$C35:$BF35)*AA39 -> 6 | AD34: =RANK(AD35,$C35:$BF35)*AD39 -> 0 | AG34: =RANK(AG35,$C35:$BF35)*AG39 -> 5 | AJ34: =RANK(AJ35,$C35:$BF35)*AJ39 -> 0 | AM34: =RANK(AM35,$C35:$BF35)*AM39 -> 7 | AP34: =RANK(AP35,$C35:$BF35)*AP39 -> 4 | AS34: =RANK(AS35,$C35:$BF35)*AS39 -> 8 | AV34: =RANK(AV35,$C35:$BF35)*AV39 -> 1 | AY34: =RANK(AY35,$C35:$BF35)*AY39 -> 0 | BB34: =RANK(BB35,$C35:$BF35)*BB39 -> 0 | BE34: =RANK(BE35,$C35:$BF35)*BE39 -> 0
C35: =SUM(C36:C38) -> 1992832 | F35: =SUM(F36:F38) -> -5047837 | I35: =SUM(I36:I38) -> 6039203 | L35: =SUM(L36:L38) -> -1000005797 | O35: =SUM(O36:O38) -> -999999499 | R35: =SUM(R36:R38) -> -1000005699 | U35: =SUM(U36:U38) -> -1000001999 | X35: =SUM(X36:X38) -> -999997599 | AA35: =SUM(AA36:AA38) -> -988482 | AD35: =SUM(AD36:AD38) -> -1000002399 | AG35: =SUM(AG36:AG38) -> -11787 | AJ35: =SUM(AJ36:AJ38) -> -999999795 | AM35: =SUM(AM36:AM38) -> -1013501 | AP35: =SUM(AP36:AP38) -> 37525 | AS35: =SUM(AS36:AS38) -> -3020819 | AV35: =SUM(AV36:AV38) -> 7040683 | AY35: =SUM(AY36:AY38) -> -1000004497 | BB35: =SUM(BB36:BB38) -> -9999900 | BE35: =SUM(BE36:BE38) -> -10009499
C36: =+D40 -> 12 | F36: =+G40 -> 13 | I36: =+J40 -> 43 | L36: =+M40 -> 3 | O36: =+P40 -> 1 | R36: =+S40 -> 1 | U36: =+V40 -> 1 | X36: =+Y40 -> 1 | AA36: =+AB40 -> 28 | AD36: =+AE40 -> 1 | AG36: =+AH40 -> 13 | AJ36: =+AK40 -> 5 | AM36: =+AN40 -> 9 | AP36: =+AQ40 -> 25 | AS36: =+AT40 -> 11 | AV36: =+AW40 -> 13 | AY36: =+AZ40 -> 3 | BB36: =+BC40 -> 0 | BE36: =+BF40 -> 1
C37: =+C41*100 -> -7200 | F37: =+F41*100 -> -47800 | I37: =+I41*100 -> 39100 | L37: =+L41*100 -> -5800 | O37: =+O41*100 -> 500 | R37: =+R41*100 -> -5700 | U37: =+U41*100 -> -2000 | X37: =+X41*100 -> 2400 | AA37: =+AA41*100 -> 11500 | AD37: =+AD41*100 -> -2400 | AG37: =+AG41*100 -> -11800 | AJ37: =+AJ41*100 -> 200 | AM37: =+AM41*100 -> -13500 | AP37: =+AP41*100 -> 37500 | AS37: =+AS41*100 -> -20800 | AV37: =+AV41*100 -> 40600 | AY37: =+AY41*100 -> -4500 | BB37: =+BB41*100 -> 100 | BE37: =+BE41*100 -> -9500
C38: =IF(D40-$A3/2<0,-1000000000,C40*C39*100000+C40) -> 2000020 | F38: =IF(G40-$A3/2<0,-1000000000,F40*F39*100000+F40) -> -5000050 | I38: =IF(J40-$A3/2<0,-1000000000,I40*I39*100000+I40) -> 6000060 | L38: =IF(M40-$A3/2<0,-1000000000,L40*L39*100000+L40) -> -1000000000 | O38: =IF(P40-$A3/2<0,-1000000000,O40*O39*100000+O40) -> -1000000000 | R38: =IF(S40-$A3/2<0,-1000000000,R40*R39*100000+R40) -> -1000000000 | U38: =IF(V40-$A3/2<0,-1000000000,U40*U39*100000+U40) -> -1000000000 | X38: =IF(Y40-$A3/2<0,-1000000000,X40*X39*100000+X40) -> -1000000000 | AA38: =IF(AB40-$A3/2<0,-1000000000,AA40*AA39*100000+AA40) -> -1000010 | AD38: =IF(AE40-$A3/2<0,-1000000000,AD40*AD39*100000+AD40) -> -1000000000 | AG38: =IF(AH40-$A3/2<0,-1000000000,AG40*AG39*100000+AG40) -> 0 | AJ38: =IF(AK40-$A3/2<0,-1000000000,AJ40*AJ39*100000+AJ40) -> -1000000000 | AM38: =IF(AN40-$A3/2<0,-1000000000,AM40*AM39*100000+AM40) -> -1000010 | AP38: =IF(AQ40-$A3/2<0,-1000000000,AP40*AP39*100000+AP40) -> 0 | AS38: =IF(AT40-$A3/2<0,-1000000000,AS40*AS39*100000+AS40) -> -3000030 | AV38: =IF(AW40-$A3/2<0,-1000000000,AV40*AV39*100000+AV40) -> 7000070 | AY38: =IF(AZ40-$A3/2<0,-1000000000,AY40*AY39*100000+AY40) -> -1000000000 | BB38: =IF(BC40-$A3/2<0,-10000000,BB40*BB39*100000+BB40) -> -10000000 | BE38: =IF(BF40-$A3/2<0,-10000000,BE40*BE39*100000+BE40) -> -10000000
A39: Classificats | B39: =SUM(C39:BE39) -> 9 | C39: =IF(D40>=$A3/2,1,0) -> 1 | F39: =IF(G40>=$A3/2,1,0) -> 1 | I39: =IF(J40>=$A3/2,1,0) -> 1 | L39: =IF(M40>=$A3/2,1,0) -> 0 | O39: =IF(P40>=$A3/2,1,0) -> 0 | R39: =IF(S40>=$A3/2,1,0) -> 0 | U39: =IF(V40>=$A3/2,1,0) -> 0 | X39: =IF(Y40>=$A3/2,1,0) -> 0 | AA39: =IF(AB40>=$A3/2,1,0) -> 1 | AD39: =IF(AE40>=$A3/2,1,0) -> 0 | AG39: =IF(AH40>=$A3/2,1,0) -> 1 | AJ39: =IF(AK40>=$A3/2,1,0) -> 0 | AM39: =IF(AN40>=$A3/2,1,0) -> 1 | AP39: =IF(AQ40>=$A3/2,1,0) -> 1 | AS39: =IF(AT40>=$A3/2,1,0) -> 1 | AV39: =IF(AW40>=$A3/2,1,0) -> 1 | AY39: =IF(AZ40>=$A3/2,1,0) -> 0 | BB39: =IF(BC40>=$A3/2,1,0) -> 0 | BE39: =IF(BF40>=$A3/2,1,0) -> 0 | BH39: =MAX(BI42:BI101) -> 110
C40: =IF(SUM(C45:C240)<-1000,-100000000,SUM(C45:C240)) -> 20 | D40: =COUNT(D45:D240) -> 12 | F40: =IF(SUM(F45:F240)<-1000,-100000000,SUM(F45:F240)) -> -50 | G40: =COUNT(G45:G240) -> 13 | I40: =IF(SUM(I45:I240)<-1000,-100000000,SUM(I45:I240)) -> 60 | J40: =COUNT(J45:J240) -> 43 | L40: =IF(SUM(L45:L240)<-1000,-100000000,SUM(L45:L240)) -> -30 | M40: =COUNT(M45:M240) -> 3 | O40: =IF(SUM(O45:O240)<-1000,-100000000,SUM(O45:O240)) -> 10 | P40: =COUNT(P45:P240) -> 1 | R40: =IF(SUM(R45:R240)<-1000,-100000000,SUM(R45:R240)) -> -10 | S40: =COUNT(S45:S240) -> 1 | U40: =IF(SUM(U45:U240)<-1000,-100000000,SUM(U45:U240)) -> -10 | V40: =COUNT(V45:V240) -> 1 | X40: =IF(SUM(X45:X240)<-1000,-100000000,SUM(X45:X240)) -> 10 | Y40: =COUNT(Y45:Y240) -> 1 | AA40: =IF(SUM(AA45:AA240)<-1000,-100000000,SUM(AA45:AA240)) -> -10 | AB40: =COUNT(AB45:AB240) -> 28 | AD40: =IF(SUM(AD45:AD240)<-1000,-100000000,SUM(AD45:AD240)) -> -10 | AE40: =COUNT(AE45:AE240) -> 1 | AG40: =IF(SUM(AG45:AG240)<-1000,-100000000,SUM(AG45:AG240)) -> 0 | AH40: =COUNT(AH45:AH240) -> 13 | AJ40: =IF(SUM(AJ45:AJ240)<-1000,-100000000,SUM(AJ45:AJ240)) -> 10 | AK40: =COUNT(AK45:AK240) -> 5 | AM40: =IF(SUM(AM45:AM240)<-1000,-100000000,SUM(AM45:AM240)) -> -10 | AN40: =COUNT(AN45:AN240) -> 9 | AP40: =IF(SUM(AP45:AP240)<-1000,-100000000,SUM(AP45:AP240)) -> 0 | AQ40: =COUNT(AQ45:AQ240) -> 25 | AS40: =IF(SUM(AS45:AS240)<-1000,-100000000,SUM(AS45:AS240)) -> -30 | AT40: =COUNT(AT45:AT240) -> 11 | AV40: =IF(SUM(AV45:AV240)<-1000,-100000000,SUM(AV45:AV240)) -> 70 | AW40: =COUNT(AW45:AW240) -> 13 | AY40: =IF(SUM(AY45:AY240)<-1000,-100000000,SUM(AY45:AY240)) -> -10 | AZ40: =COUNT(AZ45:AZ240) -> 3 | BB40: =IF(SUM(BB45:BB240)<-1000,-100000000,SUM(BB45:BB240)) -> -100000000 | BC40: =COUNT(BC45:BC240) -> 0 | BE40: =IF(SUM(BE45:BE240)<-1000,-100000000,SUM(BE45:BE240)) -> -10 | BF40: =COUNT(BF45:BF240) -> 1 | BI40: A
C41: =+D41-E41 -> -72 | D41: =SUM(D45:D240) -> 446 | E41: =SUM(E45:E240) -> 518 | F41: =+G41-H41 -> -478 | G41: =SUM(G45:G240) -> 205 | H41: =SUM(H45:H240) -> 683 | I41: =+J41-K41 -> 391 | J41: =SUM(J45:J240) -> 1572 | K41: =SUM(K45:K240) -> 1181 | L41: =+M41-N41 -> -58 | M41: =SUM(M45:M240) -> 54 | N41: =SUM(N45:N240) -> 112 | O41: =+P41-Q41 -> 5 | P41: =SUM(P45:P240) -> 101 | Q41: =SUM(Q45:Q240) -> 96 | R41: =+S41-T41 -> -57 | S41: =SUM(S45:S240) -> 6 | T41: =SUM(T45:T240) -> 63 | U41: =+V41-W41 -> -20 | V41: =SUM(V45:V240) -> 36 | W41: =SUM(W45:W240) -> 56 | X41: =+Y41-Z41 -> 24 | Y41: =SUM(Y45:Y240) -> 44 | Z41: =SUM(Z45:Z240) -> 20 | AA41: =+AB41-AC41 -> 115 | AB41: =SUM(AB45:AB240) -> 858 | AC41: =SUM(AC45:AC240) -> 743 | AD41: =+AE41-AF41 -> -24 | AE41: =SUM(AE45:AE240) -> 20 | AF41: =SUM(AF45:AF240) -> 44 | AG41: =+AH41-AI41 -> -118 | AH41: =SUM(AH45:AH240) -> 280 | AI41: =SUM(AI45:AI240) -> 398 | AJ41: =+AK41-AL41 -> 2 | AK41: =SUM(AK45:AK240) -> 115 | AL41: =SUM(AL45:AL240) -> 113 | AM41: =+AN41-AO41 -> -135 | AN41: =SUM(AN45:AN240) -> 196 | AO41: =SUM(AO45:AO240) -> 331 | AP41: =+AQ41-AR41 -> 375 | AQ41: =SUM(AQ45:AQ240) -> 940 | AR41: =SUM(AR45:AR240) -> 565 | AS41: =+AT41-AU41 -> -208 | AT41: =SUM(AT45:AT240) -> 392 | AU41: =SUM(AU45:AU240) -> 600 | AV41: =+AW41-AX41 -> 406 | AW41: =SUM(AW45:AW240) -> 739 | AX41: =SUM(AX45:AX240) -> 333 | AY41: =+AZ41-BA41 -> -45 | AZ41: =SUM(AZ45:AZ240) -> 32 | BA41: =SUM(BA45:BA240) -> 77 | BB41: =+BC41-BD41 -> 1 | BC41: =SUM(BC45:BC240) -> 0 | BD41: =SUM(BD45:BD240) -> -1 | BE41: =+BF41-BG41 -> -95 | BF41: =SUM(BF45:BF240) -> 6 | BG41: =SUM(BG45:BG240) -> 101 | BI41: B
I42: =COUNTIF(I45:I64,10) -> 9 | R42: =COUNTIF(R45:R64,10) -> 0 | U42: =COUNTIF(U45:U64,10) -> 0 | X42: =COUNTIF(X45:X64,10) -> 0 | AM42: =COUNTIF(AM45:AM64,10) -> 1 | AP42: =COUNTIF(AP45:AP64,10) -> 4 | AS42: =COUNTIF(AS45:AS64,10) -> 0 | AV42: =COUNTIF(AV45:AV64,10) -> 4 | AY42: =COUNTIF(AY45:AY64,10) -> 1 | BH42: =MAX(BI45:BI104) -> 110
B43: Nº partida | C43: Ana B. | F43: Sebas | I43: Jordi | L43: Rosa M. | O43: Jaume A | R43: Sergi | U43: Carles | X43: Mariajo | AA43: Núria | AD43: Nin | AG43: Òscar | AJ43: Gemma | AM43: Manolo | AP43: Nogué | AS43: Goretti | AV43: Grau | AY43: Isabel | BB43: Tito | BE43: Caty | BH43: =COUNT(BH45:BH255) -> 45 | BI43: A | BJ43: B | BK43: C
B44: 5 copes | C44: Premi | D44: Punts | F44: Premi | G44: Punts | I44: Premi | J44: Punts | L44: Premi | M44: Punts | O44: Premi | P44: Punts | R44: Premi | S44: Punts | U44: Premi | V44: Punts | X44: Premi | Y44: Punts | AA44: Premi | AB44: Punts | AD44: Premi | AE44: Punts | AG44: Premi | AH44: Punts | AJ44: Premi | AK44: Punts | AM44: Premi | AN44: Punts | AP44: Premi | AQ44: Punts | AS44: Premi | AT44: Punts | AV44: Premi | AW44: Punts | AY44: Premi | AZ44: Punts | BB44: Premi | BC44: Punts | BE44: Premi | BF44: Punts | BH44: Data | BI44: Timba
A45: 1 | I45: 10 | J45: 16 | K45: 11 | AA45: -10 | AB45: 11 | AC45: 16 | AJ45: -10 | AK45: 11 | AL45: 16 | AP45: 10 | AQ45: 16 | AR45: 11 | BB45: -10000 | BD45: -1 | BH45: 2021-10-12 | BI45: 5 | BJ45: =+BE45+AJ45+AG45+AD45+AA45+X45+U45+R45+O45+L45+I45+F45+C45+AM45+AP45+AT45+AW45+#REF!+BB45 ->  | BK45: =+BF45+AK45+AH45+AE45+AB45+Y45+V45+S45+P45+M45+J45+G45+D45+AN45+AQ45+AU45+AX45+AZ45+BC45 -> 54 | BL45: =+BG45+AL45+AI45+AF45+AC45+Z45+W45+T45+Q45+N45+K45+H45+E45+AO45+AR45+AV45+AY45+BA45+BD45 -> 53 | BM45: =+BK45-BL45 -> 1 | BN45: =COUNT(C45:BG45)/3 -> 4.666666667 | BO45: =+BJ45/BN45 -> 
A46: =+A45+1 -> 2 | I46: 10 | J46: 26 | K46: 22 | AA46: 10 | AB46: 26 | AC46: 22 | AG46: -10 | AH46: 22 | AI46: 26 | AP46: -10 | AQ46: 22 | AR46: 26 | BH46: 2021-10-28 | BI46: 12 | BJ46: =+BE46+AJ46+AG46+AD46+AA46+X46+U46+R46+O46+L46+I46+F46+C46+AM46+AP46+AS46+AV46+AY46+BB46 -> 0 | BK46: =+BF46+AK46+AH46+AE46+AB46+Y46+V46+S46+P46+M46+J46+G46+D46+AN46+AQ46+AT46+AW46+AZ46+BC46 -> 96 | BL46: =+BG46+AL46+AI46+AF46+AC46+Z46+W46+T46+Q46+N46+K46+H46+E46+AO46+AR46+AU46+AX46+BA46+BD46 -> 96 | BM46: 0 | BN46: 4 | BO46: 0
A47: =+A46+1 -> 3 | I47: -10 | J47: 29 | K47: 39 | AA47: -10 | AB47: 29 | AC47: 39 | AG47: 10 | AH47: 39 | AI47: 29 | AP47: 10 | AQ47: 39 | AR47: 29 | BH47: 2021-10-28 | BI47: 12 | BJ47: 0 | BK47: 136 | BL47: 136 | BM47: 0 | BN47: 4 | BO47: 0
A48: 4 | I48: -10 | J48: 10 | K48: 19 | AA48: 10 | AB48: 19 | AC48: 10 | AG48: 10 | AH48: 19 | AI48: 10 | AP48: -10 | AQ48: 10 | AR48: 19 | BH48: 2021-11-04 | BI48: 16 | BJ48: 0 | BK48: 58 | BL48: 58 | BM48: 0 | BN48: 4 | BO48: 0
A49: 5 | I49: 10 | J49: 44 | K49: 13 | AA49: 10 | AB49: 44 | AC49: 13 | AG49: -10 | AH49: 13 | AI49: 44 | AP49: -10 | AQ49: 13 | AR49: 44 | BH49: 2021-11-04 | BI49: 16 | BJ49: 0 | BK49: 114 | BL49: 114 | BM49: 0 | BN49: 4 | BO49: 0
A50: 6 | I50: -10 | J50: 4 | K50: 20 | AA50: 10 | AB50: 20 | AC50: 4 | AG50: -10 | AH50: 4 | AI50: 20 | AP50: 10 | AQ50: 20 | AR50: 4 | BH50: 2021-11-04 | BI50: 16 | BJ50: 0 | BK50: 48 | BL50: 48 | BM50: 0 | BN50: 4 | BO50: 0
A51: 7 | C51: 10 | D51: 45 | E51: 20 | I51: 10 | J51: 45 | K51: 20 | AM51: -10 | AN51: 20 | AO51: 45 | AV51: -10 | AW51: 20 | AX51: 45 | BH51: 2021-12-06 | BI51: 39 | BJ51: 0 | BK51: 130 | BL51: 130 | BM51: 0 | BN51: 4 | BO51: 0
A52: 8 | C52: -10 | D52: 21 | E52: 31 | I52: -10 | J52: 21 | K52: 31 | AM52: 10 | AN52: 31 | AO52: 21 | AV52: 10 | AW52: 31 | AX52: 21 | BH52: 2021-12-06 | BI52: 39 | BJ52: 0 | BK52: 104 | BL52: 104 | BM52: 0 | BN52: 4 | BO52: 0
A53: 9 | C53: 10 | D53: 27 | E53: 8 | I53: -10 | J53: 8 | K53: 27 | AM53: -10 | AN53: 8 | AO53: 27 | AV53: 10 | AW53: 27 | AX53: 8 | BH53: 2021-12-06 | BI53: 39 | BJ53: 0 | BK53: 70 | BL53: 70 | BM53: 0 | BN53: 4 | BO53: 0
A54: 10 | C54: 10 | D54: 30 | E54: 20 | I54: -10 | J54: 20 | K54: 30 | AM54: -10 | AN54: 20 | AO54: 30 | AV54: 10 | AW54: 30 | AX54: 20 | BH54: 2021-12-06 | BI54: 39 | BJ54: 0 | BK54: 100 | BL54: 100 | BM54: 0 | BN54: 4 | BO54: 0
A55: 11 | C55: -10 | D55: 0 | E55: 67 | I55: 10 | J55: 67 | K55: 0 | AM55: -10 | AN55: 0 | AO55: 67 | AV55: 10 | AW55: 67 | AX55: 0 | BH55: 2021-12-06 | BI55: 39 | BJ55: 0 | BK55: 134 | BL55: 134 | BM55: 0 | BN55: 4 | BO55: 0
A56: 12 | I56: -10 | J56: 96 | K56: 101 | O56: 10 | P56: 101 | Q56: 96 | AA56: 10 | AB56: 101 | AC56: 96 | AP56: -10 | AQ56: 96 | AR56: 101 | BH56: 2022-01-13 | BI56: 43 | BJ56: 0 | BK56: 394 | BL56: 394 | BM56: 0 | BN56: 4 | BO56: 0
A57: 13 | F57: 10 | G57: 33 | H57: 21 | I57: -10 | J57: 21 | K57: 33 | AA57: 10 | AB57: 33 | AC57: 21 | AP57: -10 | AQ57: 21 | AR57: 33 | BH57: 2022-01-13 | BI57: 43 | BJ57: 0 | BK57: 108 | BL57: 108 | BM57: 0 | BN57: 4 | BO57: 0
A58: 14 | I58: 0 | J58: 12 | K58: 12 | AA58: 0 | AB58: 12 | AC58: 12 | AG58: 0 | AH58: 12 | AI58: 12 | AP58: 0 | AQ58: 12 | AR58: 12 | BH58: 2022-01-20 | BI58: 45 | BJ58: 0 | BK58: 48 | BL58: 48 | BM58: 0 | BN58: 4 | BO58: 0
A59: 15 | F59: 10 | G59: 15 | H59: 14 | I59: 10 | J59: 15 | K59: 14 | AA59: -10 | AB59: 14 | AC59: 15 | AP59: -10 | AQ59: 14 | AR59: 15 | BH59: 2022-02-04 | BI59: 48 | BJ59: 0 | BK59: 58 | BL59: 58 | BM59: 0 | BN59: 4 | BO59: 0
A60: 16 | F60: 10 | G60: 43 | H60: 14 | I60: -10 | J60: 14 | K60: 43 | AA60: -10 | AB60: 14 | AC60: 43 | AP60: 10 | AQ60: 43 | AR60: 14 | BH60: 2022-02-04 | BI60: 48 | BJ60: 0 | BK60: 114 | BL60: 114 | BM60: 0 | BN60: 4 | BO60: 0
A61: 17 | F61: 10 | G61: 57 | H61: 21 | I61: 10 | J61: 57 | K61: 21 | AA61: -10 | AB61: 21 | AC61: 57 | AP61: -10 | AQ61: 21 | AR61: 57 | BH61: 2022-02-04 | BI61: 48 | BJ61: 0 | BK61: 156 | BL61: 156 | BM61: 0 | BN61: 4 | BO61: 0
A62: 18 | I62: -10 | J62: 15 | K62: 19 | AA62: -10 | AB62: 15 | AC62: 19 | AJ62: 10 | AK62: 19 | AL62: 15 | AY62: 10 | AZ62: 19 | BA62: 15 | BH62: 2022-03-03 | BI62: 50 | BJ62: 0 | BK62: 68 | BL62: 68 | BM62: 0 | BN62: 4 | BO62: 0
A63: 19 | I63: 10 | J63: 40 | K63: 7 | AA63: 10 | AB63: 40 | AC63: 7 | AJ63: -10 | AK63: 7 | AL63: 40 | AY63: -10 | AZ63: 7 | BA63: 40 | BH63: 2022-03-03 | BI63: 50 | BJ63: 0 | BK63: 94 | BL63: 94 | BM63: 0 | BN63: 4 | BO63: 0
A64: 20 | I64: 10 | J64: 22 | K64: 6 | AA64: -10 | AB64: 6 | AC64: 22 | AJ64: 10 | AK64: 22 | AL64: 6 | AY64: -10 | AZ64: 6 | BA64: 22 | BH64: 2022-03-03 | BI64: 50 | BJ64: =+BE64+AJ64+AG64+AD64+AA64+X64+U64+R64+O64+L64+I64+F64+C64+AM64+AP64+AS64+AV64+AY64+BB64 -> 0 | BK64: =+BF64+AK64+AH64+AE64+AB64+Y64+V64+S64+P64+M64+J64+G64+D64+AN64+AQ64+AT64+AW64+AZ64+BC64 -> 56 | BL64: =+BG64+AL64+AI64+AF64+AC64+Z64+W64+T64+Q64+N64+K64+H64+E64+AO64+AR64+AU64+AX64+BA64+BD64 -> 56 | BM64: =+BK64-BL64 -> 0 | BN64: =COUNT(C64:BG64)/3 -> 4 | BO64: =+BJ64/BN64 -> 0
A65: 21 | I65: 10 | J65: 18 | K65: 6 | AA65: -10 | AB65: 6 | AC65: 18 | AG65: -10 | AH65: 6 | AI65: 18 | AP65: 10 | AQ65: 18 | AR65: 6 | BH65: 2022-04-29 | BI65: 60 | BJ65: 0 | BK65: 48 | BL65: 48 | BM65: 0 | BN65: 4 | BO65: 0
A66: 22 | I66: 10 | J66: 55 | K66: 2 | AA66: -10 | AB66: 2 | AC66: 55 | AG66: -10 | AH66: 2 | AI66: 55 | AP66: 10 | AQ66: 55 | AR66: 2 | BH66: 2022-04-29 | BI66: 60 | BJ66: 0 | BK66: 114 | BL66: 114 | BM66: 0 | BN66: 4 | BO66: 0
A67: 23 | I67: -10 | J67: 13 | K67: 38 | AA67: 10 | AB67: 38 | AC67: 13 | AG67: 10 | AH67: 38 | AI67: 13 | AP67: -10 | AQ67: 13 | AR67: 38 | BH67: 2022-04-29 | BI67: 60 | BJ67: 0 | BK67: 102 | BL67: 102 | BM67: 0 | BN67: 4 | BO67: 0
A68: 24 | I68: 10 | J68: 13 | K68: 7 | AA68: -10 | AB68: 7 | AC68: 13 | AG68: 10 | AH68: 13 | AI68: 7 | AP68: -10 | AQ68: 7 | AR68: 13 | BH68: 2022-04-29 | BI68: 60 | BJ68: 0 | BK68: 40 | BL68: 40 | BM68: 0 | BN68: 4 | BO68: 0
A69: 25 | F69: -10 | G69: 0 | H69: 148 | I69: -10 | J69: 0 | K69: 148 | AA69: 10 | AB69: 148 | AC69: 0 | AP69: 10 | AQ69: 148 | AR69: 0 | BH69: 2022-05-20 | BI69: 62 | BJ69: 0 | BK69: 296 | BL69: 296 | BM69: 0 | BN69: 4 | BO69: 0
A70: 26 | F70: -10 | G70: 30 | H70: 61 | I70: 10 | J70: 61 | K70: 30 | AG70: 10 | AH70: 61 | AI70: 30 | AP70: -10 | AQ70: 30 | AR70: 61 | BH70: 2022-06-03 | BI70: 67 | BJ70: 0 | BK70: 182 | BL70: 182 | BM70: 0 | BN70: 4 | BO70: 0
A71: 27 | C71: 10 | D71: 30 | E71: 12 | I71: -10 | J71: 12 | K71: 30 | AS71: -10 | AT71: 12 | AU71: 30 | AV71: 10 | AW71: 30 | AX71: 12 | BH71: 2022-06-18 | BI71: 72 | BJ71: 0 | BK71: 84 | BL71: 84 | BM71: 0 | BN71: 4 | BO71: 0
A72: 28 | C72: 10 | D72: 81 | E72: 36 | I72: 10 | J72: 81 | K72: 36 | AS72: -10 | AT72: 36 | AU72: 81 | AV72: -10 | AW72: 36 | AX72: 81 | BH72: 2022-06-18 | BI72: 72 | BJ72: 0 | BK72: 234 | BL72: 234 | BM72: 0 | BN72: 4 | BO72: 0
A73: 29 | I73: -10 | J73: 41 | K73: 47 | L73: -10 | M73: 41 | N73: 47 | AM73: 10 | AN73: 47 | AO73: 41 | AS73: 10 | AT73: 47 | AU73: 41 | BH73: 2022-07-15 | BI73: 82 | BJ73: 0 | BK73: 176 | BL73: 176 | BM73: 0 | BN73: 4 | BO73: 0
A74: 30 | I74: 10 | J74: 14 | K74: 13 | L74: -10 | M74: 13 | N74: 14 | AM74: 10 | AN74: 14 | AO74: 13 | AS74: -10 | AT74: 13 | AU74: 14 | BH74: 2022-07-15 | BI74: 82 | BJ74: 0 | BK74: 54 | BL74: 54 | BM74: 0 | BN74: 4 | BO74: 0
A75: 31 | I75: 10 | J75: 51 | K75: 0 | L75: -10 | M75: 0 | N75: 51 | AM75: -10 | AN75: 0 | AO75: 51 | AS75: 10 | AT75: 51 | AU75: 0 | BH75: 2022-07-15 | BI75: 82 | BJ75: 0 | BK75: 102 | BL75: 102 | BM75: 0 | BN75: 4 | BO75: 0
A76: 32 | C76: 10 | D76: 68 | E76: 60 | I76: -10 | J76: 60 | K76: 68 | AS76: 10 | AT76: 68 | AU76: 60 | AV76: -10 | AW76: 60 | AX76: 68 | BH76: 2022-08-16 | BI76: 88 | BJ76: 0 | BK76: 256 | BL76: 256 | BM76: 0 | BN76: 4 | BO76: 0
A77: 33 | C77: -10 | D77: 12 | E77: 109 | I77: 10 | J77: 109 | K77: 12 | AS77: -10 | AT77: 12 | AU77: 109 | AV77: 10 | AW77: 109 | AX77: 12 | BH77: 2022-08-16 | BI77: 88 | BJ77: 0 | BK77: 242 | BL77: 242 | BM77: 0 | BN77: 4 | BO77: 0
A78: 34 | C78: 10 | D78: 96 | E78: 42 | I78: -10 | J78: 42 | K78: 96 | AS78: -10 | AT78: 42 | AU78: 96 | AV78: 10 | AW78: 96 | AX78: 42 | BH78: 2022-08-26 | BI78: 98 | BJ78: =+BE78+AJ78+AG78+AD78+AA78+X78+U78+R78+O78+L78+I78+F78+C78+AM78+AP78+AS78+AV78+AY78+BB78 -> 0 | BK78: =+BF78+AK78+AH78+AE78+AB78+Y78+V78+S78+P78+M78+J78+G78+D78+AN78+AQ78+AT78+AW78+AZ78+BC78 -> 276 | BL78: =+BG78+AL78+AI78+AF78+AC78+Z78+W78+T78+Q78+N78+K78+H78+E78+AO78+AR78+AU78+AX78+BA78+BD78 -> 276 | BM78: =+BK78-BL78 -> 0 | BN78: =COUNT(C78:BG78)/3 -> 4 | BO78: =+BJ78/BN78 -> 0
A79: 35 | C79: -10 | D79: 16 | E79: 69 | I79: -10 | J79: 16 | K79: 69 | AS79: 10 | AT79: 69 | AU79: 12 | AV79: 10 | AW79: 69 | AX79: 12 | BH79: 2022-08-26 | BI79: 98 | BJ79: 0 | BK79: 170 | BL79: 162 | BM79: 8 | BN79: 4 | BO79: 0
A80: 36 | F80: -10 | G80: 3 | H80: 15 | I80: 10 | J80: 15 | K80: 3 | AA80: 10 | AB80: 15 | AC80: 3 | AP80: -10 | AQ80: 3 | AR80: 15 | BH80: 2022-09-01 | BI80: 100 | BJ80: 0 | BK80: 36 | BL80: 36 | BM80: 0 | BN80: 4 | BO80: 0
A81: 37 | F81: -10 | G81: 0 | H81: 34 | I81: 10 | J81: 34 | K81: 0 | AA81: 10 | AB81: 34 | AC81: 0 | AP81: -10 | AQ81: 0 | AR81: 34 | BH81: 2022-09-01 | BI81: 100 | BJ81: 0 | BK81: 68 | BL81: 68 | BM81: 0 | BN81: 4 | BO81: 0
A82: 38 | F82: -10 | G82: 0 | H82: 31 | I82: 10 | J82: 31 | K82: 0 | AA82: -10 | AB82: 0 | AC82: 31 | AP82: 10 | AQ82: 31 | AR82: 0 | BH82: 2022-09-02 | BI82: 101 | BJ82: 0 | BK82: 62 | BL82: 62 | BM82: 0 | BN82: 4 | BO82: 0
A83: 39 | F83: -10 | G83: 11 | H83: 55 | I83: -10 | J83: 11 | K83: 55 | AA83: 10 | AB83: 55 | AC83: 11 | AP83: 10 | AQ83: 55 | AR83: 11 | BH83: 2022-09-02 | BI83: 101 | BJ83: 0 | BK83: 132 | BL83: 132 | BM83: 0 | BN83: 4 | BO83: 0
A84: 40 | F84: -10 | G84: 8 | H84: 89 | I84: 10 | J84: 89 | K84: 8 | AA84: -10 | AB84: 8 | AC84: 89 | AP84: 10 | AQ84: 89 | AR84: 8 | BH84: 2022-09-08 | BI84: 102 | BJ84: 0 | BK84: 194 | BL84: 194 | BM84: 0 | BN84: 4 | BO84: 0
A85: 41 | AP85: 10 | AQ85: 101 | AR85: 6 | AS85: -10 | AT85: 6 | AU85: 101 | AV85: 10 | AW85: 101 | AX85: 6 | BE85: -10 | BF85: 6 | BG85: 101 | BH85: 2022-09-17 | BI85: 106 | BJ85: 0 | BK85: 214 | BL85: 214 | BM85: 0 | BN85: 4 | BO85: 0
A86: 42 | C86: -10 | D86: 20 | E86: 44 | I86: 10 | J86: 44 | K86: 20 | R86: -10 | S86: 6 | T86: 63 | U86: -10 | V86: 36 | W86: 56 | X86: 10 | Y86: 44 | Z86: 20 | AA86: -10 | AB86: 6 | AC86: 63 | AD86: -10 | AE86: 20 | AF86: 44 | AJ86: 10 | AK86: 56 | AL86: 36 | AM86: 10 | AN86: 56 | AO86: 36 | AP86: 10 | AQ86: 63 | AR86: 6 | AS86: -10 | AT86: 36 | AU86: 56 | AV86: 10 | AW86: 63 | AX86: 6 | BH86: 2022-09-17 | BI86: 106 | BJ86: 0 | BK86: 450 | BL86: 450 | BM86: 0 | BN86: 12 | BO86: 0
A87: 43 | BH87: 2022-09-17 | BI87: 106 | BJ87: 0 | BK87: 0 | BL87: 0 | BM87: 0 | BN87: 0
A88: 44 | F88: -10 | G88: 5 | H88: 51 | I88: 10 | J88: 51 | K88: 5 | AA88: -10 | AB88: 5 | AC88: 51 | AG88: 10 | AH88: 51 | AI88: 5 | BH88: 2022-09-30 | BI88: 110 | BJ88: 0 | BK88: 112 | BL88: 112 | BM88: 0 | BN88: 4 | BO88: 0
A89: 45 | F89: -10 | G89: 0 | H89: 129 | I89: 10 | J89: 129 | K89: 0 | AA89: 10 | AB89: 129 | AC89: 0 | AG89: -10 | AH89: 0 | AI89: 129 | BH89: 2022-09-30 | BI89: 110 | BJ89: 0 | BK89: 258 | BL89: 258 | BM89: 0 | BN89: 4 | BO89: 0
A90: =+A89+1 -> 46 | BJ90: 0 | BK90: 0 | BL90: 0 | BM90: 0 | BN90: 0
A91: 47 | BJ91: 0 | BK91: 0 | BL91: 0 | BM91: 0 | BN91: 0
A92: 48 | BJ92: 0 | BK92: 0 | BL92: 0 | BM92: 0 | BN92: 0
A93: 49 | BJ93: 0 | BK93: 0 | BL93: 0 | BM93: 0 | BN93: 0
A94: 50 | BJ94: 0 | BK94: 0 | BL94: 0 | BM94: 0 | BN94: 0
A95: 51
A96: 52
A97: 53
A98: 54
A99: 55
A100: 56
A101: 57
A102: 58
A103: 59
A104: 60
A105: 61
A106: 62
A107: 63
A108: 64
A109: 65
A110: 66
A111: 67
A112: 68
A113: 69
A114: 70
A115: 71
A116: 72
A117: =+A116+1 -> 73
A118: 74
A119: 75
A120: 76
A121: 77
A122: 78
A123: 79
A124: 80
A125: 81
A126: 82
A127: 83
A128: 84
A129: 85
A130: 86
A131: 87
A132: 88
A133: 89
A134: 90
A135: 91
A136: 92
A137: 93
A138: 94
A139: 95
A140: 96
A141: 97
A142: 98
A143: 99
A144: 100
A145: 101
A146: 102
A147: 103
A148: 104
A149: 105
A150: 106
A151: 107
A152: 108
A153: 109
A154: 110
A155: 111
A156: 112
A157: 113
A158: 114
A159: 115
A160: 116
A161: 117
A162: 118
A163: 119
A164: 120
A165: 121
A166: 122
A167: 123
A168: 124
A169: 125
A170: 126
A171: 127
A172: 128
A173: 129
A174: 130
A175: 131
A176: 132
A177: 133
A178: 134
A179: 135
A180: 136
A181: =+A180+1 -> 137
A182: =+A181+1 -> 138
A183: =+A182+1 -> 139
A184: =+A183+1 -> 140
A185: 141
A186: 142
A187: 143
A188: 144
A189: 145
A190: 146
A191: 147
A192: 148
A193: 149
A194: 150
A195: 151
A196: 152
A197: 153
A198: 154
A199: 155
A200: 156
A201: 157
A202: 158
... 38 more rows

Sheet Cribbage
A1: CRIBBAGE
A2: Mes
A3: =+GENERAL!B6 -> 12 | C3: =SUM(C5:C18) -> 27 | E3: =SUM(E5:E26) -> 0
C4: Premi | D4: Reptes | E4: Punts | F4: Partides | G4: General
A5: 1 | B5: Jordi | C5: =+C$43 -> 9.5 | D5: =+C$44 -> 11 | E5: =+D$43 -> 33 | F5: =+E$44 -> 60 | G5: =+C$29 -> 80 | H5: =IF(F5<A$3/2,-1000,1)*800+C5-D5/1000+E5/1000000 -> 809.489033
A6: 2 | B6: Núria | C6: =+I$43 -> 4 | D6: =+I$44 -> 6 | E6: =+J$43 -> 5 | F6: =+K$44 -> 18 | G6: =+I$29 -> 40 | H6: 803.994005
A7: 3 | B7: Lluisa | C7: =+BH$43 -> 1.5 | D7: =+BH$44 -> 3 | E7: =+BI$43 -> -2 | F7: =+BJ$44 -> 8 | G7: =+BH$29 -> 20 | H7: 801.496998
A8: 4 | B8: Goretti | C8: =+AS$43 -> 1.5 | D8: =+AS$44 -> 3 | E8: =+AT$43 -> -5 | F8: =+AU$44 -> 14 | G8: =+AS$29 -> 10 | H8: 801.496995
A9: 5 | B9: Sebas | C9: =+AP$43 -> 1 | D9: =+AP$44 -> 3 | E9: =+AQ$43 -> -3 | F9: =+AR$44 -> 10 | G9: =+AP$29 -> 5 | H9: 800.996997
A10: 6 | B10: Nogué | C10: =+R$43 -> 1 | D10: =+R$44 -> 6 | E10: =+S$43 -> -20 | F10: =+T$44 -> 46 | G10: =+R$29 -> 0 | H10: 800.99398
A11: 7 | B11: Xavier | C11: =+AJ$43 -> 0.5 | D11: =+AJ$44 -> 3 | E11: =+AK$43 -> -4 | F11: =+AL$44 -> 10 | G11: =+AJ$29 -> 0 | H11: 800.496996
A12: 8 | B12: Christophe | C12: =+AD$43 -> 2.5 | D12: =+AD$44 -> 3 | E12: =+AE$43 -> 2 | F12: =+AF$44 -> 1 | G12: =+AD$29 -> 0 | H12: -799997.503
A13: 9 | B13: Òscar | C13: =+O$43 -> 1.5 | D13: =+O$44 -> 2 | E13: =+P$43 -> 1 | F13: =+Q$44 -> 3 | G13: =+O$29 -> 0 | H13: -799998.502
A14: 10 | B14: Grau | C14: =+AV$43 -> 1.5 | D14: =+AV$44 -> 2 | E14: =+AW$43 -> 1 | F14: =+AX$44 -> 2 | G14: =+AV$29 -> 0 | H14: -799998.502
A15: 11 | B15: Eito | C15: =+AA$43 -> 1 | D15: =+AA$44 -> 3 | E15: =+AB$43 -> -2 | F15: =+AC$44 -> 3 | G15: =+AA$29 -> 0 | H15: -799999.003
A16: 12 | B16: Gemma | C16: =+L$43 -> 1 | D16: =+L$44 -> 4 | E16: =+M$43 -> -2 | F16: =+N$44 -> 3 | G16: =+L$29 -> 0 | H16: -799999.004
A17: 13 | B17: Isabel | C17: =+AY$43 -> 0.5 | D17: =+AY$44 -> 3 | E17: =+AZ$43 -> -2 | F17: =+BA$44 -> 1 | G17: =+AY$29 -> 0 | H17: -799999.503
A18: 14 | B18: Ana B. | C18: =+AG$43 -> 0 | D18: =+AG$44 -> 2 | E18: =+AH$43 -> -2 | F18: =+AI$44 -> 1 | G18: =+AG$29 -> 0 | H18: -800000.002
A19: 15 | B19: Carles | C19: =+U$43 -> -100000000 | D19: =+U$44 -> 1 | E19: =+V$43 -> 0 | F19: =+W$44 -> 0 | G19: =+U$29 -> 0 | H19: =IF(F19<A$3/2,-1000,1)*800+C19-D19/1000+E19/1000000 -> -100800000
A20: 16 | B20: Sergi | C20: =+F$43 -> -100000000 | D20: =+F$44 -> 1 | E20: =+G$43 -> 0 | F20: =+H$44 -> 0 | G20: =+F$29 -> 0 | H20: -100800000
A21: 17 | B21: Manolo | C21: =+AM$43 -> -100000000 | D21: =+AM$44 -> 1 | E21: =+AN$43 -> 0 | F21: =+AO$44 -> 0 | G21: =+AM$29 -> 0 | H21: -100800000
A22: 18 | B22: Mariajo | C22: =+X$43 -> -100000000 | D22: =+X$44 -> 1 | E22: =+Y$43 -> 0 | F22: =+Z$44 -> 0 | G22: =+X$29 -> 0 | H22: -100800000
A23: 19 | B23: Nin | C23: =+BE$43 -> -100000000 | D23: =+BE$44 -> 1 | E23: =+BF$43 -> 0 | F23: =+BG$44 -> 0 | G23: =+BE$29 -> 0 | H23: -100800000
A24: 20 | B24: Tito | C24: =+BB$43 -> -100000000 | D24: =+BB$44 -> 1 | E24: =+BC$43 -> 0 | F24: =+BD$44 -> 0 | G24: =+BB$29 -> 0 | H24: -100800000
A25: 21 | C25: -2000000000000 | H25: =IF(F25<A$3/2,-1000,1)*800+C25-D25/1000+E25/1000000 -> -2000000800000
A26: 22 | C26: -2000000000000 | H26: -2000000800000
B29: General | C29: =+C30*C31 -> 80 | D29: =+D30*D31 -> 33 | F29: =+F30*F31 -> 0 | G29: =+G30*G31 -> 0 | I29: =+I30*I31 -> 40 | J29: =+J30*J31 -> 5 | L29: =+L30*L31 -> 0 | M29: =+M30*M31 -> -2 | O29: =+O30*O31 -> 0 | P29: =+P30*P31 -> 1 | R29: =+R30*R31 -> 0 | S29: =+S30*S31 -> -20 | U29: =+U30*U31 -> 0 | V29: =+V30*V31 -> 0 | X29: =+X30*X31 -> 0 | Y29: =+Y30*Y31 -> 0 | AA29: =+AA30*AA31 -> 0 | AB29: =+AB30*AB31 -> -2 | AD29: =+AD30*AD31 -> 0 | AE29: =+AE30*AE31 -> 2 | AG29: =+AG30*AG31 -> 0 | AH29: =+AH30*AH31 -> -2 | AJ29: =+AJ30*AJ31 -> 0 | AK29: =+AK30*AK31 -> -4 | AM29: =+AM30*AM31 -> 0 | AN29: =+AN30*AN31 -> 0 | AP29: =+AP30*AP31 -> 5 | AQ29: =+AQ30*AQ31 -> -3 | AS29: =+AS30*AS31 -> 10 | AT29: =+AT30*AT31 -> -5 | AV29: =+AV30*AV31 -> 0 | AW29: =+AW30*AW31 -> 1 | AY29: =+AY30*AY31 -> 0 | AZ29: =+AZ30*AZ31 -> -2 | BB29: =+BB30*BB31 -> 0 | BC29: =+BC30*BC31 -> 0 | BE29: =+BE30*BE31 -> 0 | BF29: =+BF30*BF31 -> 0 | BH29: =+BH30*BH31 -> 20 | BI29: =+BI30*BI31 -> -2
C30: =IF($B42>3,1,0) -> 1 | D30: =IF($B42>3,1,0) -> 1 | F30: =IF($B42>3,1,0) -> 1 | G30: =IF($B42>3,1,0) -> 1 | I30: =IF($B42>3,1,0) -> 1 | J30: =IF($B42>3,1,0) -> 1 | L30: =IF($B42>3,1,0) -> 1 | M30: =IF($B42>3,1,0) -> 1 | O30: =IF($B42>3,1,0) -> 1 | P30: =IF($B42>3,1,0) -> 1 | R30: =IF($B42>3,1,0) -> 1 | S30: =IF($B42>3,1,0) -> 1 | U30: =IF($B42>3,1,0) -> 1 | V30: =IF($B42>3,1,0) -> 1 | X30: =IF($B42>3,1,0) -> 1 | Y30: =IF($B42>3,1,0) -> 1 | AA30: =IF($B42>3,1,0) -> 1 | AB30: =IF($B42>3,1,0) -> 1 | AD30: =IF($B42>3,1,0) -> 1 | AE30: =IF($B42>3,1,0) -> 1 | AG30: =IF($B42>3,1,0) -> 1 | AH30: =IF($B42>3,1,0) -> 1 | AJ30: =IF($B42>3,1,0) -> 1 | AK30: =IF($B42>3,1,0) -> 1 | AM30: =IF($B42>3,1,0) -> 1 | AN30: =IF($B42>3,1,0) -> 1 | AP30: =IF($B42>3,1,0) -> 1 | AQ30: =IF($B42>3,1,0) -> 1 | AS30: =IF($B42>3,1,0) -> 1 | AT30: =IF($B42>3,1,0) -> 1 | AV30: =IF($B42>3,1,0) -> 1 | AW30: =IF($B42>3,1,0) -> 1 | AY30: =IF($B42>3,1,0) -> 1 | AZ30: =IF($B42>3,1,0) -> 1 | BB30: =IF($B42>3,1,0) -> 1 | BC30: =IF($B42>3,1,0) -> 1 | BE30: =IF($B42>3,1,0) -> 1 | BF30: =IF($B42>3,1,0) -> 1 | BH30: =IF($B42>3,1,0) -> 1 | BI30: =IF($B42>3,1,0) -> 1
C31: =MAX(C32:C36) -> 80 | D31: =+D43 -> 33 | F31: =MAX(F32:F36) -> 0 | G31: =+G43 -> 0 | I31: =MAX(I32:I36) -> 40 | J31: =+J43 -> 5 | L31: =MAX(L32:L36) -> 0 | M31: =+M43 -> -2 | O31: =MAX(O32:O36) -> 0 | P31: =+P43 -> 1 | R31: =MAX(R32:R36) -> 0 | S31: =+S43 -> -20 | U31: =MAX(U32:U36) -> 0 | V31: =+V43 -> 0 | X31: =MAX(X32:X36) -> 0 | Y31: =+Y43 -> 0 | AA31: =MAX(AA32:AA36) -> 0 | AB31: =+AB43 -> -2 | AD31: =MAX(AD32:AD36) -> 0 | AE31: =+AE43 -> 2 | AG31: =MAX(AG32:AG36) -> 0 | AH31: =+AH43 -> -2 | AJ31: =MAX(AJ32:AJ36) -> 0 | AK31: =+AK43 -> -4 | AM31: =MAX(AM32:AM36) -> 0 | AN31: =+AN43 -> 0 | AP31: =MAX(AP32:AP36) -> 5 | AQ31: =+AQ43 -> -3 | AS31: =MAX(AS32:AS36) -> 10 | AT31: =+AT43 -> -5 | AV31: =MAX(AV32:AV36) -> 0 | AW31: =+AW43 -> 1 | AY31: =MAX(AY32:AY36) -> 0 | AZ31: =+AZ43 -> -2 | BB31: =MAX(BB32:BB36) -> 0 | BC31: =+BC43 -> 0 | BE31: =MAX(BE32:BE36) -> 0 | BF31: =+BF43 -> 0 | BH31: =MAX(BH32:BH36) -> 20 | BI31: =+BI43 -> -2
C32: =IF(C$37=5,5,0) -> 0 | F32: =IF(F$37=5,5,0) -> 0 | I32: =IF(I$37=5,5,0) -> 0 | L32: =IF(L$37=5,5,0) -> 0 | O32: =IF(O$37=5,5,0) -> 0 | R32: =IF(R$37=5,5,0) -> 0 | U32: =IF(U$37=5,5,0) -> 0 | X32: =IF(X$37=5,5,0) -> 0 | AA32: =IF(AA$37=5,5,0) -> 0 | AD32: =IF(AD$37=5,5,0) -> 0 | AG32: =IF(AG$37=5,5,0) -> 0 | AJ32: =IF(AJ$37=5,5,0) -> 0 | AM32: =IF(AM$37=5,5,0) -> 0 | AP32: =IF(AP$37=5,5,0) -> 5 | AS32: =IF(AS$37=5,5,0) -> 0 | AV32: =IF(AV$37=5,5,0) -> 0 | AY32: =IF(AY$37=5,5,0) -> 0 | BB32: =IF(BB$37=5,5,0) -> 0 | BE32: =IF(BE$37=5,5,0) -> 0 | BH32: =IF(BH$37=5,5,0) -> 0
C33: =IF(C$37=4,10,0) -> 0 | F33: =IF(F$37=4,10,0) -> 0 | I33: =IF(I$37=4,10,0) -> 0 | L33: =IF(L$37=4,10,0) -> 0 | O33: =IF(O$37=4,10,0) -> 0 | R33: =IF(R$37=4,10,0) -> 0 | U33: =IF(U$37=4,10,0) -> 0 | X33: =IF(X$37=4,10,0) -> 0 | AA33: =IF(AA$37=4,10,0) -> 0 | AD33: =IF(AD$37=4,10,0) -> 0 | AG33: =IF(AG$37=4,10,0) -> 0 | AJ33: =IF(AJ$37=4,10,0) -> 0 | AM33: =IF(AM$37=4,10,0) -> 0 | AP33: =IF(AP$37=4,10,0) -> 0 | AS33: =IF(AS$37=4,10,0) -> 10 | AV33: =IF(AV$37=4,10,0) -> 0 | AY33: =IF(AY$37=4,10,0) -> 0 | BB33: =IF(BB$37=4,10,0) -> 0 | BE33: =IF(BE$37=4,10,0) -> 0 | BH33: =IF(BH$37=4,10,0) -> 0
C34: =IF(C$37=3,20,0) -> 0 | F34: =IF(F$37=3,20,0) -> 0 | I34: =IF(I$37=3,20,0) -> 0 | L34: =IF(L$37=3,20,0) -> 0 | O34: =IF(O$37=3,20,0) -> 0 | R34: =IF(R$37=3,20,0) -> 0 | U34: =IF(U$37=3,20,0) -> 0 | X34: =IF(X$37=3,20,0) -> 0 | AA34: =IF(AA$37=3,20,0) -> 0 | AD34: =IF(AD$37=3,20,0) -> 0 | AG34: =IF(AG$37=3,20,0) -> 0 | AJ34: =IF(AJ$37=3,20,0) -> 0 | AM34: =IF(AM$37=3,20,0) -> 0 | AP34: =IF(AP$37=3,20,0) -> 0 | AS34: =IF(AS$37=3,20,0) -> 0 | AV34: =IF(AV$37=3,20,0) -> 0 | AY34: =IF(AY$37=3,20,0) -> 0 | BB34: =IF(BB$37=3,20,0) -> 0 | BE34: =IF(BE$37=3,20,0) -> 0 | BH34: =IF(BH$37=3,20,0) -> 20
C35: =IF(C$37=2,40,0) -> 0 | F35: =IF(F$37=2,40,0) -> 0 | I35: =IF(I$37=2,40,0) -> 40 | L35: =IF(L$37=2,40,0) -> 0 | O35: =IF(O$37=2,40,0) -> 0 | R35: =IF(R$37=2,40,0) -> 0 | U35: =IF(U$37=2,40,0) -> 0 | X35: =IF(X$37=2,40,0) -> 0 | AA35: =IF(AA$37=2,40,0) -> 0 | AD35: =IF(AD$37=2,40,0) -> 0 | AG35: =IF(AG$37=2,40,0) -> 0 | AJ35: =IF(AJ$37=2,40,0) -> 0 | AM35: =IF(AM$37=2,40,0) -> 0 | AP35: =IF(AP$37=2,40,0) -> 0 | AS35: =IF(AS$37=2,40,0) -> 0 | AV35: =IF(AV$37=2,40,0) -> 0 | AY35: =IF(AY$37=2,40,0) -> 0 | BB35: =IF(BB$37=2,40,0) -> 0 | BE35: =IF(BE$37=2,40,0) -> 0 | BH35: =IF(BH$37=2,40,0) -> 0
C36: =IF(C$37=1,80,0) -> 80 | F36: =IF(F$37=1,80,0) -> 0 | I36: =IF(I$37=1,80,0) -> 0 | L36: =IF(L$37=1,80,0) -> 0 | O36: =IF(O$37=1,80,0) -> 0 | R36: =IF(R$37=1,80,0) -> 0 | U36: =IF(U$37=1,80,0) -> 0 | X36: =IF(X$37=1,80,0) -> 0 | AA36: =IF(AA$37=1,80,0) -> 0 | AD36: =IF(AD$37=1,80,0) -> 0 | AG36: =IF(AG$37=1,80,0) -> 0 | AJ36: =IF(AJ$37=1,80,0) -> 0 | AM36: =IF(AM$37=1,80,0) -> 0 | AP36: =IF(AP$37=1,80,0) -> 0 | AS36: =IF(AS$37=1,80,0) -> 0 | AV36: =IF(AV$37=1,80,0) -> 0 | AY36: =IF(AY$37=1,80,0) -> 0 | BB36: =IF(BB$37=1,80,0) -> 0 | BE36: =IF(BE$37=1,80,0) -> 0 | BH36: =IF(BH$37=1,80,0) -> 0
C37: =RANK(C38,$C38:$BI38)*C42 -> 1 | F37: =RANK(F38,$C38:$BI38)*F42 -> 0 | I37: =RANK(I38,$C38:$BI38)*I42 -> 2 | L37: =RANK(L38,$C38:$BI38)*L42 -> 0 | O37: =RANK(O38,$C38:$BI38)*O42 -> 0 | R37: =RANK(R38,$C38:$BI38)*R42 -> 6 | U37: =RANK(U38,$C38:$BI38)*U42 -> 0 | X37: =RANK(X38,$C38:$BI38)*X42 -> 0 | AA37: =RANK(AA38,$C38:$BI38)*AA42 -> 0 | AD37: =RANK(AD38,$C38:$BI38)*AD42 -> 0 | AG37: =RANK(AG38,$C38:$BI38)*AG42 -> 0 | AJ37: =RANK(AJ38,$C38:$BI38)*AJ42 -> 7 | AM37: =RANK(AM38,$C38:$BI38)*AM42 -> 0 | AP37: =RANK(AP38,$C38:$BI38)*AP42 -> 5 | AS37: =RANK(AS38,$C38:$BI38)*AS42 -> 4 | AV37: =RANK(AV38,$C38:$BI38)*AV42 -> 0 | AY37: =RANK(AY38,$C38:$BI38)*AY42 -> 0 | BB37: =RANK(BB38,$C38:$BI38)*BB42 -> 0 | BE37: =RANK(BE38,$C38:$BI38)*BE42 -> 0 | BH37: =RANK(BH38,$C38:$BI38)*BH42 -> 3
C38: =SUM(C39:C41) -> 948942.5 | F38: =SUM(F39:F41) -> -1000000100 | I38: =SUM(I39:I41) -> 399409 | L38: =SUM(L39:L41) -> -1000000402 | O38: =SUM(O39:O41) -> -1000000199 | R38: =SUM(R39:R41) -> 99381 | U38: =SUM(U39:U41) -> -1000000100 | X38: =SUM(X39:X41) -> -1000000100 | AA38: =SUM(AA39:AA41) -> -1000000302 | AD38: =SUM(AD39:AD41) -> -1000000298 | AG38: =SUM(AG39:AG41) -> -1000000202 | AJ38: =SUM(AJ39:AJ41) -> 49696.5 | AM38: =SUM(AM39:AM41) -> -1000000100 | AP38: =SUM(AP39:AP41) -> 99698 | AS38: =SUM(AS39:AS41) -> 149696.5 | AV38: =SUM(AV39:AV41) -> -1000000199 | AY38: =SUM(AY39:AY41) -> -1000000302 | BB38: =SUM(BB39:BB41) -> -1000000100 | BE38: =SUM(BE39:BE41) -> -1000000100 | BH38: =SUM(BH39:BH41) -> 149699.5
C39: =+D43 -> 33 | F39: =+G43 -> 0 | I39: =+J43 -> 5 | L39: =+M43 -> -2 | O39: =+P43 -> 1 | R39: =+S43 -> -20 | U39: =+V43 -> 0 | X39: =+Y43 -> 0 | AA39: =+AB43 -> -2 | AD39: =+AE43 -> 2 | AG39: =+AH43 -> -2 | AJ39: =+AK43 -> -4 | AM39: =+AN43 -> 0 | AP39: =+AQ43 -> -3 | AS39: =+AT43 -> -5 | AV39: =+AW43 -> 1 | AY39: =+AZ43 -> -2 | BB39: =+BC43 -> 0 | BE39: =+BF43 -> 0 | BH39: =+BI43 -> -2
C40: =-C44*100 -> -1100 | F40: =-F44*100 -> -100 | I40: =-I44*100 -> -600 | L40: =-L44*100 -> -400 | O40: =-O44*100 -> -200 | R40: =-R44*100 -> -600 | U40: =-U44*100 -> -100 | X40: =-X44*100 -> -100 | AA40: =-AA44*100 -> -300 | AD40: =-AD44*100 -> -300 | AG40: =-AG44*100 -> -200 | AJ40: =-AJ44*100 -> -300 | AM40: =-AM44*100 -> -100 | AP40: =-AP44*100 -> -300 | AS40: =-AS44*100 -> -300 | AV40: =-AV44*100 -> -200 | AY40: =-AY44*100 -> -300 | BB40: =-BB44*100 -> -100 | BE40: =-BE44*100 -> -100 | BH40: =-BH44*100 -> -300
C41: =IF(E44-$A3/2<0,-1000000000,C43*C42*100000+C43) -> 950009.5 | F41: =IF(H44-$A3/2<0,-1000000000,F43*F42*100000+F43) -> -1000000000 | I41: =IF(K44-$A3/2<0,-1000000000,I43*I42*100000+I43) -> 400004 | L41: =IF(N44-$A3/2<0,-1000000000,L43*L42*100000+L43) -> -1000000000 | O41: =IF(Q44-$A3/2<0,-1000000000,O43*O42*100000+O43) -> -1000000000 | R41: =IF(T44-$A3/2<0,-1000000000,R43*R42*100000+R43) -> 100001 | U41: =IF(W44-$A3/2<0,-1000000000,U43*U42*100000+U43) -> -1000000000 | X41: =IF(Z44-$A3/2<0,-1000000000,X43*X42*100000+X43) -> -1000000000 | AA41: =IF(AC44-$A3/2<0,-1000000000,AA43*AA42*100000+AA43) -> -1000000000 | AD41: =IF(AF44-$A3/2<0,-1000000000,AD43*AD42*100000+AD43) -> -1000000000 | AG41: =IF(AI44-$A3/2<0,-1000000000,AG43*AG42*100000+AG43) -> -1000000000 | AJ41: =IF(AL44-$A3/2<0,-1000000000,AJ43*AJ42*100000+AJ43) -> 50000.5 | AM41: =IF(AO44-$A3/2<0,-1000000000,AM43*AM42*100000+AM43) -> -1000000000 | AP41: =IF(AR44-$A3/2<0,-1000000000,AP43*AP42*100000+AP43) -> 100001 | AS41: =IF(AU44-$A3/2<0,-1000000000,AS43*AS42*100000+AS43) -> 150001.5 | AV41: =IF(AX44-$A3/2<0,-1000000000,AV43*AV42*100000+AV43) -> -1000000000 | AY41: =IF(BA44-$A3/2<0,-1000000000,AY43*AY42*100000+AY43) -> -1000000000 | BB41: =IF(BD44-$A3/2<0,-1000000000,BB43*BB42*100000+BB43) -> -1000000000 | BE41: =IF(BG44-$A3/2<0,-1000000000,BE43*BE42*100000+BE43) -> -1000000000 | BH41: =IF(BJ44-$A3/2<0,-1000000000,BH43*BH42*100000+BH43) -> 150001.5
A42: Classificats | B42: =SUM(C42:BH42) -> 7 | C42: =IF(E44>=$A3/2,1,0) -> 1 | F42: =IF(H44>=$A3/2,1,0) -> 0 | I42: =IF(K43>=$A3/2,1,0) -> 1 | L42: =IF(N44>=$A3/2,1,0) -> 0 | O42: =IF(Q44>=$A3/2,1,0) -> 0 | R42: =IF(T44>=$A3/2,1,0) -> 1 | U42: =IF(W44>=$A3/2,1,0) -> 0 | X42: =IF(Z44>=$A3/2,1,0) -> 0 | AA42: =IF(AC44>=$A3/2,1,0) -> 0 | AD42: =IF(AF44>=$A3/2,1,0) -> 0 | AG42: =IF(AI44>=$A3/2,1,0) -> 0 | AJ42: =IF(AL44>=$A3/2,1,0) -> 1 | AM42: =IF(AO44>=$A3/2,1,0) -> 0 | AP42: =IF(AR44>=$A3/2,1,0) -> 1 | AS42: =IF(AU44>=$A3/2,1,0) -> 1 | AV42: =IF(AX44>=$A3/2,1,0) -> 0 | AY42: =IF(BA44>=$A3/2,1,0) -> 0 | BB42: =IF(BD44>=$A3/2,1,0) -> 0 | BE42: =IF(BG44>=$A3/2,1,0) -> 0 | BH42: =IF(BJ44>=$A3/2,1,0) -> 1 | BK42: =MAX(BL45:BL1100) -> 109
C43: =IF(SUM(C48:C1100)<-1000,-100000000,SUM(C48:C1100)) -> 9.5 | D43: =+D48+D51+D54+D57+D60+D63+D66+D69+D75+D78+D81+D84+D87+D90+D93+D96+D99+D102+D105+D108+D111+D114+D117+D120+D123-D125-D122-D119-D116-D113-D110-D107-D104-D101-D98-D95-D92-D89-D83-D80-D77-D74-+D72-D71-D68-D65-D59-D56-D53-D50-D62-D86 -> 33 | E43: =SUM(D48:D1100)/3 -> 26 | F43: =IF(SUM(F48:F1100)<-1000,-100000000,SUM(F48:F1100)) -> -100000000 | G43: =+G48+G51+G54+G57+G60+G63+G66+G69+G75+G78+G81+G84+G87+G90+G93+G96+G99+G102+G105+G108+G111+G114+G117+G120+G123-G125-G122-G119-G116-G113-G110-G107-G104-G101-G98-G95-G92-G89-G83-G80-G77-G74-+G72-G71-G68-G65-G59-G56-G53-G50-G62-G86 -> 0 | H43: =SUM(G48:G1100)/3 -> 0 | I43: =IF(SUM(I48:I1100)<-1000,-100000000,SUM(I48:I1100)) -> 4 | J43: =+J48+J51+J54+J57+J60+J63+J66+J69+J75+J78+J81+J84+J87+J90+J93+J96+J99+J102+J105+J108+J111+J114+J117+J120+J123-J125-J122-J119-J116-J113-J110-J107-J104-J101-J98-J95-J92-J89-J83-J80-J77-J74-+J72-J71-J68-J65-J59-J56-J53-J50-J62-J86 -> 5 | K43: =SUM(J48:J1100)/3 -> 14.66666667 | L43: =IF(SUM(L48:L1100)<-1000,-100000000,SUM(L48:L1100)) -> 1 | M43: =+M48+M51+M54+M57+M60+M63+M66+M69+M75+M78+M81+M84+M87+M90+M93+M96+M99+M102+M105+M108+M111+M114+M117+M120+M123-M125-M122-M119-M116-M113-M110-M107-M104-M101-M98-M95-M92-M89-M83-M80-M77-M74-+M72-M71-M68-M65-M59-M56-M53-M50-M62-M86 -> -2 | N43: =SUM(M48:M1100)/3 -> 2.666666667 | O43: =IF(SUM(O48:O1100)<-1000,-100000000,SUM(O48:O1100)) -> 1.5 | P43: =+P48+P51+P54+P57+P60+P63+P66+P69+P75+P78+P81+P84+P87+P90+P93+P96+P99+P102+P105+P108+P111+P114+P117+P120+P123-P125-P122-P119-P116-P113-P110-P107-P104-P101-P98-P95-P92-P89-P83-P80-P77-P74-+P72-P71-P68-P65-P59-P56-P53-P50-P62-P86 -> 1 | Q43: =SUM(P48:P1100)/3 -> 1.666666667 | R43: =IF(SUM(R48:R1100)<-1000,-100000000,SUM(R48:R1100)) -> 1 | S43: =+S48+S51+S54+S57+S60+S63+S66+S69+S75+S78+S81+S84+S87+S90+S93+S96+S99+S102+S105+S108+S111+S114+S117+S120+S123-S125-S122-S119-S116-S113-S110-S107-S104-S101-S98-S95-S92-S89-S83-S80-S77-S74-+S72-S71-S68-S65-S59-S56-S53-S50-S62-S86 -> -20 | T43: =SUM(S48:S1100)/3 -> 16 | U43: =IF(SUM(U48:U1100)<-1000,-100000000,SUM(U48:U1100)) -> -100000000 | V43: =+V48+V51+V54+V57+V60+V63+V66+V69+V75+V78+V81+V84+V87+V90+V93+V96+V99+V102+V105+V108+V111+V114+V117+V120+V123-V125-V122-V119-V116-V113-V110-V107-V104-V101-V98-V95-V92-V89-V83-V80-V77-V74-+V72-V71-V68-V65-V59-V56-V53-V50-V62-V86 -> 0 | W43: =SUM(V48:V1100)/3 -> 0 | X43: =IF(SUM(X48:X1100)<-1000,-100000000,SUM(X48:X1100)) -> -100000000 | Y43: =+Y48+Y51+Y54+Y57+Y60+Y63+Y66+Y69+Y75+Y78+Y81+Y84+Y87+Y90+Y93+Y96+Y99+Y102+Y105+Y108+Y111+Y114+Y117+Y120+Y123-Y125-Y122-Y119-Y116-Y113-Y110-Y107-Y104-Y101-Y98-Y95-Y92-Y89-Y83-Y80-Y77-Y74-+Y72-Y71-Y68-Y65-Y59-Y56-Y53-Y50-Y62-Y86 -> 0 | Z43: =SUM(Y48:Y1100)/3 -> 0 | AA43: =IF(SUM(AA48:AA1100)<-1000,-100000000,SUM(AA48:AA1100)) -> 1 | AB43: =+AB48+AB51+AB54+AB57+AB60+AB63+AB66+AB69+AB75+AB78+AB81+AB84+AB87+AB90+AB93+AB96+AB99+AB102+AB105+AB108+AB111+AB114+AB117+AB120+AB123-AB125-AB122-AB119-AB116-AB113-AB110-AB107-AB104-AB101-AB98-AB95-AB92-AB89-AB83-AB80-AB77-AB74-+AB72-AB71-AB68-AB65-AB59-AB56-AB53-AB50-AB62-AB86 -> -2 | AC43: =SUM(AB48:AB1100)/3 -> 3 | AD43: =IF(SUM(AD48:AD1100)<-1000,-100000000,SUM(AD48:AD1100)) -> 2.5 | AE43: =+AE48+AE51+AE54+AE57+AE60+AE63+AE66+AE69+AE75+AE78+AE81+AE84+AE87+AE90+AE93+AE96+AE99+AE102+AE105+AE108+AE111+AE114+AE117+AE120+AE123-AE125-AE122-AE119-AE116-AE113-AE110-AE107-AE104-AE101-AE98-AE95-AE92-AE89-AE83-AE80-AE77-AE74-+AE72-AE71-AE68-AE65-AE59-AE56-AE53-AE50-AE62-AE86 -> 2 | AF43: =SUM(AE48:AE1100)/3 -> 1 | AG43: =IF(SUM(AG48:AG1100)<-1000,-100000000,SUM(AG48:AG1100)) -> 0 | AH43: =+AH48+AH51+AH54+AH57+AH60+AH63+AH66+AH69+AH75+AH78+AH81+AH84+AH87+AH90+AH93+AH96+AH99+AH102+AH105+AH108+AH111+AH114+AH117+AH120+AH123-AH125-AH122-AH119-AH116-AH113-AH110-AH107-AH104-AH101-AH98-AH95-AH92-AH89-AH83-AH80-AH77-AH74-+AH72-AH71-AH68-AH65-AH59-AH56-AH53-AH50-AH62-AH86 -> -2 | AI43: =SUM(AH48:AH1100)/3 -> 0.6666666667 | AJ43: =IF(SUM(AJ48:AJ1100)<-1000,-100000000,SUM(AJ48:AJ1100)) -> 0.5 | AK43: =+AK48+AK51+AK54+AK57+AK60+AK63+AK66+AK69+AK75+AK78+AK81+AK84+AK87+AK90+AK93+AK96+AK99+AK102+AK105+AK108+AK111+AK114+AK117+AK120+AK123-AK125-AK122-AK119-AK116-AK113-AK110-AK107-AK104-AK101-AK98-AK95-AK92-AK89-AK83-AK80-AK77-AK74-+AK72-AK71-AK68-AK65-AK59-AK56-AK53-AK50-AK62-AK86 -> -4 | AL43: =SUM(AK48:AK1100)/3 -> 5 | AM43: =IF(SUM(AM48:AM1100)<-1000,-100000000,SUM(AM48:AM1100)) -> -100000000 | AN43: =+AN48+AN51+AN54+AN57+AN60+AN63+AN66+AN69+AN75+AN78+AN81+AN84+AN87+AN90+AN93+AN96+AN99+AN102+AN105+AN108+AN111+AN114+AN117+AN120+AN123-AN125-AN122-AN119-AN116-AN113-AN110-AN107-AN104-AN101-AN98-AN95-AN92-AN89-AN83-AN80-AN77-AN74-+AN72-AN71-AN68-AN65-AN59-AN56-AN53-AN50-AN62-AN86 -> 0 | AO43: =SUM(AN48:AN1100)/3 -> 0 | AP43: =IF(SUM(AP48:AP1100)<-1000,-100000000,SUM(AP48:AP1100)) -> 1 | AQ43: =+AQ48+AQ51+AQ54+AQ57+AQ60+AQ63+AQ66+AQ69+AQ75+AQ78+AQ81+AQ84+AQ87+AQ90+AQ93+AQ96+AQ99+AQ102+AQ105+AQ108+AQ111+AQ114+AQ117+AQ120+AQ123-AQ125-AQ122-AQ119-AQ116-AQ113-AQ110-AQ107-AQ104-AQ101-AQ98-AQ95-AQ92-AQ89-AQ83-AQ80-AQ77-AQ74-+AQ72-AQ71-AQ68-AQ65-AQ59-AQ56-AQ53-AQ50-AQ62-AQ86 -> -3 | AR43: =SUM(AQ48:AQ1100)/3 -> 6.333333333 | AS43: =IF(SUM(AS48:AS1100)<-1000,-100000000,SUM(AS48:AS1100)) -> 1.5 | AT43: =+AT48+AT51+AT54+AT57+AT60+AT63+AT66+AT69+AT75+AT78+AT81+AT84+AT87+AT90+AT93+AT96+AT99+AT102+AT105+AT108+AT111+AT114+AT117+AT120+AT123-AT125-AT122-AT119-AT116-AT113-AT110-AT107-AT104-AT101-AT98-AT95-AT92-AT89-AT83-AT80-AT77-AT74-+AT72-AT71-AT68-AT65-AT59-AT56-AT53-AT50-AT62-AT86 -> -5 | AU43: =SUM(AT48:AT1100)/3 -> 5 | AV43: =IF(SUM(AV48:AV1100)<-1000,-100000000,SUM(AV48:AV1100)) -> 1.5 | AW43: =+AW48+AW51+AW54+AW57+AW60+AW63+AW66+AW69+AW75+AW78+AW81+AW84+AW87+AW90+AW93+AW96+AW99+AW102+AW105+AW108+AW111+AW114+AW117+AW120+AW123-AW125-AW122-AW119-AW116-AW113-AW110-AW107-AW104-AW101-AW98-AW95-AW92-AW89-AW83-AW80-AW77-AW74-+AW72-AW71-AW68-AW65-AW59-AW56-AW53-AW50-AW62-AW86 -> 1 | AX43: =SUM(AW48:AW1100)/3 -> 1 | AY43: =IF(SUM(AY48:AY1100)<-1000,-100000000,SUM(AY48:AY1100)) -> 0.5 | AZ43: =+AZ48+AZ51+AZ54+AZ57+AZ60+AZ63+AZ66+AZ69+AZ75+AZ78+AZ81+AZ84+AZ87+AZ90+AZ93+AZ96+AZ99+AZ102+AZ105+AZ108+AZ111+AZ114+AZ117+AZ120+AZ123-AZ125-AZ122-AZ119-AZ116-AZ113-AZ110-AZ107-AZ104-AZ101-AZ98-AZ95-AZ92-AZ89-AZ83-AZ80-AZ77-AZ74-+AZ72-AZ71-AZ68-AZ65-AZ59-AZ56-AZ53-AZ50-AZ62-AZ86 -> -2 | BA43: =SUM(AZ48:AZ1100)/3 -> 1 | BB43: =IF(SUM(BB48:BB1100)<-1000,-100000000,SUM(BB48:BB1100)) -> -100000000 | BC43: =+BC48+BC51+BC54+BC57+BC60+BC63+BC66+BC69+BC75+BC78+BC81+BC84+BC87+BC90+BC93+BC96+BC99+BC102+BC105+BC108+BC111+BC114+BC117+BC120+BC123-BC125-BC122-BC119-BC116-BC113-BC110-BC107-BC104-BC101-BC98-BC95-BC92-BC89-BC83-BC80-BC77-BC74-+BC72-BC71-BC68-BC65-BC59-BC56-BC53-BC50-BC62-BC86 -> 0 | BD43: =SUM(BC48:BC1100)/3 -> 0 | BE43: =IF(SUM(BE48:BE1100)<-1000,-100000000,SUM(BE48:BE1100)) -> -100000000 | BF43: =+BF48+BF51+BF54+BF57+BF60+BF63+BF66+BF69+BF75+BF78+BF81+BF84+BF87+BF90+BF93+BF96+BF99+BF102+BF105+BF108+BF111+BF114+BF117+BF120+BF123-BF125-BF122-BF119-BF116-BF113-BF110-BF107-BF104-BF101-BF98-BF95-BF92-BF89-BF83-BF80-BF77-BF74-+BF72-BF71-BF68-BF65-BF59-BF56-BF53-BF50-BF62-BF86 -> 0 | BG43: =SUM(BF48:BF1100)/3 -> 0 | BH43: =IF(SUM(BH48:BH1100)<-1000,-100000000,SUM(BH48:BH1100)) -> 1.5 | BI43: =+BI48+BI51+BI54+BI57+BI60+BI63+BI66+BI69+BI75+BI78+BI81+BI84+BI87+BI90+BI93+BI96+BI99+BI102+BI105+BI108+BI111+BI114+BI117+BI120+BI123-BI125-BI122-BI119-BI116-BI113-BI110-BI107-BI104-BI101-BI98-BI95-BI92-BI89-BI83-BI80-BI77-BI74-+BI72-BI71-BI68-BI65-BI59-BI56-BI53-BI50-BI62-BI86 -> -2 | BJ43: =SUM(BI48:BI1100)/3 -> 4.666666667 | BL43: A
C44: =COUNT(C48:C1100) -> 11 | D44: =SUM(D48:D1100) -> 78 | E44: 60 | F44: =COUNT(F48:F1100) -> 1 | G44: =SUM(G48:G1100) -> 0 | H44: 0 | I44: =COUNT(I48:I1100) -> 6 | J44: =SUM(J48:J1100) -> 44 | K44: 18 | L44: =COUNT(L48:L1100) -> 4 | M44: =SUM(M48:M1100) -> 8 | N44: 3 | O44: =COUNT(O48:O1100) -> 2 | P44: =SUM(P48:P1100) -> 5 | Q44: 3 | R44: =COUNT(R48:R1100) -> 6 | S44: =SUM(S48:S1100) -> 48 | T44: 46 | U44: =COUNT(U48:U1100) -> 1 | V44: =SUM(V48:V1100) -> 0 | W44: 0 | X44: =COUNT(X48:X1100) -> 1 | Y44: =SUM(Y48:Y1100) -> 0 | Z44: 0 | AA44: =COUNT(AA48:AA1100) -> 3 | AB44: =SUM(AB48:AB1100) -> 9 | AC44: 3 | AD44: =COUNT(AD48:AD1100) -> 3 | AE44: =SUM(AE48:AE1100) -> 3 | AF44: 1 | AG44: =COUNT(AG48:AG1100) -> 2 | AH44: =SUM(AH48:AH1100) -> 2 | AI44: 1 | AJ44: =COUNT(AJ48:AJ1100) -> 3 | AK44: =SUM(AK48:AK1100) -> 15 | AL44: 10 | AM44: =COUNT(AM48:AM1100) -> 1 | AN44: =SUM(AN48:AN1100) -> 0 | AO44: 0 | AP44: =COUNT(AP48:AP1100) -> 3 | AQ44: =SUM(AQ48:AQ1100) -> 19 | AR44: 10 | AS44: =COUNT(AS48:AS1100) -> 3 | AT44: =SUM(AT48:AT1100) -> 15 | AU44: 14 | AV44: =COUNT(AV48:AV1100) -> 2 | AW44: =SUM(AW48:AW1100) -> 3 | AX44: 2 | AY44: =COUNT(AY48:AY1100) -> 3 | AZ44: =SUM(AZ48:AZ1100) -> 3 | BA44: 1 | BB44: =COUNT(BB48:BB1100) -> 1 | BC44: =SUM(BC48:BC1100) -> 0 | BD44: 0 | BE44: =COUNT(BE48:BE1100) -> 1 | BF44: =SUM(BF48:BF1100) -> 0 | BG44: 0 | BH44: =COUNT(BH48:BH1100) -> 3 | BI44: =SUM(BI48:BI1100) -> 14 | BJ44: 8 | BL44: B
C45: =COUNTIF(C48:C67,10) -> 0 | F45: =COUNTIF(F48:F67,10) -> 0 | I45: =COUNTIF(I48:I67,10) -> 0 | L45: =COUNTIF(L48:L67,10) -> 0 | O45: =COUNTIF(O48:O67,10) -> 0 | R45: =COUNTIF(R48:R67,10) -> 0 | U45: =COUNTIF(U48:U67,10) -> 0 | X45: =COUNTIF(X48:X67,10) -> 0 | AG45: =COUNTIF(AG48:AG67,10) -> 0 | AM45: =COUNTIF(AM48:AM67,10) -> 0 | AP45: =COUNTIF(AP48:AP67,10) -> 0 | AS45: =COUNTIF(AS48:AS67,10) -> 0 | AV45: =COUNTIF(AV48:AV67,10) -> 0 | AY45: =COUNTIF(AY48:AY67,10) -> 0 | BK45: =MAX(BL48:BL1100) -> 109
C46: Jordi | F46: Sergi | I46: Núria | L46: Gemma | O46: Òscar | R46: Nogué | U46: Carles | X46: Mariajo | AA46: Eito | AD46: Christophe | AG46: Ana B. | AJ46: Xavier | AM46: Manolo | AP46: Sebas | AS46: Goretti | AV46: Grau | AY46: Isabel | BB46: Tito | BE46: Nin | BH46: Lluisa | BK46: =COUNT(BK48:BK1100) -> 37 | BL46: A | BM46: B | BN46: C
B47: Comentaris | C47: Premi | D47: Punts | F47: Premi | G47: Punts | I47: Premi | J47: Punts | L47: Premi | M47: Punts | O47: Premi | P47: Punts | R47: Premi | S47: Punts | U47: Premi | V47: Punts | X47: Premi | Y47: Punts | AA47: Premi | AB47: Punts | AD47: Premi | AE47: Punts | AG47: Premi | AH47: Punts | AJ47: Premi | AK47: Punts | AM47: Premi | AN47: Punts | AP47: Premi | AQ47: Punts | AS47: Premi | AT47: Punts | AV47: Premi | AW47: Punts | AY47: Premi | AZ47: Punts | BB47: Premi | BC47: Punts | BE47: Premi | BF47: Punts | BH47: Premi | BI47: Punts | BK47: Data | BL47: Timba
A48: G | B48: Jordi | F48: -10000 | H48: -1 | I48: =IF(J48-J50=0,0.5,IF(J48>J50,1,0)) -> 0 | J48: 6 | L48: =IF(M48-M50=0,0.5,IF(M48>M50,1,0)) -> 0 | M48: 1 | O48: =IF(P48-P50=0,0.5,IF(P48>P50,1,0)) -> 0.5 | P48: 2 | R48: =IF(S48-S50=0,0.5,IF(S48>S50,1,0)) -> 0 | S48: 4 | U48: -10000 | W48: -1 | X48: -10000 | Z48: -1 | AA48: =IF(AB48-AB50=0,0.5,IF(AB48>AB50,1,0)) -> 0 | AD48: =IF(AE48-AE50=0,0.5,IF(AE48>AE50,1,0)) -> 1 | AE48: 1 | AJ48: =IF(AK48-AK50=0,0.5,IF(AK48>AK50,1,0)) -> 0 | AM48: -10000 | AO48: -1 | AP48: =IF(AQ48-AQ50=0,0.5,IF(AQ48>AQ50,1,0)) -> 0 | AQ48: 2 | AS48: =IF(AT48-AT50=0,0.5,IF(AT48>AT50,1,0)) -> 0 | AT48: 3 | AY48: =IF(AZ48-AZ50=0,0.5,IF(AZ48>AZ50,1,0)) -> 0 | BB48: -10000 | BD48: -1 | BE48: -10000 | BG48: -1 | BH48: =IF(BI48-BI50=0,0.5,IF(BI48>BI50,1,0)) -> 0 | BK48: 2021-10-09 | BL48: 4 | BM48: =+BH48+AJ48+AG48+AD48+AA48+X48+U48+R48+O48+L48+I48+F48+C48+AM48+AP48+AS48+AV48+AY48+BB48+BE48 -> -59998.5 | BN48: =+BI48+AK48+AH48+AE48+AB48+Y48+V48+S48+P48+M48+J48+G48+D48+AN48+AQ48+AT48+AW48+AZ48+BC48+BF48 -> 19 | BO48: =+BJ48+AL48+AI48+AF48+AC48+Z48+W48+T48+Q48+N48+K48+H48+E48+AO48+AR48+AU48+AX48+BA48+BD48+BG48 -> -6 | BP48: =+BN48-BO48 -> 25 | BQ48: =COUNT(C48:BJ48)/3 -> 10 | BR48: =+BM48/BQ48 -> -5999.85
A49: E | J49: 2 | S49: 3 | AB49: 1 | AK49: 1 | BK49: 2021-12-09 | BL49: 40 | BM49: 0 | BN49: =+BI49+AK49+AH49+AE49+AB49+Y49+V49+S49+P49+M49+J49+G49+D49+AN49+AQ49+AT49+AW49+AZ49+BC49+BF49 -> 7 | BO49: =+BJ49+AL49+AI49+AF49+AC49+Z49+W49+T49+Q49+N49+K49+H49+E49+AO49+AR49+AU49+AX49+BA49+BD49+BG49 -> 0 | BP49: 7 | BQ49: 1.333333333 | BR49: 0
A50: P | J50: 11 | M50: 2 | P50: 2 | S50: 14 | AB50: 2 | AK50: 3 | AQ50: 5 | AT50: 9 | AZ50: 1 | BI50: 3 | BK50: 2021-12-09 | BL50: 40 | BM50: 0 | BN50: 52 | BO50: 0 | BP50: 52 | BQ50: 3.333333333 | BR50: 0
A51: G | B51: Sergi | BK51: 2022-01-14 | BL51: 44 | BM51: 0 | BN51: 0 | BO51: 0 | BP51: 0 | BQ51: 0
A52: E | BK52: 2022-01-14 | BL52: 44 | BM52: 0 | BN52: 0 | BO52: 0 | BP52: 0 | BQ52: 0
A53: P | BK53: 2022-01-14 | BL53: 44 | BM53: 0 | BN53: 0 | BO53: 0 | BP53: 0 | BQ53: 0
A54: G | B54: Núria | C54: =IF(D54-D56=0,0.5,IF(D54>D56,1,0)) -> 1 | D54: 11 | L54: =IF(M54-M56=0,0.5,IF(M54>M56,1,0)) -> 0 | R54: =IF(S54-S56=0,0.5,IF(S54>S56,1,0)) -> 0 | S54: 4 | AD54: =IF(AE54-AE56=0,0.5,IF(AE54>AE56,1,0)) -> 0.5 | AP54: =IF(AQ54-AQ56=0,0.5,IF(AQ54>AQ56,1,0)) -> 0.5 | AQ54: 2 | AY54: =IF(AZ54-AZ56=0,0.5,IF(AZ54>AZ56,1,0)) -> 0 | BK54: 2022-01-14 | BL54: 44 | BM54: 2 | BN54: 17 | BO54: 0 | BP54: 17 | BQ54: 3 | BR54: 0.6666666667
A55: E | D55: 2 | M55: 1 | AE55: 1 | AQ55: 1 | BK55: 2022-01-21 | BL55: 46 | BM55: 0 | BN55: 5 | BO55: 0 | BP55: 5 | BQ55: 1.333333333 | BR55: 0
A56: P | D56: 6 | M56: 1 | S56: 12 | AQ56: 2 | AZ56: 1 | BK56: 2022-01-21 | BL56: 46 | BM56: 0 | BN56: 22 | BO56: 0 | BP56: 22 | BQ56: 1.666666667 | BR56: 0
A57: G | B57: Gemma | C57: =IF(D57-D59=0,0.5,IF(D57>D59,1,0)) -> 1 | D57: 2 | I57: =IF(J57-J59=0,0.5,IF(J57>J59,1,0)) -> 1 | J57: 1 | O57: =IF(P57-P59=0,0.5,IF(P57>P59,1,0)) -> 1 | P57: 1 | R57: =IF(S57-S59=0,0.5,IF(S57>S59,1,0)) -> 0 | BK57: 2022-02-03 | BL57: 47 | BM57: 3 | BN57: 4 | BO57: 0 | BP57: 4 | BQ57: 2.333333333 | BR57: 1.285714286
A58: E | J58: 1 | S58: 1 | BK58: 2022-03-04 | BL58: 51 | BM58: 0 | BN58: 2 | BO58: 0 | BP58: 2 | BQ58: 0.6666666667 | BR58: 0
A59: P | D59: 1 | S59: 1 | BK59: 2022-03-04 | BL59: 51 | BM59: 0 | BN59: 2 | BO59: 0 | BP59: 2 | BQ59: 0.6666666667 | BR59: 0
A60: G | B60: Òscar | C60: =IF(D60-D62=0,0.5,IF(D60>D62,1,0)) -> 0.5 | D60: 2 | L60: =IF(M60-M62=0,0.5,IF(M60>M62,1,0)) -> 0 | BK60: 2022-03-31 | BL60: 53 | BM60: 0.5 | BN60: 2 | BO60: 0 | BP60: 2 | BQ60: 1 | BR60: 0.5
A61: E | BK61: 2022-04-01 | BL61: 54 | BM61: 0 | BN61: 0 | BO61: 0 | BP61: 0 | BQ61: 0
A62: P | D62: 2 | M62: 1 | BK62: 2022-04-18 | BL62: 59 | BM62: 0 | BN62: 3 | BO62: 0 | BP62: 3 | BQ62: 0.6666666667 | BR62: 0
A63: G | B63: Nogué | C63: =IF(D63-D65=0,0.5,IF(D63>D65,1,0)) -> 1 | D63: 14 | I63: =IF(J63-J65=0,0.5,IF(J63>J65,1,0)) -> 1 | J63: 12 | L63: =IF(M63-M65=0,0.5,IF(M63>M65,1,0)) -> 1 | M63: 1 | AD63: =IF(AE63-AE65=0,0.5,IF(AE63>AE65,1,0)) -> 1 | AE63: 1 | AP63: =IF(AQ63-AQ65=0,0.5,IF(AQ63>AQ65,1,0)) -> 0.5 | AQ63: 3 | AY63: =IF(AZ63-AZ65=0,0.5,IF(AZ63>AZ65,1,0)) -> 0.5 | BK63: 2022-05-13 | BL63: 61 | BM63: 5 | BN63: 31 | BO63: 0 | BP63: 31 | BQ63: 3.666666667 | BR63: 1.363636364
A64: E | D64: 3 | M64: 1 | AQ64: 1 | AZ64: 1 | BK64: 2022-05-20 | BL64: 62 | BM64: 0 | BN64: 6 | BO64: 0 | BP64: 6 | BQ64: 1.333333333 | BR64: 0
A65: P | D65: 4 | J65: 4 | AQ65: 3 | BK65: 2022-05-29 | BL65: 65 | BM65: 0 | BN65: 11 | BO65: 0 | BP65: 11 | BQ65: 1 | BR65: 0
A66: G | B66: Carles | BK66: 2022-07-01 | BL66: 77 | BM66: 0 | BN66: 0 | BO66: 0 | BP66: 0 | BQ66: 0
A67: E | BK67: 2022-07-01 | BL67: 77 | BM67: 0 | BN67: 0 | BO67: 0 | BP67: 0 | BQ67: 0
A68: P | BK68: 2022-07-22 | BL68: 84 | BM68: 0 | BN68: 0 | BO68: 0 | BP68: 0 | BQ68: 0
A69: G | B69: Mariajo | BK69: 2022-07-22 | BL69: 84 | BM69: 0 | BN69: 0 | BO69: 0 | BP69: 0 | BQ69: 0
A70: E | BK70: 2022-07-23 | BL70: 85 | BM70: 0 | BN70: 0 | BO70: 0 | BP70: 0 | BQ70: 0
A71: P | BK71: 2022-08-02 | BL71: 86 | BM71: 0 | BN71: 0 | BO71: 0 | BP71: 0 | BQ71: 0
A72: G | B72: Rosa M. | BK72: 2022-08-02 | BL72: 86 | BM72: 0 | BN72: 0 | BO72: 0 | BP72: 0 | BQ72: 0
A73: E | BK73: 2022-08-02 | BL73: 86 | BM73: 0 | BN73: 0 | BO73: 0 | BP73: 0 | BQ73: 0
A74: P | BK74: 2022-08-18 | BL74: 89 | BM74: 0 | BN74: 0 | BO74: 0 | BP74: 0 | BQ74: 0
A75: G | B75: Christophe | C75: =IF(D75-D77=0,0.5,IF(D75>D77,1,0)) -> 0 | I75: =IF(J75-J77=0,0.5,IF(J75>J77,1,0)) -> 0.5 | R75: =IF(S75-S77=0,0.5,IF(S75>S77,1,0)) -> 0 | BK75: 2022-08-18 | BL75: 89 | BM75: 0.5 | BN75: 0 | BO75: 0 | BP75: 0 | BQ75: 1 | BR75: 0.5
A76: E | J76: 1 | BK76: 2022-08-18 | BL76: 89 | BM76: 0 | BN76: 1 | BO76: 0 | BP76: 1 | BQ76: 0.3333333333 | BR76: 0
A77: P | D77: 1 | S77: 1 | BK77: 2022-08-18 | BL77: 89 | BM77: 0 | BN77: 2 | BO77: 0 | BP77: 2 | BQ77: 0.6666666667 | BR77: 0
A78: G | B78: Ana B. | AS78: =IF(AT78-AT80=0,0.5,IF(AT78>AT80,1,0)) -> 1 | AT78: 1 | AV78: =IF(AW78-AW80=0,0.5,IF(AW78>AW80,1,0)) -> 1 | AW78: 1 | BK78: 2022-08-24 | BL78: 96 | BM78: 2 | BN78: 2 | BO78: 0 | BP78: 2 | BQ78: 1.333333333 | BR78: 1.5
A79: E | BK79: 2022-08-24 | BL79: 96 | BM79: 0 | BN79: 0 | BO79: 0 | BP79: 0 | BQ79: 0
A80: P | BK80: 2022-08-25 | BL80: 97 | BM80: 0 | BN80: 0 | BO80: 0 | BP80: =+BN80-BO80 -> 0 | BQ80: =COUNT(C80:BJ80)/3 -> 0 | BR80: =+BM80/BQ80 -> 
A81: G | B81: Anna P. | BK81: 2022-08-25 | BL81: 97 | BM81: 0 | BN81: 0 | BO81: 0 | BP81: 0 | BQ81: 0
A82: E | BK82: 2022-08-25 | BL82: 97 | BM82: 0 | BN82: 0 | BO82: 0 | BP82: 0 | BQ82: 0
A83: P | BK83: 2022-08-26 | BL83: 98 | BM83: 0 | BN83: 0 | BO83: 0 | BP83: 0 | BQ83: 0
A84: G | B84: Manolo | BK84: 2022-09-29 | BL84: 109 | BM84: 0 | BN84: 0 | BO84: 0 | BP84: 0 | BQ84: 0
A85: E | BM85: 0 | BN85: 0 | BO85: 0 | BP85: 0 | BQ85: 0
A86: P | BM86: 0 | BN86: 0 | BO86: 0 | BP86: 0 | BQ86: 0
A87: G | B87: Sebas | C87: =IF(D87-D89=0,0.5,IF(D87>D89,1,0)) -> 1 | D87: 5 | I87: =IF(J87-J89=0,0.5,IF(J87>J89,1,0)) -> 0.5 | J87: 2 | R87: =IF(S87-S89=0,0.5,IF(S87>S89,1,0)) -> 0.5 | S87: 3 | BM87: 2 | BN87: 10 | BO87: 0 | BP87: 10 | BQ87: 2 | BR87: 1
A88: E | J88: 1 | S88: 1 | BM88: 0 | BN88: 2 | BO88: 0 | BP88: 2 | BQ88: 0.6666666667 | BR88: 0
A89: P | D89: 2 | J89: 2 | S89: 3 | BM89: 0 | BN89: 7 | BO89: 0 | BP89: =+BN89-BO89 -> 7 | BQ89: =COUNT(C89:BJ89)/3 -> 1 | BR89: =+BM89/BQ89 -> 0
A90: G | B90: Goretti | C90: =IF(D90-D92=0,0.5,IF(D90>D92,1,0)) -> 1 | D90: 9 | AG90: =IF(AH90-AH92=0,0.5,IF(AH90>AH92,1,0)) -> 0 | AV90: =IF(AW90-AW92=0,0.5,IF(AW90>AW92,1,0)) -> 0.5 | AW90: 1 | BM90: 1.5 | BN90: 10 | BO90: 0 | BP90: 10 | BQ90: 1.666666667 | BR90: 0.9
A91: E | BM91: 0 | BN91: 0 | BO91: 0 | BP91: 0 | BQ91: 0
A92: P | D92: 3 | AH92: 1 | AW92: 1 | BM92: 0 | BN92: 5 | BO92: 0 | BP92: 5 | BQ92: 1 | BR92: 0
A93: G | B93: Grau | AG93: =IF(AH93-AH95=0,0.5,IF(AH93>AH95,1,0)) -> 0 | AS93: =IF(AT93-AT95=0,0.5,IF(AT93>AT95,1,0)) -> 0.5 | AT93: 1 | BM93: 0.5 | BN93: 1 | BO93: 0 | BP93: 1 | BQ93: 1 | BR93: 0.5
A94: E | BM94: 0 | BN94: 0 | BO94: 0 | BP94: 0 | BQ94: 0
A95: P | AH95: 1 | AT95: 1 | BM95: 0 | BN95: 2 | BO95: 0 | BP95: 2 | BQ95: 0.6666666667 | BR95: 0
A96: G | B96: Lucía | BM96: 0 | BN96: 0 | BO96: 0 | BP96: 0 | BQ96: 0
A97: E | BM97: 0 | BN97: 0 | BO97: 0 | BP97: 0 | BQ97: 0
A98: P | BM98: 0 | BN98: 0 | BO98: 0 | BP98: 0 | BQ98: 0
A99: G | B99: Tito | BM99: 0 | BN99: 0 | BO99: 0 | BP99: 0 | BQ99: 0
A100: E | BM100: 0 | BN100: 0 | BO100: 0 | BP100: 0 | BQ100: 0
A101: P | BM101: 0 | BN101: 0 | BO101: 0 | BP101: 0 | BQ101: 0
A102: G | B102: Nin | BM102: =+BH102+AJ102+AG102+AD102+AA102+X102+U102+R102+O102+L102+I102+F102+C102+AM102+AP102+AS102+AV102+AY102+BB102+BE102 -> 0 | BN102: 0 | BO102: 0 | BP102: 0 | BQ102: 0
A103: E | BM103: 0 | BN103: 0 | BO103: 0 | BP103: 0 | BQ103: 0
A104: P | BM104: 0 | BN104: 0 | BO104: 0 | BP104: 0 | BQ104: 0
A105: G | B105: Lluisa | C105: =IF(D105-D107=0,0.5,IF(D105>D107,1,0)) -> 1 | D105: 3 | AA105: =IF(AB105-AB107=0,0.5,IF(AB105>AB107,1,0)) -> 0.5 | AB105: 1 | AJ105: =IF(AK105-AK107=0,0.5,IF(AK105>AK107,1,0)) -> 0 | AK105: 3 | BM105: =+BH105+AJ105+AG105+AD105+AA105+X105+U105+R105+O105+L105+I105+F105+C105+AM105+AP105+AS105+AV105+AY105+BB105+BE105 -> 1.5 | BN105: 7 | BO105: 0 | BP105: 7 | BQ105: 2 | BR105: 0.75
A106: E | AB106: 1 | AK106: 1 | BM106: 0 | BN106: 2 | BO106: 0 | BP106: 2 | BQ106: 0.6666666667 | BR106: 0
A107: P | AB107: 1 | AK107: 4 | BM107: 0 | BN107: 5 | BO107: 0 | BP107: 5 | BQ107: 0.6666666667 | BR107: 0
A108: G | B108: Isabel | C108: =IF(D108-D110=0,0.5,IF(D108>D110,1,0)) -> 1 | D108: 1 | I108: =IF(J108-J110=0,0.5,IF(J108>J110,1,0)) -> 1 | J108: 1 | R108: =IF(S108-S110=0,0.5,IF(S108>S110,1,0)) -> 0.5 | BM108: 2.5 | BN108: 2 | BO108: 0 | BP108: 2 | BQ108: 1.666666667 | BR108: 1.5
A109: E | S109: 1 | BM109: 0 | BN109: 1 | BO109: 0 | BP109: 1 | BQ109: 0.3333333333 | BR109: 0
A110: P | BM110: 0 | BN110: 0 | BO110: 0 | BP110: 0 | BQ110: 0
A111: G | B111: Xavier | C111: =IF(D111-D113=0,0.5,IF(D111>D113,1,0)) -> 1 | D111: 3 | AA111: =IF(AB111-AB113=0,0.5,IF(AB111>AB113,1,0)) -> 0.5 | AB111: 1 | BH111: =IF(BI111-BI113=0,0.5,IF(BI111>BI113,1,0)) -> 1 | BI111: 4 | BM111: 2.5 | BN111: 8 | BO111: 0 | BP111: 8 | BQ111: 2 | BR111: 1.25
A112: E | D112: 1 | AB112: 1 | BI112: 1 | BM112: =+BH112+AJ112+AG112+AD112+AA112+X112+U112+R112+O112+L112+I112+F112+C112+AM112+AP112+AS112+AV112+AY112+BB112+BE112 -> 0 | BN112: 3 | BO112: 0 | BP112: 3 | BQ112: 1 | BR112: 0
A113: P | AB113: 1 | BI113: 3 | BM113: 0 | BN113: =+BI113+AK113+AH113+AE113+AB113+Y113+V113+S113+P113+M113+J113+G113+D113+AN113+AQ113+AT113+AW113+AZ113+BC113+BF113 -> 4 | BO113: =+BJ113+AL113+AI113+AF113+AC113+Z113+W113+T113+Q113+N113+K113+H113+E113+AO113+AR113+AU113+AX113+BA113+BD113+BG113 -> 0 | BP113: 4 | BQ113: 0.6666666667 | BR113: 0
A114: G | B114: Eito | C114: =IF(D114-D116=0,0.5,IF(D114>D116,1,0)) -> 1 | D114: 2 | AJ114: =IF(AK114-AK116=0,0.5,IF(AK114>AK116,1,0)) -> 0.5 | AK114: 1 | BH114: =IF(BI114-BI116=0,0.5,IF(BI114>BI116,1,0)) -> 0.5 | BI114: 1 | BM114: 2 | BN114: 4 | BO114: 0 | BP114: =+BN114-BO114 -> 4 | BQ114: =COUNT(C114:BJ114)/3 -> 2 | BR114: =+BM114/BQ114 -> 1
A115: E | D115: 1 | AK115: 1 | BI115: 1 | BM115: 0 | BN115: 3 | BO115: 0 | BP115: 3 | BQ115: 1 | BR115: 0
A116: P | AK116: 1 | BI116: 1 | BM116: 0 | BN116: 2 | BO116: 0 | BP116: 2 | BQ116: 0.6666666667 | BR116: 0
A117: G | BM117: 0 | BN117: 0 | BO117: 0 | BP117: 0 | BQ117: 0
A118: E | BM118: 0 | BN118: 0 | BO118: 0 | BP118: 0 | BQ118: 0
A119: P | BM119: 0 | BN119: 0 | BO119: 0 | BP119: 0 | BQ119: 0
A120: G | BM120: 0 | BN120: 0 | BO120: 0 | BP120: 0 | BQ120: 0
A121: E | BM121: 0 | BN121: 0 | BO121: 0 | BP121: 0 | BQ121: 0
A122: P | BM122: 0 | BN122: 0 | BO122: 0 | BP122: 0 | BQ122: 0
A123: G | BM123: 0 | BN123: 0 | BO123: 0 | BP123: 0 | BQ123: 0
A124: E | BM124: 0 | BN124: 0 | BO124: 0 | BP124: 0 | BQ124: 0
A125: P | BM125: 0 | BN125: 0 | BO125: 0 | BP125: 0 | BQ125: 0
A126: =+A125+1 ->  | BM126: 0 | BN126: 0 | BO126: 0 | BP126: 0 | BQ126: 0
BM127: 0 | BN127: 0 | BO127: 0 | BP127: =+BN127-BO127 -> 0 | BQ127: =COUNT(C127:BJ127)/3 -> 0 | BR127: =+BM127/BQ127 -> 
BM128: 0 | BN128: 0 | BO128: 0 | BP128: 0 | BQ128: 0
BM129: 0 | BN129: 0 | BO129: 0 | BP129: 0 | BQ129: 0
BM130: 0 | BN130: 0 | BO130: 0 | BP130: 0 | BQ130: 0
BM131: 0 | BN131: 0 | BO131: 0 | BP131: 0 | BQ131: 0
BM132: 0 | BN132: 0 | BO132: 0 | BP132: 0 | BQ132: 0
BM133: 0 | BN133: 0 | BO133: 0 | BP133: 0 | BQ133: 0
BM134: 0 | BN134: 0 | BO134: 0 | BP134: 0 | BQ134: 0
BM135: 0 | BN135: 0 | BO135: 0 | BP135: 0 | BQ135: 0
BM136: 0 | BN136: 0 | BO136: 0 | BP136: 0 | BQ136: 0
BM137: 0 | BN137: 0 | BO137: 0 | BP137: 0 | BQ137: 0
BM138: 0 | BN138: 0 | BO138: 0 | BP138: 0 | BQ138: 0
BM139: 0 | BN139: 0 | BO139: 0 | BP139: 0 | BQ139: 0
BM140: 0 | BN140: 0 | BO140: 0 | BP140: 0 | BQ140: 0
BM141: 0 | BN141: 0 | BO141: 0 | BP141: 0 | BQ141: 0
BM142: 0 | BN142: 0 | BO142: 0 | BP142: 0 | BQ142: 0
BM143: 0 | BN143: 0 | BO143: 0 | BP143: 0 | BQ143: 0
BM144: 0 | BN144: 0 | BO144: 0 | BP144: 0 | BQ144: 0
BM145: 0 | BN145: 0 | BO145: 0 | BP145: 0 | BQ145: 0
BM146: 0 | BN146: 0 | BO146: 0 | BP146: 0 | BQ146: 0
BM147: 0 | BN147: 0 | BO147: 0 | BP147: 0 | BQ147: 0
BM148: 0 | BN148: 0 | BO148: 0 | BP148: 0 | BQ148: 0
BM149: 0 | BN149: 0 | BO149: 0 | BP149: 0 | BQ149: 0
BM150: 0 | BN150: 0 | BO150: 0 | BP150: 0 | BQ150: 0
BM151: 0 | BN151: 0 | BO151: 0 | BP151: 0 | BQ151: 0
BM152: 0 | BN152: 0 | BO152: 0 | BP152: 0 | BQ152: 0
BM153: 0 | BN153: 0 | BO153: 0 | BP153: 0 | BQ153: 0
BM154: 0 | BN154: 0 | BO154: 0 | BP154: 0 | BQ154: 0
BM155: 0 | BN155: 0 | BO155: 0 | BP155: 0 | BQ155: 0
BM156: 0 | BN156: 0 | BO156: 0 | BP156: 0 | BQ156: 0
BM157: 0 | BN157: 0 | BO157: 0 | BP157: 0 | BQ157: 0
BM158: 0 | BN158: 0 | BO158: 0 | BP158: 0 | BQ158: 0
BM159: 0 | BN159: 0 | BO159: 0 | BP159: 0 | BQ159: 0
BM160: 0 | BN160: 0 | BO160: 0 | BP160: 0 | BQ160: 0
BM161: 0 | BN161: 0 | BO161: 0 | BP161: 0 | BQ161: 0
BM162: 0 | BN162: 0 | BO162: 0 | BP162: 0 | BQ162: 0
BM163: 0 | BN163: 0 | BO163: 0 | BP163: 0 | BQ163: 0
BM164: 0 | BN164: 0 | BO164: 0 | BP164: 0 | BQ164: 0
BM165: 0 | BN165: 0 | BO165: 0 | BP165: 0 | BQ165: 0
BM166: 0 | BN166: 0 | BO166: 0 | BP166: 0 | BQ166: 0
BM167: 0 | BN167: 0 | BO167: 0 | BP167: 0 | BQ167: 0
BM168: 0 | BN168: 0 | BO168: 0 | BP168: 0 | BQ168: 0
BM169: 0 | BN169: 0 | BO169: 0 | BP169: 0 | BQ169: 0
BM170: 0 | BN170: 0 | BO170: 0 | BP170: 0 | BQ170: 0
BM171: 0 | BN171: 0 | BO171: 0 | BP171: 0 | BQ171: 0
BM172: 0 | BN172: 0 | BO172: 0 | BP172: 0 | BQ172: 0
BM173: 0 | BN173: 0 | BO173: 0 | BP173: 0 | BQ173: 0
BM174: 0 | BN174: 0 | BO174: 0 | BP174: 0 | BQ174: 0
BM175: 0 | BN175: 0 | BO175: 0 | BP175: 0 | BQ175: 0
BM176: =+BH176+AJ176+AG176+AD176+AA176+X176+U176+R176+O176+L176+I176+F176+C176+AM176+AP176+AS176+AV176+AY176+BB176+BE176 -> 0 | BN176: 0 | BO176: 0 | BP176: 0 | BQ176: 0
BM177: 0 | BN177: =+BI177+AK177+AH177+AE177+AB177+Y177+V177+S177+P177+M177+J177+G177+D177+AN177+AQ177+AT177+AW177+AZ177+BC177+BF177 -> 0 | BO177: =+BJ177+AL177+AI177+AF177+AC177+Z177+W177+T177+Q177+N177+K177+H177+E177+AO177+AR177+AU177+AX177+BA177+BD177+BG177 -> 0 | BP177: 0 | BQ177: 0
A178: =+A177+1 ->  | BM178: 0 | BN178: 0 | BO178: 0 | BP178: 0 | BQ178: 0
BM179: 0 | BN179: 0 | BO179: 0 | BP179: 0 | BQ179: 0
BM180: 0 | BN180: 0 | BO180: 0 | BP180: 0 | BQ180: 0
BM181: 0 | BN181: 0 | BO181: 0 | BP181: 0 | BQ181: 0
BM182: 0 | BN182: 0 | BO182: 0 | BP182: 0 | BQ182: 0
BM183: 0 | BN183: 0 | BO183: 0 | BP183: 0 | BQ183: 0
A184: =+A183+1 ->  | BM184: 0 | BN184: 0 | BO184: 0 | BP184: =+BN184-BO184 -> 0 | BQ184: =COUNT(C184:BJ184)/3 -> 0 | BR184: =+BM184/BQ184 -> 
A185: =+A184+1 ->  | BM185: 0 | BN185: 0 | BO185: 0 | BP185: 0 | BQ185: 0
A186: =+A185+1 ->  | BM186: 0 | BN186: 0 | BO186: 0 | BP186: 0 | BQ186: 0
A187: =+A186+1 ->  | BM187: 0 | BN187: 0 | BO187: 0 | BP187: 0 | BQ187: 0
BM188: 0 | BN188: 0 | BO188: 0 | BP188: 0 | BQ188: 0
BM189: 0 | BN189: 0 | BO189: 0 | BP189: 0 | BQ189: 0
BM190: 0 | BN190: 0 | BO190: 0 | BP190: 0 | BQ190: 0
BM191: 0 | BN191: 0 | BO191: 0 | BP191: 0 | BQ191: 0
BM192: 0 | BN192: 0 | BO192: 0 | BP192: 0 | BQ192: 0
BM193: 0 | BN193: 0 | BO193: 0 | BP193: 0 | BQ193: 0
BM194: 0 | BN194: 0 | BO194: 0 | BP194: 0 | BQ194: 0
BM195: 0 | BN195: 0 | BO195: 0 | BP195: 0 | BQ195: 0
BM196: 0 | BN196: 0 | BO196: 0 | BP196: 0 | BQ196: 0
BM197: 0 | BN197: 0 | BO197: 0 | BP197: 0 | BQ197: 0
BM198: 0 | BN198: 0 | BO198: 0 | BP198: 0 | BQ198: 0
BM199: 0 | BN199: 0 | BO199: 0 | BP199: 0 | BQ199: 0
BM200: 0 | BN200: 0 | BO200: 0 | BP200: 0 | BQ200: 0
BM201: 0 | BN201: 0 | BO201: 0 | BP201: 0 | BQ201: 0
BM202: 0 | BN202: 0 | BO202: 0 | BP202: 0 | BQ202: 0
... 877 more rows

Sheet King
A1: KING
A2: Mes
A3: =+GENERAL!B6 -> 12 | C3: =SUM(C5:C19) -> 58 | E3: =SUM(E5:E20) -> 0
C4: Premi | D4: Reptes | E4: Punts | F4: Partides | G4: General
A5: 1 | B5: Jordi | C5: =+G$41 -> 8.5 | D5: =+H$42 -> 11 | E5: =+H$41 -> 27 | F5: =+G$42 -> 20.33333333 | G5: =+G$27 -> 80 | H5: =C5*1000+1000000*G$40-D5+E5/1000+F5/1000000 -> 1008489.027 | I5: =IF(G5<B$3/2,-1,1)*80+D5/1000 -> 80.011
A6: 2 | B6: Montse | C6: =+Y$41 -> 4.5 | D6: =+Z$42 -> 8 | E6: =+Z$41 -> 0 | F6: =+Y$42 -> 14.66666667 | G6: =+Y$27 -> 40 | H6: =C6*1000+1000000*Y$40-D6+E6/1000+F6/1000000 -> 1004492 | I6: 80.008
A7: 3 | B7: Òscar | C7: =+W$41 -> 4 | D7: =+X$42 -> 8 | E7: =+X$41 -> -2 | F7: =+W$42 -> 8.333333333 | G7: =+W$27 -> 20 | H7: =C7*1000+1000000*W$40-D7+E7/1000+F7/1000000 -> 1003991.998 | I7: 80.008
A8: 4 | B8: Núria | C8: =+AK$41 -> 4 | D8: =+AL$42 -> 10 | E8: =+AL$41 -> -6 | F8: =+AK$42 -> 15.33333333 | G8: =+AK$27 -> 10 | H8: =C8*1000+1000000*AK$40-D8+E8/1000+F8/1000000 -> 1003989.994 | I8: 80.01
A9: 5 | B9: Gemma | C9: =+AC$41 -> 3.5 | D9: =+AD$42 -> 8 | E9: =+AD$41 -> -11 | F9: =+AC$42 -> 9.666666667 | G9: =+AC$27 -> 5 | H9: =C9*1000+1000000*AC$40-D9+E9/1000+F9/1000000 -> 1003491.989 | I9: 80.008
A10: 6 | B10: Sebas | C10: =+U$41 -> 1.5 | D10: =+V$42 -> 8 | E10: =+V$41 -> -10 | F10: =+U$42 -> 13.33333333 | G10: =+U$27 -> 0 | H10: =C10*1000+1000000*U$40-D10+E10/1000+F10/1000000 -> 1001491.99 | I10: 80.008
A11: 7 | B11: Mariajo | C11: =+AM$41 -> 6 | D11: =+AN$42 -> 7 | E11: =+AN$41 -> 6 | F11: =+AM$42 -> 2.666666667 | G11: =+AM$27 -> 0 | H11: =C11*1000+1000000*AM$40-D11+E11/1000+F11/1000000 -> 5993.006003 | I11: 80.007
A12: 8 | B12: Manolo | C12: =+AA$41 -> 5.5 | D12: =+AB$42 -> 8 | E12: =+AB$41 -> 3 | F12: =+AA$42 -> 3.666666667 | G12: =+AA$27 -> 0 | H12: =C12*1000+1000000*AA$40-D12+E12/1000+F12/1000000 -> 5492.003004 | I12: 80.008
A13: 9 | B13: Carles | C13: =+C$41 -> 5 | D13: =+D$42 -> 6 | E13: =+D$41 -> 6 | F13: =+C$42 -> 2.666666667 | G13: =+C$27 -> 0 | H13: =C13*1000+1000000*C$40-D13+E13/1000+F13/1000000 -> 4994.006003 | I13: 80.006
A14: 10 | B14: Caty | C14: =+I$41 -> 4 | D14: =+J$42 -> 4 | E14: =+J$41 -> 4 | F14: =+I$42 -> 1.333333333 | G14: =+I$27 -> 0 | H14: =C14*1000+1000000*I$40-D14+E14/1000+F14/1000000 -> 3996.004001 | I14: 80.004
A15: 10 | B15: Sergi | C15: =+M$41 -> 4 | D15: =+N$42 -> 7 | E15: =+N$41 -> 1 | F15: =+M$42 -> 2.666666667 | G15: =+M$27 -> 0 | H15: =C15*1000+1000000*M$40-D15+E15/1000+F15/1000000 -> 3993.001003 | I15: 80.007
A16: 12 | B16: Grau | C16: =+AG$41 -> 2.5 | D16: =+AH$42 -> 6 | E16: =+AH$41 -> -1 | F16: =+AG$42 -> 2.333333333 | G16: =+AG$27 -> 0 | H16: =C16*1000+1000000*AG$40-D16+E16/1000+F16/1000000 -> 2493.999002 | I16: 80.006
A17: 13 | B17: Goretti | C17: =+AI$41 -> 2.5 | D17: =+AJ$42 -> 7 | E17: =+AJ$41 -> -2 | F17: =+AI$42 -> 2.333333333 | G17: =+AI$27 -> 0 | H17: =C17*1000+1000000*AI$40-D17+E17/1000+F17/1000000 -> 2492.998002 | I17: 80.007
A18: 14 | B18: Ana B | C18: =+S$41 -> 2.5 | D18: =+T$42 -> 8 | E18: =+T$41 -> -3 | F18: =+S$42 -> 2.666666667 | G18: =+S$27 -> 0 | H18: =C18*1000+1000000*S$40-D18+E18/1000+F18/1000000 -> 2491.997003 | I18: 80.008
A19: 15 | B19: Carme | C19: =+O$41 -> 0 | D19: =+P$42 -> 4 | E19: =+P$41 -> -4 | F19: =+O$42 -> 1.333333333 | G19: =+O$27 -> 0 | H19: =C19*1000+1000000*O$40-D19+E19/1000+F19/1000000 -> -4.003998667 | I19: 80.004
A20: 16 | B20: Nin | C20: =+AE$41 -> 0 | D20: =+AF$42 -> 6 | E20: =+AF$41 -> -8 | F20: =+AE$42 -> 2.666666667 | G20: =+AE$27 -> 0 | H20: =C20*1000+1000000*AE$40-D20+E20/1000+F20/1000000 -> -6.007997333 | I20: 80.006
A21: 17 | B21: Cyber X | C21: =+Q$41 -> -100000000 | D21: =+R$42 -> 1 | E21: =+R$41 -> 0 | F21: =+Q$42 -> 0 | G21: =+Q$27 -> 0 | H21: =C21*1000+1000000*Q$40-D21+E21/1000+F21/1000000 -> -100000000001 | I21: 80.001
A22: 18 | B22: Tito | C22: =+K$41 -> -100000000 | D22: =+L$42 -> 1 | E22: =+L$41 -> 0 | F22: =+K$42 -> 0 | G22: =+K$27 -> 0 | H22: =C22*1000+1000000*K$40-D22+E22/1000+F22/1000000 -> -100000000001 | I22: 80.001
A23: 19 | B23: Rosa M. | C23: =+E$41 -> -100000000 | D23: =+F$42 -> 1 | E23: =+F$41 -> 0 | F23: =+E$42 -> 0 | G23: =+E$27 -> 0 | H23: =C23*1000+1000000*E$40-D23+E23/1000+F23/1000000 -> -100000000001 | I23: 80.001
B27: General | C27: =+C28*C29 -> 0 | D27: =+D28*D29 -> 2.666666667 | E27: 0 | F27: 0 | G27: 80 | H27: 20.33333333 | I27: 0 | J27: 1.333333333 | K27: 0 | L27: 0 | M27: 0 | N27: 2.666666667 | O27: 0 | P27: 1.333333333 | Q27: 0 | R27: 0 | S27: 0 | T27: 2.666666667 | U27: 0 | V27: 13.33333333 | W27: 20 | X27: 8.333333333 | Y27: =+Y28*Y29 -> 40 | Z27: 14.66666667 | AA27: 0 | AB27: 3.666666667 | AC27: 5 | AD27: 9.666666667 | AE27: 0 | AF27: 2.666666667 | AG27: 0 | AH27: 2.333333333 | AI27: 0 | AJ27: 2.333333333 | AK27: 10 | AL27: 15.33333333 | AM27: 0 | AN27: 2.666666667
C28: =IF($B40>3,1,0) -> 1 | D28: =IF($B40>3,1,0) -> 1 | E28: =IF($B40>3,1,0) -> 1 | F28: 1 | G28: 1 | H28: 1 | I28: 1 | J28: 1 | K28: 1 | L28: 1 | M28: 1 | N28: 1 | O28: 1 | P28: 1 | Q28: 1 | R28: 1 | S28: 1 | T28: 1 | U28: 1 | V28: 1 | W28: 1 | X28: 1 | Y28: =IF($B40>3,1,0) -> 1 | Z28: 1 | AA28: 1 | AB28: 1 | AC28: 1 | AD28: 1 | AE28: 1 | AF28: 1 | AG28: 1 | AH28: 1 | AI28: 1 | AJ28: 1 | AK28: 1 | AL28: 1 | AM28: 1 | AN28: 1
C29: =MAX(C30:C34) -> 0 | D29: =+C42 -> 2.666666667 | E29: =MAX(E30:E34) -> 0 | F29: =+E42 -> 0 | G29: =MAX(G30:G34) -> 80 | H29: =+G42 -> 20.33333333 | I29: =MAX(I30:I34) -> 0 | J29: =+I42 -> 1.333333333 | K29: =MAX(K30:K34) -> 0 | L29: =+K42 -> 0 | M29: =MAX(M30:M34) -> 0 | N29: =+M42 -> 2.666666667 | O29: =MAX(O30:O34) -> 0 | P29: =+O42 -> 1.333333333 | Q29: =MAX(Q30:Q34) -> 0 | R29: =+Q42 -> 0 | S29: =MAX(S30:S34) -> 0 | T29: =+S42 -> 2.666666667 | U29: =MAX(U30:U34) -> 0 | V29: =+U42 -> 13.33333333 | W29: =MAX(W30:W34) -> 20 | X29: =+W42 -> 8.333333333 | Y29: =MAX(Y30:Y34) -> 40 | Z29: =+Y42 -> 14.66666667 | AA29: =MAX(AA30:AA34) -> 0 | AB29: =+AA42 -> 3.666666667 | AC29: =MAX(AC30:AC34) -> 5 | AD29: =+AC42 -> 9.666666667 | AE29: =MAX(AE30:AE34) -> 0 | AF29: =+AE42 -> 2.666666667 | AG29: =MAX(AG30:AG34) -> 0 | AH29: =+AG42 -> 2.333333333 | AI29: =MAX(AI30:AI34) -> 0 | AJ29: =+AI42 -> 2.333333333 | AK29: =MAX(AK30:AK34) -> 10 | AL29: =+AK42 -> 15.33333333 | AM29: =MAX(AM30:AM34) -> 0 | AN29: =+AM42 -> 2.666666667
C30: =IF(C$35=5,5,0) -> 0 | E30: =IF(E$35=5,5,0) -> 0 | G30: =IF(G$35=5,5,0) -> 0 | I30: =IF(I$35=5,5,0) -> 0 | K30: =IF(K$35=5,5,0) -> 0 | M30: =IF(M$35=5,5,0) -> 0 | O30: =IF(O$35=5,5,0) -> 0 | Q30: =IF(Q$35=5,5,0) -> 0 | S30: =IF(S$35=5,5,0) -> 0 | U30: =IF(U$35=5,5,0) -> 0 | W30: =IF(W$35=5,5,0) -> 0 | Y30: =IF(Y$35=5,5,0) -> 0 | AA30: =IF(AA$35=5,5,0) -> 0 | AC30: =IF(AC$35=5,5,0) -> 5 | AE30: =IF(AE$35=5,5,0) -> 0 | AG30: =IF(AG$35=5,5,0) -> 0 | AI30: =IF(AI$35=5,5,0) -> 0 | AK30: =IF(AK$35=5,5,0) -> 0 | AM30: =IF(AM$35=5,5,0) -> 0
C31: =IF(C$35=4,10,0) -> 0 | E31: =IF(E$35=4,10,0) -> 0 | G31: =IF(G$35=4,10,0) -> 0 | I31: =IF(I$35=4,10,0) -> 0 | K31: =IF(K$35=4,10,0) -> 0 | M31: =IF(M$35=4,10,0) -> 0 | O31: =IF(O$35=4,10,0) -> 0 | Q31: =IF(Q$35=4,10,0) -> 0 | S31: =IF(S$35=4,10,0) -> 0 | U31: =IF(U$35=4,10,0) -> 0 | W31: =IF(W$35=4,10,0) -> 0 | Y31: =IF(Y$35=4,10,0) -> 0 | AA31: =IF(AA$35=4,10,0) -> 0 | AC31: =IF(AC$35=4,10,0) -> 0 | AE31: =IF(AE$35=4,10,0) -> 0 | AG31: =IF(AG$35=4,10,0) -> 0 | AI31: =IF(AI$35=4,10,0) -> 0 | AK31: =IF(AK$35=4,10,0) -> 10 | AM31: =IF(AM$35=4,10,0) -> 0
C32: =IF(C$35=3,20,0) -> 0 | E32: =IF(E$35=3,20,0) -> 0 | G32: =IF(G$35=3,20,0) -> 0 | I32: =IF(I$35=3,20,0) -> 0 | K32: =IF(K$35=3,20,0) -> 0 | M32: =IF(M$35=3,20,0) -> 0 | O32: =IF(O$35=3,20,0) -> 0 | Q32: =IF(Q$35=3,20,0) -> 0 | S32: =IF(S$35=3,20,0) -> 0 | U32: =IF(U$35=3,20,0) -> 0 | W32: =IF(W$35=3,20,0) -> 20 | Y32: =IF(Y$35=3,20,0) -> 0 | AA32: =IF(AA$35=3,20,0) -> 0 | AC32: =IF(AC$35=3,20,0) -> 0 | AE32: =IF(AE$35=3,20,0) -> 0 | AG32: =IF(AG$35=3,20,0) -> 0 | AI32: =IF(AI$35=3,20,0) -> 0 | AK32: =IF(AK$35=3,20,0) -> 0 | AM32: =IF(AM$35=3,20,0) -> 0
C33: =IF(C$35=2,40,0) -> 0 | E33: =IF(E$35=2,40,0) -> 0 | G33: =IF(G$35=2,40,0) -> 0 | I33: =IF(I$35=2,40,0) -> 0 | K33: =IF(K$35=2,40,0) -> 0 | M33: =IF(M$35=2,40,0) -> 0 | O33: =IF(O$35=2,40,0) -> 0 | Q33: =IF(Q$35=2,40,0) -> 0 | S33: =IF(S$35=2,40,0) -> 0 | U33: =IF(U$35=2,40,0) -> 0 | W33: =IF(W$35=2,40,0) -> 0 | Y33: =IF(Y$35=2,40,0) -> 40 | AA33: =IF(AA$35=2,40,0) -> 0 | AC33: =IF(AC$35=2,40,0) -> 0 | AE33: =IF(AE$35=2,40,0) -> 0 | AG33: =IF(AG$35=2,40,0) -> 0 | AI33: =IF(AI$35=2,40,0) -> 0 | AK33: =IF(AK$35=2,40,0) -> 0 | AM33: =IF(AM$35=2,40,0) -> 0
C34: =IF(C$35=1,80,0) -> 0 | E34: =IF(E$35=1,80,0) -> 0 | G34: =IF(G$35=1,80,0) -> 80 | I34: =IF(I$35=1,80,0) -> 0 | K34: =IF(K$35=1,80,0) -> 0 | M34: =IF(M$35=1,80,0) -> 0 | O34: =IF(O$35=1,80,0) -> 0 | Q34: =IF(Q$35=1,80,0) -> 0 | S34: =IF(S$35=1,80,0) -> 0 | U34: =IF(U$35=1,80,0) -> 0 | W34: =IF(W$35=1,80,0) -> 0 | Y34: =IF(Y$35=1,80,0) -> 0 | AA34: =IF(AA$35=1,80,0) -> 0 | AC34: =IF(AC$35=1,80,0) -> 0 | AE34: =IF(AE$35=1,80,0) -> 0 | AG34: =IF(AG$35=1,80,0) -> 0 | AI34: =IF(AI$35=1,80,0) -> 0 | AK34: =IF(AK$35=1,80,0) -> 0 | AM34: =IF(AM$35=1,80,0) -> 0
C35: =RANK(C36,$C36:$BG36)*C40 -> 0 | E35: =RANK(E36,$C36:$BG36)*E40 -> 0 | G35: =RANK(G36,$C36:$BG36)*G40 -> 1 | I35: =RANK(I36,$C36:$BG36)*I40 -> 0 | K35: =RANK(K36,$C36:$BG36)*K40 -> 0 | M35: =RANK(M36,$C36:$BG36)*M40 -> 0 | O35: =RANK(O36,$C36:$BG36)*O40 -> 0 | Q35: =RANK(Q36,$C36:$BG36)*Q40 -> 0 | S35: =RANK(S36,$C36:$BG36)*S40 -> 0 | U35: =RANK(U36,$C36:$BG36)*U40 -> 6 | W35: =RANK(W36,$C36:$BG36)*W40 -> 3 | Y35: =RANK(Y36,$C36:$BG36)*Y40 -> 2 | AA35: =RANK(AA36,$C36:$BG36)*AA40 -> 0 | AC35: =RANK(AC36,$C36:$BG36)*AC40 -> 5 | AE35: =RANK(AE36,$C36:$BG36)*AE40 -> 0 | AG35: =RANK(AG36,$C36:$BG36)*AG40 -> 0 | AI35: =RANK(AI36,$C36:$BG36)*AI40 -> 0 | AK35: =RANK(AK36,$C36:$BG36)*AK40 -> 4 | AM35: =RANK(AM36,$C36:$BG36)*AM40 -> 0
C36: =SUM(C37:C39)+C42/1000 -> -1000588.997 | E36: =SUM(E37:E39)+E42/1000 -> -101000100 | G36: =SUM(G37:G39)+G42/1000 -> 8498935.52 | I36: =SUM(I37:I39)+I42/1000 -> -1000391.999 | K36: =SUM(K37:K39)+K42/1000 -> -101000100 | M36: =SUM(M37:M39)+M42/1000 -> -1000694.997 | O36: =SUM(O37:O39)+O42/1000 -> -1000403.999 | Q36: =SUM(Q37:Q39)+Q42/1000 -> -101000100 | S36: =SUM(S37:S39)+S42/1000 -> -1000800.497 | U36: =SUM(U37:U39)+U42/1000 -> 1499191.513 | W36: =SUM(W37:W39)+W42/1000 -> 3999202.008 | Y36: =SUM(Y37:Y39)+Y42/1000 -> 4499204.515 | AA36: =SUM(AA37:AA39)+AA42/1000 -> -1000791.496 | AC36: =SUM(AC37:AC39)+AC42/1000 -> 3499192.51 | AE36: =SUM(AE37:AE39)+AE42/1000 -> -1000607.997 | AG36: =SUM(AG37:AG39)+AG42/1000 -> -1000598.498 | AI36: =SUM(AI37:AI39)+AI42/1000 -> -1000699.498 | AK36: =SUM(AK37:AK39)+AK42/1000 -> 3998998.015 | AM36: =SUM(AM37:AM39)+AM42/1000 -> -1000687.997
C37: =+D41 -> 6 | E37: =+F41 -> 0 | G37: =+H41 -> 27 | I37: =+J41 -> 4 | K37: =+L41 -> 0 | M37: =+N41 -> 1 | O37: =+P41 -> -4 | Q37: =+R41 -> 0 | S37: =+T41 -> -3 | U37: =+V41 -> -10 | W37: =+X41 -> -2 | Y37: =+Z41 -> 0 | AA37: =+AB41 -> 3 | AC37: =+AD41 -> -11 | AE37: =+AF41 -> -8 | AG37: =+AH41 -> -1 | AI37: =+AJ41 -> -2 | AK37: =+AL41 -> -6 | AM37: =+AN41 -> 6
C38: =-D42*100 -> -600 | E38: =-F42*100 -> -100 | G38: =-H42*100 -> -1100 | I38: =-J42*100 -> -400 | K38: =-L42*100 -> -100 | M38: =-N42*100 -> -700 | O38: =-P42*100 -> -400 | Q38: =-R42*100 -> -100 | S38: =-T42*100 -> -800 | U38: =-V42*100 -> -800 | W38: =-X42*100 -> -800 | Y38: =-Z42*100 -> -800 | AA38: =-AB42*100 -> -800 | AC38: =-AD42*100 -> -800 | AE38: =-AF42*100 -> -600 | AG38: =-AH42*100 -> -600 | AI38: =-AJ42*100 -> -700 | AK38: =-AL42*100 -> -1000 | AM38: =-AN42*100 -> -700
C39: =IF(C40=1,C41*C40*1000000+C41,-1000000+C41) -> -999995 | E39: =IF(E40=1,E41*E40*1000000+E41,-1000000+E41) -> -101000000 | G39: =IF(G40=1,G41*G40*1000000+G41,-1000000+G41) -> 8500008.5 | I39: =IF(I40=1,I41*I40*1000000+I41,-1000000+I41) -> -999996 | K39: =IF(K40=1,K41*K40*1000000+K41,-1000000+K41) -> -101000000 | M39: =IF(M40=1,M41*M40*1000000+M41,-1000000+M41) -> -999996 | O39: =IF(O40=1,O41*O40*1000000+O41,-1000000+O41) -> -1000000 | Q39: =IF(Q40=1,Q41*Q40*1000000+Q41,-1000000+Q41) -> -101000000 | S39: =IF(S40=1,S41*S40*1000000+S41,-1000000+S41) -> -999997.5 | U39: =IF(U40=1,U41*U40*1000000+U41,-1000000+U41) -> 1500001.5 | W39: =IF(W40=1,W41*W40*1000000+W41,-1000000+W41) -> 4000004 | Y39: =IF(Y40=1,Y41*Y40*1000000+Y41,-1000000+Y41) -> 4500004.5 | AA39: =IF(AA40=1,AA41*AA40*1000000+AA41,-1000000+AA41) -> -999994.5 | AC39: =IF(AC40=1,AC41*AC40*1000000+AC41,-1000000+AC41) -> 3500003.5 | AE39: =IF(AE40=1,AE41*AE40*1000000+AE41,-1000000+AE41) -> -1000000 | AG39: =IF(AG40=1,AG41*AG40*1000000+AG41,-1000000+AG41) -> -999997.5 | AI39: =IF(AI40=1,AI41*AI40*1000000+AI41,-1000000+AI41) -> -999997.5 | AK39: =IF(AK40=1,AK41*AK40*1000000+AK41,-1000000+AK41) -> 4000004 | AM39: =IF(AM40=1,AM41*AM40*1000000+AM41,-1000000+AM41) -> -999994
A40: Classificats | B40: =SUM(C40:AM40) -> 6 | C40: =IF(C42>=$A3/2,1,0) -> 0 | E40: =IF(E42>=$A3/2,1,0) -> 0 | G40: =IF(G42>=$A3/2,1,0) -> 1 | I40: =IF(I42>=$A3/2,1,0) -> 0 | K40: =IF(K42>=$A3/2,1,0) -> 0 | M40: =IF(M42>=$A3/2,1,0) -> 0 | O40: =IF(O42>=$A3/2,1,0) -> 0 | Q40: =IF(Q42>=$A3/2,1,0) -> 0 | S40: =IF(S42>=$A3/2,1,0) -> 0 | U40: =IF(U42>=$A3/2,1,0) -> 1 | W40: =IF(W42>=$A3/2,1,0) -> 1 | Y40: =IF(Y42>=$A3/2,1,0) -> 1 | AA40: =IF(AA42>=$A3/2,1,0) -> 0 | AC40: =IF(AC42>=$A3/2,1,0) -> 1 | AE40: =IF(AE42>=$A3/2,1,0) -> 0 | AG40: =IF(AG42>=$A3/2,1,0) -> 0 | AI40: =IF(AI42>=$A3/2,1,0) -> 0 | AK40: =IF(AK42>=$A3/2,1,0) -> 1 | AM40: =IF(AM42>=$A3/2,1,0) -> 0
C41: =IF(SUM(C46:C303)<-1000,-100000000,SUM(C46:C303)) -> 5 | D41: =+D46+D48+D50+D52+D54+D56+D58+D60+D62+D64+D66+D68+D70+D72+D74+D76+D78+D80+D82+D84+D86+D88+D90-D91-D89-D87-D85-D83-D79-D77-D75-D73-D71-D69-D67-D61-D59-D57-D55-D53-D51-D49-D47-D63-D65-D81 -> 6 | E41: =IF(SUM(E46:E303)<-1000,-100000000,SUM(E46:E303)) -> -100000000 | F41: =+F46+F48+F50+F52+F54+F56+F58+F60+F62+F64+F66+F68+F70+F72+F74+F76+F78+F80+F82+F84+F86+F88+F90-F91-F89-F87-F85-F83-F79-F77-F75-F73-F71-F69-F67-F61-F59-F57-F55-F53-F51-F49-F47-F63-F65-F81 -> 0 | G41: =IF(SUM(G46:G303)<-1000,-100000000,SUM(G46:G303)) -> 8.5 | H41: =+H46+H48+H50+H52+H54+H56+H58+H60+H62+H64+H66+H68+H70+H72+H74+H76+H78+H80+H82+H84+H86+H88+H90-H91-H89-H87-H85-H83-H79-H77-H75-H73-H71-H69-H67-H61-H59-H57-H55-H53-H51-H49-H47-H63-H65-H81 -> 27 | I41: =IF(SUM(I46:I303)<-1000,-100000000,SUM(I46:I303)) -> 4 | J41: =+J46+J48+J50+J52+J54+J56+J58+J60+J62+J64+J66+J68+J70+J72+J74+J76+J78+J80+J82+J84+J86+J88+J90-J91-J89-J87-J85-J83-J79-J77-J75-J73-J71-J69-J67-J61-J59-J57-J55-J53-J51-J49-J47-J63-J65-J81 -> 4 | K41: =IF(SUM(K46:K303)<-1000,-100000000,SUM(K46:K303)) -> -100000000 | L41: =+L46+L48+L50+L52+L54+L56+L58+L60+L62+L64+L66+L68+L70+L72+L74+L76+L78+L80+L82+L84+L86+L88+L90-L91-L89-L87-L85-L83-L79-L77-L75-L73-L71-L69-L67-L61-L59-L57-L55-L53-L51-L49-L47-L63-L65-L81 -> 0 | M41: =IF(SUM(M46:M303)<-1000,-100000000,SUM(M46:M303)) -> 4 | N41: =+N46+N48+N50+N52+N54+N56+N58+N60+N62+N64+N66+N68+N70+N72+N74+N76+N78+N80+N82+N84+N86+N88+N90-N91-N89-N87-N85-N83-N79-N77-N75-N73-N71-N69-N67-N61-N59-N57-N55-N53-N51-N49-N47-N63-N65-N81 -> 1 | O41: =IF(SUM(O46:O303)<-1000,-100000000,SUM(O46:O303)) -> 0 | P41: =+P46+P48+P50+P52+P54+P56+P58+P60+P62+P64+P66+P68+P70+P72+P74+P76+P78+P80+P82+P84+P86+P88+P90-P91-P89-P87-P85-P83-P79-P77-P75-P73-P71-P69-P67-P61-P59-P57-P55-P53-P51-P49-P47-P63-P65-P81 -> -4 | Q41: =IF(SUM(Q46:Q303)<-1000,-100000000,SUM(Q46:Q303)) -> -100000000 | R41: =+R46+R48+R50+R52+R54+R56+R58+R60+R62+R64+R66+R68+R70+R72+R74+R76+R78+R80+R82+R84+R86+R88+R90-R91-R89-R87-R85-R83-R79-R77-R75-R73-R71-R69-R67-R61-R59-R57-R55-R53-R51-R49-R47-R63-R65-R81 -> 0 | S41: =IF(SUM(S46:S303)<-1000,-100000000,SUM(S46:S303)) -> 2.5 | T41: =+T46+T48+T50+T52+T54+T56+T58+T60+T62+T64+T66+T68+T70+T72+T74+T76+T78+T80+T82+T84+T86+T88+T90-T91-T89-T87-T85-T83-T79-T77-T75-T73-T71-T69-T67-T61-T59-T57-T55-T53-T51-T49-T47-T63-T65-T81 -> -3 | U41: =IF(SUM(U46:U303)<-1000,-100000000,SUM(U46:U303)) -> 1.5 | V41: =+V46+V48+V50+V52+V54+V56+V58+V60+V62+V64+V66+V68+V70+V72+V74+V76+V78+V80+V82+V84+V86+V88+V90-V91-V89-V87-V85-V83-V79-V77-V75-V73-V71-V69-V67-V61-V59-V57-V55-V53-V51-V49-V47-V63-V65-V81 -> -10 | W41: =IF(SUM(W46:W303)<-1000,-100000000,SUM(W46:W303)) -> 4 | X41: =+X46+X48+X50+X52+X54+X56+X58+X60+X62+X64+X66+X68+X70+X72+X74+X76+X78+X80+X82+X84+X86+X88+X90-X91-X89-X87-X85-X83-X79-X77-X75-X73-X71-X69-X67-X61-X59-X57-X55-X53-X51-X49-X47-X63-X65-X81 -> -2 | Y41: =IF(SUM(Y46:Y303)<-1000,-100000000,SUM(Y46:Y303)) -> 4.5 | Z41: =+Z46+Z48+Z50+Z52+Z54+Z56+Z58+Z60+Z62+Z64+Z66+Z68+Z70+Z72+Z74+Z76+Z78+Z80+Z82+Z84+Z86+Z88+Z90-Z91-Z89-Z87-Z85-Z83-Z79-Z77-Z75-Z73-Z71-Z69-Z67-Z61-Z59-Z57-Z55-Z53-Z51-Z49-Z47-Z63-Z65-Z81 -> 0 | AA41: =IF(SUM(AA46:AA303)<-1000,-100000000,SUM(AA46:AA303)) -> 5.5 | AB41: =+AB46+AB48+AB50+AB52+AB54+AB56+AB58+AB60+AB62+AB64+AB66+AB68+AB70+AB72+AB74+AB76+AB78+AB80+AB82+AB84+AB86+AB88+AB90-AB91-AB89-AB87-AB85-AB83-AB79-AB77-AB75-AB73-AB71-AB69-AB67-AB61-AB59-AB57-AB55-AB53-AB51-AB49-AB47-AB63-AB65-AB81 -> 3 | AC41: =IF(SUM(AC46:AC303)<-1000,-100000000,SUM(AC46:AC303)) -> 3.5 | AD41: =+AD46+AD48+AD50+AD52+AD54+AD56+AD58+AD60+AD62+AD64+AD66+AD68+AD70+AD72+AD74+AD76+AD78+AD80+AD82+AD84+AD86+AD88+AD90-AD91-AD89-AD87-AD85-AD83-AD79-AD77-AD75-AD73-AD71-AD69-AD67-AD61-AD59-AD57-AD55-AD53-AD51-AD49-AD47-AD63-AD65-AD81 -> -11 | AE41: =IF(SUM(AE46:AE303)<-1000,-100000000,SUM(AE46:AE303)) -> 0 | AF41: =+AF46+AF48+AF50+AF52+AF54+AF56+AF58+AF60+AF62+AF64+AF66+AF68+AF70+AF72+AF74+AF76+AF78+AF80+AF82+AF84+AF86+AF88+AF90-AF91-AF89-AF87-AF85-AF83-AF79-AF77-AF75-AF73-AF71-AF69-AF67-AF61-AF59-AF57-AF55-AF53-AF51-AF49-AF47-AF63-AF65-AF81 -> -8 | AG41: =IF(SUM(AG46:AG303)<-1000,-100000000,SUM(AG46:AG303)) -> 2.5 | AH41: =+AH46+AH48+AH50+AH52+AH54+AH56+AH58+AH60+AH62+AH64+AH66+AH68+AH70+AH72+AH74+AH76+AH78+AH80+AH82+AH84+AH86+AH88+AH90-AH91-AH89-AH87-AH85-AH83-AH79-AH77-AH75-AH73-AH71-AH69-AH67-AH61-AH59-AH57-AH55-AH53-AH51-AH49-AH47-AH63-AH65-AH81 -> -1 | AI41: =IF(SUM(AI46:AI303)<-1000,-100000000,SUM(AI46:AI303)) -> 2.5 | AJ41: =+AJ46+AJ48+AJ50+AJ52+AJ54+AJ56+AJ58+AJ60+AJ62+AJ64+AJ66+AJ68+AJ70+AJ72+AJ74+AJ76+AJ78+AJ80+AJ82+AJ84+AJ86+AJ88+AJ90-AJ91-AJ89-AJ87-AJ85-AJ83-AJ79-AJ77-AJ75-AJ73-AJ71-AJ69-AJ67-AJ61-AJ59-AJ57-AJ55-AJ53-AJ51-AJ49-AJ47-AJ63-AJ65-AJ81 -> -2 | AK41: =IF(SUM(AK46:AK303)<-1000,-100000000,SUM(AK46:AK303)) -> 4 | AL41: =+AL46+AL48+AL50+AL52+AL54+AL56+AL58+AL60+AL62+AL64+AL66+AL68+AL70+AL72+AL74+AL76+AL78+AL80+AL82+AL84+AL86+AL88+AL90-AL91-AL89-AL87-AL85-AL83-AL79-AL77-AL75-AL73-AL71-AL69-AL67-AL61-AL59-AL57-AL55-AL53-AL51-AL49-AL47-AL63-AL65-AL81 -> -6 | AM41: =IF(SUM(AM46:AM303)<-1000,-100000000,SUM(AM46:AM303)) -> 6 | AN41: =+AN46+AN48+AN50+AN52+AN54+AN56+AN58+AN60+AN62+AN64+AN66+AN68+AN70+AN72+AN74+AN76+AN78+AN80+AN82+AN84+AN86+AN88+AN90-AN91-AN89-AN87-AN85-AN83-AN79-AN77-AN75-AN73-AN71-AN69-AN67-AN61-AN59-AN57-AN55-AN53-AN51-AN49-AN47-AN63-AN65-AN81 -> 6
C42: =SUM(D46:D303)/3 -> 2.666666667 | D42: =COUNT(C46:C91) -> 6 | E42: =SUM(F46:F303)/3 -> 0 | F42: =COUNT(E46:E91) -> 1 | G42: =SUM(H46:H303)/3 -> 20.33333333 | H42: =COUNT(G46:G91) -> 11 | I42: =SUM(J46:J303)/3 -> 1.333333333 | J42: =COUNT(I46:I91) -> 4 | K42: =SUM(L46:L303)/3 -> 0 | L42: =COUNT(K46:K91) -> 1 | M42: =SUM(N46:N303)/3 -> 2.666666667 | N42: =COUNT(M46:M91) -> 7 | O42: =SUM(P46:P303)/3 -> 1.333333333 | P42: =COUNT(O46:O91) -> 4 | Q42: =COUNT(R46:R303)/3 -> 0 | R42: =COUNT(Q46:Q91) -> 1 | S42: =SUM(T46:T303)/3 -> 2.666666667 | T42: =COUNT(S46:S91) -> 8 | U42: =SUM(V46:V303)/3 -> 13.33333333 | V42: =COUNT(U46:U91) -> 8 | W42: =SUM(X46:X303)/3 -> 8.333333333 | X42: =COUNT(W46:W91) -> 8 | Y42: =SUM(Z46:Z303)/3 -> 14.66666667 | Z42: =COUNT(Y46:Y91) -> 8 | AA42: =SUM(AB46:AB303)/3 -> 3.666666667 | AB42: =COUNT(AA46:AA91) -> 8 | AC42: =SUM(AD46:AD303)/3 -> 9.666666667 | AD42: =COUNT(AC46:AC91) -> 8 | AE42: =SUM(AF46:AF303)/3 -> 2.666666667 | AF42: =COUNT(AE46:AE91) -> 6 | AG42: =SUM(AH46:AH303)/3 -> 2.333333333 | AH42: =COUNT(AG46:AG91) -> 6 | AI42: =SUM(AJ46:AJ303)/3 -> 2.333333333 | AJ42: =COUNT(AI46:AI91) -> 7 | AK42: =SUM(AL46:AL303)/3 -> 15.33333333 | AL42: =COUNT(AK46:AK91) -> 10 | AM42: =SUM(AN46:AN303)/3 -> 2.666666667 | AN42: =COUNT(AM46:AM91) -> 7
AO43: =MAX(AP46:AP200) -> 108 | AQ43: =SUM(AQ49:AQ103) -> 57
B44: Nº partida | C44: Carles | E44: Rosa M. | G44: Jordi | I44: Caty | K44: Tito | M44: Sergi | O44: Carme | Q44: Cyber X | S44: Ana B | U44: Sebas | W44: Òscar | Y44: Montse | AA44: Manolo | AC44: Gemma | AE44: Nin | AG44: Grau | AI44: Goretti | AK44: Núria | AM44: Mariajo | AO44: =COUNT(AO46:AO218) -> 23 | AP44: A | AQ44: B | AR44: C
C45: Premi | D45: Punts | E45: Premi | F45: Punts | G45: Premi | H45: Punts | I45: Premi | J45: Punts | K45: Premi | L45: Punts | M45: Premi | N45: Punts | O45: Premi | P45: Punts | Q45: Premi | R45: Punts | S45: Premi | T45: Punts | U45: Premi | V45: Punts | W45: Premi | X45: Punts | Y45: Premi | Z45: Punts | AA45: Premi | AB45: Punts | AC45: Premi | AD45: Punts | AE45: Premi | AF45: Punts | AG45: Premi | AH45: Punts | AI45: Premi | AJ45: Punts | AK45: Premi | AL45: Punts | AM45: Premi | AN45: Punts | AO45: Data | AP45: Timba
A46: G | B46: Carles | E46: -10000000 | G46: =IF(H46-H47=0,0.5,IF(H46>H47,1,0)) -> 0 | K46: -10000000 | M46: =IF(N46-N47=0,0.5,IF(N46>N47,1,0)) -> 0 | Q46: -10000000 | AA46: =IF(AB46-AB47=0,0.5,IF(AB46>AB47,1,0)) -> 0 | AE46: =IF(AF46-AF47=0,0.5,IF(AF46>AF47,1,0)) -> 0 | AK46: =IF(AL46-AL47=0,0.5,IF(AL46>AL47,1,0)) -> 0 | AM46: =IF(AN46-AN47=0,0.5,IF(AN46>AN47,1,0)) -> 1 | AN46: 1 | AO46: 2021-10-09 | AP46: 4 | AQ46: =+C46+E46+G46+I46++K46++M46+O46+Q46+S46+U46+W46+AK46+AM46+Y46+AC46+AE46+AG46+AI46+AA46 -> -29999999 | AR46: =+D46+F46+H46+J46++L46++N46+P46+R46+T46+V46+X46+AL46+AN46+Z46+AD46+AF46+AH46+AJ46+AB46 -> 1 | AS46: =COUNT(C46:AN46)/2 -> 5 | AT46: -10000000
A47: P | H47: 1 | N47: 1 | AB47: 2 | AF47: 2 | AL47: 1 | AN47: 0 | AO47: 2021-11-20 | AP47: 28 | AQ47: 0 | AR47: 7 | AS47: 3 | AT47: =+AR47/AS47 -> 2.333333333
A48: G | B48: Rosa M. | AO48: 2021-11-25 | AP48: 35 | AQ48: 0 | AR48: 0 | AS48: 0
A49: P | AO49: 2021-11-25 | AP49: 35 | AQ49: 0 | AR49: 0 | AS49: 0
A50: G | B50: Jordi | C50: =IF(D50-D51=0,0.5,IF(D50>D51,1,0)) -> 1 | D50: 1 | M50: =IF(N50-N51=0,0.5,IF(N50>N51,1,0)) -> 0.5 | N50: 1 | O50: =IF(P50-P51=0,0.5,IF(P50>P51,1,0)) -> 0 | S50: =IF(T50-T51=0,0.5,IF(T50>T51,1,0)) -> 0 | U50: =IF(V50-V51=0,0.5,IF(V50>V51,1,0)) -> 0 | V50: 3 | W50: =IF(X50-X51=0,0.5,IF(X50>X51,1,0)) -> 0 | X50: 2 | Y50: =IF(Z50-Z51=0,0.5,IF(Z50>Z51,1,0)) -> 0 | Z50: 4 | AC50: =IF(AD50-AD51=0,0.5,IF(AD50>AD51,1,0)) -> 0 | AI50: =IF(AJ50-AJ51=0,0.5,IF(AJ50>AJ51,1,0)) -> 0 | AK50: =IF(AL50-AL51=0,0.5,IF(AL50>AL51,1,0)) -> 0 | AL50: 5 | AM50: =IF(AN50-AN51=0,0.5,IF(AN50>AN51,1,0)) -> 1 | AN50: 1 | AO50: 2021-12-17 | AP50: 41 | AQ50: 2.5 | AR50: 17 | AS50: 9 | AT50: 1.888888889
A51: P | N51: 1 | P51: 1 | T51: 1 | V51: 9 | X51: 4 | Z51: 10 | AD51: 8 | AJ51: 1 | AL51: 9 | AN51: 0 | AO51: 2021-12-17 | AP51: 41 | AQ51: 0 | AR51: 44 | AS51: 5 | AT51: 8.8
A52: G | B52: Caty | S52: =IF(T52-T53=0,0.5,IF(T52>T53,1,0)) -> 0 | W52: =IF(X52-X53=0,0.5,IF(X52>X53,1,0)) -> 0 | Y52: =IF(Z52-Z53=0,0.5,IF(Z52>Z53,1,0)) -> 0 | AE52: =IF(AF52-AF53=0,0.5,IF(AF52>AF53,1,0)) -> 0 | AO52: 2022-01-09 | AP52: 42 | AQ52: 0 | AR52: 0 | AS52: 2 | AT52: 0
A53: P | T53: 1 | X53: 1 | Z53: 1 | AF53: 1 | AO53: 2022-01-09 | AP53: 42 | AQ53: 0 | AR53: 4 | AS53: 2 | AT53: 2
A54: G | B54: Tito | AO54: 2022-01-21 | AP54: 46 | AQ54: 0 | AR54: 0 | AS54: 0
A55: P | AO55: 2022-02-03 | AP55: 47 | AQ55: 0 | AR55: 0 | AS55: 0
A56: G | B56: Sergi | C56: =IF(D56-D57=0,0.5,IF(D56>D57,1,0)) -> 1 | D56: 1 | G56: =IF(H56-H57=0,0.5,IF(H56>H57,1,0)) -> 0.5 | H56: 1 | O56: =IF(P56-P57=0,0.5,IF(P56>P57,1,0)) -> 0 | S56: =IF(T56-T57=0,0.5,IF(T56>T57,1,0)) -> 0 | AI56: =IF(AJ56-AJ57=0,0.5,IF(AJ56>AJ57,1,0)) -> 0.5 | AJ56: 0.5 | AK56: =IF(AL56-AL57=0,0.5,IF(AL56>AL57,1,0)) -> 0 | AM56: =IF(AN56-AN57=0,0.5,IF(AN56>AN57,1,0)) -> 1 | AN56: 1 | AO56: 2022-02-19 | AP56: 49 | AQ56: =+C56+E56+G56+I56++K56++M56+O56+Q56+S56+U56+W56+AK56+AM56+Y56+AC56+AE56+AG56+AI56+AA56 -> 3 | AR56: 3.5 | AS56: 5.5 | AT56: 0.6363636364
A57: P | H57: 1 | P57: 1 | T57: 1 | AJ57: 0.5 | AL57: 1 | AN57: 0 | AO57: 2022-02-19 | AP57: 49 | AQ57: 0 | AR57: 4.5 | AS57: 3 | AT57: 1.5
A58: G | B58: Carme | G58: =IF(H58-H59=0,0.5,IF(H58>H59,1,0)) -> 1 | H58: 1 | M58: =IF(N58-N59=0,0.5,IF(N58>N59,1,0)) -> 1 | N58: 1 | S58: =IF(T58-T59=0,0.5,IF(T58>T59,1,0)) -> 1 | T58: 1 | AI58: =IF(AJ58-AJ59=0,0.5,IF(AJ58>AJ59,1,0)) -> 1 | AJ58: 1 | AO58: 2022-03-04 | AP58: 51 | AQ58: 4 | AR58: =+D58+F58+H58+J58++L58++N58+P58+R58+T58+V58+X58+AL58+AN58+Z58+AD58+AF58+AH58+AJ58+AB58 -> 4 | AS58: 4 | AT58: 1
A59: P | AO59: 2022-03-10 | AP59: 52 | AQ59: 0 | AR59: 0 | AS59: =COUNT(C59:AN59)/2 -> 0
A60: G | B60: Cyber X | AO60: 2022-03-10 | AP60: 52 | AQ60: 0 | AR60: 0 | AS60: 0
A61: P | AO61: 2022-05-27 | AP61: 64 | AQ61: 0 | AR61: 0 | AS61: 0
A62: G | B62: Ana B | G62: =IF(H62-H63=0,0.5,IF(H62>H63,1,0)) -> 1 | H62: 1 | I62: =IF(J62-J63=0,0.5,IF(J62>J63,1,0)) -> 1 | J62: 1 | M62: =IF(N62-N63=0,0.5,IF(N62>N63,1,0)) -> 1 | N62: 1 | O62: =IF(P62-P63=0,0.5,IF(P62>P63,1,0)) -> 0 | W62: =IF(X62-X63=0,0.5,IF(X62>X63,1,0)) -> 0.5 | X62: 0.5 | Y62: =IF(Z62-Z63=0,0.5,IF(Z62>Z63,1,0)) -> 1 | Z62: 1 | AE62: =IF(AF62-AF63=0,0.5,IF(AF62>AF63,1,0)) -> 0 | AI62: =IF(AJ62-AJ63=0,0.5,IF(AJ62>AJ63,1,0)) -> 1 | AJ62: 1 | AO62: 2022-06-09 | AP62: 68 | AQ62: =+C62+E62+G62+I62++K62++M62+O62+Q62+S62+U62+W62+AK62+AM62+Y62+AC62+AE62+AG62+AI62+AA62 -> 5.5 | AR62: 5.5 | AS62: 7 | AT62: 0.7857142857
A63: P | P63: 1 | X63: 0.5 | AF63: 1 | AO63: 2022-06-24 | AP63: 75 | AQ63: 0 | AR63: 2.5 | AS63: 1.5 | AT63: 1.666666667
A64: G | B64: Sebas | G64: =IF(H64-H65=0,0.5,IF(H64>H65,1,0)) -> 1 | H64: 9 | W64: =IF(X64-X65=0,0.5,IF(X64>X65,1,0)) -> 1 | X64: 2 | Y64: =IF(Z64-Z65=0,0.5,IF(Z64>Z65,1,0)) -> 0.5 | Z64: 5 | AA64: =IF(AB64-AB65=0,0.5,IF(AB64>AB65,1,0)) -> 1 | AB64: 1 | AC64: =IF(AD64-AD65=0,0.5,IF(AD64>AD65,1,0)) -> 0.5 | AD64: 2 | AG64: =IF(AH64-AH65=0,0.5,IF(AH64>AH65,1,0)) -> 1 | AH64: 1 | AK64: =IF(AL64-AL65=0,0.5,IF(AL64>AL65,1,0)) -> 0.5 | AL64: 4 | AM64: =IF(AN64-AN65=0,0.5,IF(AN64>AN65,1,0)) -> 1 | AN64: 1 | AO64: 2022-06-25 | AP64: 76 | AQ64: 6.5 | AR64: 25 | AS64: 8 | AT64: 3.125
A65: P | H65: 3 | X65: 1 | Z65: 5 | AD65: 2 | AL65: 4 | AO65: 2022-09-08 | AP65: 102 | AQ65: 0 | AR65: =+D65+F65+H65+J65++L65++N65+P65+R65+T65+V65+X65+AL65+AN65+Z65+AD65+AF65+AH65+AJ65+AB65 -> 15 | AS65: =COUNT(C65:AN65)/2 -> 2.5 | AT65: 6
A66: G | B66: Òscar | G66: =IF(H66-H67=0,0.5,IF(H66>H67,1,0)) -> 1 | H66: 4 | I66: =IF(J66-J67=0,0.5,IF(J66>J67,1,0)) -> 1 | J66: 1 | S66: =IF(T66-T67=0,0.5,IF(T66>T67,1,0)) -> 0.5 | T66: 0.5 | U66: =IF(V66-V67=0,0.5,IF(V66>V67,1,0)) -> 0 | V66: 1 | Y66: =IF(Z66-Z67=0,0.5,IF(Z66>Z67,1,0)) -> 1 | Z66: 3 | AC66: =IF(AD66-AD67=0,0.5,IF(AD66>AD67,1,0)) -> 0 | AD66: 2 | AE66: =IF(AF66-AF67=0,0.5,IF(AF66>AF67,1,0)) -> 0 | AK66: =IF(AL66-AL67=0,0.5,IF(AL66>AL67,1,0)) -> 0.5 | AL66: 2 | AO66: 2022-09-09 | AP66: 103 | AQ66: 4 | AR66: =+D66+F66+H66+J66++L66++N66+P66+R66+T66+V66+X66+AL66+AN66+Z66+AD66+AF66+AH66+AJ66+AB66 -> 13.5 | AS66: =COUNT(C66:AN66)/2 -> 7.5 | AT66: 1.8
A67: P | H67: 2 | T67: 0.5 | V67: 2 | Z67: 1 | AD67: 3 | AF67: 1 | AL67: 2 | AO67: 2022-09-17 | AP67: 106 | AQ67: 0 | AR67: =+D67+F67+H67+J67++L67++N67+P67+R67+T67+V67+X67+AL67+AN67+Z67+AD67+AF67+AH67+AJ67+AB67 -> 11.5 | AS67: =COUNT(C67:AN67)/2 -> 3.5 | AT67: 3.285714286
A68: G | B68: Montse | G68: =IF(H68-H69=0,0.5,IF(H68>H69,1,0)) -> 1 | H68: 10 | I68: =IF(J68-J69=0,0.5,IF(J68>J69,1,0)) -> 1 | J68: 1 | S68: =IF(T68-T69=0,0.5,IF(T68>T69,1,0)) -> 0 | U68: =IF(V68-V69=0,0.5,IF(V68>V69,1,0)) -> 0.5 | V68: 5 | W68: =IF(X68-X69=0,0.5,IF(X68>X69,1,0)) -> 0 | X68: 1 | AC68: =IF(AD68-AD69=0,0.5,IF(AD68>AD69,1,0)) -> 0 | AE68: =IF(AF68-AF69=0,0.5,IF(AF68>AF69,1,0)) -> 0 | AK68: =IF(AL68-AL69=0,0.5,IF(AL68>AL69,1,0)) -> 1 | AL68: 5 | AO68: 2022-09-23 | AP68: 108 | AQ68: 3.5 | AR68: =+D68+F68+H68+J68++L68++N68+P68+R68+T68+V68+X68+AL68+AN68+Z68+AD68+AF68+AH68+AJ68+AB68 -> 22 | AS68: =COUNT(C68:AN68)/2 -> 6.5 | AT68: =+AR68/AS68 -> 3.384615385
A69: P | H69: 4 | T69: 1 | V69: 5 | X69: 3 | AD69: 4 | AF69: 1 | AL69: 4 | AQ69: =+C69+E69+G69+I69++K69++M69+O69+Q69+S69+U69+W69+AK69+AM69+Y69+AC69+AE69+AG69+AI69+AA69 -> 0 | AR69: =+D69+F69+H69+J69++L69++N69+P69+R69+T69+V69+X69+AL69+AN69+Z69+AD69+AF69+AH69+AJ69+AB69 -> 22 | AS69: =COUNT(C69:AN69)/2 -> 3.5 | AT69: =+AR69/AS69 -> 6.285714286
A70: G | B70: Manolo | C70: =IF(D70-D71=0,0.5,IF(D70>D71,1,0)) -> 1 | D70: 2 | U70: =IF(V70-V71=0,0.5,IF(V70>V71,1,0)) -> 0 | AC70: =IF(AD70-AD71=0,0.5,IF(AD70>AD71,1,0)) -> 1 | AD70: 1 | AE70: =IF(AF70-AF71=0,0.5,IF(AF70>AF71,1,0)) -> 0 | AG70: =IF(AH70-AH71=0,0.5,IF(AH70>AH71,1,0)) -> 0.5 | AH70: 1 | AI70: =IF(AJ70-AJ71=0,0.5,IF(AJ70>AJ71,1,0)) -> 0 | AK70: =IF(AL70-AL71=0,0.5,IF(AL70>AL71,1,0)) -> 0 | AM70: =IF(AN70-AN71=0,0.5,IF(AN70>AN71,1,0)) -> 0 | AQ70: 2.5 | AR70: 4 | AS70: 5.5 | AT70: 0.7272727273
A71: P | V71: 1 | AF71: 2 | AH71: 1 | AJ71: 1 | AL71: 1 | AN71: 1 | AQ71: 0 | AR71: 7 | AS71: 3 | AT71: 2.333333333
A72: G | B72: Gemma | G72: =IF(H72-H73=0,0.5,IF(H72>H73,1,0)) -> 1 | H72: 8 | U72: =IF(V72-V73=0,0.5,IF(V72>V73,1,0)) -> 0.5 | V72: 2 | W72: =IF(X72-X73=0,0.5,IF(X72>X73,1,0)) -> 1 | X72: 3 | Y72: =IF(Z72-Z73=0,0.5,IF(Z72>Z73,1,0)) -> 1 | Z72: 4 | AA72: =IF(AB72-AB73=0,0.5,IF(AB72>AB73,1,0)) -> 0 | AG72: =IF(AH72-AH73=0,0.5,IF(AH72>AH73,1,0)) -> 0 | AI72: =IF(AJ72-AJ73=0,0.5,IF(AJ72>AJ73,1,0)) -> 0 | AK72: =IF(AL72-AL73=0,0.5,IF(AL72>AL73,1,0)) -> 1 | AL72: 3 | AQ72: 4.5 | AR72: 20 | AS72: 6.5 | AT72: 3.076923077
A73: P | V73: 2 | X73: 2 | AB73: 1 | AH73: 1 | AJ73: 1 | AL73: 2 | AQ73: 0 | AR73: 9 | AS73: 3 | AT73: 3
A74: G | B74: Nin | C74: =IF(D74-D75=0,0.5,IF(D74>D75,1,0)) -> 1 | D74: 2 | I74: =IF(J74-J75=0,0.5,IF(J74>J75,1,0)) -> 1 | J74: 1 | S74: =IF(T74-T75=0,0.5,IF(T74>T75,1,0)) -> 1 | T74: 1 | W74: =IF(X74-X75=0,0.5,IF(X74>X75,1,0)) -> 1 | X74: 1 | Y74: =IF(Z74-Z75=0,0.5,IF(Z74>Z75,1,0)) -> 1 | Z74: 1 | AA74: =IF(AB74-AB75=0,0.5,IF(AB74>AB75,1,0)) -> 1 | AB74: 2 | AQ74: 6 | AR74: 8 | AS74: 6 | AT74: 1.333333333
A75: P | AQ75: 0 | AR75: 0 | AS75: 0
A76: G | B76: Grau | U76: =IF(V76-V77=0,0.5,IF(V76>V77,1,0)) -> 0 | AA76: =IF(AB76-AB77=0,0.5,IF(AB76>AB77,1,0)) -> 0.5 | AB76: 1 | AC76: =IF(AD76-AD77=0,0.5,IF(AD76>AD77,1,0)) -> 1 | AD76: 1 | AI76: =IF(AJ76-AJ77=0,0.5,IF(AJ76>AJ77,1,0)) -> 0 | AK76: =IF(AL76-AL77=0,0.5,IF(AL76>AL77,1,0)) -> 1 | AL76: 1 | AM76: =IF(AN76-AN77=0,0.5,IF(AN76>AN77,1,0)) -> 1 | AN76: 1 | AQ76: 3.5 | AR76: 4 | AS76: 5 | AT76: 0.8
A77: P | V77: 1 | AB77: 1 | AJ77: 1 | AQ77: 0 | AR77: 3 | AS77: 1.5 | AT77: 2
A78: G | B78: Goretti | G78: =IF(H78-H79=0,0.5,IF(H78>H79,1,0)) -> 1 | H78: 1 | M78: =IF(N78-N79=0,0.5,IF(N78>N79,1,0)) -> 0.5 | N78: 0.5 | O78: =IF(P78-P79=0,0.5,IF(P78>P79,1,0)) -> 0 | S78: =IF(T78-T79=0,0.5,IF(T78>T79,1,0)) -> 0 | AA78: =IF(AB78-AB79=0,0.5,IF(AB78>AB79,1,0)) -> 1 | AB78: 1 | AC78: =IF(AD78-AD79=0,0.5,IF(AD78>AD79,1,0)) -> 1 | AD78: 1 | AG78: =IF(AH78-AH79=0,0.5,IF(AH78>AH79,1,0)) -> 1 | AH78: 1 | AQ78: 4.5 | AR78: 4.5 | AS78: 6 | AT78: 0.75
A79: P | N79: 0.5 | P79: 1 | T79: 1 | AQ79: 0 | AR79: 2.5 | AS79: 1.5 | AT79: 1.666666667
A80: G | B80: Núria | C80: =IF(D80-D81=0,0.5,IF(D80>D81,1,0)) -> 1 | D80: 1 | G80: =IF(H80-H81=0,0.5,IF(H80>H81,1,0)) -> 1 | H80: 9 | M80: =IF(N80-N81=0,0.5,IF(N80>N81,1,0)) -> 1 | N80: 1 | U80: =IF(V80-V81=0,0.5,IF(V80>V81,1,0)) -> 0.5 | V80: 4 | W80: =IF(X80-X81=0,0.5,IF(X80>X81,1,0)) -> 0.5 | X80: 2 | Y80: =IF(Z80-Z81=0,0.5,IF(Z80>Z81,1,0)) -> 0 | Z80: 4 | AA80: =IF(AB80-AB81=0,0.5,IF(AB80>AB81,1,0)) -> 1 | AB80: 1 | AC80: =IF(AD80-AD81=0,0.5,IF(AD80>AD81,1,0)) -> 0 | AD80: 2 | AG80: =IF(AH80-AH81=0,0.5,IF(AH80>AH81,1,0)) -> 0 | AM80: =IF(AN80-AN81=0,0.5,IF(AN80>AN81,1,0)) -> 1 | AN80: 2 | AQ80: 6 | AR80: 26 | AS80: 9.5 | AT80: 2.736842105
A81: P | H81: 5 | V81: 4 | X81: 2 | Z81: 5 | AD81: 3 | AH81: 1 | AQ81: 0 | AR81: 20 | AS81: 3 | AT81: 6.666666667
A82: G | B82: Mariajo | C82: =IF(D82-D83=0,0.5,IF(D82>D83,1,0)) -> 0 | G82: =IF(H82-H83=0,0.5,IF(H82>H83,1,0)) -> 0 | M82: =IF(N82-N83=0,0.5,IF(N82>N83,1,0)) -> 0 | U82: =IF(V82-V83=0,0.5,IF(V82>V83,1,0)) -> 0 | AA82: =IF(AB82-AB83=0,0.5,IF(AB82>AB83,1,0)) -> 1 | AB82: 1 | AG82: =IF(AH82-AH83=0,0.5,IF(AH82>AH83,1,0)) -> 0 | AK82: =IF(AL82-AL83=0,0.5,IF(AL82>AL83,1,0)) -> 0 | AQ82: 1 | AR82: 1 | AS82: 4 | AT82: 0.25
A83: P | D83: 1 | H83: 1 | N83: 1 | V83: 1 | AH83: 1 | AL83: 2 | AQ83: 0 | AR83: 7 | AS83: 3 | AT83: 2.333333333
A84: G | AQ84: 0 | AR84: 0 | AS84: 0
A85: P | AQ85: 0 | AR85: 0 | AS85: 0
A86: G | AQ86: 0 | AR86: 0 | AS86: 0
A87: P | AQ87: 0 | AR87: 0 | AS87: 0
A88: G | AQ88: =+C88+E88+G88+I88++K88++M88+O88+Q88+S88+U88+W88+AK88+AM88+Y88+AC88+AE88+AG88+AI88+AA88 -> 0 | AR88: 0 | AS88: 0
A89: P | AQ89: 0 | AR89: 0 | AS89: 0
A90: G | AQ90: 0 | AR90: 0 | AS90: 0
A91: P | AQ91: =+C91+E91+G91+I91++K91++M91+O91+Q91+S91+U91+W91+AK91+AM91+Y91+AC91+AE91+AG91+AI91+AA91 -> 0 | AR91: =+D91+F91+H91+J91++L91++N91+P91+R91+T91+V91+X91+AL91+AN91+Z91+AD91+AF91+AH91+AJ91+AB91 -> 0 | AS91: 0
A92: =+A91+1 ->  | AQ92: 0 | AR92: 0 | AS92: 0
AQ93: 0 | AR93: 0 | AS93: 0
AQ94: 0 | AR94: 0 | AS94: 0
AQ95: 0 | AR95: 0 | AS95: 0
AQ96: 0 | AR96: 0 | AS96: 0
AQ97: 0 | AR97: 0 | AS97: 0
AQ98: 0 | AR98: 0 | AS98: 0
AQ99: 0 | AR99: 0 | AS99: 0
AQ100: 0 | AR100: 0 | AS100: 0
AQ101: 0 | AR101: 0 | AS101: 0
AQ102: 0 | AR102: 0 | AS102: 0
AQ103: 0 | AR103: 0 | AS103: 0
AQ104: 0 | AR104: 0 | AS104: 0
AQ105: =+C105+E105+G105+I105++K105++M105+O105+Q105+S105+U105+W105+AK105+AM105+Y105+AC105+AE105+AG105+AI105+AA105 -> 0 | AR105: =+D105+F105+H105+J105++L105++N105+P105+R105+T105+V105+X105+AL105+AN105+Z105+AD105+AF105+AH105+AJ105+AB105 -> 0 | AS105: 0
AQ106: 0 | AR106: 0 | AS106: 0
AQ107: 0 | AR107: 0 | AS107: 0
AQ108: 0 | AR108: 0 | AS108: 0
AQ109: 0 | AR109: 0 | AS109: 0
AQ110: 0 | AR110: 0 | AS110: 0
AQ111: 0 | AR111: 0 | AS111: 0
A112: =+A111+1 ->  | AQ112: 0 | AR112: 0 | AS112: 0
AQ113: 0 | AR113: 0 | AS113: 0
AQ114: 0 | AR114: 0 | AS114: 0
AQ115: 0 | AR115: 0 | AS115: 0
AQ116: 0 | AR116: 0 | AS116: 0
AQ117: 0 | AR117: 0 | AS117: 0
AQ118: 0 | AR118: 0 | AS118: 0
AQ119: 0 | AR119: 0 | AS119: 0
AQ120: 0 | AR120: 0 | AS120: 0
AQ121: 0 | AR121: 0 | AS121: 0
AQ122: 0 | AR122: 0 | AS122: 0
AQ123: 0 | AR123: 0 | AS123: 0
AQ124: 0 | AR124: 0 | AS124: 0
AQ125: 0 | AR125: 0 | AS125: 0
AQ126: 0 | AR126: 0 | AS126: 0
AQ127: 0 | AR127: 0 | AS127: 0
AQ128: 0 | AR128: 0 | AS128: 0
AQ129: 0 | AR129: 0 | AS129: 0
AQ130: 0 | AR130: 0 | AS130: 0
AQ131: 0 | AR131: 0 | AS131: 0
AQ132: 0 | AR132: 0 | AS132: 0
AQ133: 0 | AR133: 0 | AS133: =COUNT(C133:AN133)/2 -> 0 | AT133: =+AR133/AS133 -> 
AQ134: 0 | AR134: 0 | AS134: 0
AQ135: 0 | AR135: 0 | AS135: 0
AQ136: 0 | AR136: 0 | AS136: 0
AQ137: 0 | AR137: 0 | AS137: 0
AQ138: 0 | AR138: 0 | AS138: 0
AQ139: 0 | AR139: 0 | AS139: 0
AQ140: 0 | AR140: 0 | AS140: 0
AQ141: 0 | AR141: 0 | AS141: 0
AQ142: 0 | AR142: 0 | AS142: 0
AQ143: 0 | AR143: 0 | AS143: 0
AQ144: 0 | AR144: 0 | AS144: 0
AQ145: 0 | AR145: 0 | AS145: 0
AQ146: 0 | AR146: 0 | AS146: 0
AQ147: 0 | AR147: 0 | AS147: 0
AQ148: 0 | AR148: 0 | AS148: 0
AQ149: 0 | AR149: 0 | AS149: 0
AQ150: 0 | AR150: 0 | AS150: 0
AQ151: 0 | AR151: 0 | AS151: 0
AQ152: 0 | AR152: 0 | AS152: 0
AQ153: 0 | AR153: 0 | AS153: 0
AQ154: 0 | AR154: 0 | AS154: 0
AQ155: 0 | AR155: 0 | AS155: 0
AQ156: 0 | AR156: 0 | AS156: 0
AQ157: 0 | AR157: 0 | AS157: 0
AQ158: 0 | AR158: 0 | AS158: 0
AQ159: 0 | AR159: 0 | AS159: 0
AQ160: 0 | AR160: 0 | AS160: 0
AQ161: 0 | AR161: 0 | AS161: 0
AQ162: 0 | AR162: 0 | AS162: 0
AQ163: 0 | AR163: 0 | AS163: 0
AQ164: 0 | AR164: 0 | AS164: 0
AQ165: 0 | AR165: 0 | AS165: 0
AQ166: 0 | AR166: 0 | AS166: 0
AQ167: 0 | AR167: 0 | AS167: 0
AQ168: 0 | AR168: 0 | AS168: 0
AQ169: =+C169+E169+G169+I169++K169++M169+O169+Q169+S169+U169+W169+AK169+AM169+Y169+AC169+AE169+AG169+AI169+AA169 -> 0 | AR169: =+D169+F169+H169+J169++L169++N169+P169+R169+T169+V169+X169+AL169+AN169+Z169+AD169+AF169+AH169+AJ169+AB169 -> 0 | AS169: 0
AQ170: 0 | AR170: 0 | AS170: 0
AQ171: 0 | AR171: 0 | AS171: 0
AQ172: 0 | AR172: 0 | AS172: 0
AQ173: 0 | AR173: 0 | AS173: 0
AQ174: 0 | AR174: 0 | AS174: 0
AQ175: 0 | AR175: 0 | AS175: 0
A176: =+A175+1 ->  | AQ176: 0 | AR176: 0 | AS176: 0
AQ177: 0 | AR177: 0 | AS177: 0
AQ178: 0 | AR178: 0 | AS178: 0
AQ179: 0 | AR179: 0 | AS179: 0
AQ180: 0 | AR180: 0 | AS180: 0
AQ181: 0 | AR181: 0 | AS181: 0
AQ182: 0 | AR182: 0 | AS182: 0
AQ183: 0 | AR183: 0 | AS183: 0
AQ184: 0 | AR184: 0 | AS184: 0
AQ185: 0 | AR185: 0 | AS185: 0
AQ186: 0 | AR186: 0 | AS186: 0
AQ187: 0 | AR187: 0 | AS187: 0
AQ188: 0 | AR188: 0 | AS188: 0
AQ189: 0 | AR189: 0 | AS189: 0
AQ190: 0 | AR190: 0 | AS190: 0
AQ191: 0 | AR191: 0 | AS191: 0
AQ192: 0 | AR192: 0 | AS192: 0
AQ193: 0 | AR193: 0 | AS193: 0
AQ194: 0 | AR194: 0 | AS194: 0
AQ195: 0 | AR195: 0 | AS195: 0
AQ196: 0 | AR196: 0 | AS196: 0
AQ197: 0 | AR197: 0 | AS197: =COUNT(C197:AN197)/2 -> 0 | AT197: =+AR197/AS197 -> 
AQ198: 0 | AR198: 0 | AS198: =COUNT(C198:AN198)/2 -> 0 | AT198: =+AR198/AS198 -> 
AQ199: 0 | AR199: 0 | AS199: =COUNT(C199:AN199)/2 -> 0 | AT199: =+AR199/AS199 -> 
AQ200: 0 | AR200: 0 | AS200: =COUNT(C200:AN200)/2 -> 0 | AT200: =+AR200/AS200 -> 

Sheet Skull King
A1: SKULL KING
A2: Mes
A3: =+GENERAL!B6 -> 12 | C3: =SUM(C5:C14) -> 0
C4: Premi | D4: Punts | E4: Partides | F4: General
A5: 1 | B5: Sergi | C5: =+M$36 -> 41 | D5: =+N$37 -> 247.7777778 | E5: =+N$36 -> 9 | F5: =+M$22 -> 80 | G5: =IF(E5<A$3/2,-1,1)*8000+C5*100+D5+E5/100 -> 12347.86778
A6: 2 | B6: Carles | C6: =+O$36 -> 35.5 | D6: =+P$37 -> 205.3846154 | E6: =+P$36 -> 13 | F6: =+O$22 -> 40 | G6: 11755.51462
A7: 3 | B7: Manel | C7: =+E$36 -> -27.5 | D7: =+F$37 -> 157.2727273 | E7: =+F$36 -> 11 | F7: =+E$22 -> 20 | G7: 5407.382727
A8: 4 | B8: Nin | C8: =+Y$36 -> -30 | D8: =+Z$37 -> 160 | E8: =+Z$36 -> 9 | F8: =+Y$22 -> 10 | G8: 5160.09
A9: 5 | B9: Tito | C9: =+U$36 -> 9 | D9: =+V$37 -> 236 | E9: =+V$36 -> 5 | F9: =+U$22 -> 0 | G9: -6863.95
A10: 6 | B10: Jeff | C10: =+I$36 -> 0 | D10: =+J$37 -> 170 | E10: =+J$36 -> 2 | F10: =+I$22 -> 0 | G10: -7829.98
A11: 7 | B11: Jordi | C11: =+G$36 -> 0 | D11: =+H$37 -> 130 | E11: =+H$36 -> 1 | F11: =+G$22 -> 0 | G11: -7869.99
A12: 8 | B12: Marina | C12: =+AA$36 -> -4 | D12: =+AB$37 -> 90 | E12: =+AB$36 -> 2 | F12: =+AA$22 -> 0 | G12: -8309.98
A13: 9 | B13: Alfred | C13: =+AC$36 -> -10 | D13: =+AD$37 -> 100 | E13: =+AD$36 -> 1 | F13: =+AC$22 -> 0 | G13: -8899.99
A14: 10 | B14: Mariajo | C14: =+Q$36 -> -14 | D14: =+R$37 -> 10 | E14: =+R$36 -> 2 | F14: =+Q$22 -> 0 | G14: -9389.98
A15: 11 | B15: Grau | C15: =+S$36 -> -100000000 | D15: =+T$37 -> 0.0001 | E15: =+T$36 -> 0 | F15: =+S$22 -> 0 | G15: -1.0000008e+10
A16: 12 | B16: Ester | C16: =+K$36 -> -100000000 | D16: =+L$37 -> 0.0001 | E16: =+L$36 -> 0 | F16: =+K$22 -> 0 | G16: -1.0000008e+10
A17: 13 | B17: Goretti | C17: =+C$36 -> -100000000 | D17: =+D$37 -> 0.0001 | E17: =+D$36 -> 0 | F17: =+C$22 -> 0 | G17: -1.0000008e+10
A18: 14 | B18: Xavi | C18: =+W$36 -> -100000000 | D18: =+X$37 -> 0.0001 | E18: =+X$36 -> 0 | F18: =+W$22 -> 0 | G18: -1.0000008e+10
B22: General | C22: =+C23*C24 -> 0 | D22: =+D23*D24 -> 0 | E22: 20 | F22: 11 | G22: =+G23*G24 -> 0 | H22: 1 | I22: 0 | J22: 2 | K22: 0 | L22: 0 | M22: 80 | N22: 9 | O22: 40 | P22: 13 | Q22: 0 | R22: 2 | S22: =+S23*S24 -> 0 | T22: 0 | U22: 0 | V22: 5 | W22: 0 | X22: 0 | Y22: =+Y23*Y24 -> 10 | Z22: 9 | AA22: =+AA23*AA24 -> 0 | AB22: =+AB23*AB24 -> 2 | AC22: 0 | AD22: 1
C23: =IF($B35>3,1,0) -> 1 | D23: =IF($B35>3,1,0) -> 1 | E23: 1 | F23: 1 | G23: =IF($B35>3,1,0) -> 1 | H23: 1 | I23: 1 | J23: 1 | K23: 1 | L23: 1 | M23: 1 | N23: 1 | O23: 1 | P23: 1 | Q23: 1 | R23: 1 | S23: 1 | T23: 1 | U23: 1 | V23: 1 | W23: 1 | X23: 1 | Y23: 1 | Z23: 1 | AA23: =IF($B35>3,1,0) -> 1 | AB23: =IF($B35>3,1,0) -> 1 | AC23: 1 | AD23: 1
C24: =MAX(C25:C29) -> 0 | D24: =+D36 -> 0 | E24: =MAX(E25:E29) -> 20 | F24: =+F36 -> 11 | G24: =MAX(G25:G29) -> 0 | H24: =+H36 -> 1 | I24: =MAX(I25:I29) -> 0 | J24: =+J36 -> 2 | K24: =MAX(K25:K29) -> 0 | L24: =+L36 -> 0 | M24: =MAX(M25:M29) -> 80 | N24: =+N36 -> 9 | O24: =MAX(O25:O29) -> 40 | P24: =+P36 -> 13 | Q24: =MAX(Q25:Q29) -> 0 | R24: =+R36 -> 2 | S24: =MAX(S25:S29) -> 0 | T24: =+T36 -> 0 | U24: =MAX(U25:U29) -> 0 | V24: =+V36 -> 5 | W24: =MAX(W25:W29) -> 0 | X24: =+X36 -> 0 | Y24: =MAX(Y25:Y29) -> 10 | Z24: =+Z36 -> 9 | AA24: =MAX(AA25:AA29) -> 0 | AB24: =+AB36 -> 2 | AC24: =MAX(AC25:AC29) -> 0 | AD24: =+AD36 -> 1
C25: =IF(C$30=5,5,0) -> 0 | E25: =IF(E$30=5,5,0) -> 0 | G25: =IF(G$30=5,5,0) -> 0 | I25: =IF(I$30=5,5,0) -> 0 | K25: =IF(K$30=5,5,0) -> 0 | M25: =IF(M$30=5,5,0) -> 0 | O25: =IF(O$30=5,5,0) -> 0 | Q25: =IF(Q$30=5,5,0) -> 0 | S25: =IF(S$30=5,5,0) -> 0 | U25: =IF(U$30=5,5,0) -> 0 | W25: =IF(W$30=5,5,0) -> 0 | Y25: =IF(Y$30=5,5,0) -> 0 | AA25: =IF(AA$30=5,5,0) -> 0 | AC25: =IF(AC$30=5,5,0) -> 0
C26: =IF(C$30=4,10,0) -> 0 | E26: =IF(E$30=4,10,0) -> 0 | G26: =IF(G$30=4,10,0) -> 0 | I26: =IF(I$30=4,10,0) -> 0 | K26: =IF(K$30=4,10,0) -> 0 | M26: =IF(M$30=4,10,0) -> 0 | O26: =IF(O$30=4,10,0) -> 0 | Q26: =IF(Q$30=4,10,0) -> 0 | S26: =IF(S$30=4,10,0) -> 0 | U26: =IF(U$30=4,10,0) -> 0 | W26: =IF(W$30=4,10,0) -> 0 | Y26: =IF(Y$30=4,10,0) -> 10 | AA26: =IF(AA$30=4,10,0) -> 0 | AC26: =IF(AC$30=4,10,0) -> 0
C27: =IF(C$30=3,20,0) -> 0 | E27: =IF(E$30=3,20,0) -> 20 | G27: =IF(G$30=3,20,0) -> 0 | I27: =IF(I$30=3,20,0) -> 0 | K27: =IF(K$30=3,20,0) -> 0 | M27: =IF(M$30=3,20,0) -> 0 | O27: =IF(O$30=3,20,0) -> 0 | Q27: =IF(Q$30=3,20,0) -> 0 | S27: =IF(S$30=3,20,0) -> 0 | U27: =IF(U$30=3,20,0) -> 0 | W27: =IF(W$30=3,20,0) -> 0 | Y27: =IF(Y$30=3,20,0) -> 0 | AA27: =IF(AA$30=3,20,0) -> 0 | AC27: =IF(AC$30=3,20,0) -> 0
C28: =IF(C$30=2,40,0) -> 0 | E28: =IF(E$30=2,40,0) -> 0 | G28: =IF(G$30=2,40,0) -> 0 | I28: =IF(I$30=2,40,0) -> 0 | K28: =IF(K$30=2,40,0) -> 0 | M28: =IF(M$30=2,40,0) -> 0 | O28: =IF(O$30=2,40,0) -> 40 | Q28: =IF(Q$30=2,40,0) -> 0 | S28: =IF(S$30=2,40,0) -> 0 | U28: =IF(U$30=2,40,0) -> 0 | W28: =IF(W$30=2,40,0) -> 0 | Y28: =IF(Y$30=2,40,0) -> 0 | AA28: =IF(AA$30=2,40,0) -> 0 | AC28: =IF(AC$30=2,40,0) -> 0
C29: =IF(C$30=1,80,0) -> 0 | E29: =IF(E$30=1,80,0) -> 0 | G29: =IF(G$30=1,80,0) -> 0 | I29: =IF(I$30=1,80,0) -> 0 | K29: =IF(K$30=1,80,0) -> 0 | M29: =IF(M$30=1,80,0) -> 80 | O29: =IF(O$30=1,80,0) -> 0 | Q29: =IF(Q$30=1,80,0) -> 0 | S29: =IF(S$30=1,80,0) -> 0 | U29: =IF(U$30=1,80,0) -> 0 | W29: =IF(W$30=1,80,0) -> 0 | Y29: =IF(Y$30=1,80,0) -> 0 | AA29: =IF(AA$30=1,80,0) -> 0 | AC29: =IF(AC$30=1,80,0) -> 0
C30: =RANK(C31,$C31:$BF31)*C35 -> 0 | E30: =RANK(E31,$C31:$BF31)*E35 -> 3 | G30: =RANK(G31,$C31:$BF31)*G35 -> 0 | I30: =RANK(I31,$C31:$BF31)*I35 -> 0 | K30: =RANK(K31,$C31:$BF31)*K35 -> 0 | M30: =RANK(M31,$C31:$BF31)*M35 -> 1 | O30: =RANK(O31,$C31:$BF31)*O35 -> 2 | Q30: =RANK(Q31,$C31:$BF31)*Q35 -> 0 | S30: =RANK(S31,$C31:$BF31)*S35 -> 0 | U30: =RANK(U31,$C31:$BF31)*U35 -> 0 | W30: =RANK(W31,$C31:$BF31)*W35 -> 0 | Y30: =RANK(Y31,$C31:$BF31)*Y35 -> 4 | AA30: =RANK(AA31,$C31:$BF31)*AA35 -> 0 | AC30: =RANK(AC31,$C31:$BF31)*AC35 -> 0
C31: =SUM(C32:C34) -> -101000000 | E31: =SUM(E32:E34) -> -11789.22727 | G31: =SUM(G32:G34) -> -986999 | I31: =SUM(I32:I34) -> -982998 | K31: =SUM(K32:K34) -> -101000000 | M31: =SUM(M32:M34) -> 65827.77778 | O31: =SUM(O32:O34) -> 56086.96154 | Q31: =SUM(Q32:Q34) -> -999012 | S31: =SUM(S32:S34) -> -101000000 | U31: =SUM(U32:U34) -> -976386 | W31: =SUM(W32:W34) -> -101000000 | Y31: =SUM(Y32:Y34) -> -14021 | AA31: =SUM(AA32:AA34) -> -991002 | AC31: =SUM(AC32:AC34) -> -990009
C32: =+D36 -> 0 | E32: =+F36 -> 11 | G32: =+H36 -> 1 | I32: =+J36 -> 2 | K32: =+L36 -> 0 | M32: =+N36 -> 9 | O32: =+P36 -> 13 | Q32: =+R36 -> 2 | S32: =+T36 -> 0 | U32: =+V36 -> 5 | W32: =+X36 -> 0 | Y32: =+Z36 -> 9 | AA32: =+AB36 -> 2 | AC32: =+AD36 -> 1
C33: =D37*100 -> 0.01 | E33: =F37*100 -> 15727.27273 | G33: =H37*100 -> 13000 | I33: =J37*100 -> 17000 | K33: =L37*100 -> 0.01 | M33: =N37*100 -> 24777.77778 | O33: =P37*100 -> 20538.46154 | Q33: =R37*100 -> 1000 | S33: =T37*100 -> 0.01 | U33: =V37*100 -> 23600 | W33: =X37*100 -> 0.01 | Y33: =Z37*100 -> 16000 | AA33: =AB37*100 -> 9000 | AC33: =AD37*100 -> 10000
C34: =IF(C35=1,C36*C35*1000+C36,-1000000+C36) -> -101000000 | E34: =IF(E35=1,E36*E35*1000+E36,-1000000+E36) -> -27527.5 | G34: =IF(G35=1,G36*G35*1000+G36,-1000000+G36) -> -1000000 | I34: =IF(I35=1,I36*I35*1000+I36,-1000000+I36) -> -1000000 | K34: =IF(K35=1,K36*K35*1000+K36,-1000000+K36) -> -101000000 | M34: =IF(M35=1,M36*M35*1000+M36,-1000000+M36) -> 41041 | O34: =IF(O35=1,O36*O35*1000+O36,-1000000+O36) -> 35535.5 | Q34: =IF(Q35=1,Q36*Q35*1000+Q36,-1000000+Q36) -> -1000014 | S34: =IF(S35=1,S36*S35*1000+S36,-1000000+S36) -> -101000000 | U34: =IF(U35=1,U36*U35*1000+U36,-1000000+U36) -> -999991 | W34: =IF(W35=1,W36*W35*1000+W36,-1000000+W36) -> -101000000 | Y34: =IF(Y35=1,Y36*Y35*1000+Y36,-1000000+Y36) -> -30030 | AA34: =IF(AA35=1,AA36*AA35*1000+AA36,-1000000+AA36) -> -1000004 | AC34: =IF(AC35=1,AC36*AC35*1000+AC36,-1000000+AC36) -> -1000010
A35: Classificats | B35: =SUM(C35:AC35) -> 4 | C35: =IF(D36>=$A3/2,1,0) -> 0 | E35: =IF(F36>=$A3/2,1,0) -> 1 | G35: =IF(H36>=$A3/2,1,0) -> 0 | I35: =IF(J36>=$A3/2,1,0) -> 0 | K35: =IF(L36>=$A3/2,1,0) -> 0 | M35: =IF(N36>=$A3/2,1,0) -> 1 | O35: =IF(P36>=$A3/2,1,0) -> 1 | Q35: =IF(R36>=$A3/2,1,0) -> 0 | S35: =IF(T36>=$A3/2,1,0) -> 0 | U35: =IF(V36>=$A3/2,1,0) -> 0 | W35: =IF(X36>=$A3/2,1,0) -> 0 | Y35: =IF(Z36>=$A3/2,1,0) -> 1 | AA35: =IF(AB36>=$A3/2,1,0) -> 0 | AC35: =IF(AD36>=$A3/2,1,0) -> 0
C36: =IF(SUM(C41:C213)<-1000,-100000000,SUM(C41:C213)) -> -100000000 | D36: =COUNT(D41:D213) -> 0 | E36: =IF(SUM(E41:E213)<-1000,-100000000,SUM(E41:E213)) -> -27.5 | F36: =COUNT(F41:F213) -> 11 | G36: =IF(SUM(G41:G213)<-1000,-100000000,SUM(G41:G213)) -> 0 | H36: =COUNT(H41:H213) -> 1 | I36: =IF(SUM(I41:I213)<-1000,-100000000,SUM(I41:I213)) -> 0 | J36: =COUNT(J41:J213) -> 2 | K36: =IF(SUM(K41:K213)<-1000,-100000000,SUM(K41:K213)) -> -100000000 | L36: =COUNT(L41:L213) -> 0 | M36: =IF(SUM(M41:M213)<-1000,-100000000,SUM(M41:M213)) -> 41 | N36: =COUNT(N41:N213) -> 9 | O36: =IF(SUM(O41:O213)<-1000,-100000000,SUM(O41:O213)) -> 35.5 | P36: =COUNT(P41:P213) -> 13 | Q36: =IF(SUM(Q41:Q213)<-1000,-100000000,SUM(Q41:Q213)) -> -14 | R36: =COUNT(R41:R213) -> 2 | S36: =IF(SUM(S41:S213)<-1000,-100000000,SUM(S41:S213)) -> -100000000 | T36: =COUNT(T41:T213) -> 0 | U36: =IF(SUM(U41:U213)<-1000,-100000000,SUM(U41:U213)) -> 9 | V36: =COUNT(V41:V213) -> 5 | W36: =IF(SUM(W41:W213)<-1000,-100000000,SUM(W41:W213)) -> -100000000 | X36: =COUNT(X41:X213) -> 0 | Y36: =IF(SUM(Y41:Y213)<-1000,-100000000,SUM(Y41:Y213)) -> -30 | Z36: =COUNT(Z41:Z213) -> 9 | AA36: =IF(SUM(AA41:AA213)<-1000,-100000000,SUM(AA41:AA213)) -> -4 | AB36: =COUNT(AB41:AB213) -> 2 | AC36: =IF(SUM(AC41:AC213)<-1000,-100000000,SUM(AC41:AC213)) -> -10 | AD36: =COUNT(AD41:AD213) -> 1
D37: =IF(D36=0,0.0001,AVERAGE(D41:D128)) -> 0.0001 | F37: =IF(F36=0,0.0001,AVERAGE(F41:F128)) -> 157.2727273 | H37: =IF(H36=0,0.0001,AVERAGE(H41:H128)) -> 130 | J37: =IF(J36=0,0.0001,AVERAGE(J41:J128)) -> 170 | L37: =IF(L36=0,0.0001,AVERAGE(L41:L128)) -> 0.0001 | N37: =IF(N36=0,0.0001,AVERAGE(N41:N128)) -> 247.7777778 | P37: =IF(P36=0,0.0001,AVERAGE(P41:P128)) -> 205.3846154 | R37: =IF(R36=0,0.0001,AVERAGE(R41:R128)) -> 10 | T37: =IF(T36=0,0.0001,AVERAGE(T41:T128)) -> 0.0001 | V37: =IF(V36=0,0.0001,AVERAGE(V41:V128)) -> 236 | X37: =IF(X36=0,0.0001,AVERAGE(X41:X128)) -> 0.0001 | Z37: =IF(Z36=0,0.0001,AVERAGE(Z41:Z128)) -> 160 | AB37: =IF(AB36=0,0.0001,AVERAGE(AB41:AB128)) -> 90 | AD37: =IF(AD36=0,0.0001,AVERAGE(AD41:AD128)) -> 100
AE38: =MAX(AF41:AF100) -> 95
B39: Comentaris | C39: Goretti | E39: Manel | G39: Jordi | I39: Jeff | K39: Ester | M39: Sergi | O39: Carles | Q39: Mariajo | S39: Grau | U39: Tito | W39: Xavi | Y39: Nin | AA39: Marina | AC39: Alfred | AE39: =COUNT(AE41:AE128) -> 13 | AF39: A | AG39: B | AH39: C
C40: Premi | D40: Punts | E40: Premi | F40: Punts | G40: Premi | H40: Punts | I40: Premi | J40: Punts | K40: Premi | L40: Punts | M40: Premi | N40: Punts | O40: Premi | P40: Punts | Q40: Premi | R40: Punts | S40: Premi | T40: Punts | U40: Premi | V40: Punts | W40: Premi | X40: Punts | Y40: Premi | Z40: Punts | AA40: Premi | AB40: Punts | AC40: Premi | AD40: Punts | AE40: Data | AF40: Timba
A41: 1 | C41: -10000 | E41: -10 | F41: 50 | K41: -10000 | M41: 10 | N41: 310 | O41: 4 | P41: 190 | S41: -10000 | W41: -10000 | Y41: -4 | Z41: 160 | AE41: 2022-06-23 | AF41: 73 | AG41: =+AC41+Y41+W41+U41+S41+Q41+O41+M41+K41+I41+G41+E41+C41 -> -40000 | AH41: =COUNT(C41:AD41)/2 -> 6 | AI41: =+AG41/AH41 -> -6666.666667
A42: =+A41+1 -> 2 | E42: -5 | F42: 190 | M42: 10 | N42: 330 | O42: 0 | P42: 210 | U42: 5 | V42: 230 | Y42: -10 | Z42: 130 | AE42: 2022-06-23 | AF42: 73 | AG42: =+AC42+Y42+W42+U42+S42+Q42+O42+M42+K42+I42+G42+E42+C42+AA42 -> 0 | AH42: 5 | AI42: 0
A43: =+A42+1 -> 3 | E43: -10 | F43: 50 | M43: 0 | N43: 210 | O43: 5 | P43: 240 | U43: -5 | V43: 140 | Y43: 10 | Z43: 270 | AE43: 2022-06-23 | AF43: 73 | AG43: 0 | AH43: 5 | AI43: 0
A44: 4 | E44: 4 | F44: 310 | M44: 10 | N44: 370 | O44: -4 | P44: 150 | Y44: -10 | Z44: 110 | AE44: 2022-06-23 | AF44: 73 | AG44: 0 | AH44: 4 | AI44: 0
A45: 5 | E45: -2.5 | F45: 180 | M45: 5 | N45: 190 | O45: -2.5 | P45: 180 | U45: 10 | V45: 330 | Y45: -10 | Z45: 80 | AE45: 2022-06-24 | AF45: 75 | AG45: 0 | AH45: 5 | AI45: 0
A46: 6 | E46: -10 | F46: 90 | M46: 10 | N46: 290 | O46: 0 | P46: 270 | U46: -5 | V46: 250 | Y46: 5 | Z46: 280 | AE46: 2022-06-24 | AF46: 75 | AG46: 0 | AH46: 5 | AI46: 0
A47: 7 | E47: -4 | F47: 160 | M47: -10 | N47: 60 | O47: 10 | P47: 290 | Y47: 4 | Z47: 190 | AE47: 2022-06-24 | AF47: 75 | AG47: 0 | AH47: 4 | AI47: 0
A48: 8 | E48: 10 | F48: 240 | M48: -4 | N48: 190 | O48: 4 | P48: 200 | Y48: -10 | Z48: 170 | AE48: 2022-06-25 | AF48: 76 | AG48: 0 | AH48: 4 | AI48: 0
A49: 9 | E49: -10 | F49: 30 | G49: 0 | H49: 130 | M49: 10 | N49: 280 | O49: 5 | P49: 220 | Y49: -5 | Z49: 50 | AE49: 2022-07-02 | AF49: 78 | AG49: 0 | AH49: 5 | AI49: 0
A50: =+A49+1 -> 10 | E50: 0 | F50: 140 | O50: 10 | P50: 240 | Q50: -10 | R50: 0 | AE50: 2022-07-16 | AF50: 83 | AG50: =+AC50+Y50+W50+U50+S50+Q50+O50+M50+K50+I50+G50+E50+C50+AA50 -> 0 | AH50: =COUNT(C50:AD50)/2 -> 3 | AI50: =+AG50/AH50 -> 0
A51: 11 | E51: 10 | F51: 290 | O51: -10 | P51: 10 | Q51: -4 | R51: 20 | U51: 4 | V51: 230 | AE51: 2022-07-16 | AF51: 83 | AG51: 0 | AH51: 4 | AI51: 0
A52: 12 | I52: 10 | J52: 390 | O52: 4 | P52: 240 | AA52: -4 | AB52: 140 | AC52: -10 | AD52: 100 | AE52: 2022-08-19 | AF52: 90 | AG52: 0 | AH52: 4 | AI52: 0
A53: 13 | I53: -10 | J53: -50 | O53: 10 | P53: 230 | AA53: 0 | AB53: 40 | AE53: 2022-08-23 | AF53: 95 | AG53: 0 | AH53: 3 | AI53: 0
A54: 14 | AG54: 0 | AH54: 0
A55: 15 | AG55: 0 | AH55: 0
A56: 16 | AG56: 0 | AH56: 0
A57: 17 | AG57: 0 | AH57: 0
A58: 18 | AG58: 0 | AH58: 0
A59: 19 | AG59: 0 | AH59: 0
A60: 20 | AG60: 0 | AH60: 0
A61: 21 | AG61: 0 | AH61: 0
A62: 22 | AG62: 0 | AH62: 0
A63: 23 | AG63: 0 | AH63: 0
A64: 24 | AG64: 0 | AH64: 0
A65: 25 | AG65: 0 | AH65: 0
A66: 26 | AG66: 0 | AH66: 0
A67: 27 | AG67: 0 | AH67: 0
A68: 28 | AG68: 0 | AH68: 0
A69: 29
A70: 30
A71: 31
A72: 32
A73: 33
A74: 34
A75: 35
A76: 36
A77: 37
A78: 38
A79: 39
A80: 40
A81: 41
A82: 42
A83: 43
A84: 44
A85: 45
A86: =+A85+1 -> 46
A87: 47
A88: 48
A89: 49
A90: 50
A91: 51
A92: 52
A93: 53
A94: 54
A95: 55
A96: 56
A97: 57
A98: 58
A99: 59
A100: 60
A101: 61
A102: 62
A103: 63
A104: 64
A105: 65
A106: 66
A107: 67
A108: 68
A109: 69
A110: 70
A111: 71
A112: 72
A113: =+A112+1 -> 73
A114: 74
A115: 75
A116: 76
A117: 77
A118: 78
A119: 79
A120: 80
A121: 81
A122: 82
A123: 83
A124: 84
A125: 85
A126: 86
A127: 87
A128: 88

Sheet Kul
A1: KUL
A2: Mes
A3: =+GENERAL!B6 -> 12 | C3: =SUM(C5:C20) -> -6
C4: Premi | D4: Punts | E4: Partides | F4: General
A5: 1 | B5: Jordi | C5: =+G$37 -> 34 | D5: =+H$38 -> 24 | E5: =+H$37 -> 12 | F5: =+G$23 -> 80 | G5: =IF(E5<A$3/2,-1,1)*8000+C5*100+D5+E5/100 -> 11424.12
A6: 2 | B6: Núria | C6: =+E$37 -> 22 | D6: =+F$38 -> -5 | E6: =+F$37 -> 9 | F6: =+E$23 -> 40 | G6: 10195.09
A7: 3 | B7: Òscar | C7: =+AG$37 -> -1 | D7: =+AH$38 -> 19 | E7: =+AH$37 -> 8 | F7: =+AG$23 -> 20 | G7: 7919.08
A8: 4 | B8: Gemma | C8: =+Y$37 -> -4 | D8: =+Z$38 -> -14 | E8: =+Z$37 -> 7 | F8: =+Y$23 -> 10 | G8: 7586.07
A9: 5 | B9: Sebas | C9: =+AC$37 -> -9 | D9: =+AD$38 -> 1 | E9: =+AD$37 -> 8 | F9: =+AC$23 -> 5 | G9: 7101.08
A10: 6 | B10: Nogué | C10: =+AE$37 -> -29 | D10: =+AF$38 -> -20 | E10: =+AF$37 -> 6 | F10: =+AE$23 -> 0 | G10: 5080.06
A11: 7 | B11: Goretti | C11: =+U$37 -> 16 | D11: =+V$38 -> 8 | E11: =+V$37 -> 5 | F11: =+U$23 -> 0 | G11: -6391.95
A12: 8 | B12: Sergi | C12: =+M$37 -> 8 | D12: =+N$38 -> 0 | E12: =+N$37 -> 3 | F12: =+M$23 -> 0 | G12: -7199.97
A13: 9 | B13: Carles | C13: =+O$37 -> 4 | D13: =+P$38 -> 15 | E13: =+P$37 -> 2 | F13: =+O$23 -> 0 | G13: -7584.98
A14: 10 | B14: Grau | C14: =+K$37 -> 3 | D14: =+L$38 -> -3 | E14: =+L$37 -> 3 | F14: =+K$23 -> 0 | G14: -7702.97
A15: 11 | B15: Caty | C15: =+W$37 -> 2 | D15: =+X$38 -> 3 | E15: =+X$37 -> 2 | F15: =+W$23 -> 0 | G15: -7796.98
A16: 12 | B16: Manolo | C16: =+I$37 -> -2 | D16: =+J$38 -> 3 | E16: =+J$37 -> 3 | F16: =+I$23 -> 0 | G16: -8196.97
A17: 13 | B17: Mariajo | C17: =+Q$37 -> -5 | D17: =+R$38 -> -5 | E17: =+R$37 -> 5 | F17: =+Q$23 -> 0 | G17: -8504.95
A18: 14 | B18: Carme | C18: =+S$37 -> -10 | D18: =+T$38 -> -2 | E18: =+T$37 -> 1 | F18: =+S$23 -> 0 | G18: -9001.99
A19: 15 | B19: Ana B | C19: =+C$37 -> -13 | D19: =+D$38 -> -12 | E19: =+D$37 -> 3 | F19: =+C$23 -> 0 | G19: -9311.97
A20: 16 | B20: Nin | C20: =+AA$37 -> -22 | D20: =+AB$38 -> -12 | E20: =+AB$37 -> 2 | F20: =+AA$23 -> 0 | G20: -10211.98
B23: General | C23: =+C24*C25 -> 0 | D23: =+D24*D25 -> 3 | E23: 40 | F23: 9 | G23: 80 | H23: 12 | I23: 0 | J23: 3 | K23: 0 | L23: 3 | M23: 0 | N23: 3 | O23: 0 | P23: 2 | Q23: 0 | R23: 5 | S23: 0 | T23: 1 | U23: 0 | V23: 5 | W23: 0 | X23: 2 | Y23: 10 | Z23: 7 | AA23: =+AA24*AA25 -> 0 | AB23: 2 | AC23: 5 | AD23: 8 | AE23: 0 | AF23: 6 | AG23: 20 | AH23: 8
C24: =IF($B36>3,1,0) -> 1 | D24: =IF($B36>3,1,0) -> 1 | E24: 1 | F24: 1 | G24: 1 | H24: 1 | I24: 1 | J24: 1 | K24: 1 | L24: 1 | M24: 1 | N24: 1 | O24: 1 | P24: 1 | Q24: 1 | R24: 1 | S24: 1 | T24: 1 | U24: 1 | V24: 1 | W24: 1 | X24: 1 | Y24: 1 | Z24: 1 | AA24: =IF($B36>3,1,0) -> 1 | AB24: 1 | AC24: 1 | AD24: 1 | AE24: 1 | AF24: 1 | AG24: 1 | AH24: 1
C25: =MAX(C26:C30) -> 0 | D25: =+D37 -> 3 | E25: =MAX(E26:E30) -> 40 | F25: =+F37 -> 9 | G25: =MAX(G26:G30) -> 80 | H25: =+H37 -> 12 | I25: =MAX(I26:I30) -> 0 | J25: =+J37 -> 3 | K25: =MAX(K26:K30) -> 0 | L25: =+L37 -> 3 | M25: =MAX(M26:M30) -> 0 | N25: =+N37 -> 3 | O25: =MAX(O26:O30) -> 0 | P25: =+P37 -> 2 | Q25: =MAX(Q26:Q30) -> 0 | R25: =+R37 -> 5 | S25: =MAX(S26:S30) -> 0 | T25: =+T37 -> 1 | U25: =MAX(U26:U30) -> 0 | V25: =+V37 -> 5 | W25: =MAX(W26:W30) -> 0 | X25: =+X37 -> 2 | Y25: =MAX(Y26:Y30) -> 10 | Z25: =+Z37 -> 7 | AA25: =MAX(AA26:AA30) -> 0 | AB25: =+AB37 -> 2 | AC25: =MAX(AC26:AC30) -> 5 | AD25: =+AD37 -> 8 | AE25: =MAX(AE26:AE30) -> 0 | AF25: =+AF37 -> 6 | AG25: =MAX(AG26:AG30) -> 20 | AH25: =+AH37 -> 8
C26: =IF(C$31=5,5,0) -> 0 | E26: =IF(E$31=5,5,0) -> 0 | G26: =IF(G$31=5,5,0) -> 0 | I26: =IF(I$31=5,5,0) -> 0 | K26: =IF(K$31=5,5,0) -> 0 | M26: =IF(M$31=5,5,0) -> 0 | O26: =IF(O$31=5,5,0) -> 0 | Q26: =IF(Q$31=5,5,0) -> 0 | S26: =IF(S$31=5,5,0) -> 0 | U26: =IF(U$31=5,5,0) -> 0 | W26: =IF(W$31=5,5,0) -> 0 | Y26: =IF(Y$31=5,5,0) -> 0 | AA26: =IF(AA$31=5,5,0) -> 0 | AC26: =IF(AC$31=5,5,0) -> 5 | AE26: =IF(AE$31=5,5,0) -> 0 | AG26: =IF(AG$31=5,5,0) -> 0
C27: =IF(C$31=4,10,0) -> 0 | E27: =IF(E$31=4,10,0) -> 0 | G27: =IF(G$31=4,10,0) -> 0 | I27: =IF(I$31=4,10,0) -> 0 | K27: =IF(K$31=4,10,0) -> 0 | M27: =IF(M$31=4,10,0) -> 0 | O27: =IF(O$31=4,10,0) -> 0 | Q27: =IF(Q$31=4,10,0) -> 0 | S27: =IF(S$31=4,10,0) -> 0 | U27: =IF(U$31=4,10,0) -> 0 | W27: =IF(W$31=4,10,0) -> 0 | Y27: =IF(Y$31=4,10,0) -> 10 | AA27: =IF(AA$31=4,10,0) -> 0 | AC27: =IF(AC$31=4,10,0) -> 0 | AE27: =IF(AE$31=4,10,0) -> 0 | AG27: =IF(AG$31=4,10,0) -> 0
C28: =IF(C$31=3,20,0) -> 0 | E28: =IF(E$31=3,20,0) -> 0 | G28: =IF(G$31=3,20,0) -> 0 | I28: =IF(I$31=3,20,0) -> 0 | K28: =IF(K$31=3,20,0) -> 0 | M28: =IF(M$31=3,20,0) -> 0 | O28: =IF(O$31=3,20,0) -> 0 | Q28: =IF(Q$31=3,20,0) -> 0 | S28: =IF(S$31=3,20,0) -> 0 | U28: =IF(U$31=3,20,0) -> 0 | W28: =IF(W$31=3,20,0) -> 0 | Y28: =IF(Y$31=3,20,0) -> 0 | AA28: =IF(AA$31=3,20,0) -> 0 | AC28: =IF(AC$31=3,20,0) -> 0 | AE28: =IF(AE$31=3,20,0) -> 0 | AG28: =IF(AG$31=3,20,0) -> 20
C29: =IF(C$31=2,40,0) -> 0 | E29: =IF(E$31=2,40,0) -> 40 | G29: =IF(G$31=2,40,0) -> 0 | I29: =IF(I$31=2,40,0) -> 0 | K29: =IF(K$31=2,40,0) -> 0 | M29: =IF(M$31=2,40,0) -> 0 | O29: =IF(O$31=2,40,0) -> 0 | Q29: =IF(Q$31=2,40,0) -> 0 | S29: =IF(S$31=2,40,0) -> 0 | U29: =IF(U$31=2,40,0) -> 0 | W29: =IF(W$31=2,40,0) -> 0 | Y29: =IF(Y$31=2,40,0) -> 0 | AA29: =IF(AA$31=2,40,0) -> 0 | AC29: =IF(AC$31=2,40,0) -> 0 | AE29: =IF(AE$31=2,40,0) -> 0 | AG29: =IF(AG$31=2,40,0) -> 0
C30: =IF(C$31=1,80,0) -> 0 | E30: =IF(E$31=1,80,0) -> 0 | G30: =IF(G$31=1,80,0) -> 80 | I30: =IF(I$31=1,80,0) -> 0 | K30: =IF(K$31=1,80,0) -> 0 | M30: =IF(M$31=1,80,0) -> 0 | O30: =IF(O$31=1,80,0) -> 0 | Q30: =IF(Q$31=1,80,0) -> 0 | S30: =IF(S$31=1,80,0) -> 0 | U30: =IF(U$31=1,80,0) -> 0 | W30: =IF(W$31=1,80,0) -> 0 | Y30: =IF(Y$31=1,80,0) -> 0 | AA30: =IF(AA$31=1,80,0) -> 0 | AC30: =IF(AC$31=1,80,0) -> 0 | AE30: =IF(AE$31=1,80,0) -> 0 | AG30: =IF(AG$31=1,80,0) -> 0
C31: =RANK(C32,$C32:$AT32)*C36 -> 0 | E31: =RANK(E32,$C32:$AT32)*E36 -> 2 | G31: =RANK(G32,$C32:$AT32)*G36 -> 1 | I31: =RANK(I32,$C32:$AT32)*I36 -> 0 | K31: =RANK(K32,$C32:$AT32)*K36 -> 0 | M31: =RANK(M32,$C32:$AT32)*M36 -> 0 | O31: =RANK(O32,$C32:$AT32)*O36 -> 0 | Q31: =RANK(Q32,$C32:$AT32)*Q36 -> 0 | S31: =RANK(S32,$C32:$AT32)*S36 -> 0 | U31: =RANK(U32,$C32:$AT32)*U36 -> 0 | W31: =RANK(W32,$C32:$AT32)*W36 -> 0 | Y31: =RANK(Y32,$C32:$AT32)*Y36 -> 4 | AA31: =RANK(AA32,$C32:$AT32)*AA36 -> 0 | AC31: =RANK(AC32,$C32:$AT32)*AC36 -> 5 | AE31: =RANK(AE32,$C32:$AT32)*AE36 -> 6 | AG31: =RANK(AG32,$C32:$AT32)*AG36 -> 3
C32: =SUM(C33:C35) -> -1000130 | E32: =SUM(E33:E35) -> 21981 | G32: =SUM(G33:G35) -> 34286 | I32: =SUM(I33:I35) -> -999969 | K32: =SUM(K33:K35) -> -1000024 | M32: =SUM(M33:M35) -> -999989 | O32: =SUM(O33:O35) -> -999844 | Q32: =SUM(Q33:Q35) -> -1000050 | S32: =SUM(S33:S35) -> -1000029 | U32: =SUM(U33:U35) -> -999899 | W32: =SUM(W33:W35) -> -999966 | Y32: =SUM(Y33:Y35) -> -4137 | AA32: =SUM(AA33:AA35) -> -1000140 | AC32: =SUM(AC33:AC35) -> -8991 | AE32: =SUM(AE33:AE35) -> -29223 | AG32: =SUM(AG33:AG35) -> -803
C33: =+D37 -> 3 | E33: =+F37 -> 9 | G33: =+H37 -> 12 | I33: =+J37 -> 3 | K33: =+L37 -> 3 | M33: =+N37 -> 3 | O33: =+P37 -> 2 | Q33: =+R37 -> 5 | S33: =+T37 -> 1 | U33: =+V37 -> 5 | W33: =+X37 -> 2 | Y33: =+Z37 -> 7 | AA33: =+AB37 -> 2 | AC33: =+AD37 -> 8 | AE33: =+AF37 -> 6 | AG33: =+AH37 -> 8
C34: =D38*10 -> -120 | E34: =F38*10 -> -50 | G34: =H38*10 -> 240 | I34: =J38*10 -> 30 | K34: =L38*10 -> -30 | M34: =N38*10 -> 0 | O34: =P38*10 -> 150 | Q34: =R38*10 -> -50 | S34: =T38*10 -> -20 | U34: =V38*10 -> 80 | W34: =X38*10 -> 30 | Y34: =Z38*10 -> -140 | AA34: =AB38*10 -> -120 | AC34: =AD38*10 -> 10 | AE34: =AF38*10 -> -200 | AG34: =AH38*10 -> 190
C35: =IF(C36=1,C37*C36*1000+C37,-1000000+C37) -> -1000013 | E35: =IF(E36=1,E37*E36*1000+E37,-1000000+E37) -> 22022 | G35: =IF(G36=1,G37*G36*1000+G37,-1000000+G37) -> 34034 | I35: =IF(I36=1,I37*I36*1000+I37,-1000000+I37) -> -1000002 | K35: =IF(K36=1,K37*K36*1000+K37,-1000000+K37) -> -999997 | M35: =IF(M36=1,M37*M36*1000+M37,-1000000+M37) -> -999992 | O35: =IF(O36=1,O37*O36*1000+O37,-1000000+O37) -> -999996 | Q35: =IF(Q36=1,Q37*Q36*1000+Q37,-1000000+Q37) -> -1000005 | S35: =IF(S36=1,S37*S36*1000+S37,-1000000+S37) -> -1000010 | U35: =IF(U36=1,U37*U36*1000+U37,-1000000+U37) -> -999984 | W35: =IF(W36=1,W37*W36*1000+W37,-1000000+W37) -> -999998 | Y35: =IF(Y36=1,Y37*Y36*1000+Y37,-1000000+Y37) -> -4004 | AA35: =IF(AA36=1,AA37*AA36*1000+AA37,-1000000+AA37) -> -1000022 | AC35: =IF(AC36=1,AC37*AC36*1000+AC37,-1000000+AC37) -> -9009 | AE35: =IF(AE36=1,AE37*AE36*1000+AE37,-1000000+AE37) -> -29029 | AG35: =IF(AG36=1,AG37*AG36*1000+AG37,-1000000+AG37) -> -1001
A36: Classificats | B36: =SUM(C36:AG36) -> 6 | C36: =IF(D37>=$A3/2,1,0) -> 0 | E36: =IF(F37>=$A3/2,1,0) -> 1 | G36: =IF(H37>=$A3/2,1,0) -> 1 | I36: =IF(J37>=$A3/2,1,0) -> 0 | K36: =IF(L37>=$A3/2,1,0) -> 0 | M36: =IF(N37>=$A3/2,1,0) -> 0 | O36: =IF(P37>=$A3/2,1,0) -> 0 | Q36: =IF(R37>=$A3/2,1,0) -> 0 | S36: =IF(T37>=$A3/2,1,0) -> 0 | U36: =IF(V37>=$A3/2,1,0) -> 0 | W36: =IF(X37>=$A3/2,1,0) -> 0 | Y36: =IF(Z37>=$A3/2,1,0) -> 1 | AA36: =IF(AB37>=$A3/2,1,0) -> 0 | AC36: =IF(AD37>=$A3/2,1,0) -> 1 | AE36: =IF(AF37>=$A3/2,1,0) -> 1 | AG36: =IF(AH37>=$A3/2,1,0) -> 1
C37: =IF(SUM(C42:C280)<-1000,-100000000,SUM(C42:C280)) -> -13 | D37: =COUNT(D42:D280) -> 3 | E37: =IF(SUM(E42:E280)<-1000,-100000000,SUM(E42:E280)) -> 22 | F37: =COUNT(F42:F280) -> 9 | G37: =IF(SUM(G42:G280)<-1000,-100000000,SUM(G42:G280)) -> 34 | H37: =COUNT(H42:H280) -> 12 | I37: =IF(SUM(I42:I280)<-1000,-100000000,SUM(I42:I280)) -> -2 | J37: =COUNT(J42:J280) -> 3 | K37: =IF(SUM(K42:K280)<-1000,-100000000,SUM(K42:K280)) -> 3 | L37: =COUNT(L42:L280) -> 3 | M37: =IF(SUM(M42:M280)<-1000,-100000000,SUM(M42:M280)) -> 8 | N37: =COUNT(N42:N280) -> 3 | O37: =IF(SUM(O42:O280)<-1000,-100000000,SUM(O42:O280)) -> 4 | P37: =COUNT(P42:P280) -> 2 | Q37: =IF(SUM(Q42:Q280)<-1000,-100000000,SUM(Q42:Q280)) -> -5 | R37: =COUNT(R42:R280) -> 5 | S37: =IF(SUM(S42:S280)<-1000,-100000000,SUM(S42:S280)) -> -10 | T37: =COUNT(T42:T280) -> 1 | U37: =IF(SUM(U42:U280)<-1000,-100000000,SUM(U42:U280)) -> 16 | V37: =COUNT(V42:V280) -> 5 | W37: =IF(SUM(W42:W280)<-1000,-100000000,SUM(W42:W280)) -> 2 | X37: =COUNT(X42:X280) -> 2 | Y37: =IF(SUM(Y42:Y280)<-1000,-100000000,SUM(Y42:Y280)) -> -4 | Z37: =COUNT(Z42:Z280) -> 7 | AA37: =IF(SUM(AA42:AA280)<-1000,-100000000,SUM(AA42:AA280)) -> -22 | AB37: =COUNT(AB42:AB280) -> 2 | AC37: =IF(SUM(AC42:AC280)<-1000,-100000000,SUM(AC42:AC280)) -> -9 | AD37: =COUNT(AD42:AD280) -> 8 | AE37: =IF(SUM(AE42:AE280)<-1000,-100000000,SUM(AE42:AE280)) -> -29 | AF37: =COUNT(AF42:AF280) -> 6 | AG37: =IF(SUM(AG42:AG280)<-1000,-100000000,SUM(AG42:AG280)) -> -1 | AH37: =COUNT(AH42:AH280) -> 8
C38: =SUM(C42:C174) -> -13 | D38: -12 | E38: 22 | F38: -5 | G38: 34 | H38: 24 | I38: -2 | J38: 3 | K38: 3 | L38: -3 | M38: 8 | N38: 0 | O38: 4 | P38: 15 | Q38: -5 | R38: -5 | S38: -10 | T38: -2 | U38: 16 | V38: 8 | W38: 2 | X38: 3 | Y38: -4 | Z38: -14 | AA38: =SUM(AA42:AA174) -> -22 | AB38: -12 | AC38: -9 | AD38: 1 | AE38: -29 | AF38: -20 | AG38: -1 | AH38: 19
AI39: =MAX(AJ42:AJ101) -> 106
B40: Nº partida | C40: Ana B | E40: Núria | G40: Jordi | I40: Manolo | K40: Grau | M40: Sergi | O40: Carles | Q40: Mariajo | S40: Carme | U40: Goretti | W40: Caty | Y40: Gemma | AA40: Nin | AC40: Sebas | AE40: Nogué | AG40: Òscar | AI40: =COUNT(AI42:AI195) -> 12 | AJ40: A | AK40: B | AL40: C
C41: Premi | D41: Punts | E41: Premi | F41: Punts | G41: Premi | H41: Punts | I41: Premi | J41: Punts | K41: Premi | L41: Punts | M41: Premi | N41: Punts | O41: Premi | P41: Punts | Q41: Premi | R41: Punts | S41: Premi | T41: Punts | U41: Premi | V41: Punts | W41: Premi | X41: Punts | Y41: Premi | Z41: Punts | AA41: Premi | AB41: Punts | AC41: Premi | AD41: Punts | AE41: Premi | AF41: Punts | AG41: Premi | AH41: Punts | AI41: Data | AJ41: Timbes
A42: 1 | C42: -5 | D42: -2 | E42: 10 | F42: 9 | G42: 5 | H42: 3 | I42: 10 | J42: 8 | K42: 5 | L42: -3 | M42: 0 | N42: 0 | Q42: -10 | R42: -8 | S42: -10 | T42: -2 | U42: 0 | V42: -1 | AC42: -5 | AD42: -4 | AI42: 2021-11-20 | AJ42: 28 | AK42: =+C42+E42+G42+I42++K42++M42+O42+Q42+S42+U42+W42+Y42+AG42+AA42+AC42+AE42 -> 0 | AL42: 0 | AM42: =COUNT(C42:AH42)/2 -> 10 | AN42: =+AK42/AM42 -> 0
A43: =+A42+1 -> 2 | E43: 2 | F43: 1 | G43: 6 | H43: 3 | Y43: 10 | Z43: 2 | AC43: -6 | AD43: 0 | AE43: -10 | AF43: -7 | AG43: -2 | AH43: 1 | AI43: 2022-01-20 | AJ43: 45 | AK43: 0 | AL43: 0 | AM43: 6 | AN43: 0
A44: =+A43+1 -> 3 | E44: -6 | F44: -8 | G44: 2 | H44: 6 | Y44: 10 | Z44: -2 | AC44: 6 | AD44: 8 | AE44: -2 | AF44: 1 | AG44: -10 | AH44: -5 | AI44: 2022-01-20 | AJ44: 45 | AK44: 0 | AL44: =+D44+F44+H44+J44++L44++N44+P44+R44+T44+V44+X44+Z44+AH44+AB44+AD44+AF44 -> 0 | AM44: 6 | AN44: 0
A45: 4 | E45: 0 | F45: -3 | G45: 10 | H45: 9 | AC45: -5 | AD45: -2 | AE45: 5 | AF45: -4 | AG45: -10 | AH45: 0 | AI45: 2022-04-13 | AJ45: 58 | AK45: 0 | AL45: 0 | AM45: 5 | AN45: 0
A46: 5 | E46: 10 | F46: 8 | G46: 2 | H46: 4 | Y46: -2 | Z46: -3 | AC46: -10 | AD46: -6 | AE46: -6 | AF46: -3 | AG46: 6 | AH46: 0 | AI46: 2022-04-13 | AJ46: 58 | AK46: =+C46+E46+G46+I46++K46++M46+O46+Q46+S46+U46+W46+Y46+AG46+AA46+AC46+AE46 -> 0 | AL46: 0 | AM46: 6 | AN46: 0
A47: 6 | E47: -10 | F47: -7 | G47: 2 | H47: 8 | Y47: -2 | Z47: -4 | AC47: 6 | AD47: -2 | AE47: -6 | AF47: -4 | AG47: 10 | AH47: 9 | AI47: 2022-04-13 | AJ47: 58 | AK47: =+C47+E47+G47+I47++K47++M47+O47+Q47+S47+U47+W47+Y47+AG47+AA47+AC47+AE47 -> 0 | AL47: 0 | AM47: 6 | AN47: 0
A48: 7 | E48: 0 | F48: -1 | G48: 5 | H48: 0 | Y48: -10 | Z48: -9 | AC48: 10 | AD48: 10 | AG48: -5 | AH48: 0 | AI48: 2022-05-27 | AJ48: 64 | AK48: 0 | AL48: 0 | AM48: 5 | AN48: 0
A49: 8 | E49: 10 | F49: -3 | G49: -10 | H49: -2 | Y49: 0 | Z49: 0 | AC49: -5 | AD49: -3 | AG49: 5 | AH49: 8 | AI49: 2022-05-27 | AJ49: 64 | AK49: 0 | AL49: 0 | AM49: 5 | AN49: 0
A50: 9 | G50: 0 | H50: -8 | Q50: 10 | R50: 10 | U50: -10 | V50: -2 | AI50: 2022-08-21 | AJ50: 91 | AK50: 0 | AL50: 0 | AM50: 3 | AN50: 0
A51: 10 | G51: 0 | H51: 2 | Q51: -10 | R51: -10 | U51: 10 | V51: 8 | AI51: 2022-08-21 | AJ51: 91 | AK51: =+C51+E51+G51+I51++K51++M51+O51+Q51+S51+U51+W51+Y51+AG51+AA51+AC51+AE51 -> 0 | AL51: 0 | AM51: =COUNT(C51:AH51)/2 -> 3 | AN51: =+AK51/AM51 -> 0
A52: 11 | C52: -2 | D52: -4 | E52: 6 | F52: -1 | G52: 10 | H52: 2 | I52: -2 | J52: 1 | K52: 0 | L52: -2 | M52: 2 | N52: -2 | O52: -6 | P52: 4 | Q52: 10 | R52: 9 | U52: 6 | V52: -2 | W52: 2 | X52: -1 | Y52: -10 | Z52: 2 | AA52: -12 | AB52: -3 | AE52: -10 | AF52: -3 | AI52: 2022-09-17 | AJ52: 106 | AK52: -6 | AL52: 0 | AM52: 13 | AN52: -0.4615384615
A53: 12 | C53: -6 | D53: -6 | G53: 2 | H53: -3 | I53: -10 | J53: -6 | K53: -2 | L53: 2 | M53: 6 | N53: 2 | O53: 10 | P53: 11 | Q53: -5 | R53: -6 | U53: 10 | V53: 5 | W53: 0 | X53: 4 | AA53: -10 | AB53: -9 | AG53: 5 | AH53: 6 | AI53: 2022-09-17 | AJ53: 106 | AK53: 0 | AL53: 0 | AM53: 11 | AN53: 0
A54: 13 | AK54: 0 | AL54: 0 | AM54: 0
A55: 14 | AK55: 0 | AL55: 0 | AM55: 0
A56: 15 | AK56: =+C56+E56+G56+I56++K56++M56+O56+Q56+S56+U56+W56+Y56+AG56+AA56+AC56+AE56 -> 0 | AL56: 0 | AM56: 0
A57: 16 | AK57: 0 | AL57: 0 | AM57: 0
A58: 17 | AK58: 0 | AL58: 0 | AM58: 0
A59: 18 | AK59: 0 | AL59: 0 | AM59: 0
A60: 19 | AK60: 0 | AL60: 0 | AM60: 0
A61: 20 | AK61: =+C61+E61+G61+I61++K61++M61+O61+Q61+S61+U61+W61+Y61+AG61+AA61+AC61+AE61 -> 0 | AL61: 0 | AM61: =COUNT(C61:AH61)/2 -> 0 | AN61: =+AK61/AM61 -> 
A62: 21 | AK62: 0 | AL62: 0 | AM62: =COUNT(C62:AH62)/2 -> 0 | AN62: =+AK62/AM62 -> 
A63: =+A62+1 -> 22 | AK63: 0 | AL63: 0 | AM63: =COUNT(C63:AH63)/2 -> 0 | AN63: =+AK63/AM63 -> 
A64: 23
A65: 24
A66: 25
A67: 26
A68: 27
A69: 28
A70: 29
A71: 30
A72: 31
A73: =+A72+1 -> 32
A74: 33
A75: 34
A76: 35
A77: 36
A78: 37
A79: 38
A80: =+A79+1 -> 39
A81: 40
A82: 41
A83: 42
A84: 43
A85: 44
A86: 45
A87: 46
A88: 47
A89: 48
A90: 49
A91: 50
A92: 51
A93: 52
A94: 53
A95: =+A94+1 -> 54
A96: 55
A97: 56
A98: 57
A99: 58
A100: 59
A101: 60
A102: 61
A103: 62
A104: 63
A105: 64
A106: 65
A107: =+A106+1 -> 66
A108: 67
A109: 68
A110: 69
A111: 70
A112: 71

Sheet Podrida
A1: PODRIDA
A2: Mes
A3: =+GENERAL!B6 -> 12 | C3: =SUM(C5:C11) -> 9 | E3: =SUM(E5:E11) -> 0
C4: Premi | D4: Reptes | E4: Punts | F4: Partides | G4: General
A5: 1 | B5: Sebas | C5: =+AC$38 -> 2.5 | D5: =+AD$39 -> 3 | E5: =+AD$38 -> 4 | F5: =+AC$39 -> 4 | G5: =+AC$24 -> 0 | H5: =C5*1000+1000000*Y$40-D5+E5/1000 -> 2497.004
A6: 2 | B6: Carles | C6: =+O$38 -> 2 | D6: =+P$39 -> 2 | E6: =+P$38 -> 2 | F6: =+O$39 -> 0.6666666667 | G6: =+O$24 -> 0 | H6: =C6*1000+1000000*W$40-D6+E6/1000 -> 1998.002
A7: 3 | B7: Jordi | C7: =+G$38 -> 2 | D7: =+H$39 -> 3 | E7: =+H$38 -> 2 | F7: =+G$39 -> 4 | G7: =+G$24 -> 0 | H7: =C7*1000+1000000*G$40-D7+E7/1000 -> 1997.002
A8: 4 | B8: Nogué | C8: =+AE$38 -> 1.5 | D8: =+AF$39 -> 3 | E8: =+AF$38 -> 0 | F8: =+AE$39 -> 4 | G8: =+AE$24 -> 0 | H8: =C8*1000+1000000*AC$40-D8+E8/1000 -> 1497
A9: 5 | B9: Marina | C9: =+S$38 -> 1 | D9: =+T$39 -> 2 | E9: =+T$38 -> 0 | F9: =+S$39 -> 0.6666666667 | G9: =+S$24 -> 0 | H9: =C9*1000+1000000*C$40-D9+E9/1000 -> 998
A10: 6 | B10: Jeff | C10: =+I$38 -> 0 | D10: =+J$39 -> 2 | E10: =+J$38 -> -2 | F10: =+I$39 -> 0.6666666667 | G10: =+I$24 -> 0 | H10: =C10*1000+1000000*O$40-D10+E10/1000 -> -2.002
A11: 7 | B11: Núria | C11: =+W$38 -> 0 | D11: =+X$39 -> 3 | E11: =+X$38 -> -6 | F11: =+W$39 -> 4 | G11: =+W$24 -> 0 | H11: =C11*1000+1000000*AK$40-D11+E11/1000 -> -3.006
A12: 8 | B12: Tito | C12: =+K$38 -> -100000000 | D12: =+L$39 -> 1 | E12: =+L$38+1 -> 1 | F12: =+K$39 -> 0 | G12: =+U$24 -> 0 | H12: =C12*1000+1000000*Q$40-D12+E12/1000 -> -1e+11
A13: 9 | B13: Grau | C13: =+AG$38 -> -100000000 | D13: =+AH$39 -> 1 | E13: =+AH$38 -> 0 | F13: =+AG$39 -> 0 | G13: =+AG$24 -> 0 | H13: =C13*1000+1000000*U$40-D13+E13/1000 -> -100000000001
A14: 10 | B14: Ana B | C14: =+Q$38 -> -100000000 | D14: =+R$39 -> 1 | E14: =+R$38 -> 0 | F14: =+Q$39 -> 0 | G14: =+Q$24 -> 0 | H14: =C14*1000+1000000*AA$40-D14+E14/1000 -> -100000000001 | AQ14: Càlcul punts segons partida a 4 jugadors | BA14: Máx. | BB14: Mitj. | BC14: Factor
A15: 11 | B15: Gemma | C15: =+AA$38 -> -100000000 | D15: =+AB$39 -> 1 | E15: =+AB$38 -> 0 | F15: =+AA$39 -> 0 | G15: =+AA$24 -> 0 | H15: =C15*1000+1000000*AM$40-D15+E15/1000 -> -100000000001 | AQ15: 2020-02-13 | AR15: 12 | AS15: 40 | AT15: 0.75 | AV15: 6 | AW15: =13*3/4 -> 9.75 | AX15: 1 | AY15: 1 | BA15: =((AV15*AW15*AX15+12)*AY15+AR15*AS15)*AT15 -> 412.875 | BB15: =+AQ41 -> 1.555555556 | BC15: 1
A16: 12 | B16: Rosa M | C16: =+C$38 -> -100000000 | D16: =+D$39 -> 1 | E16: =+D$38 -> 0 | F16: =+C$39 -> 0 | G16: =+C$24 -> 0 | H16: =C16*1000+1000000*M$40-D16+E16/1000 -> -100000000001 | AQ16: 1-13/13-1/13x4 | AR16: 30 | AS16: 40 | AT16: 0.75 | AV16: 18 | AW16: =13*3/4 -> 9.75 | AX16: 2 | AY16: 1 | BA16: =(AV16*AW16*AX16*AY16+AR16*AS16)*AT16 -> 1163.25 | BB16: =+AQ40/0.4 -> 0 | BC16: =+BA16/BA15 -> 2.817438692
A17: 13 | B17: Mariajo | C17: =+AI$38 -> -100000000 | D17: =+AJ$39 -> 1 | E17: =+AJ$38 -> 0 | F17: =+AI$39 -> 0 | G17: =+AI$24 -> 0 | H17: =C17*1000+1000000*AI$40-D17+E17/1000 -> -100000000001 | AQ17: 13*4 | AR17: 4 | AS17: 40 | AT17: 0.75 | AV17: 4 | AW17: =13*3/4 -> 9.75 | AX17: 2 | AY17: 1 | BA17: =(AV17*AW17*AX17*AY17+AR17*AS17)*AT17 -> 178.5 | BB17: =+AQ37/2.5 -> 2.4 | BC17: =+BA17/BA15 -> 0.4323342416
A18: 14 | B18: Sergi | C18: =+M$38 -> -100000000 | D18: =+N$39 -> 1 | E18: =+N$38 -> 0 | F18: =+M$39 -> 0 | G18: =+M$24 -> 0 | H18: =C18*1000+1000000*AG$40-D18+E18/1000 -> -100000000001
A19: 15 | B19: Cyber X | C19: =+E$38 -> -100000000 | D19: =+F$39 -> 1 | E19: =+F$38 -> 0 | F19: =+E$39 -> 0 | G19: =+E$24 -> 0 | H19: =C19*1000+1000000*S$40-D19+E19/1000 -> -100000000001
A20: 16 | B20: Nin | C20: =+U$38 -> -100000000 | D20: =+V$39 -> 1 | E20: =+V$38 -> 0 | F20: =+U$39 -> 0 | G20: =+U$24 -> 0 | H20: =C20*1000+1000000*AE$40-D20+E20/1000 -> -100000000001
A21: 17 | B21: Manolo | C21: =+Y$38 -> -100000000 | D21: =+Z$39 -> 1 | E21: =+Z$38 -> 0 | F21: =+Y$39 -> 0 | G21: =+U$24 -> 0 | H21: =C21*1000+1000000*K$40-D21+E21/1000 -> -100000000001
AR23: 0.4 | AS23: =1/AR23 -> 2.5
B24: General | C24: =+C25*C26 -> 0 | D24: =+D25*D26 -> 0 | E24: 0 | F24: 0 | G24: 0 | H24: 0 | I24: 0 | J24: 0 | K24: 0 | L24: 0 | M24: 0 | N24: 0 | O24: 0 | P24: 0 | Q24: 0 | R24: 0 | S24: 0 | T24: 0 | U24: 0 | V24: 0 | W24: 0 | X24: 0 | Y24: 0 | Z24: 0 | AA24: =+AA25*AA26 -> 0 | AB24: 0 | AC24: 0 | AD24: 0 | AE24: 0 | AF24: 0 | AG24: 0 | AH24: 0 | AI24: 0 | AJ24: 0
C25: =IF($B37>3,1,0) -> 0 | D25: =IF($B37>3,1,0) -> 0 | E25: 0 | F25: 0 | G25: 0 | H25: 0 | I25: 0 | J25: 0 | K25: 0 | L25: 0 | M25: 0 | N25: 0 | O25: 0 | P25: 0 | Q25: 0 | R25: 0 | S25: 0 | T25: 0 | U25: 0 | V25: 0 | W25: 0 | X25: 0 | Y25: 0 | Z25: 0 | AA25: =IF($B37>3,1,0) -> 0 | AB25: 0 | AC25: 0 | AD25: 0 | AE25: 0 | AF25: 0 | AG25: 0 | AH25: 0 | AI25: 0 | AJ25: 0
C26: =MAX(C27:C31) -> 0 | D26: =+D38 -> 0 | E26: =MAX(E27:E31) -> 0 | F26: =+F38 -> 0 | G26: =MAX(G27:G31) -> 0 | H26: =+H38 -> 2 | I26: =MAX(I27:I31) -> 0 | J26: =+J38 -> -2 | K26: =MAX(K27:K31) -> 0 | L26: =+L38 -> 0 | M26: =MAX(M27:M31) -> 0 | N26: =+N38 -> 0 | O26: =MAX(O27:O31) -> 0 | P26: =+P38 -> 2 | Q26: =MAX(Q27:Q31) -> 0 | R26: =+R38 -> 0 | S26: =MAX(S27:S31) -> 0 | T26: =+T38 -> 0 | U26: =MAX(U27:U31) -> 0 | V26: =+V38 -> 0 | W26: =MAX(W27:W31) -> 0 | X26: =+X38 -> -6 | Y26: =MAX(Y27:Y31) -> 0 | Z26: =+Z38 -> 0 | AA26: =MAX(AA27:AA31) -> 0 | AB26: =+AB38 -> 0 | AC26: =MAX(AC27:AC31) -> 0 | AD26: =+AD38 -> 4 | AE26: =MAX(AE27:AE31) -> 0 | AF26: =+AF38 -> 0 | AG26: =MAX(AG27:AG31) -> 0 | AH26: =+AH38 -> 0 | AI26: =MAX(AI27:AI31) -> 0 | AJ26: =+AJ38 -> 0
C27: =IF(C$32=5,5,0) -> 0 | E27: =IF(E$32=5,5,0) -> 0 | G27: =IF(G$32=5,5,0) -> 0 | I27: =IF(I$32=5,5,0) -> 0 | K27: =IF(K$32=5,5,0) -> 0 | M27: =IF(M$32=5,5,0) -> 0 | O27: =IF(O$32=5,5,0) -> 0 | Q27: =IF(Q$32=5,5,0) -> 0 | S27: =IF(S$32=5,5,0) -> 0 | U27: =IF(U$32=5,5,0) -> 0 | W27: =IF(W$32=5,5,0) -> 0 | Y27: =IF(Y$32=5,5,0) -> 0 | AA27: =IF(AA$32=5,5,0) -> 0 | AC27: =IF(AC$32=5,5,0) -> 0 | AE27: =IF(AE$32=5,5,0) -> 0 | AG27: =IF(AG$32=5,5,0) -> 0 | AI27: =IF(AI$32=5,5,0) -> 0
C28: =IF(C$32=4,10,0) -> 0 | E28: =IF(E$32=4,10,0) -> 0 | G28: =IF(G$32=4,10,0) -> 0 | I28: =IF(I$32=4,10,0) -> 0 | K28: =IF(K$32=4,10,0) -> 0 | M28: =IF(M$32=4,10,0) -> 0 | O28: =IF(O$32=4,10,0) -> 0 | Q28: =IF(Q$32=4,10,0) -> 0 | S28: =IF(S$32=4,10,0) -> 0 | U28: =IF(U$32=4,10,0) -> 0 | W28: =IF(W$32=4,10,0) -> 0 | Y28: =IF(Y$32=4,10,0) -> 0 | AA28: =IF(AA$32=4,10,0) -> 0 | AC28: =IF(AC$32=4,10,0) -> 0 | AE28: =IF(AE$32=4,10,0) -> 0 | AG28: =IF(AG$32=4,10,0) -> 0 | AI28: =IF(AI$32=4,10,0) -> 0
C29: =IF(C$32=3,20,0) -> 0 | E29: =IF(E$32=3,20,0) -> 0 | G29: =IF(G$32=3,20,0) -> 0 | I29: =IF(I$32=3,20,0) -> 0 | K29: =IF(K$32=3,20,0) -> 0 | M29: =IF(M$32=3,20,0) -> 0 | O29: =IF(O$32=3,20,0) -> 0 | Q29: =IF(Q$32=3,20,0) -> 0 | S29: =IF(S$32=3,20,0) -> 0 | U29: =IF(U$32=3,20,0) -> 0 | W29: =IF(W$32=3,20,0) -> 0 | Y29: =IF(Y$32=3,20,0) -> 0 | AA29: =IF(AA$32=3,20,0) -> 0 | AC29: =IF(AC$32=3,20,0) -> 0 | AE29: =IF(AE$32=3,20,0) -> 0 | AG29: =IF(AG$32=3,20,0) -> 0 | AI29: =IF(AI$32=3,20,0) -> 0
C30: =IF(C$32=2,40,0) -> 0 | E30: =IF(E$32=2,40,0) -> 0 | G30: =IF(G$32=2,40,0) -> 0 | I30: =IF(I$32=2,40,0) -> 0 | K30: =IF(K$32=2,40,0) -> 0 | M30: =IF(M$32=2,40,0) -> 0 | O30: =IF(O$32=2,40,0) -> 0 | Q30: =IF(Q$32=2,40,0) -> 0 | S30: =IF(S$32=2,40,0) -> 0 | U30: =IF(U$32=2,40,0) -> 0 | W30: =IF(W$32=2,40,0) -> 0 | Y30: =IF(Y$32=2,40,0) -> 0 | AA30: =IF(AA$32=2,40,0) -> 0 | AC30: =IF(AC$32=2,40,0) -> 0 | AE30: =IF(AE$32=2,40,0) -> 0 | AG30: =IF(AG$32=2,40,0) -> 0 | AI30: =IF(AI$32=2,40,0) -> 0
C31: =IF(C$32=1,80,0) -> 0 | E31: =IF(E$32=1,80,0) -> 0 | G31: =IF(G$32=1,80,0) -> 0 | I31: =IF(I$32=1,80,0) -> 0 | K31: =IF(K$32=1,80,0) -> 0 | M31: =IF(M$32=1,80,0) -> 0 | O31: =IF(O$32=1,80,0) -> 0 | Q31: =IF(Q$32=1,80,0) -> 0 | S31: =IF(S$32=1,80,0) -> 0 | U31: =IF(U$32=1,80,0) -> 0 | W31: =IF(W$32=1,80,0) -> 0 | Y31: =IF(Y$32=1,80,0) -> 0 | AA31: =IF(AA$32=1,80,0) -> 0 | AC31: =IF(AC$32=1,80,0) -> 0 | AE31: =IF(AE$32=1,80,0) -> 0 | AG31: =IF(AG$32=1,80,0) -> 0 | AI31: =IF(AI$32=1,80,0) -> 0
C32: =RANK(C33,$C33:$AJ33)*C37 -> 0 | E32: =RANK(E33,$C33:$AJ33)*E37 -> 0 | G32: =RANK(G33,$C33:$AJ33)*G37 -> 0 | I32: =RANK(I33,$C33:$AJ33)*I37 -> 0 | K32: =RANK(K33,$C33:$AJ33)*K37 -> 0 | M32: =RANK(M33,$C33:$AJ33)*M37 -> 0 | O32: =RANK(O33,$C33:$AJ33)*O37 -> 0 | Q32: =RANK(Q33,$C33:$AJ33)*Q37 -> 0 | S32: =RANK(S33,$C33:$AJ33)*S37 -> 0 | U32: =RANK(U33,$C33:$AJ33)*U37 -> 0 | W32: =RANK(W33,$C33:$AJ33)*W37 -> 0 | Y32: =RANK(Y33,$C33:$AJ33)*Y37 -> 0 | AA32: =RANK(AA33,$C33:$AJ33)*AA37 -> 0 | AC32: =RANK(AC33,$C33:$AJ33)*AC37 -> 0 | AE32: =RANK(AE33,$C33:$AJ33)*AE37 -> 0 | AG32: =RANK(AG33,$C33:$AJ33)*AG37 -> 0 | AI32: =RANK(AI33,$C33:$AJ33)*AI37 -> 0
C33: =SUM(C34:C36) -> -100999900 | E33: =SUM(E34:E36) -> -100999900 | G33: =SUM(G34:G36) -> -999696 | I33: =SUM(I34:I36) -> -999802 | K33: =SUM(K34:K36) -> -100999900 | M33: =SUM(M34:M36) -> -100999900 | O33: =SUM(O34:O36) -> -999796 | Q33: =SUM(Q34:Q36) -> -100999900 | S33: =SUM(S34:S36) -> -999799 | U33: =SUM(U34:U36) -> -100999900 | W33: =SUM(W34:W36) -> -999706 | Y33: =SUM(Y34:Y36) -> -100999900 | AA33: =SUM(AA34:AA36) -> -100999900 | AC33: =SUM(AC34:AC36) -> -999693.5 | AE33: =SUM(AE34:AE36) -> -999698.5 | AG33: =SUM(AG34:AG36) -> -100999900 | AI33: =SUM(AI34:AI36) -> -100999900
C34: =+D38 -> 0 | E34: =+F38 -> 0 | G34: =+H38 -> 2 | I34: =+J38 -> -2 | K34: =+L38 -> 0 | M34: =+N38 -> 0 | O34: =+P38 -> 2 | Q34: =+R38 -> 0 | S34: =+T38 -> 0 | U34: =+V38 -> 0 | W34: =+X38 -> -6 | Y34: =+Z38 -> 0 | AA34: =+AB38 -> 0 | AC34: =+AD38 -> 4 | AE34: =+AF38 -> 0 | AG34: =+AH38 -> 0 | AI34: =+AJ38 -> 0
C35: =+D39*100 -> 100 | E35: =+F39*100 -> 100 | G35: =+H39*100 -> 300 | I35: =+J39*100 -> 200 | K35: =+L39*100 -> 100 | M35: =+N39*100 -> 100 | O35: =+P39*100 -> 200 | Q35: =+R39*100 -> 100 | S35: =+T39*100 -> 200 | U35: =+V39*100 -> 100 | W35: =+X39*100 -> 300 | Y35: =+Z39*100 -> 100 | AA35: =+AB39*100 -> 100 | AC35: =+AD39*100 -> 300 | AE35: =+AF39*100 -> 300 | AG35: =+AH39*100 -> 100 | AI35: =+AJ39*100 -> 100
C36: =IF(C37=1,C38*C37*10000+C38,-1000000+C38) -> -101000000 | E36: =IF(E37=1,E38*E37*10000+E38,-1000000+E38) -> -101000000 | G36: =IF(G37=1,G38*G37*10000+G38,-1000000+G38) -> -999998 | I36: =IF(I37=1,I38*I37*10000+I38,-1000000+I38) -> -1000000 | K36: =IF(K37=1,K38*K37*10000+K38,-1000000+K38) -> -101000000 | M36: =IF(M37=1,M38*M37*10000+M38,-1000000+M38) -> -101000000 | O36: =IF(O37=1,O38*O37*10000+O38,-1000000+O38) -> -999998 | Q36: =IF(Q37=1,Q38*Q37*10000+Q38,-1000000+Q38) -> -101000000 | S36: =IF(S37=1,S38*S37*10000+S38,-1000000+S38) -> -999999 | U36: =IF(U37=1,U38*U37*10000+U38,-1000000+U38) -> -101000000 | W36: =IF(W37=1,W38*W37*10000+W38,-1000000+W38) -> -1000000 | Y36: =IF(Y37=1,Y38*Y37*10000+Y38,-1000000+Y38) -> -101000000 | AA36: =IF(AA37=1,AA38*AA37*10000+AA38,-1000000+AA38) -> -101000000 | AC36: =IF(AC37=1,AC38*AC37*10000+AC38,-1000000+AC38) -> -999997.5 | AE36: =IF(AE37=1,AE38*AE37*10000+AE38,-1000000+AE38) -> -999998.5 | AG36: =IF(AG37=1,AG38*AG37*10000+AG38,-1000000+AG38) -> -101000000 | AI36: =IF(AI37=1,AI38*AI37*10000+AI38,-1000000+AI38) -> -101000000
